Workbook

Sheet Intro
A1: This workbook gets Bootstrap SEs for RHHINCOME for DC and CA in 1976. | I1: Must ENABLE MACROS on open to use PERCENTILEW function
I2: Bootstrap simulation used MCSim add-in from
A3: For the 95th percentile of 1976 RHHINCOME with sampling weights, we get the following: | I3: http://www3.wabash.edu/econometrics/EconometricsBook/Basic%20Tools/ExcelAddIns/MCSim.htm
C4: 95th p. estimate | D4: Bootstrapped SE
B5: DC (n=320) | C5: =DCBoot!H12 -> 172087.344 | D5: =MCRawDC!V10005 -> 13486.63206
B6: CA (n=5412) | C6: =CABoot!H12 -> 166192.2493 | D6: =MCRawCA!V10005 -> 3079.56669
A8: The contents of the sheets in this workbook are described below:
A10: 1977: Full data
A12: PT: Pivot Table showing smallest n = 320 for DC (STATEFIP = 11) and largest n = 5,412 for CA (6) and Pivot Table of median RHHINCOME
A14: 11: Shows how to compute medians without and with sampling weights for DC
A16: DCBoot: Has sample for DC and then enables resampling from the sample for percentiles without and with sampling weights
B17: Can't use VLOOKUP on resamples because RHHINCOME not sorted so uses a UDF called PERCENTILEW (go to Visual Basic to see code)
A19: MCSimDC: Has bootstrapped sampling distribution of RHHINCOME median
A21: MCRawDC: Has all repetitions of bootstrap for the percentiles for medians without and with weights
A23: CABoot: Has sample for DC and then enables resampling from the sample for percentiles without and with sampling weights
A25: MCSimCA: Has bootstrapped sampling distribution of RHHINCOME median
A27: MCRawCA: Has all repetitions of bootstrap for the percentiles for medians without and with weights

Sheet 1977
A1: YEAR | B1: SERIAL | C1: MONTH | D1: ASECFLAG | E1: ASECWTH | F1: NUMPREC | G1: CPI99 | H1: STATEFIP | I1: HHINCOME | J1: PERNUM | K1: ASECWT | L1: AGE | M1: RHHINCOME
A2: 1977 | B2: 2 | C2: 3 | D2: 1 | E2: 856.04 | F2: 2 | G2: 2.928 | H2: 23 | I2: 11500 | J2: 1 | K2: 856.04 | L2: 48 | M2: =I2*G2*1.507 -> 50743.704
A3: 1977 | B3: 3 | C3: 3 | D3: 1 | E3: 856.04 | F3: 5 | G3: 2.928 | H3: 23 | I3: 44310 | J3: 1 | K3: 856.04 | L3: 47 | M3: =I3*G3*1.507 -> 195517.6978
A4: 1977 | B4: 4 | C4: 3 | D4: 1 | E4: 801.57 | F4: 2 | G4: 2.928 | H4: 23 | I4: 23314 | J4: 1 | K4: 801.57 | L4: 63 | M4: 102872.9317
A5: 1977 | B5: 5 | C5: 3 | D5: 1 | E5: 657.13 | F5: 2 | G5: 2.928 | H5: 23 | I5: 8805 | J5: 1 | K5: 657.13 | L5: 29 | M5: 38852.02728
A6: 1977 | B6: 7 | C6: 3 | D6: 1 | E6: 632.23 | F6: 4 | G6: 2.928 | H6: 23 | I6: 13424 | J6: 1 | K6: 632.23 | L6: 29 | M6: 59233.3463
A7: 1977 | B7: 8 | C7: 3 | D7: 1 | E7: 681.42 | F7: 2 | G7: 2.928 | H7: 23 | I7: 11803 | J7: 1 | K7: 681.42 | L7: 68 | M7: 52080.69029
A8: 1977 | B8: 9 | C8: 3 | D8: 1 | E8: 886.62 | F8: 1 | G8: 2.928 | H8: 23 | I8: 1946 | J8: 1 | K8: 886.62 | L8: 67 | M8: 8586.717216
A9: 1977 | B9: 10 | C9: 3 | D9: 1 | E9: 867.91 | F9: 1 | G9: 2.928 | H9: 23 | I9: 3928 | J9: 1 | K9: 867.91 | L9: 60 | M9: 17332.28429
A10: 1977 | B10: 11 | C10: 3 | D10: 1 | E10: 816.46 | F10: 1 | G10: 2.928 | H10: 23 | I10: 3251 | J10: 1 | K10: 816.46 | L10: 80 | M10: 14345.0245
A11: 1977 | B11: 13 | C11: 3 | D11: 1 | E11: 854.99 | F11: 4 | G11: 2.928 | H11: 23 | I11: 17080 | J11: 1 | K11: 854.99 | L11: 34 | M11: 75365.43168
A12: 1977 | B12: 14 | C12: 3 | D12: 1 | E12: 661.58 | F12: 2 | G12: 2.928 | H12: 23 | I12: 12603 | J12: 1 | K12: 661.58 | L12: 74 | M12: 55610.68709
A13: 1977 | B13: 15 | C13: 3 | D13: 1 | E13: 758.16 | F13: 2 | G13: 2.928 | H13: 23 | I13: 20492 | J13: 1 | K13: 758.16 | L13: 59 | M13: 90420.86803
A14: 1977 | B14: 16 | C14: 3 | D14: 1 | E14: 731.04 | F14: 2 | G14: 2.928 | H14: 23 | I14: 2088 | J14: 1 | K14: 731.04 | L14: 21 | M14: 9213.291648
A15: 1977 | B15: 17 | C15: 3 | D15: 1 | E15: 745.87 | F15: 2 | G15: 2.928 | H15: 23 | I15: 5613 | J15: 1 | K15: 745.87 | L15: 42 | M15: 24767.34005
A16: 1977 | B16: 18 | C16: 3 | D16: 1 | E16: 603.92 | F16: 2 | G16: 2.928 | H16: 23 | I16: 38660 | J16: 1 | K16: 603.92 | L16: 63 | M16: 170587.0954
A17: 1977 | B17: 23 | C17: 3 | D17: 1 | E17: 629.82 | F17: 2 | G17: 2.928 | H17: 23 | I17: 10500 | J17: 1 | K17: 629.82 | L17: 43 | M17: 46331.208
A18: 1977 | B18: 24 | C18: 3 | D18: 1 | E18: 272.1 | F18: 1 | G18: 2.928 | H18: 23 | I18: 7555 | J18: 1 | K18: 272.1 | L18: 74 | M18: 33336.40728
A19: 1977 | B19: 25 | C19: 3 | D19: 1 | E19: 314.17 | F19: 4 | G19: 2.928 | H19: 23 | I19: 1135 | J19: 1 | K19: 314.17 | L19: 46 | M19: 5008.18296
A20: 1977 | B20: 26 | C20: 3 | D20: 1 | E20: 309.8 | F20: 2 | G20: 2.928 | H20: 23 | I20: 13200 | J20: 1 | K20: 309.8 | L20: 65 | M20: 58244.9472
A21: 1977 | B21: 27 | C21: 3 | D21: 1 | E21: 296.55 | F21: 5 | G21: 2.928 | H21: 23 | I21: 28352 | J21: 1 | K21: 296.55 | L21: 38 | M21: 125103.0866
A22: 1977 | B22: 30 | C22: 3 | D22: 1 | E22: 248.08 | F22: 6 | G22: 2.928 | H22: 23 | I22: 22619 | J22: 1 | K22: 248.08 | L22: 34 | M22: 99806.24702
A23: 1977 | B23: 31 | C23: 3 | D23: 1 | E23: 269.23 | F23: 3 | G23: 2.928 | H23: 23 | I23: 8200 | J23: 1 | K23: 269.23 | L23: 27 | M23: 36182.4672
A24: 1977 | B24: 32 | C24: 3 | D24: 1 | E24: 244.34 | F24: 5 | G24: 2.928 | H24: 23 | I24: 7904 | J24: 1 | K24: 244.34 | L24: 44 | M24: 34876.36838
A25: 1977 | B25: 39 | C25: 3 | D25: 1 | E25: 408.41 | F25: 5 | G25: 2.928 | H25: 23 | I25: 40495 | J25: 1 | K25: 408.41 | L25: 34 | M25: 178684.0255
A26: 1977 | B26: 40 | C26: 3 | D26: 1 | E26: 444.76 | F26: 2 | G26: 2.928 | H26: 23 | I26: 11469 | J26: 1 | K26: 444.76 | L26: 51 | M26: 50606.91662
A27: 1977 | B27: 41 | C27: 3 | D27: 1 | E27: 388.09 | F27: 1 | G27: 2.928 | H27: 23 | I27: 2063 | J27: 1 | K27: 388.09 | L27: 73 | M27: 9102.979248
A28: 1977 | B28: 43 | C28: 3 | D28: 1 | E28: 343.81 | F28: 4 | G28: 2.928 | H28: 23 | I28: 11520 | J28: 1 | K28: 343.81 | L28: 34 | M28: 50831.95392
A29: 1977 | B29: 45 | C29: 3 | D29: 1 | E29: 342.5 | F29: 4 | G29: 2.928 | H29: 23 | I29: 15940 | J29: 1 | K29: 342.5 | L29: 39 | M29: 70335.18624
A30: 1977 | B30: 47 | C30: 3 | D30: 1 | E30: 737.34 | F30: 1 | G30: 2.928 | H30: 23 | I30: 4423 | J30: 1 | K30: 737.34 | L30: 74 | M30: 19516.46981
A31: 1977 | B31: 48 | C31: 3 | D31: 1 | E31: 729.75 | F31: 4 | G31: 2.928 | H31: 23 | I31: 16053 | J31: 1 | K31: 729.75 | L31: 33 | M31: 70833.79829
A32: 1977 | B32: 50 | C32: 3 | D32: 1 | E32: 769.94 | F32: 2 | G32: 2.928 | H32: 23 | I32: 2792 | J32: 1 | K32: 769.94 | L32: 65 | M32: 12319.68883
A33: 1977 | B33: 51 | C33: 3 | D33: 1 | E33: 604.3 | F33: 2 | G33: 2.928 | H33: 23 | I33: 9760 | J33: 1 | K33: 604.3 | L33: 65 | M33: 43065.96096
A34: 1977 | B34: 53 | C34: 3 | D34: 1 | E34: 537.41 | F34: 2 | G34: 2.928 | H34: 23 | I34: 6356 | J34: 1 | K34: 537.41 | L34: 76 | M34: 28045.82458
A35: 1977 | B35: 54 | C35: 3 | D35: 1 | E35: 757.47 | F35: 1 | G35: 2.928 | H35: 23 | I35: 10450 | J35: 1 | K35: 757.47 | L35: 20 | M35: 46110.5832
A36: 1977 | B36: 55 | C36: 3 | D36: 1 | E36: 755.5 | F36: 4 | G36: 2.928 | H36: 23 | I36: 16230 | J36: 1 | K36: 755.5 | L36: 44 | M36: 71614.81008
A37: 1977 | B37: 56 | C37: 3 | D37: 1 | E37: 753.6 | F37: 4 | G37: 2.928 | H37: 23 | I37: 14498 | J37: 1 | K37: 753.6 | L37: 37 | M37: 63972.36701
A38: 1977 | B38: 57 | C38: 3 | D38: 1 | E38: 755.5 | F38: 6 | G38: 2.928 | H38: 23 | I38: 22885 | J38: 1 | K38: 755.5 | L38: 32 | M38: 100979.971
A39: 1977 | B39: 58 | C39: 3 | D39: 1 | E39: 753.6 | F39: 4 | G39: 2.928 | H39: 23 | I39: 18923 | J39: 1 | K39: 753.6 | L39: 31 | M39: 83497.66181
A40: 1977 | B40: 59 | C40: 3 | D40: 1 | E40: 783.29 | F40: 5 | G40: 2.928 | H40: 23 | I40: 23000 | J40: 1 | K40: 783.29 | L40: 30 | M40: 101487.408
A41: 1977 | B41: 60 | C41: 3 | D41: 1 | E41: 809.51 | F41: 4 | G41: 2.928 | H41: 23 | I41: 17207 | J41: 1 | K41: 809.51 | L41: 49 | M41: 75925.81867
A42: 1977 | B42: 61 | C42: 3 | D42: 1 | E42: 824.82 | F42: 4 | G42: 2.928 | H42: 23 | I42: 16333 | J42: 1 | K42: 824.82 | L42: 53 | M42: 72069.29717
A43: 1977 | B43: 62 | C43: 3 | D43: 1 | E43: 761.35 | F43: 2 | G43: 2.928 | H43: 23 | I43: 12772 | J43: 1 | K43: 761.35 | L43: 86 | M43: 56356.39891
A44: 1977 | B44: 63 | C44: 3 | D44: 1 | E44: 809.33 | F44: 2 | G44: 2.928 | H44: 23 | I44: 20030 | J44: 1 | K44: 809.33 | L44: 61 | M44: 88382.29488
A45: 1977 | B45: 65 | C45: 3 | D45: 1 | E45: 782.93 | F45: 5 | G45: 2.928 | H45: 23 | I45: 14603 | J45: 1 | K45: 782.93 | L45: 65 | M45: 64435.67909
A46: 1977 | B46: 66 | C46: 3 | D46: 1 | E46: 824.8 | F46: 1 | G46: 2.928 | H46: 23 | I46: 10002 | J46: 1 | K46: 824.8 | L46: 48 | M46: 44133.78499
A47: 1977 | B47: 67 | C47: 3 | D47: 1 | E47: 817.25 | F47: 2 | G47: 2.928 | H47: 23 | I47: 9663 | J47: 1 | K47: 817.25 | L47: 25 | M47: 42637.94885
A48: 1977 | B48: 68 | C48: 3 | D48: 1 | E48: 870.61 | F48: 4 | G48: 2.928 | H48: 23 | I48: 24684 | J48: 1 | K48: 870.61 | L48: 46 | M48: 108918.0513
A49: 1977 | B49: 69 | C49: 3 | D49: 1 | E49: 878.77 | F49: 4 | G49: 2.928 | H49: 23 | I49: 16168 | J49: 1 | K49: 878.77 | L49: 43 | M49: 71341.23533
A50: 1977 | B50: 70 | C50: 3 | D50: 1 | E50: 851.9 | F50: 1 | G50: 2.928 | H50: 23 | I50: 1471 | J50: 1 | K50: 851.9 | L50: 20 | M50: 6490.781616
A51: 1977 | B51: 71 | C51: 3 | D51: 1 | E51: 777.32 | F51: 4 | G51: 2.928 | H51: 23 | I51: 8558 | J51: 1 | K51: 777.32 | L51: 21 | M51: 37762.14077
A52: 1977 | B52: 73 | C52: 3 | D52: 1 | E52: 814.86 | F52: 1 | G52: 2.928 | H52: 23 | I52: 5114 | J52: 1 | K52: 814.86 | L52: 21 | M52: 22565.50454
A53: 1977 | B53: 76 | C53: 3 | D53: 1 | E53: 780.55 | F53: 4 | G53: 2.928 | H53: 23 | I53: 11691 | J53: 1 | K53: 780.55 | L53: 63 | M53: 51586.49074
A54: 1977 | B54: 78 | C54: 3 | D54: 1 | E54: 750.61 | F54: 4 | G54: 2.928 | H54: 23 | I54: 6159 | J54: 1 | K54: 750.61 | L54: 26 | M54: 27176.56286
A55: 1977 | B55: 79 | C55: 3 | D55: 1 | E55: 711.08 | F55: 4 | G55: 2.928 | H55: 23 | I55: 16832 | J55: 1 | K55: 711.08 | L55: 37 | M55: 74271.13267
A56: 1977 | B56: 80 | C56: 3 | D56: 1 | E56: 739.86 | F56: 1 | G56: 2.928 | H56: 23 | I56: 2733 | J56: 1 | K56: 739.86 | L56: 74 | M56: 12059.35157
A57: 1977 | B57: 82 | C57: 3 | D57: 1 | E57: 658.74 | F57: 2 | G57: 2.928 | H57: 23 | I57: 2088 | J57: 1 | K57: 658.74 | L57: 44 | M57: 9213.291648
A58: 1977 | B58: 85 | C58: 3 | D58: 1 | E58: 659.09 | F58: 3 | G58: 2.928 | H58: 23 | I58: 18044 | J58: 1 | K58: 659.09 | L58: 45 | M58: 79619.07782
A59: 1977 | B59: 87 | C59: 3 | D59: 1 | E59: 853.8 | F59: 5 | G59: 2.928 | H59: 23 | I59: 23803 | J59: 1 | K59: 853.8 | L59: 41 | M59: 105030.6423
A60: 1977 | B60: 88 | C60: 3 | D60: 1 | E60: 785.58 | F60: 3 | G60: 2.928 | H60: 23 | I60: 20980 | J60: 1 | K60: 785.58 | L60: 49 | M60: 92574.16608
A61: 1977 | B61: 89 | C61: 3 | D61: 1 | E61: 782.84 | F61: 2 | G61: 2.928 | H61: 23 | I61: 15550 | J61: 1 | K61: 782.84 | L61: 22 | M61: 68614.3128
A62: 1977 | B62: 90 | C62: 3 | D62: 1 | E62: 808.81 | F62: 1 | G62: 2.928 | H62: 23 | I62: 10504 | J62: 1 | K62: 808.81 | L62: 52 | M62: 46348.85798
A63: 1977 | B63: 91 | C63: 3 | D63: 1 | E63: 741.62 | F63: 3 | G63: 2.928 | H63: 23 | I63: 14498 | J63: 1 | K63: 741.62 | L63: 29 | M63: 63972.36701
A64: 1977 | B64: 92 | C64: 3 | D64: 1 | E64: 778.3 | F64: 4 | G64: 2.928 | H64: 23 | I64: 26600 | J64: 1 | K64: 778.3 | L64: 52 | M64: 117372.3936
A65: 1977 | B65: 93 | C65: 3 | D65: 1 | E65: 771.29 | F65: 3 | G65: 2.928 | H65: 23 | I65: 80972 | J65: 1 | K65: 771.29 | L65: 60 | M65: 357288.6261
A66: 1977 | B66: 94 | C66: 3 | D66: 1 | E66: 799.22 | F66: 5 | G66: 2.928 | H66: 23 | I66: 35983 | J66: 1 | K66: 799.22 | L66: 44 | M66: 158774.8436
A67: 1977 | B67: 95 | C67: 3 | D67: 1 | E67: 792.22 | F67: 5 | G67: 2.928 | H67: 23 | I67: 36187 | J67: 1 | K67: 792.22 | L67: 51 | M67: =I67*G67*1.507 -> 159674.9928
A68: 1977 | B68: 96 | C68: 3 | D68: 1 | E68: 431.64 | F68: 2 | G68: 2.928 | H68: 23 | I68: 17744 | J68: 1 | K68: 431.64 | L68: 65 | M68: 78295.32902
A69: 1977 | B69: 97 | C69: 3 | D69: 1 | E69: 931.96 | F69: 2 | G69: 2.928 | H69: 23 | I69: 7843 | J69: 1 | K69: 931.96 | L69: 37 | M69: 34607.20613
A70: 1977 | B70: 98 | C70: 3 | D70: 1 | E70: 849.57 | F70: 3 | G70: 2.928 | H70: 23 | I70: 18714 | J70: 1 | K70: 849.57 | L70: 50 | M70: 82575.45014
A71: 1977 | B71: 99 | C71: 3 | D71: 1 | E71: 711.54 | F71: 1 | G71: 2.928 | H71: 23 | I71: 3155 | J71: 1 | K71: 711.54 | L71: 66 | M71: 13921.42488
A72: 1977 | B72: 100 | C72: 3 | D72: 1 | E72: 622.19 | F72: 6 | G72: 2.928 | H72: 23 | I72: 20062 | J72: 1 | K72: 622.19 | L72: 31 | M72: 88523.49475
A73: 1977 | B73: 101 | C73: 3 | D73: 1 | E73: 593.31 | F73: 2 | G73: 2.928 | H73: 23 | I73: 20085 | J73: 1 | K73: 593.31 | L73: 29 | M73: 88624.98216
A74: 1977 | B74: 104 | C74: 3 | D74: 1 | E74: 676.68 | F74: 2 | G74: 2.928 | H74: 23 | I74: 8417 | J74: 1 | K74: 676.68 | L74: 72 | M74: 37139.97883
A75: 1977 | B75: 106 | C75: 3 | D75: 1 | E75: 896.6 | F75: 3 | G75: 2.928 | H75: 23 | I75: 8888 | J75: 1 | K75: 896.6 | L75: 59 | M75: 39218.26445
A76: 1977 | B76: 107 | C76: 3 | D76: 1 | E76: 870.61 | F76: 5 | G76: 2.928 | H76: 23 | I76: 25714 | J76: 1 | K76: 870.61 | L76: 39 | M76: 113462.9221
A77: 1977 | B77: 108 | C77: 3 | D77: 1 | E77: 878.31 | F77: 7 | G77: 2.928 | H77: 23 | I77: 38502 | J77: 1 | K77: 878.31 | L77: 45 | M77: 169889.921
A78: 1977 | B78: 109 | C78: 3 | D78: 1 | E78: 791.08 | F78: 4 | G78: 2.928 | H78: 23 | I78: 13116 | J78: 1 | K78: 791.08 | L78: 31 | M78: 57874.29754
A79: 1977 | B79: 117 | C79: 3 | D79: 1 | E79: 827.11 | F79: 2 | G79: 2.928 | H79: 23 | I79: 15539 | J79: 1 | K79: 827.11 | L79: 60 | M79: 68565.77534
A80: 1977 | B80: 122 | C80: 3 | D80: 1 | E80: 417.03 | F80: 1 | G80: 2.928 | H80: 23 | I80: 9003 | J80: 1 | K80: 417.03 | L80: 23 | M80: 39725.70149
A81: 1977 | B81: 124 | C81: 3 | D81: 1 | E81: 416.35 | F81: 2 | G81: 2.928 | H81: 23 | I81: 550 | J81: 1 | K81: 416.35 | L81: 17 | M81: 2426.8728
A82: 1977 | B82: 128 | C82: 3 | D82: 1 | E82: 428.34 | F82: 4 | G82: 2.928 | H82: 23 | I82: 12000 | J82: 1 | K82: 428.34 | L82: 22 | M82: 52949.952
A83: 1977 | B83: 129 | C83: 3 | D83: 1 | E83: 406.03 | F83: 3 | G83: 2.928 | H83: 23 | I83: 8265 | J83: 1 | K83: 406.03 | L83: 33 | M83: 36469.27944
A84: 1977 | B84: 130 | C84: 3 | D84: 1 | E84: 453.68 | F84: 2 | G84: 2.928 | H84: 23 | I84: 15033 | J84: 1 | K84: 453.68 | L84: 22 | M84: 66333.05237
A85: 1977 | B85: 131 | C85: 3 | D85: 1 | E85: 465.5 | F85: 1 | G85: 2.928 | H85: 23 | I85: 2300 | J85: 1 | K85: 465.5 | L85: 66 | M85: 10148.7408
A86: 1977 | B86: 141 | C86: 3 | D86: 1 | E86: 1692.7 | F86: 2 | G86: 2.928 | H86: 23 | I86: 3927 | J86: 1 | K86: 1692.7 | L86: 81 | M86: 17327.87179
A87: 1977 | B87: 142 | C87: 3 | D87: 1 | E87: 878.77 | F87: 4 | G87: 2.928 | H87: 23 | I87: 12936 | J87: 1 | K87: 878.77 | L87: 44 | M87: 57080.04826
A88: 1977 | B88: 143 | C88: 3 | D88: 1 | E88: 870.61 | F88: 2 | G88: 2.928 | H88: 23 | I88: 12950 | J88: 1 | K88: 870.61 | L88: 51 | M88: 57141.8232
A89: 1977 | B89: 144 | C89: 3 | D89: 1 | E89: 931.41 | F89: 2 | G89: 2.928 | H89: 23 | I89: 10520 | J89: 1 | K89: 931.41 | L89: 62 | M89: 46419.45792
A90: 1977 | B90: 145 | C90: 3 | D90: 1 | E90: 729.16 | F90: 1 | G90: 2.928 | H90: 23 | I90: 2071 | J90: 1 | K90: 729.16 | L90: 74 | M90: 9138.279216
A91: 1977 | B91: 147 | C91: 3 | D91: 1 | E91: 599.87 | F91: 2 | G91: 2.928 | H91: 23 | I91: 15904 | J91: 1 | K91: 599.87 | L91: 50 | M91: 70176.33638
A92: 1977 | B92: 148 | C92: 3 | D92: 1 | E92: 596.75 | F92: 7 | G92: 2.928 | H92: 23 | I92: 58586 | J92: 1 | K92: 596.75 | L92: 42 | M92: 258510.4907
A93: 1977 | B93: 150 | C93: 3 | D93: 1 | E93: 575.89 | F93: 4 | G93: 2.928 | H93: 23 | I93: 23350 | J93: 1 | K93: 575.89 | L93: 57 | M93: 103031.7816
A94: 1977 | B94: 152 | C94: 3 | D94: 1 | E94: 714.94 | F94: 2 | G94: 2.928 | H94: 23 | I94: 13345 | J94: 1 | K94: 714.94 | L94: 78 | M94: 58884.75912
A95: 1977 | B95: 153 | C95: 3 | D95: 1 | E95: 700.8 | F95: 5 | G95: 2.928 | H95: 23 | I95: 6000 | J95: 1 | K95: 700.8 | L95: 37 | M95: 26474.976
A96: 1977 | B96: 154 | C96: 3 | D96: 1 | E96: 699.04 | F96: 3 | G96: 2.928 | H96: 23 | I96: 10707 | J96: 1 | K96: 699.04 | L96: 30 | M96: 47244.59467
A97: 1977 | B97: 155 | C97: 3 | D97: 1 | E97: 586.48 | F97: 1 | G97: 2.928 | H97: 23 | I97: 3535 | J97: 1 | K97: 586.48 | L97: 71 | M97: 15598.17336
A98: 1977 | B98: 157 | C98: 3 | D98: 1 | E98: 580.82 | F98: 2 | G98: 2.928 | H98: 23 | I98: 20000 | J98: 1 | K98: 580.82 | L98: 67 | M98: 88249.92
A99: 1977 | B99: 168 | C99: 3 | D99: 1 | E99: 246.82 | F99: 1 | G99: 2.928 | H99: 23 | I99: 5104 | J99: 1 | K99: 246.82 | L99: 70 | M99: 22521.37958
A100: 1977 | B100: 169 | C100: 3 | D100: 1 | E100: 301.88 | F100: 3 | G100: 2.928 | H100: 23 | I100: 11677 | J100: 1 | K100: 301.88 | L100: 66 | M100: 51524.71579
A101: 1977 | B101: 171 | C101: 3 | D101: 1 | E101: 797.76 | F101: 5 | G101: 2.928 | H101: 23 | I101: 16271 | J101: 1 | K101: 797.76 | L101: 37 | M101: 71795.72242
A102: 1977 | B102: 172 | C102: 3 | D102: 1 | E102: 847.19 | F102: 2 | G102: 2.928 | H102: 23 | I102: 6924 | J102: 1 | K102: 847.19 | L102: 46 | M102: 30552.1223
A103: 1977 | B103: 173 | C103: 3 | D103: 1 | E103: 914.63 | F103: 1 | G103: 2.928 | H103: 23 | I103: 2409 | J103: 1 | K103: 914.63 | L103: 68 | M103: 10629.70286
A104: 1977 | B104: 174 | C104: 3 | D104: 1 | E104: 832.15 | F104: 1 | G104: 2.928 | H104: 23 | I104: 2297 | J104: 1 | K104: 832.15 | L104: 71 | M104: 10135.50331
A105: 1977 | B105: 176 | C105: 3 | D105: 1 | E105: 292.23 | F105: 5 | G105: 2.928 | H105: 23 | I105: 14855 | J105: 1 | K105: 292.23 | L105: 33 | M105: 65547.62808
A106: 1977 | B106: 177 | C106: 3 | D106: 1 | E106: 300.12 | F106: 5 | G106: 2.928 | H106: 23 | I106: 4440 | J106: 1 | K106: 300.12 | L106: 46 | M106: 19591.48224
A107: 1977 | B107: 178 | C107: 3 | D107: 1 | E107: 292.23 | F107: 4 | G107: 2.928 | H107: 23 | I107: 13000 | J107: 1 | K107: 292.23 | L107: 33 | M107: 57362.448
A108: 1977 | B108: 179 | C108: 3 | D108: 1 | E108: 298.87 | F108: 1 | G108: 2.928 | H108: 23 | I108: 1605 | J108: 1 | K108: 298.87 | L108: 80 | M108: 7082.05608
A109: 1977 | B109: 180 | C109: 3 | D109: 1 | E109: 261.71 | F109: 1 | G109: 2.928 | H109: 23 | I109: 4000 | J109: 1 | K109: 261.71 | L109: 64 | M109: 17649.984
A110: 1977 | B110: 181 | C110: 3 | D110: 1 | E110: 335.03 | F110: 1 | G110: 2.928 | H110: 23 | I110: 2314 | J110: 1 | K110: 335.03 | L110: 65 | M110: 10210.51574
A111: 1977 | B111: 182 | C111: 3 | D111: 1 | E111: 271.46 | F111: 2 | G111: 2.928 | H111: 23 | I111: 12500 | J111: 1 | K111: 271.46 | L111: 61 | M111: 55156.2
A112: 1977 | B112: 183 | C112: 3 | D112: 1 | E112: 298.87 | F112: 1 | G112: 2.928 | H112: 23 | I112: 4676 | J112: 1 | K112: 298.87 | L112: 77 | M112: 20632.8313
A113: 1977 | B113: 184 | C113: 3 | D113: 1 | E113: 298.87 | F113: 2 | G113: 2.928 | H113: 23 | I113: 4150 | J113: 1 | K113: 298.87 | L113: 86 | M113: 18311.8584
A114: 1977 | B114: 185 | C114: 3 | D114: 1 | E114: 299.32 | F114: 2 | G114: 2.928 | H114: 23 | I114: 32150 | J114: 1 | K114: 299.32 | L114: 60 | M114: 141861.7464
A115: 1977 | B115: 186 | C115: 3 | D115: 1 | E115: 247.21 | F115: 2 | G115: 2.928 | H115: 23 | I115: 10825 | J115: 1 | K115: 247.21 | L115: 23 | M115: 47765.2692
A116: 1977 | B116: 187 | C116: 3 | D116: 1 | E116: 265.59 | F116: 3 | G116: 2.928 | H116: 23 | I116: 11000 | J116: 1 | K116: 265.59 | L116: 53 | M116: 48537.456
A117: 1977 | B117: 188 | C117: 3 | D117: 1 | E117: 914.8 | F117: 4 | G117: 2.928 | H117: 23 | I117: 19095 | J117: 1 | K117: 914.8 | L117: 49 | M117: 84256.61112
A118: 1977 | B118: 189 | C118: 3 | D118: 1 | E118: 565.91 | F118: 1 | G118: 2.928 | H118: 23 | I118: 15000 | J118: 1 | K118: 565.91 | L118: 63 | M118: 66187.44
A119: 1977 | B119: 190 | C119: 3 | D119: 1 | E119: 993.23 | F119: 2 | G119: 2.928 | H119: 23 | I119: 45000 | J119: 1 | K119: 993.23 | L119: 58 | M119: 198562.32
A120: 1977 | B120: 191 | C120: 3 | D120: 1 | E120: 881.52 | F120: 1 | G120: 2.928 | H120: 23 | I120: 1395 | J120: 1 | K120: 881.52 | L120: 86 | M120: 6155.43192
A121: 1977 | B121: 192 | C121: 3 | D121: 1 | E121: 681.48 | F121: 3 | G121: 2.928 | H121: 23 | I121: 24910 | J121: 1 | K121: 681.48 | L121: 53 | M121: 109915.2754
A122: 1977 | B122: 194 | C122: 3 | D122: 1 | E122: 689.78 | F122: 4 | G122: 2.928 | H122: 23 | I122: 7350 | J122: 1 | K122: 689.78 | L122: 33 | M122: 32431.8456
A123: 1977 | B123: 196 | C123: 3 | D123: 1 | E123: 806.51 | F123: 1 | G123: 2.928 | H123: 23 | I123: 1342 | J123: 1 | K123: 806.51 | L123: 81 | M123: 5921.569632
A124: 1977 | B124: 198 | C124: 3 | D124: 1 | E124: 704.02 | F124: 1 | G124: 2.928 | H124: 23 | I124: 11438 | J124: 1 | K124: 704.02 | L124: 28 | M124: 50470.12925
A125: 1977 | B125: 199 | C125: 3 | D125: 1 | E125: 630.8 | F125: 2 | G125: 2.928 | H125: 23 | I125: 2858 | J125: 1 | K125: 630.8 | L125: 30 | M125: 12610.91357
A126: 1977 | B126: 200 | C126: 3 | D126: 1 | E126: 745.35 | F126: 2 | G126: 2.928 | H126: 23 | I126: 18900 | J126: 1 | K126: 745.35 | L126: 27 | M126: 83396.1744
A127: 1977 | B127: 201 | C127: 3 | D127: 1 | E127: 552.02 | F127: 2 | G127: 2.928 | H127: 23 | I127: 6340 | J127: 1 | K127: 552.02 | L127: 56 | M127: 27975.22464
A128: 1977 | B128: 202 | C128: 3 | D128: 1 | E128: 706.5 | F128: 2 | G128: 2.928 | H128: 23 | I128: 7413 | J128: 1 | K128: 706.5 | L128: 70 | M128: 32709.83285
A129: 1977 | B129: 203 | C129: 3 | D129: 1 | E129: 556.74 | F129: 2 | G129: 2.928 | H129: 23 | I129: 16620 | J129: 1 | K129: 556.74 | L129: 57 | M129: 73335.68352
A130: 1977 | B130: 204 | C130: 3 | D130: 1 | E130: 556.74 | F130: 2 | G130: 2.928 | H130: 23 | I130: 14557 | J130: 1 | K130: 556.74 | L130: 67 | M130: 64232.70427
A131: 1977 | B131: 205 | C131: 3 | D131: 1 | E131: 542.41 | F131: 6 | G131: 2.928 | H131: 23 | I131: 10166 | J131: 1 | K131: 542.41 | L131: 50 | M131: =I131*G131*1.507 -> 44857.43434
A132: 1977 | B132: 206 | C132: 3 | D132: 1 | E132: 535.9 | F132: 2 | G132: 2.928 | H132: 23 | I132: 5024 | J132: 1 | K132: 535.9 | L132: 76 | M132: 22168.3799
A133: 1977 | B133: 210 | C133: 3 | D133: 1 | E133: 813.26 | F133: 2 | G133: 2.928 | H133: 23 | I133: 16477 | J133: 1 | K133: 813.26 | L133: 30 | M133: 72704.69659
A134: 1977 | B134: 211 | C134: 3 | D134: 1 | E134: 815.44 | F134: 5 | G134: 2.928 | H134: 23 | I134: 20963 | J134: 1 | K134: 815.44 | L134: 37 | M134: 92499.15365
A135: 1977 | B135: 212 | C135: 3 | D135: 1 | E135: 768.55 | F135: 4 | G135: 2.928 | H135: 23 | I135: 48198 | J135: 1 | K135: 768.55 | L135: 62 | M135: 212673.4822
A136: 1977 | B136: 213 | C136: 3 | D136: 1 | E136: 792.81 | F136: 2 | G136: 2.928 | H136: 23 | I136: 15300 | J136: 1 | K136: 792.81 | L136: 57 | M136: 67511.1888
A137: 1977 | B137: 215 | C137: 3 | D137: 1 | E137: 757.16 | F137: 2 | G137: 2.928 | H137: 23 | I137: 890 | J137: 1 | K137: 757.16 | L137: 24 | M137: 3927.12144
A138: 1977 | B138: 216 | C138: 3 | D138: 1 | E138: 833.42 | F138: 2 | G138: 2.928 | H138: 23 | I138: 6299 | J138: 1 | K138: 833.42 | L138: 27 | M138: 27794.3123
A139: 1977 | B139: 217 | C139: 3 | D139: 1 | E139: 888.21 | F139: 2 | G139: 2.928 | H139: 23 | I139: 3774 | J139: 1 | K139: 888.21 | L139: 40 | M139: 16652.7599
A140: 1977 | B140: 218 | C140: 3 | D140: 1 | E140: 754.17 | F140: 3 | G140: 2.928 | H140: 23 | I140: 18263 | J140: 1 | K140: 754.17 | L140: 49 | M140: 80585.41445
A141: 1977 | B141: 219 | C141: 3 | D141: 1 | E141: 806.27 | F141: 1 | G141: 2.928 | H141: 23 | I141: 2952 | J141: 1 | K141: 806.27 | L141: 66 | M141: 13025.68819
A142: 1977 | B142: 220 | C142: 3 | D142: 1 | E142: 783.26 | F142: 2 | G142: 2.928 | H142: 23 | I142: 11400 | J142: 1 | K142: 783.26 | L142: 61 | M142: 50302.4544
A143: 1977 | B143: 221 | C143: 3 | D143: 1 | E143: 754.17 | F143: 3 | G143: 2.928 | H143: 23 | I143: 8890 | J143: 1 | K143: 754.17 | L143: 50 | M143: 39227.08944
A144: 1977 | B144: 222 | C144: 3 | D144: 1 | E144: 754.17 | F144: 2 | G144: 2.928 | H144: 23 | I144: 13389 | J144: 1 | K144: 754.17 | L144: 54 | M144: 59078.90894
A145: 1977 | B145: 223 | C145: 3 | D145: 1 | E145: 522.03 | F145: 6 | G145: 2.928 | H145: 23 | I145: 23735 | J145: 1 | K145: 522.03 | L145: 55 | M145: 104730.5926
A146: 1977 | B146: 224 | C146: 3 | D146: 1 | E146: 502 | F146: 4 | G146: 2.928 | H146: 23 | I146: 10372 | J146: 1 | K146: 502 | L146: 26 | M146: 45766.40851
A147: 1977 | B147: 225 | C147: 3 | D147: 1 | E147: 529.3 | F147: 5 | G147: 2.928 | H147: 23 | I147: 15840 | J147: 1 | K147: 529.3 | L147: 52 | M147: 69893.93664
A148: 1977 | B148: 227 | C148: 3 | D148: 1 | E148: 859.58 | F148: 4 | G148: 2.928 | H148: 23 | I148: 10400 | J148: 1 | K148: 859.58 | L148: 29 | M148: 45889.9584
A149: 1977 | B149: 228 | C149: 3 | D149: 1 | E149: 584.26 | F149: 3 | G149: 2.928 | H149: 23 | I149: 2500 | J149: 1 | K149: 584.26 | L149: 45 | M149: 11031.24
A150: 1977 | B150: 229 | C150: 3 | D150: 1 | E150: 671.49 | F150: 5 | G150: 2.928 | H150: 23 | I150: 6100 | J150: 1 | K150: 671.49 | L150: 26 | M150: 26916.2256
A151: 1977 | B151: 232 | C151: 3 | D151: 1 | E151: 338.03 | F151: 1 | G151: 2.928 | H151: 23 | I151: 3099 | J151: 1 | K151: 338.03 | L151: 71 | M151: 13674.3251
A152: 1977 | B152: 233 | C152: 3 | D152: 1 | E152: 706.92 | F152: 3 | G152: 2.928 | H152: 23 | I152: 9474 | J152: 1 | K152: 706.92 | L152: 41 | M152: 41803.9871
A153: 1977 | B153: 235 | C153: 3 | D153: 1 | E153: 688.12 | F153: 4 | G153: 2.928 | H153: 23 | I153: 4675 | J153: 1 | K153: 688.12 | L153: 27 | M153: 20628.4188
A154: 1977 | B154: 236 | C154: 3 | D154: 1 | E154: 590.53 | F154: 2 | G154: 2.928 | H154: 23 | I154: 3372 | J154: 1 | K154: 590.53 | L154: 71 | M154: 14878.93651
A155: 1977 | B155: 237 | C155: 3 | D155: 1 | E155: 598.74 | F155: 2 | G155: 2.928 | H155: 23 | I155: 7912 | J155: 1 | K155: 598.74 | L155: 53 | M155: 34911.66835
A156: 1977 | B156: 240 | C156: 3 | D156: 1 | E156: 398.57 | F156: 2 | G156: 2.928 | H156: 23 | I156: 4841 | J156: 1 | K156: 398.57 | L156: 21 | M156: 21360.89314
A157: 1977 | B157: 241 | C157: 3 | D157: 1 | E157: 392.49 | F157: 1 | G157: 2.928 | H157: 23 | I157: 6714 | J157: 1 | K157: 392.49 | L157: 29 | M157: 29625.49814
A158: 1977 | B158: 242 | C158: 3 | D158: 1 | E158: 386.26 | F158: 5 | G158: 2.928 | H158: 23 | I158: 46471 | J158: 1 | K158: 386.26 | L158: 44 | M158: 205053.1016
A159: 1977 | B159: 243 | C159: 3 | D159: 1 | E159: 387 | F159: 1 | G159: 2.928 | H159: 23 | I159: 6180 | J159: 1 | K159: 387 | L159: 72 | M159: 27269.22528
A160: 1977 | B160: 244 | C160: 3 | D160: 1 | E160: 386.34 | F160: 2 | G160: 2.928 | H160: 23 | I160: 14952 | J160: 1 | K160: 386.34 | L160: 52 | M160: 65975.64019
A161: 1977 | B161: 245 | C161: 3 | D161: 1 | E161: 402.06 | F161: 2 | G161: 2.928 | H161: 23 | I161: 8403 | J161: 1 | K161: 402.06 | L161: 58 | M161: 37078.20389
A162: 1977 | B162: 246 | C162: 3 | D162: 1 | E162: 871.08 | F162: 2 | G162: 2.928 | H162: 23 | I162: 3647 | J162: 1 | K162: 871.08 | L162: 66 | M162: 16092.37291
A163: 1977 | B163: 247 | C163: 3 | D163: 1 | E163: 871.08 | F163: 2 | G163: 2.928 | H163: 23 | I163: 5090 | J163: 1 | K163: 871.08 | L163: 67 | M163: 22459.60464
A164: 1977 | B164: 248 | C164: 3 | D164: 1 | E164: 820.32 | F164: 2 | G164: 2.928 | H164: 23 | I164: 10148 | J164: 1 | K164: 820.32 | L164: 72 | M164: 44778.00941
A165: 1977 | B165: 249 | C165: 3 | D165: 1 | E165: 924.52 | F165: 3 | G165: 2.928 | H165: 23 | I165: 25200 | J165: 1 | K165: 924.52 | L165: 25 | M165: 111194.8992
A166: 1977 | B166: 250 | C166: 3 | D166: 1 | E166: 868.05 | F166: 1 | G166: 2.928 | H166: 23 | I166: 8807 | J166: 1 | K166: 868.05 | L166: 28 | M166: 38860.85227
A167: 1977 | B167: 254 | C167: 3 | D167: 1 | E167: 329 | F167: 1 | G167: 2.928 | H167: 23 | I167: 785 | J167: 1 | K167: 329 | L167: 86 | M167: 3463.80936
A168: 1977 | B168: 255 | C168: 3 | D168: 1 | E168: 276.26 | F168: 1 | G168: 2.928 | H168: 23 | I168: 5525 | J168: 1 | K168: 276.26 | L168: 52 | M168: 24379.0404
A169: 1977 | B169: 256 | C169: 3 | D169: 1 | E169: 290.08 | F169: 4 | G169: 2.928 | H169: 23 | I169: 5397 | J169: 1 | K169: 290.08 | L169: 65 | M169: 23814.24091
A170: 1977 | B170: 257 | C170: 3 | D170: 1 | E170: 301.01 | F170: 1 | G170: 2.928 | H170: 23 | I170: 2304 | J170: 1 | K170: 301.01 | L170: 64 | M170: 10166.39078
A171: 1977 | B171: 258 | C171: 3 | D171: 1 | E171: 667.55 | F171: 4 | G171: 2.928 | H171: 23 | I171: 23560 | J171: 1 | K171: 667.55 | L171: 37 | M171: 103958.4058
A172: 1977 | B172: 259 | C172: 3 | D172: 1 | E172: 295.35 | F172: 3 | G172: 2.928 | H172: 23 | I172: 6634 | J172: 1 | K172: 295.35 | L172: 68 | M172: 29272.49846
A173: 1977 | B173: 260 | C173: 3 | D173: 1 | E173: 284.75 | F173: 4 | G173: 2.928 | H173: 23 | I173: 13057 | J173: 1 | K173: 284.75 | L173: 23 | M173: 57613.96027
A174: 1977 | B174: 261 | C174: 3 | D174: 1 | E174: 289.36 | F174: 2 | G174: 2.928 | H174: 23 | I174: 14000 | J174: 1 | K174: 289.36 | L174: 61 | M174: 61774.944
A175: 1977 | B175: 262 | C175: 3 | D175: 1 | E175: 278.06 | F175: 3 | G175: 2.928 | H175: 23 | I175: 7402 | J175: 1 | K175: 278.06 | L175: 57 | M175: 32661.29539
A176: 1977 | B176: 264 | C176: 3 | D176: 1 | E176: 278.54 | F176: 1 | G176: 2.928 | H176: 23 | I176: 5519 | J176: 1 | K176: 278.54 | L176: 71 | M176: 24352.56542
A177: 1977 | B177: 265 | C177: 3 | D177: 1 | E177: 329 | F177: 1 | G177: 2.928 | H177: 23 | I177: 2461 | J177: 1 | K177: 329 | L177: 87 | M177: 10859.15266
A178: 1977 | B178: 269 | C178: 3 | D178: 1 | E178: 717.72 | F178: 2 | G178: 2.928 | H178: 23 | I178: 4866 | J178: 1 | K178: 717.72 | L178: 74 | M178: 21471.20554
A179: 1977 | B179: 270 | C179: 3 | D179: 1 | E179: 765.12 | F179: 2 | G179: 2.928 | H179: 23 | I179: 8708 | J179: 1 | K179: 765.12 | L179: 23 | M179: 38424.01517
A180: 1977 | B180: 271 | C180: 3 | D180: 1 | E180: 726.88 | F180: 6 | G180: 2.928 | H180: 23 | I180: 6881 | J180: 1 | K180: 726.88 | L180: 34 | M180: 30362.38498
A181: 1977 | B181: 272 | C181: 3 | D181: 1 | E181: 699.17 | F181: 1 | G181: 2.928 | H181: 23 | I181: 6924 | J181: 1 | K181: 699.17 | L181: 71 | M181: 30552.1223
A182: 1977 | B182: 273 | C182: 3 | D182: 1 | E182: 716.33 | F182: 3 | G182: 2.928 | H182: 23 | I182: 20184 | J182: 1 | K182: 716.33 | L182: 47 | M182: 89061.81926
A183: 1977 | B183: 274 | C183: 3 | D183: 1 | E183: 716.67 | F183: 3 | G183: 2.928 | H183: 23 | I183: 10828 | J183: 1 | K183: 716.67 | L183: 61 | M183: 47778.50669
A184: 1977 | B184: 275 | C184: 3 | D184: 1 | E184: 231.13 | F184: 2 | G184: 2.928 | H184: 23 | I184: 15447 | J184: 1 | K184: 231.13 | L184: 51 | M184: 68159.82571
A185: 1977 | B185: 276 | C185: 3 | D185: 1 | E185: 713.67 | F185: 2 | G185: 2.928 | H185: 23 | I185: 19032 | J185: 1 | K185: 713.67 | L185: 58 | M185: 83978.62387
A186: 1977 | B186: 277 | C186: 3 | D186: 1 | E186: 737.78 | F186: 2 | G186: 2.928 | H186: 23 | I186: 10000 | J186: 1 | K186: 737.78 | L186: 29 | M186: 44124.96
A187: 1977 | B187: 278 | C187: 3 | D187: 1 | E187: 704.08 | F187: 2 | G187: 2.928 | H187: 23 | I187: 20500 | J187: 1 | K187: 704.08 | L187: 60 | M187: 90456.168
A188: 1977 | B188: 279 | C188: 3 | D188: 1 | E188: 757.65 | F188: 2 | G188: 2.928 | H188: 23 | I188: 2544 | J188: 1 | K188: 757.65 | L188: 21 | M188: 11225.38982
A189: 1977 | B189: 280 | C189: 3 | D189: 1 | E189: 590.74 | F189: 2 | G189: 2.928 | H189: 23 | I189: 20200 | J189: 1 | K189: 590.74 | L189: 60 | M189: 89132.4192
A190: 1977 | B190: 281 | C190: 3 | D190: 1 | E190: 590.74 | F190: 2 | G190: 2.928 | H190: 23 | I190: 19666 | J190: 1 | K190: 590.74 | L190: 60 | M190: 86776.14634
A191: 1977 | B191: 282 | C191: 3 | D191: 1 | E191: 607.78 | F191: 1 | G191: 2.928 | H191: 23 | I191: 4676 | J191: 1 | K191: 607.78 | L191: 68 | M191: 20632.8313
A192: 1977 | B192: 283 | C192: 3 | D192: 1 | E192: 602.63 | F192: 3 | G192: 2.928 | H192: 23 | I192: 11765 | J192: 1 | K192: 602.63 | L192: 62 | M192: 51913.01544
A193: 1977 | B193: 284 | C193: 3 | D193: 1 | E193: 622.63 | F193: 3 | G193: 2.928 | H193: 23 | I193: 13888 | J193: 1 | K193: 622.63 | L193: 41 | M193: 61280.74445
A194: 1977 | B194: 285 | C194: 3 | D194: 1 | E194: 637.01 | F194: 1 | G194: 2.928 | H194: 23 | I194: 6362 | J194: 1 | K194: 637.01 | L194: 27 | M194: 28072.29955
A195: 1977 | B195: 286 | C195: 3 | D195: 1 | E195: 588.97 | F195: 2 | G195: 2.928 | H195: 23 | I195: 15853 | J195: 1 | K195: 588.97 | L195: 58 | M195: =I195*G195*1.507 -> 69951.29909
A196: 1977 | B196: 287 | C196: 3 | D196: 1 | E196: 643.64 | F196: 3 | G196: 2.928 | H196: 23 | I196: 14946 | J196: 1 | K196: 643.64 | L196: 36 | M196: 65949.16522
A197: 1977 | B197: 288 | C197: 3 | D197: 1 | E197: 624.51 | F197: 2 | G197: 2.928 | H197: 23 | I197: 2944 | J197: 1 | K197: 624.51 | L197: 24 | M197: 12990.38822
A198: 1977 | B198: 289 | C198: 3 | D198: 1 | E198: 679.82 | F198: 3 | G198: 2.928 | H198: 23 | I198: 31509 | J198: 1 | K198: 679.82 | L198: 53 | M198: 139033.3365
A199: 1977 | B199: 290 | C199: 3 | D199: 1 | E199: 687.7 | F199: 2 | G199: 2.928 | H199: 23 | I199: 24481 | J199: 1 | K199: 687.7 | L199: 58 | M199: 108022.3146
A200: 1977 | B200: 292 | C200: 3 | D200: 1 | E200: 742.78 | F200: 3 | G200: 2.928 | H200: 23 | I200: 10778 | J200: 1 | K200: 742.78 | L200: 56 | M200: 47557.88189
... 4300 more rows

Sheet PT
L1: To make a Pivot Table that computes the median:
F2: unweighted | L2: a) Install PowerPivot COM add-in (it is included in Excel 2016 and greater)
A3: Row Labels | B3: Count of STATEFIP | E3: Row Labels | F3: Median | L3: b) Follow these steps
A4: 1 | B4: 888 | E4: 1 | F4: 48184.45632
A5: 2 | B5: 784 | E5: 2 | F5: 88702.20084
A6: 4 | B6: 668 | E6: 4 | F6: 51813.73428
A7: 5 | B7: 614 | E7: 5 | F7: 36956.86025
A8: 6 | B8: 5412 | C8: max | E8: 6 | F8: 57362.448
A9: 8 | B9: 947 | E9: 8 | F9: 57450.69792
A10: 9 | B10: 698 | E10: 9 | F10: 60307.78908
A11: 10 | B11: 356 | E11: 10 | F11: 62573.60578
A12: 11 | B12: 320 | C12: min | E12: 11 | F12: 50787.82896 | G12: ='11'!Q160 -> 49861.2048 | H12: median with weights (see 11 sheet)
A13: 12 | B13: 1985 | E13: 12 | F13: 44901.5593
A14: 13 | B14: 1081 | E14: 13 | F14: 48096.2064
A15: 15 | B15: 404 | E15: 15 | F15: 76543.56811
A16: 16 | B16: 594 | E16: 16 | F16: 58222.88472
A17: 17 | B17: 2348 | E17: 17 | F17: 66187.44
A18: 18 | B18: 1211 | E18: 18 | F18: 55200.32496
A19: 19 | B19: 849 | E19: 19 | F19: 55800.42442
A20: 20 | B20: 732 | E20: 20 | F20: 54229.57584
A21: 21 | B21: 739 | E21: 21 | F21: 50593.67914
A22: 22 | B22: 916 | E22: 22 | F22: 44524.29089
A23: 23 | B23: 505 | E23: 23 | F23: 47213.7072
A24: 24 | B24: 858 | E24: 24 | F24: 73386.42722
A25: 25 | B25: 1130 | E25: 25 | F25: 60517.38264
A26: 26 | B26: 1852 | E26: 26 | F26: 66308.78364
A27: 27 | B27: 981 | E27: 27 | F27: 59436.32112
A28: 28 | B28: 677 | E28: 28 | F28: 38044.54051
A29: 29 | B29: 1109 | E29: 29 | F29: 49900.91726
A30: 30 | B30: 673 | E30: 30 | F30: 56259.324
A31: 31 | B31: 581 | E31: 31 | F31: 51374.69093
A32: 32 | B32: 503 | E32: 32 | F32: 61858.78142
A33: 33 | B33: 441 | E33: 33 | F33: 54714.9504
A34: 34 | B34: 1586 | E34: 34 | F34: 63153.849
A35: 35 | B35: 806 | E35: 35 | F35: 45945.1146
A36: 36 | B36: 3958 | E36: 36 | F36: 52949.952
A37: 37 | B37: 1060 | E37: 37 | F37: 46276.0518
A38: 38 | B38: 671 | E38: 38 | F38: 49772.95488
A39: 39 | B39: 2330 | E39: 39 | F39: 59127.4464
A40: 40 | B40: 567 | E40: 40 | F40: 48413.90611
A41: 41 | B41: 618 | E41: 41 | F41: 53234.55799
A42: 42 | B42: 2550 | E42: 42 | F42: 55957.06802
A43: 44 | B43: 400 | E43: 44 | F43: 53024.96443
A44: 45 | B44: 526 | E44: 45 | F44: 51143.03489
A45: 46 | B45: 696 | E45: 46 | F45: 43805.05404
A46: 47 | B46: 880 | E46: 47 | F46: 44124.96
A47: 48 | B47: 2935 | E47: 48 | F47: 51229.07856
A48: 49 | B48: 700 | E48: 49 | F48: 56479.9488
A49: 50 | B49: 457 | E49: 50 | F49: 49022.83056
A50: 51 | B50: 1068 | E50: 51 | F50: 61832.30645
A51: 53 | B51: 794 | E51: 53 | F51: 57424.22294
A52: 54 | B52: 574 | E52: 54 | F52: 48669.83088
A53: 55 | B53: 919 | E53: 55 | F53: 64921.05365
A54: 56 | B54: 589 | E54: 56 | F54: 58222.88472
A55: Grand Total | B55: 55540 | E55: Grand Total | F55: 55156.2

Sheet 11
A1: YEAR | B1: SERIAL | C1: MONTH | D1: ASECFLAG | E1: ASECWTH | F1: NUMPREC | G1: CPI99 | H1: STATEFIP | I1: HHINCOME | J1: PERNUM | K1: ASECWT | L1: AGE | M1: RHHINCOME | N1: CumWTH | O1: CumWTH/TotalW | P1: Median w/ sampling weights
A2: 1977 | B2: 33641 | C2: 3 | D2: 1 | E2: 850.58 | F2: 4 | G2: 2.928 | H2: 11 | I2: 0 | J2: 1 | K2: 850.58 | L2: 29 | M2: =I2*G2*1.507 -> 0 | N2: =E2 -> 850.58 | O2: =N2/$N$321 -> 0.003363663168 | P2: 1. Sort by RHHINCOME
A3: 1977 | B3: 33697 | C3: 3 | D3: 1 | E3: 676.7 | F3: 1 | G3: 2.928 | H3: 11 | I3: 0 | J3: 1 | K3: 676.7 | L3: 22 | M3: 0 | N3: =E3+N2 -> 1527.28 | O3: =N3/$N$321 -> 0.006039708768 | P3: 2. Compute CumWTH as a running sum
A4: 1977 | B4: 33701 | C4: 3 | D4: 1 | E4: 929.1 | F4: 1 | G4: 2.928 | H4: 11 | I4: 0 | J4: 1 | K4: 929.1 | L4: 27 | M4: 0 | N4: =E4+N3 -> 2456.38 | O4: 0.009713883389 | P4: 3. Compute running sum as a % of total weights
A5: 1977 | B5: 33436 | C5: 3 | D5: 1 | E5: 524 | F5: 1 | G5: 2.928 | H5: 11 | I5: 11 | J5: 1 | K5: 524 | L5: 72 | M5: 48.537456 | N5: 2980.38 | O5: 0.01178606884 | P5: 4. Identify the corresponding value for RHHINCOME for which the running sum comes closest to 1/2 of the total weight withotu going over 50%
A6: 1977 | B6: 33699 | C6: 3 | D6: 1 | E6: 634.21 | F6: 1 | G6: 2.928 | H6: 11 | I6: 600 | J6: 1 | K6: 634.21 | L6: 28 | M6: 2647.4976 | N6: 3614.59 | O6: 0.01429408551 | P6: Scroll down to see it.
A7: 1977 | B7: 33686 | C7: 3 | D7: 1 | E7: 884.77 | F7: 1 | G7: 2.928 | H7: 11 | I7: 620 | J7: 1 | K7: 884.77 | L7: 58 | M7: 2735.74752 | N7: 4499.36 | O7: 0.01779295482
A8: 1977 | B8: 33691 | C8: 3 | D8: 1 | E8: 751.71 | F8: 1 | G8: 2.928 | H8: 11 | I8: 759 | J8: 1 | K8: 751.71 | L8: 24 | M8: 3349.084464 | N8: 5251.07 | O8: 0.0207656314
A9: 1977 | B9: 33649 | C9: 3 | D9: 1 | E9: 989.68 | F9: 2 | G9: 2.928 | H9: 11 | I9: 1001 | J9: 1 | K9: 989.68 | L9: 21 | M9: 4416.908496 | N9: 6240.75 | O9: 0.0246793728
A10: 1977 | B10: 33599 | C10: 3 | D10: 1 | E10: 678.97 | F10: 3 | G10: 2.928 | H10: 11 | I10: 1200 | J10: 1 | K10: 678.97 | L10: 31 | M10: 5294.9952 | N10: 6919.72 | O10: 0.02736439524
A11: 1977 | B11: 33681 | C11: 3 | D11: 1 | E11: 868.1 | F11: 2 | G11: 2.928 | H11: 11 | I11: 1300 | J11: 1 | K11: 868.1 | L11: 46 | M11: 5736.2448 | N11: 7787.82 | O11: 0.03079734216
A12: 1977 | B12: 33380 | C12: 3 | D12: 1 | E12: 797.38 | F12: 2 | G12: 2.928 | H12: 11 | I12: 1400 | J12: 1 | K12: 797.38 | L12: 23 | M12: 6177.4944 | N12: 8585.2 | O12: 0.03395062314
A13: 1977 | B13: 33688 | C13: 3 | D13: 1 | E13: 873.65 | F13: 1 | G13: 2.928 | H13: 11 | I13: 1569 | J13: 1 | K13: 873.65 | L13: 61 | M13: 6923.206224 | N13: 9458.85 | O13: 0.03740551783
A14: 1977 | B14: 33426 | C14: 3 | D14: 1 | E14: 513.09 | F14: 2 | G14: 2.928 | H14: 11 | I14: 1633 | J14: 1 | K14: 513.09 | L14: 57 | M14: 7205.605968 | N14: 9971.94 | O14: 0.03943455912
A15: 1977 | B15: 33397 | C15: 3 | D15: 1 | E15: 877.99 | F15: 1 | G15: 2.928 | H15: 11 | I15: 1680 | J15: 1 | K15: 877.99 | L15: 68 | M15: 7412.99328 | N15: 10849.93 | O15: 0.04290661657
A16: 1977 | B16: 33631 | C16: 3 | D16: 1 | E16: 717.39 | F16: 1 | G16: 2.928 | H16: 11 | I16: 1680 | J16: 1 | K16: 717.39 | L16: 70 | M16: 7412.99328 | N16: 11567.32 | O16: 0.0457435729
A17: 1977 | B17: 33698 | C17: 3 | D17: 1 | E17: 751.71 | F17: 1 | G17: 2.928 | H17: 11 | I17: 1949 | J17: 1 | K17: 751.71 | L17: 23 | M17: 8599.954704 | N17: 12319.03 | O17: 0.04871624948
A18: 1977 | B18: 33394 | C18: 3 | D18: 1 | E18: 824.29 | F18: 1 | G18: 2.928 | H18: 11 | I18: 2014 | J18: 1 | K18: 824.29 | L18: 46 | M18: 8886.766944 | N18: 13143.32 | O18: 0.05197594746
A19: 1977 | B19: 33614 | C19: 3 | D19: 1 | E19: 732.92 | F19: 1 | G19: 2.928 | H19: 11 | I19: 2016 | J19: 1 | K19: 732.92 | L19: 46 | M19: 8895.591936 | N19: 13876.24 | O19: 0.054874318
A20: 1977 | B20: 33722 | C20: 3 | D20: 1 | E20: 667.06 | F20: 1 | G20: 2.928 | H20: 11 | I20: 2066 | J20: 1 | K20: 667.06 | L20: 66 | M20: 9116.216736 | N20: 14543.3 | O20: 0.05751224171
A21: 1977 | B21: 33540 | C21: 3 | D21: 1 | E21: 780.55 | F21: 1 | G21: 2.928 | H21: 11 | I21: 2077 | J21: 1 | K21: 780.55 | L21: 81 | M21: 9164.754192 | N21: 15323.85 | O21: 0.06059896758
A22: 1977 | B22: 33660 | C22: 3 | D22: 1 | E22: 870.34 | F22: 2 | G22: 2.928 | H22: 11 | I22: 2105 | J22: 1 | K22: 870.34 | L22: 44 | M22: 9288.30408 | N22: 16194.19 | O22: 0.0640407727
A23: 1977 | B23: 33594 | C23: 3 | D23: 1 | E23: 630.51 | F23: 1 | G23: 2.928 | H23: 11 | I23: 2205 | J23: 1 | K23: 630.51 | L23: 61 | M23: 9729.55368 | N23: 16824.7 | O23: 0.06653415753
A24: 1977 | B24: 33356 | C24: 3 | D24: 1 | E24: 658.67 | F24: 1 | G24: 2.928 | H24: 11 | I24: 2257 | J24: 1 | K24: 658.67 | L24: 64 | M24: 9959.003472 | N24: 17483.37 | O24: 0.06913890255
A25: 1977 | B25: 33367 | C25: 3 | D25: 1 | E25: 578.76 | F25: 1 | G25: 2.928 | H25: 11 | I25: 2281 | J25: 1 | K25: 578.76 | L25: 70 | M25: 10064.90338 | N25: 18062.13 | O25: 0.07142763928
A26: 1977 | B26: 33611 | C26: 3 | D26: 1 | E26: 686.19 | F26: 1 | G26: 2.928 | H26: 11 | I26: 2300 | J26: 1 | K26: 686.19 | L26: 52 | M26: 10148.7408 | N26: 18748.32 | O26: 0.07414121359
A27: 1977 | B27: 33659 | C27: 3 | D27: 1 | E27: 616.92 | F27: 1 | G27: 2.928 | H27: 11 | I27: 2425 | J27: 1 | K27: 616.92 | L27: 29 | M27: 10700.3028 | N27: 19365.24 | O27: 0.07658085604
A28: 1977 | B28: 33673 | C28: 3 | D28: 1 | E28: 700.58 | F28: 1 | G28: 2.928 | H28: 11 | I28: 2428 | J28: 1 | K28: 700.58 | L28: 75 | M28: 10713.54029 | N28: 20065.82 | O28: 0.07935133635
A29: 1977 | B29: 33480 | C29: 3 | D29: 1 | E29: 881.15 | F29: 1 | G29: 2.928 | H29: 11 | I29: 2500 | J29: 1 | K29: 881.15 | L29: 59 | M29: 11031.24 | N29: 20946.97 | O29: 0.08283589019
A30: 1977 | B30: 33665 | C30: 3 | D30: 1 | E30: 689.11 | F30: 2 | G30: 2.928 | H30: 11 | I30: 2653 | J30: 1 | K30: 689.11 | L30: 28 | M30: 11706.35189 | N30: 21636.08 | O30: 0.08556101178
A31: 1977 | B31: 33702 | C31: 3 | D31: 1 | E31: 820.37 | F31: 2 | G31: 2.928 | H31: 11 | I31: 2700 | J31: 1 | K31: 820.37 | L31: 23 | M31: 11913.7392 | N31: 22456.45 | O31: 0.08880520792
A32: 1977 | B32: 33684 | C32: 3 | D32: 1 | E32: 875.84 | F32: 5 | G32: 2.928 | H32: 11 | I32: 2900 | J32: 1 | K32: 875.84 | L32: 36 | M32: 12796.2384 | N32: 23332.29 | O32: 0.09226876309
A33: 1977 | B33: 33704 | C33: 3 | D33: 1 | E33: 646.28 | F33: 5 | G33: 2.928 | H33: 11 | I33: 2935 | J33: 1 | K33: 646.28 | L33: 53 | M33: 12950.67576 | N33: 23978.57 | O33: 0.0948245112
A34: 1977 | B34: 33455 | C34: 3 | D34: 1 | E34: 785.52 | F34: 2 | G34: 2.928 | H34: 11 | I34: 3020 | J34: 1 | K34: 785.52 | L34: 54 | M34: 13325.73792 | N34: 24764.09 | O34: 0.09793089119
A35: 1977 | B35: 33352 | C35: 3 | D35: 1 | E35: 717.82 | F35: 4 | G35: 2.928 | H35: 11 | I35: 3084 | J35: 1 | K35: 717.82 | L35: 22 | M35: 13608.13766 | N35: 25481.91 | O35: 0.100769548
A36: 1977 | B36: 33442 | C36: 3 | D36: 1 | E36: 402.68 | F36: 1 | G36: 2.928 | H36: 11 | I36: 3120 | J36: 1 | K36: 402.68 | L36: 42 | M36: 13766.98752 | N36: 25884.59 | O36: 0.1023619671
A37: 1977 | B37: 33504 | C37: 3 | D37: 1 | E37: 842.39 | F37: 2 | G37: 2.928 | H37: 11 | I37: 3149 | J37: 1 | K37: 842.39 | L37: 62 | M37: 13894.9499 | N37: 26726.98 | O37: 0.1056932425
A38: 1977 | B38: 33440 | C38: 3 | D38: 1 | E38: 836.97 | F38: 1 | G38: 2.928 | H38: 11 | I38: 3259 | J38: 1 | K38: 836.97 | L38: 56 | M38: 14380.32446 | N38: 27563.95 | O38: 0.1090030842
A39: 1977 | B39: 33648 | C39: 3 | D39: 1 | E39: 689.11 | F39: 3 | G39: 2.928 | H39: 11 | I39: 3284 | J39: 1 | K39: 689.11 | L39: 25 | M39: 14490.63686 | N39: 28253.06 | O39: 0.1117282058
A40: 1977 | B40: 33600 | C40: 3 | D40: 1 | E40: 892.85 | F40: 2 | G40: 2.928 | H40: 11 | I40: 3292 | J40: 1 | K40: 892.85 | L40: 23 | M40: 14525.93683 | N40: 29145.91 | O40: 0.1152590279
A41: 1977 | B41: 33503 | C41: 3 | D41: 1 | E41: 676.1 | F41: 1 | G41: 2.928 | H41: 11 | I41: 3404 | J41: 1 | K41: 676.1 | L41: 71 | M41: 15020.13638 | N41: 29822.01 | O41: 0.1179327008
A42: 1977 | B42: 33630 | C42: 3 | D42: 1 | E42: 439.69 | F42: 1 | G42: 2.928 | H42: 11 | I42: 3520 | J42: 1 | K42: 439.69 | L42: 70 | M42: 15531.98592 | N42: 30261.7 | O42: 0.1196714779
A43: 1977 | B43: 33669 | C43: 3 | D43: 1 | E43: 514.43 | F43: 1 | G43: 2.928 | H43: 11 | I43: 3528 | J43: 1 | K43: 514.43 | L43: 61 | M43: 15567.28589 | N43: 30776.13 | O43: 0.1217058183
A44: 1977 | B44: 33695 | C44: 3 | D44: 1 | E44: 1015 | F44: 2 | G44: 2.928 | H44: 11 | I44: 3600 | J44: 1 | K44: 1015 | L44: 63 | M44: 15884.9856 | N44: 31791.13 | O44: 0.125719689
A45: 1977 | B45: 33424 | C45: 3 | D45: 1 | E45: 766.05 | F45: 3 | G45: 2.928 | H45: 11 | I45: 3644 | J45: 1 | K45: 766.05 | L45: 25 | M45: 16079.13542 | N45: 32557.18 | O45: 0.1287490738
A46: 1977 | B46: 33448 | C46: 3 | D46: 1 | E46: 1130.24 | F46: 1 | G46: 2.928 | H46: 11 | I46: 3763 | J46: 1 | K46: 1130.24 | L46: 79 | M46: 16604.22245 | N46: 33687.42 | O46: 0.1332186671
A47: 1977 | B47: 33637 | C47: 3 | D47: 1 | E47: 887.5 | F47: 4 | G47: 2.928 | H47: 11 | I47: 3800 | J47: 1 | K47: 887.5 | L47: 24 | M47: 16767.4848 | N47: 34574.92 | O47: 0.1367283324
A48: 1977 | B48: 33427 | C48: 3 | D48: 1 | E48: 813.64 | F48: 3 | G48: 2.928 | H48: 11 | I48: 3908 | J48: 1 | K48: 813.64 | L48: 52 | M48: 17244.03437 | N48: 35388.56 | O48: 0.1399459144
A49: 1977 | B49: 33384 | C49: 3 | D49: 1 | E49: 1024.83 | F49: 3 | G49: 2.928 | H49: 11 | I49: 4000 | J49: 1 | K49: 1024.83 | L49: 26 | M49: 17649.984 | N49: 36413.39 | O49: 0.1439986583
A50: 1977 | B50: 33598 | C50: 3 | D50: 1 | E50: 497.57 | F50: 3 | G50: 2.928 | H50: 11 | I50: 4000 | J50: 1 | K50: 497.57 | L50: 26 | M50: 17649.984 | N50: 36910.96 | O50: 0.1459663249
A51: 1977 | B51: 33383 | C51: 3 | D51: 1 | E51: 1073.08 | F51: 4 | G51: 2.928 | H51: 11 | I51: 4068 | J51: 1 | K51: 1073.08 | L51: 35 | M51: 17950.03373 | N51: 37984.04 | O51: 0.150209876
A52: 1977 | B52: 33408 | C52: 3 | D52: 1 | E52: 578.27 | F52: 1 | G52: 2.928 | H52: 11 | I52: 4126 | J52: 1 | K52: 578.27 | L52: 24 | M52: 18205.9585 | N52: 38562.31 | O52: 0.152496675
A53: 1977 | B53: 33615 | C53: 3 | D53: 1 | E53: 1486.85 | F53: 2 | G53: 2.928 | H53: 11 | I53: 4223 | J53: 1 | K53: 1486.85 | L53: 78 | M53: 18633.97061 | N53: 40049.16 | O53: 0.1583765012
A54: 1977 | B54: 33656 | C54: 3 | D54: 1 | E54: 850.58 | F54: 5 | G54: 2.928 | H54: 11 | I54: 4344 | J54: 1 | K54: 850.58 | L54: 22 | M54: 19167.88262 | N54: 40899.74 | O54: 0.1617401644
A55: 1977 | B55: 33662 | C55: 3 | D55: 1 | E55: 514.43 | F55: 2 | G55: 2.928 | H55: 11 | I55: 4500 | J55: 1 | K55: 514.43 | L55: 61 | M55: 19856.232 | N55: 41414.17 | O55: 0.1637745048
A56: 1977 | B56: 33683 | C56: 3 | D56: 1 | E56: 959.38 | F56: 1 | G56: 2.928 | H56: 11 | I56: 4500 | J56: 1 | K56: 959.38 | L56: 43 | M56: 19856.232 | N56: 42373.55 | O56: 0.1675684232
A57: 1977 | B57: 33406 | C57: 3 | D57: 1 | E57: 757.92 | F57: 1 | G57: 2.928 | H57: 11 | I57: 4700 | J57: 1 | K57: 757.92 | L57: 29 | M57: 20738.7312 | N57: 43131.47 | O57: 0.1705656576
A58: 1977 | B58: 33523 | C58: 3 | D58: 1 | E58: 797.01 | F58: 2 | G58: 2.928 | H58: 11 | I58: 4777 | J58: 1 | K58: 797.01 | L58: 55 | M58: 21078.49339 | N58: 43928.48 | O58: 0.1737174754
A59: 1977 | B59: 33403 | C59: 3 | D59: 1 | E59: 757.92 | F59: 1 | G59: 2.928 | H59: 11 | I59: 5000 | J59: 1 | K59: 757.92 | L59: 25 | M59: 22062.48 | N59: 44686.4 | O59: 0.1767147097
A60: 1977 | B60: 33566 | C60: 3 | D60: 1 | E60: 920.5 | F60: 3 | G60: 2.928 | H60: 11 | I60: 5000 | J60: 1 | K60: 920.5 | L60: 23 | M60: 22062.48 | N60: 45606.9 | O60: 0.1803548752
A61: 1977 | B61: 33703 | C61: 3 | D61: 1 | E61: 667.06 | F61: 1 | G61: 2.928 | H61: 11 | I61: 5199 | J61: 1 | K61: 667.06 | L61: 69 | M61: 22940.5667 | N61: 46273.96 | O61: 0.1829927989
A62: 1977 | B62: 33652 | C62: 3 | D62: 1 | E62: 975.25 | F62: 1 | G62: 2.928 | H62: 11 | I62: 5270 | J62: 1 | K62: 975.25 | L62: 34 | M62: 23253.85392 | N62: 47249.21 | O62: 0.1868494761
A63: 1977 | B63: 33376 | C63: 3 | D63: 1 | E63: 761.99 | F63: 7 | G63: 2.928 | H63: 11 | I63: 5335 | J63: 1 | K63: 761.99 | L63: 44 | M63: 23540.66616 | N63: 48011.2 | O63: 0.1898628055
A64: 1977 | B64: 33392 | C64: 3 | D64: 1 | E64: 660.09 | F64: 2 | G64: 2.928 | H64: 11 | I64: 5450 | J64: 1 | K64: 660.09 | L64: 23 | M64: 24048.1032 | N64: 48671.29 | O64: 0.192473166
A65: 1977 | B65: 33620 | C65: 3 | D65: 1 | E65: 655.62 | F65: 2 | G65: 2.928 | H65: 11 | I65: 5464 | J65: 1 | K65: 655.62 | L65: 62 | M65: 24109.87814 | N65: 49326.91 | O65: 0.1950658496
A66: 1977 | B66: 33409 | C66: 3 | D66: 1 | E66: 880.45 | F66: 1 | G66: 2.928 | H66: 11 | I66: 5617 | J66: 1 | K66: 880.45 | L66: 65 | M66: =I66*G66*1.507 -> 24784.99003 | N66: 50207.36 | O66: 0.1985476353
A67: 1977 | B67: 33479 | C67: 3 | D67: 1 | E67: 1107.22 | F67: 2 | G67: 2.928 | H67: 11 | I67: 5644 | J67: 1 | K67: 1107.22 | L67: 68 | M67: 24904.12742 | N67: 51314.58 | O67: =N67/$N$321 -> 0.2029261948
A68: 1977 | B68: 33434 | C68: 3 | D68: 1 | E68: 578.27 | F68: 2 | G68: 2.928 | H68: 11 | I68: 5700 | J68: 1 | K68: 578.27 | L68: 23 | M68: 25151.2272 | N68: =E68+N67 -> 51892.85 | O68: 0.2052129938
A69: 1977 | B69: 33364 | C69: 3 | D69: 1 | E69: 968.14 | F69: 2 | G69: 2.928 | H69: 11 | I69: 5721 | J69: 1 | K69: 968.14 | L69: 55 | M69: 25243.88962 | N69: 52860.99 | O69: 0.2090415541
A70: 1977 | B70: 33415 | C70: 3 | D70: 1 | E70: 930.11 | F70: 1 | G70: 2.928 | H70: 11 | I70: 5815 | J70: 1 | K70: 930.11 | L70: 39 | M70: 25658.66424 | N70: 53791.1 | O70: 0.2127197228
A71: 1977 | B71: 33428 | C71: 3 | D71: 1 | E71: 828.51 | F71: 4 | G71: 2.928 | H71: 11 | I71: 5890 | J71: 1 | K71: 828.51 | L71: 56 | M71: 25989.60144 | N71: 54619.61 | O71: 0.215996109
A72: 1977 | B72: 33579 | C72: 3 | D72: 1 | E72: 800.5 | F72: 1 | G72: 2.928 | H72: 11 | I72: 5900 | J72: 1 | K72: 800.5 | L72: 26 | M72: 26033.7264 | N72: 55420.11 | O72: 0.2191617282
A73: 1977 | B73: 33726 | C73: 3 | D73: 1 | E73: 1054.61 | F73: 1 | G73: 2.928 | H73: 11 | I73: 5900 | J73: 1 | K73: 1054.61 | L73: 30 | M73: 26033.7264 | N73: 56474.72 | O73: 0.2233322387
A74: 1977 | B74: 33731 | C74: 3 | D74: 1 | E74: 875.84 | F74: 5 | G74: 2.928 | H74: 11 | I74: 6000 | J74: 1 | K74: 875.84 | L74: 37 | M74: 26474.976 | N74: 57350.56 | O74: 0.2267957939
A75: 1977 | B75: 33597 | C75: 3 | D75: 1 | E75: 892.85 | F75: 2 | G75: 2.928 | H75: 11 | I75: 6120 | J75: 1 | K75: 892.85 | L75: 24 | M75: 27004.47552 | N75: 58243.41 | O75: 0.230326616
A76: 1977 | B76: 33618 | C76: 3 | D76: 1 | E76: 936.01 | F76: 3 | G76: 2.928 | H76: 11 | I76: 6140 | J76: 1 | K76: 936.01 | L76: 48 | M76: 27092.72544 | N76: 59179.42 | O76: 0.2340281166
A77: 1977 | B77: 33452 | C77: 3 | D77: 1 | E77: 862.19 | F77: 1 | G77: 2.928 | H77: 11 | I77: 6398 | J77: 1 | K77: 862.19 | L77: 86 | M77: 28231.14941 | N77: 60041.61 | O77: 0.2374376921
A78: 1977 | B78: 33382 | C78: 3 | D78: 1 | E78: 802.77 | F78: 5 | G78: 2.928 | H78: 11 | I78: 6490 | J78: 1 | K78: 802.77 | L78: 46 | M78: 28637.09904 | N78: 60844.38 | O78: 0.2406122881
A79: 1977 | B79: 33454 | C79: 3 | D79: 1 | E79: 730.24 | F79: 1 | G79: 2.928 | H79: 11 | I79: 6591 | J79: 1 | K79: 730.24 | L79: 70 | M79: 29082.76114 | N79: 61574.62 | O79: 0.2435000604
A80: 1977 | B80: 33414 | C80: 3 | D80: 1 | E80: 828.51 | F80: 4 | G80: 2.928 | H80: 11 | I80: 6724 | J80: 1 | K80: 828.51 | L80: 62 | M80: 29669.6231 | N80: 62403.13 | O80: 0.2467764466
A81: 1977 | B81: 33378 | C81: 3 | D81: 1 | E81: 775.45 | F81: 5 | G81: 2.928 | H81: 11 | I81: 6745 | J81: 1 | K81: 775.45 | L81: 37 | M81: 29762.28552 | N81: 63178.58 | O81: 0.2498430043
A82: 1977 | B82: 33390 | C82: 3 | D82: 1 | E82: 824.29 | F82: 6 | G82: 2.928 | H82: 11 | I82: 6968 | J82: 1 | K82: 824.29 | L82: 49 | M82: 30746.27213 | N82: 64002.87 | O82: 0.2531027023
A83: 1977 | B83: 33668 | C83: 3 | D83: 1 | E83: 1014.2 | F83: 1 | G83: 2.928 | H83: 11 | I83: 6995 | J83: 1 | K83: 1014.2 | L83: 67 | M83: 30865.40952 | N83: 65017.07 | O83: 0.2571134093
A84: 1977 | B84: 33551 | C84: 3 | D84: 1 | E84: 800.5 | F84: 1 | G84: 2.928 | H84: 11 | I84: 7000 | J84: 1 | K84: 800.5 | L84: 29 | M84: 30887.472 | N84: 65817.57 | O84: 0.2602790285
A85: 1977 | B85: 33633 | C85: 3 | D85: 1 | E85: 1020.04 | F85: 1 | G85: 2.928 | H85: 11 | I85: 7000 | J85: 1 | K85: 1020.04 | L85: 31 | M85: 30887.472 | N85: 66837.61 | O85: 0.2643128301
A86: 1977 | B86: 33429 | C86: 3 | D86: 1 | E86: 733.68 | F86: 1 | G86: 2.928 | H86: 11 | I86: 7010 | J86: 1 | K86: 733.68 | L86: 34 | M86: 30931.59696 | N86: 67571.29 | O86: 0.2672142061
A87: 1977 | B87: 33565 | C87: 3 | D87: 1 | E87: 758.53 | F87: 2 | G87: 2.928 | H87: 11 | I87: 7050 | J87: 1 | K87: 758.53 | L87: 61 | M87: 31108.0968 | N87: 68329.82 | O87: 0.2702138527
A88: 1977 | B88: 33734 | C88: 3 | D88: 1 | E88: 719.05 | F88: 1 | G88: 2.928 | H88: 11 | I88: 7200 | J88: 1 | K88: 719.05 | L88: 67 | M88: 31769.9712 | N88: 69048.87 | O88: 0.2730573736
A89: 1977 | B89: 33689 | C89: 3 | D89: 1 | E89: 646.28 | F89: 1 | G89: 2.928 | H89: 11 | I89: 7403 | J89: 1 | K89: 646.28 | L89: 52 | M89: 32665.70789 | N89: 69695.15 | O89: 0.2756131217
A90: 1977 | B90: 33627 | C90: 3 | D90: 1 | E90: 398.08 | F90: 1 | G90: 2.928 | H90: 11 | I90: 7569 | J90: 1 | K90: 398.08 | L90: 73 | M90: 33398.18222 | N90: 70093.23 | O90: 0.2771873499
A91: 1977 | B91: 33587 | C91: 3 | D91: 1 | E91: 724.1 | F91: 3 | G91: 2.928 | H91: 11 | I91: 7725 | J91: 1 | K91: 724.1 | L91: 68 | M91: 34086.5316 | N91: 70817.33 | O91: 0.2800508413
A92: 1977 | B92: 33496 | C92: 3 | D92: 1 | E92: 1112.35 | F92: 5 | G92: 2.928 | H92: 11 | I92: 7727 | J92: 1 | K92: 1112.35 | L92: 64 | M92: 34095.35659 | N92: 71929.68 | O92: 0.2844496877
A93: 1977 | B93: 33554 | C93: 3 | D93: 1 | E93: 740.59 | F93: 5 | G93: 2.928 | H93: 11 | I93: 7743 | J93: 1 | K93: 740.59 | L93: 24 | M93: 34165.95653 | N93: 72670.27 | O93: 0.2873783896
A94: 1977 | B94: 33346 | C94: 3 | D94: 1 | E94: 431.12 | F94: 2 | G94: 2.928 | H94: 11 | I94: 7770 | J94: 1 | K94: 431.12 | L94: 29 | M94: 34285.09392 | N94: 73101.39 | O94: 0.2890832762
A95: 1977 | B95: 33612 | C95: 3 | D95: 1 | E95: 558.03 | F95: 1 | G95: 2.928 | H95: 11 | I95: 7800 | J95: 1 | K95: 558.03 | L95: 63 | M95: 34417.4688 | N95: 73659.42 | O95: 0.2912900351
A96: 1977 | B96: 33555 | C96: 3 | D96: 1 | E96: 854.16 | F96: 5 | G96: 2.928 | H96: 11 | I96: 7853 | J96: 1 | K96: 854.16 | L96: 56 | M96: 34651.33109 | N96: 74513.58 | O96: 0.2946678556
A97: 1977 | B97: 33453 | C97: 3 | D97: 1 | E97: 737.4 | F97: 2 | G97: 2.928 | H97: 11 | I97: 7868 | J97: 1 | K97: 737.4 | L97: 32 | M97: 34717.51853 | N97: 75250.98 | O97: 0.2975839425
A98: 1977 | B98: 33677 | C98: 3 | D98: 1 | E98: 915.79 | F98: 1 | G98: 2.928 | H98: 11 | I98: 7986 | J98: 1 | K98: 915.79 | L98: 19 | M98: 35238.19306 | N98: 76166.77 | O98: 0.301205482
A99: 1977 | B99: 33381 | C99: 3 | D99: 1 | E99: 660.09 | F99: 2 | G99: 2.928 | H99: 11 | I99: 8025 | J99: 1 | K99: 660.09 | L99: 24 | M99: 35410.2804 | N99: 76826.86 | O99: 0.3038158425
A100: 1977 | B100: 33344 | C100: 3 | D100: 1 | E100: 678.09 | F100: 2 | G100: 2.928 | H100: 11 | I100: 8182 | J100: 1 | K100: 678.09 | L100: 60 | M100: 36103.04227 | N100: 77504.95 | O100: 0.3064973849
A101: 1977 | B101: 33369 | C101: 3 | D101: 1 | E101: 792.6 | F101: 2 | G101: 2.928 | H101: 11 | I101: 8190 | J101: 1 | K101: 792.6 | L101: 26 | M101: 36138.34224 | N101: 78297.55 | O101: 0.3096317632
A102: 1977 | B102: 33524 | C102: 3 | D102: 1 | E102: 632.7 | F102: 4 | G102: 2.928 | H102: 11 | I102: 8210 | J102: 1 | K102: 632.7 | L102: 60 | M102: 36226.59216 | N102: 78930.25 | O102: 0.3121338084
A103: 1977 | B103: 33507 | C103: 3 | D103: 1 | E103: 1006.59 | F103: 1 | G103: 2.928 | H103: 11 | I103: 8480 | J103: 1 | K103: 1006.59 | L103: 57 | M103: 37417.96608 | N103: 79936.84 | O103: 0.3161144213
A104: 1977 | B104: 33341 | C104: 3 | D104: 1 | E104: 817.91 | F104: 2 | G104: 2.928 | H104: 11 | I104: 8658 | J104: 1 | K104: 817.91 | L104: 78 | M104: 38203.39037 | N104: 80754.75 | O104: 0.3193488893
A105: 1977 | B105: 33556 | C105: 3 | D105: 1 | E105: 578.39 | F105: 3 | G105: 2.928 | H105: 11 | I105: 8850 | J105: 1 | K105: 578.39 | L105: 81 | M105: 39050.5896 | N105: 81333.14 | O105: 0.3216361628
A106: 1977 | B106: 33466 | C106: 3 | D106: 1 | E106: 862.19 | F106: 2 | G106: 2.928 | H106: 11 | I106: 8862 | J106: 1 | K106: 862.19 | L106: 83 | M106: 39103.53955 | N106: 82195.33 | O106: 0.3250457384
A107: 1977 | B107: 33377 | C107: 3 | D107: 1 | E107: 1023.36 | F107: 6 | G107: 2.928 | H107: 11 | I107: 8917 | J107: 1 | K107: 1023.36 | L107: 32 | M107: 39346.22683 | N107: 83218.69 | O107: 0.3290926691
A108: 1977 | B108: 33393 | C108: 3 | D108: 1 | E108: 1023.36 | F108: 5 | G108: 2.928 | H108: 11 | I108: 9000 | J108: 1 | K108: 1023.36 | L108: 30 | M108: 39712.464 | N108: 84242.05 | O108: 0.3331395998
A109: 1977 | B109: 33654 | C109: 3 | D109: 1 | E109: 745.25 | F109: 1 | G109: 2.928 | H109: 11 | I109: 9000 | J109: 1 | K109: 745.25 | L109: 28 | M109: 39712.464 | N109: 84987.3 | O109: 0.33608673
A110: 1977 | B110: 33655 | C110: 3 | D110: 1 | E110: 783.62 | F110: 2 | G110: 2.928 | H110: 11 | I110: 9000 | J110: 1 | K110: 783.62 | L110: 55 | M110: 39712.464 | N110: 85770.92 | O110: 0.3391855963
A111: 1977 | B111: 33560 | C111: 3 | D111: 1 | E111: 884.62 | F111: 5 | G111: 2.928 | H111: 11 | I111: 9035 | J111: 1 | K111: 884.62 | L111: 37 | M111: 39866.90136 | N111: 86655.54 | O111: 0.3426838724
A112: 1977 | B112: 33431 | C112: 3 | D112: 1 | E112: 733.68 | F112: 1 | G112: 2.928 | H112: 11 | I112: 9040 | J112: 1 | K112: 733.68 | L112: 30 | M112: 39888.96384 | N112: 87389.22 | O112: 0.3455852484
A113: 1977 | B113: 33657 | C113: 3 | D113: 1 | E113: 809.21 | F113: 4 | G113: 2.928 | H113: 11 | I113: 9059 | J113: 1 | K113: 809.21 | L113: 47 | M113: 39972.80126 | N113: 88198.43 | O113: 0.3487853118
A114: 1977 | B114: 33391 | C114: 3 | D114: 1 | E114: 802.77 | F114: 2 | G114: 2.928 | H114: 11 | I114: 9070 | J114: 1 | K114: 802.77 | L114: 49 | M114: 40021.33872 | N114: 89001.2 | O114: 0.3519599078
A115: 1977 | B115: 33619 | C115: 3 | D115: 1 | E115: 887.5 | F115: 4 | G115: 2.928 | H115: 11 | I115: 9100 | J115: 1 | K115: 887.5 | L115: 28 | M115: 40153.7136 | N115: 89888.7 | O115: 0.355469573
A116: 1977 | B116: 33687 | C116: 3 | D116: 1 | E116: 873.65 | F116: 2 | G116: 2.928 | H116: 11 | I116: 9200 | J116: 1 | K116: 873.65 | L116: 65 | M116: 40594.9632 | N116: 90762.35 | O116: 0.3589244677
A117: 1977 | B117: 33720 | C117: 3 | D117: 1 | E117: 703.52 | F117: 1 | G117: 2.928 | H117: 11 | I117: 9216 | J117: 1 | K117: 703.52 | L117: 66 | M117: 40665.56314 | N117: 91465.87 | O117: 0.3617065744
A118: 1977 | B118: 33437 | C118: 3 | D118: 1 | E118: 863.42 | F118: 2 | G118: 2.928 | H118: 11 | I118: 9300 | J118: 1 | K118: 863.42 | L118: 32 | M118: 41036.2128 | N118: 92329.29 | O118: 0.365121014
A119: 1977 | B119: 33410 | C119: 3 | D119: 1 | E119: 578.27 | F119: 1 | G119: 2.928 | H119: 11 | I119: 9303 | J119: 1 | K119: 578.27 | L119: 24 | M119: 41049.45029 | N119: 92907.56 | O119: 0.3674078131
A120: 1977 | B120: 33546 | C120: 3 | D120: 1 | E120: 782.77 | F120: 5 | G120: 2.928 | H120: 11 | I120: 9328 | J120: 1 | K120: 782.77 | L120: 28 | M120: 41159.76269 | N120: 93690.33 | O120: 0.370503318
A121: 1977 | B121: 33658 | C121: 3 | D121: 1 | E121: 783.62 | F121: 2 | G121: 2.928 | H121: 11 | I121: 9455 | J121: 1 | K121: 783.62 | L121: 54 | M121: 41720.14968 | N121: 94473.95 | O121: 0.3736021844
A122: 1977 | B122: 33411 | C122: 3 | D122: 1 | E122: 737.09 | F122: 1 | G122: 2.928 | H122: 11 | I122: 9475 | J122: 1 | K122: 737.09 | L122: 27 | M122: 41808.3996 | N122: 95211.04 | O122: 0.3765170454
A123: 1977 | B123: 33595 | C123: 3 | D123: 1 | E123: 733.3 | F123: 1 | G123: 2.928 | H123: 11 | I123: 9500 | J123: 1 | K123: 733.3 | L123: 26 | M123: 41918.712 | N123: 95944.34 | O123: 0.3794169187
A124: 1977 | B124: 33476 | C124: 3 | D124: 1 | E124: 771.27 | F124: 1 | G124: 2.928 | H124: 11 | I124: 9510 | J124: 1 | K124: 771.27 | L124: 28 | M124: 41962.83696 | N124: 96715.61 | O124: 0.3824669463
A125: 1977 | B125: 33514 | C125: 3 | D125: 1 | E125: 1374.7 | F125: 1 | G125: 2.928 | H125: 11 | I125: 9510 | J125: 1 | K125: 1374.7 | L125: 46 | M125: 41962.83696 | N125: 98090.31 | O125: 0.3879032694
A126: 1977 | B126: 33461 | C126: 3 | D126: 1 | E126: 935.15 | F126: 5 | G126: 2.928 | H126: 11 | I126: 9530 | J126: 1 | K126: 935.15 | L126: 33 | M126: 42051.08688 | N126: 99025.46 | O126: 0.3916013691
A127: 1977 | B127: 33474 | C127: 3 | D127: 1 | E127: 730.94 | F127: 1 | G127: 2.928 | H127: 11 | I127: 9531 | J127: 1 | K127: 730.94 | L127: 60 | M127: 42055.49938 | N127: 99756.4 | O127: 0.3944919096
A128: 1977 | B128: 33733 | C128: 3 | D128: 1 | E128: 919.24 | F128: 1 | G128: 2.928 | H128: 11 | I128: 9588 | J128: 1 | K128: 919.24 | L128: 27 | M128: 42307.01165 | N128: 100675.64 | O128: 0.3981270924
A129: 1977 | B129: 33450 | C129: 3 | D129: 1 | E129: 815.98 | F129: 2 | G129: 2.928 | H129: 11 | I129: 9673 | J129: 1 | K129: 815.98 | L129: 25 | M129: 42682.07381 | N129: 101491.62 | O129: 0.401353928
A130: 1977 | B130: 33603 | C130: 3 | D130: 1 | E130: 678.97 | F130: 3 | G130: 2.928 | H130: 11 | I130: 9828 | J130: 1 | K130: 678.97 | L130: 32 | M130: =I130*G130*1.507 -> 43366.01069 | N130: 102170.59 | O130: 0.4040389504
A131: 1977 | B131: 33506 | C131: 3 | D131: 1 | E131: 786.47 | F131: 1 | G131: 2.928 | H131: 11 | I131: 9893 | J131: 1 | K131: 786.47 | L131: 29 | M131: 43652.82293 | N131: 102957.06 | O131: =N131/$N$321 -> 0.4071490873
A132: 1977 | B132: 33512 | C132: 3 | D132: 1 | E132: 706.96 | F132: 2 | G132: 2.928 | H132: 11 | I132: 9900 | J132: 1 | K132: 706.96 | L132: 29 | M132: 43683.7104 | N132: =E132+N131 -> 103664.02 | O132: 0.4099447976
A133: 1977 | B133: 33643 | C133: 3 | D133: 1 | E133: 700.58 | F133: 3 | G133: 2.928 | H133: 11 | I133: 9909 | J133: 1 | K133: 700.58 | L133: 75 | M133: 43723.42286 | N133: 104364.6 | O133: 0.4127152779
A134: 1977 | B134: 33675 | C134: 3 | D134: 1 | E134: 430.24 | F134: 1 | G134: 2.928 | H134: 11 | I134: 10000 | J134: 1 | K134: 430.24 | L134: 24 | M134: 44124.96 | N134: 104794.84 | O134: 0.4144166845
A135: 1977 | B135: 33385 | C135: 3 | D135: 1 | E135: 1013.95 | F135: 1 | G135: 2.928 | H135: 11 | I135: 10032 | J135: 1 | K135: 1013.95 | L135: 26 | M135: 44266.15987 | N135: 105808.79 | O135: 0.4184264029
A136: 1977 | B136: 33604 | C136: 3 | D136: 1 | E136: 746.88 | F136: 1 | G136: 2.928 | H136: 11 | I136: 10100 | J136: 1 | K136: 746.88 | L136: 44 | M136: 44566.2096 | N136: 106555.67 | O136: 0.421379979
A137: 1977 | B137: 33606 | C137: 3 | D137: 1 | E137: 693.48 | F137: 1 | G137: 2.928 | H137: 11 | I137: 10150 | J137: 1 | K137: 693.48 | L137: 75 | M137: 44786.8344 | N137: 107249.15 | O137: 0.424122382
A138: 1977 | B138: 33502 | C138: 3 | D138: 1 | E138: 752.41 | F138: 1 | G138: 2.928 | H138: 11 | I138: 10193 | J138: 1 | K138: 752.41 | L138: 40 | M138: 44976.57173 | N138: 108001.56 | O138: 0.4270978268
A139: 1977 | B139: 33607 | C139: 3 | D139: 1 | E139: 768.12 | F139: 1 | G139: 2.928 | H139: 11 | I139: 10251 | J139: 1 | K139: 768.12 | L139: 25 | M139: 45232.4965 | N139: 108769.68 | O139: 0.4301353975
A140: 1977 | B140: 33676 | C140: 3 | D140: 1 | E140: 743.08 | F140: 1 | G140: 2.928 | H140: 11 | I140: 10315 | J140: 1 | K140: 743.08 | L140: 23 | M140: 45514.89624 | N140: 109512.76 | O140: 0.4330739463
A141: 1977 | B141: 33664 | C141: 3 | D141: 1 | E141: 826.23 | F141: 1 | G141: 2.928 | H141: 11 | I141: 10400 | J141: 1 | K141: 826.23 | L141: 49 | M141: 45889.9584 | N141: 110338.99 | O141: 0.4363413162
A142: 1977 | B142: 33441 | C142: 3 | D142: 1 | E142: 848.19 | F142: 1 | G142: 2.928 | H142: 11 | I142: 10500 | J142: 1 | K142: 848.19 | L142: 31 | M142: 46331.208 | N142: 111187.18 | O142: 0.4396955279
A143: 1977 | B143: 33494 | C143: 3 | D143: 1 | E143: 878.66 | F143: 1 | G143: 2.928 | H143: 11 | I143: 10500 | J143: 1 | K143: 878.66 | L143: 29 | M143: 46331.208 | N143: 112065.84 | O143: 0.4431702349
A144: 1977 | B144: 33700 | C144: 3 | D144: 1 | E144: 685.91 | F144: 1 | G144: 2.928 | H144: 11 | I144: 10523 | J144: 1 | K144: 685.91 | L144: 22 | M144: 46432.69541 | N144: 112751.75 | O144: 0.445882702
A145: 1977 | B145: 33605 | C145: 3 | D145: 1 | E145: 765.81 | F145: 1 | G145: 2.928 | H145: 11 | I145: 10561 | J145: 1 | K145: 765.81 | L145: 52 | M145: 46600.37026 | N145: 113517.56 | O145: 0.4489111377
A146: 1977 | B146: 33501 | C146: 3 | D146: 1 | E146: 810.63 | F146: 2 | G146: 2.928 | H146: 11 | I146: 10587 | J146: 1 | K146: 810.63 | L146: 76 | M146: 46715.09515 | N146: 114328.19 | O146: 0.4521168165
A147: 1977 | B147: 33499 | C147: 3 | D147: 1 | E147: 929.31 | F147: 3 | G147: 2.928 | H147: 11 | I147: 10660 | J147: 1 | K147: 929.31 | L147: 24 | M147: 47037.20736 | N147: 115257.5 | O147: 0.4557918216
A148: 1977 | B148: 33732 | C148: 3 | D148: 1 | E148: 646.28 | F148: 1 | G148: 2.928 | H148: 11 | I148: 10853 | J148: 1 | K148: 646.28 | L148: 52 | M148: 47888.81909 | N148: 115903.78 | O148: 0.4583475697
A149: 1977 | B149: 33521 | C149: 3 | D149: 1 | E149: 810.63 | F149: 7 | G149: 2.928 | H149: 11 | I149: 10911 | J149: 1 | K149: 810.63 | L149: 79 | M149: 48144.74386 | N149: 116714.41 | O149: 0.4615532485
A150: 1977 | B150: 33714 | C150: 3 | D150: 1 | E150: 1001.19 | F150: 6 | G150: 2.928 | H150: 11 | I150: 10928 | J150: 1 | K150: 1001.19 | L150: 31 | M150: 48219.75629 | N150: 117715.6 | O150: 0.4655125068
A151: 1977 | B151: 33412 | C151: 3 | D151: 1 | E151: 863.42 | F151: 1 | G151: 2.928 | H151: 11 | I151: 11000 | J151: 1 | K151: 863.42 | L151: 30 | M151: 48537.456 | N151: 118579.02 | O151: 0.4689269464
A152: 1977 | B152: 33497 | C152: 3 | D152: 1 | E152: 935.15 | F152: 4 | G152: 2.928 | H152: 11 | I152: 11000 | J152: 1 | K152: 935.15 | L152: 40 | M152: 48537.456 | N152: 119514.17 | O152: 0.4726250461
A153: 1977 | B153: 33516 | C153: 3 | D153: 1 | E153: 757.75 | F153: 1 | G153: 2.928 | H153: 11 | I153: 11000 | J153: 1 | K153: 757.75 | L153: 30 | M153: 48537.456 | N153: 120271.92 | O153: 0.4756216082
A154: 1977 | B154: 33601 | C154: 3 | D154: 1 | E154: 678.97 | F154: 2 | G154: 2.928 | H154: 11 | I154: 11000 | J154: 1 | K154: 678.97 | L154: 30 | M154: 48537.456 | N154: 120950.89 | O154: 0.4783066306
A155: 1977 | B155: 33457 | C155: 3 | D155: 1 | E155: 1107.22 | F155: 2 | G155: 2.928 | H155: 11 | I155: 11002 | J155: 1 | K155: 1107.22 | L155: 66 | M155: 48546.28099 | N155: 122058.11 | O155: 0.4826851901
A156: 1977 | B156: 33690 | C156: 3 | D156: 1 | E156: 935.8 | F156: 2 | G156: 2.928 | H156: 11 | I156: 11022 | J156: 1 | K156: 935.8 | L156: 30 | M156: 48634.53091 | N156: 122993.91 | O156: 0.4863858602
A157: 1977 | B157: 33568 | C157: 3 | D157: 1 | E157: 820.89 | F157: 2 | G157: 2.928 | H157: 11 | I157: 11147 | J157: 1 | K157: 820.89 | L157: 51 | M157: 49186.09291 | N157: 123814.8 | O157: 0.4896321127
A158: 1977 | B158: 33439 | C158: 3 | D158: 1 | E158: 839.89 | F158: 1 | G158: 2.928 | H158: 11 | I158: 11154 | J158: 1 | K158: 839.89 | L158: 75 | M158: 49216.98038 | N158: 124654.69 | O158: 0.4929535017
A159: 1977 | B159: 33511 | C159: 3 | D159: 1 | E159: 792.15 | F159: 2 | G159: 2.928 | H159: 11 | I159: 11194 | J159: 1 | K159: 792.15 | L159: 33 | M159: 49393.48022 | N159: 125446.84 | O159: 0.4960861004
A160: 1977 | B160: 33462 | C160: 3 | D160: 1 | E160: 799.79 | F160: 4 | G160: 2.928 | H160: 11 | I160: 11300 | J160: 1 | K160: 799.79 | L160: 57 | M160: 49861.2048 | N160: 126246.63 | O160: 0.4992489119 | Q160: =M160 -> 49861.2048 | R160: median with weights (closest value to 50% without going over)
A161: 1977 | B161: 33564 | C161: 3 | D161: 1 | E161: 527 | F161: 1 | G161: 2.928 | H161: 11 | I161: 11500 | J161: 1 | K161: 527 | L161: 63 | M161: 50743.704 | N161: 126773.63 | O161: 0.501332961 | Q161: =AVERAGE(M161:M162) -> 50787.82896 | R161: median without weights (agrees with PT) using average b/c n=320 is even
A162: 1977 | B162: 33602 | C162: 3 | D162: 1 | E162: 944.57 | F162: 4 | G162: 2.928 | H162: 11 | I162: 11520 | J162: 1 | K162: 944.57 | L162: 37 | M162: 50831.95392 | N162: 127718.2 | O162: 0.5050683125
A163: 1977 | B163: 33694 | C163: 3 | D163: 1 | E163: 1015 | F163: 2 | G163: 2.928 | H163: 11 | I163: 11552 | J163: 1 | K163: 1015 | L163: 63 | M163: 50973.15379 | N163: 128733.2 | O163: 0.5090821832
A164: 1977 | B164: 33661 | C164: 3 | D164: 1 | E164: 1002.43 | F164: 1 | G164: 2.928 | H164: 11 | I164: 11559 | J164: 1 | K164: 1002.43 | L164: 32 | M164: 51004.04126 | N164: 129735.63 | O164: 0.5130463451
A165: 1977 | B165: 33716 | C165: 3 | D165: 1 | E165: 919.24 | F165: 5 | G165: 2.928 | H165: 11 | I165: 11700 | J165: 1 | K165: 919.24 | L165: 28 | M165: 51626.2032 | N165: 130654.87 | O165: 0.5166815279
A166: 1977 | B166: 33576 | C166: 3 | D166: 1 | E166: 916.62 | F166: 2 | G166: 2.928 | H166: 11 | I166: 11718 | J166: 1 | K166: 916.62 | L166: 51 | M166: 51705.62813 | N166: 131571.49 | O166: 0.5203063497
A167: 1977 | B167: 33593 | C167: 3 | D167: 1 | E167: 660.62 | F167: 5 | G167: 2.928 | H167: 11 | I167: 11781 | J167: 1 | K167: 660.62 | L167: 35 | M167: 51983.61538 | N167: 132232.11 | O167: 0.5229188061
A168: 1977 | B168: 33562 | C168: 3 | D168: 1 | E168: 719.8 | F168: 3 | G168: 2.928 | H168: 11 | I168: 11800 | J168: 1 | K168: 719.8 | L168: 25 | M168: 52067.4528 | N168: 132951.91 | O168: 0.5257652929
A169: 1977 | B169: 33402 | C169: 3 | D169: 1 | E169: 671.09 | F169: 1 | G169: 2.928 | H169: 11 | I169: 12000 | J169: 1 | K169: 671.09 | L169: 30 | M169: 52949.952 | N169: 133623 | O169: 0.5284191534
A170: 1977 | B170: 33445 | C170: 3 | D170: 1 | E170: 848.19 | F170: 1 | G170: 2.928 | H170: 11 | I170: 12000 | J170: 1 | K170: 848.19 | L170: 30 | M170: 52949.952 | N170: 134471.19 | O170: 0.5317733652
A171: 1977 | B171: 33518 | C171: 3 | D171: 1 | E171: 801.97 | F171: 1 | G171: 2.928 | H171: 11 | I171: 12000 | J171: 1 | K171: 801.97 | L171: 47 | M171: 52949.952 | N171: 135273.16 | O171: 0.5349447976
A172: 1977 | B172: 33596 | C172: 3 | D172: 1 | E172: 892.85 | F172: 1 | G172: 2.928 | H172: 11 | I172: 12010 | J172: 1 | K172: 892.85 | L172: 24 | M172: 52994.07696 | N172: 136166.01 | O172: 0.5384756197
A173: 1977 | B173: 33418 | C173: 3 | D173: 1 | E173: 810.42 | F173: 2 | G173: 2.928 | H173: 11 | I173: 12090 | J173: 1 | K173: 810.42 | L173: 25 | M173: 53347.07664 | N173: 136976.43 | O173: 0.5416804681
A174: 1977 | B174: 33477 | C174: 3 | D174: 1 | E174: 758.31 | F174: 1 | G174: 2.928 | H174: 11 | I174: 12100 | J174: 1 | K174: 758.31 | L174: 56 | M174: 53391.2016 | N174: 137734.74 | O174: 0.5446792447
A175: 1977 | B175: 33567 | C175: 3 | D175: 1 | E175: 782.77 | F175: 3 | G175: 2.928 | H175: 11 | I175: 12250 | J175: 1 | K175: 782.77 | L175: 59 | M175: 54053.076 | N175: 138517.51 | O175: 0.5477747496
A176: 1977 | B176: 33727 | C176: 3 | D176: 1 | E176: 935.8 | F176: 2 | G176: 2.928 | H176: 11 | I176: 12487 | J176: 1 | K176: 935.8 | L176: 34 | M176: 55098.83755 | N176: 139453.31 | O176: 0.5514754198
A177: 1977 | B177: 33707 | C177: 3 | D177: 1 | E177: 831.47 | F177: 4 | G177: 2.928 | H177: 11 | I177: 12654 | J177: 1 | K177: 831.47 | L177: 63 | M177: 55835.72438 | N177: 140284.78 | O177: 0.5547635114
A178: 1977 | B178: 33422 | C178: 3 | D178: 1 | E178: 641.56 | F178: 1 | G178: 2.928 | H178: 11 | I178: 12675 | J178: 1 | K178: 641.56 | L178: 28 | M178: 55928.3868 | N178: 140926.34 | O178: 0.5573005941
A179: 1977 | B179: 33478 | C179: 3 | D179: 1 | E179: 771.27 | F179: 1 | G179: 2.928 | H179: 11 | I179: 13050 | J179: 1 | K179: 771.27 | L179: 29 | M179: 57583.0728 | N179: 141697.61 | O179: 0.5603506217
A180: 1977 | B180: 33456 | C180: 3 | D180: 1 | E180: 1107.22 | F180: 2 | G180: 2.928 | H180: 11 | I180: 13338 | J180: 1 | K180: 1107.22 | L180: 67 | M180: 58853.87165 | N180: 142804.83 | O180: 0.5647291812
A181: 1977 | B181: 33647 | C181: 3 | D181: 1 | E181: 898.28 | F181: 2 | G181: 2.928 | H181: 11 | I181: 13516 | J181: 1 | K181: 898.28 | L181: 57 | M181: 59639.29594 | N181: 143703.11 | O181: 0.5682814765
A182: 1977 | B182: 33386 | C182: 3 | D182: 1 | E182: 1013.95 | F182: 3 | G182: 2.928 | H182: 11 | I182: 13690 | J182: 1 | K182: 1013.95 | L182: 27 | M182: 60407.07024 | N182: 144717.06 | O182: 0.5722911949
A183: 1977 | B183: 33545 | C183: 3 | D183: 1 | E183: 733 | F183: 5 | G183: 2.928 | H183: 11 | I183: 13717 | J183: 1 | K183: 733 | L183: 43 | M183: 60526.20763 | N183: 145450.06 | O183: 0.5751898818
A184: 1977 | B184: 33646 | C184: 3 | D184: 1 | E184: 890.69 | F184: 2 | G184: 2.928 | H184: 11 | I184: 13780 | J184: 1 | K184: 890.69 | L184: 22 | M184: 60804.19488 | N184: 146340.75 | O184: 0.5787121621
A185: 1977 | B185: 33438 | C185: 3 | D185: 1 | E185: 757.56 | F185: 3 | G185: 2.928 | H185: 11 | I185: 13790 | J185: 1 | K185: 757.56 | L185: 41 | M185: 60848.31984 | N185: 147098.31 | O185: 0.5817079728
A186: 1977 | B186: 33387 | C186: 3 | D186: 1 | E186: 797.38 | F186: 3 | G186: 2.928 | H186: 11 | I186: 13954 | J186: 1 | K186: 797.38 | L186: 24 | M186: 61571.96918 | N186: 147895.69 | O186: 0.5848612537
A187: 1977 | B187: 33636 | C187: 3 | D187: 1 | E187: 915.92 | F187: 2 | G187: 2.928 | H187: 11 | I187: 13984 | J187: 1 | K187: 915.92 | L187: 74 | M187: 61704.34406 | N187: 148811.61 | O187: 0.5884833074
A188: 1977 | B188: 33363 | C188: 3 | D188: 1 | E188: 857.55 | F188: 2 | G188: 2.928 | H188: 11 | I188: 14000 | J188: 1 | K188: 857.55 | L188: 38 | M188: 61774.944 | N188: 149669.16 | O188: 0.5918745338
A189: 1977 | B189: 33451 | C189: 3 | D189: 1 | E189: 762.84 | F189: 2 | G189: 2.928 | H189: 11 | I189: 14000 | J189: 1 | K189: 762.84 | L189: 50 | M189: 61774.944 | N189: 150432 | O189: 0.5948912245
A190: 1977 | B190: 33435 | C190: 3 | D190: 1 | E190: 733.68 | F190: 1 | G190: 2.928 | H190: 11 | I190: 14015 | J190: 1 | K190: 733.68 | L190: 33 | M190: 61841.13144 | N190: 151165.68 | O190: 0.5977926005
A191: 1977 | B191: 33577 | C191: 3 | D191: 1 | E191: 772.31 | F191: 1 | G191: 2.928 | H191: 11 | I191: 14050 | J191: 1 | K191: 772.31 | L191: 51 | M191: 61995.5688 | N191: 151937.99 | O191: 0.6008467408
A192: 1977 | B192: 33365 | C192: 3 | D192: 1 | E192: 913.01 | F192: 2 | G192: 2.928 | H192: 11 | I192: 14300 | J192: 1 | K192: 913.01 | L192: 49 | M192: 63098.6928 | N192: 152851 | O192: 0.6044572867
A193: 1977 | B193: 33728 | C193: 3 | D193: 1 | E193: 771.35 | F193: 3 | G193: 2.928 | H193: 11 | I193: 14500 | J193: 1 | K193: 771.35 | L193: 45 | M193: 63981.192 | N193: 153622.35 | O193: 0.6075076307
A194: 1977 | B194: 33667 | C194: 3 | D194: 1 | E194: 809.21 | F194: 8 | G194: 2.928 | H194: 11 | I194: 14600 | J194: 1 | K194: 809.21 | L194: 56 | M194: =I194*G194*1.507 -> 64422.4416 | N194: 154431.56 | O194: 0.610707694
A195: 1977 | B195: 33342 | C195: 3 | D195: 1 | E195: 802.99 | F195: 1 | G195: 2.928 | H195: 11 | I195: 14624 | J195: 1 | K195: 802.99 | L195: 63 | M195: 64528.3415 | N195: 155234.55 | O195: =N195/$N$321 -> 0.6138831601
A196: 1977 | B196: 33653 | C196: 3 | D196: 1 | E196: 802.69 | F196: 2 | G196: 2.928 | H196: 11 | I196: 14700 | J196: 1 | K196: 802.69 | L196: 54 | M196: 64863.6912 | N196: =E196+N195 -> 156037.24 | O196: 0.6170574397
A197: 1977 | B197: 33680 | C197: 3 | D197: 1 | E197: 872.52 | F197: 2 | G197: 2.928 | H197: 11 | I197: 14810 | J197: 1 | K197: 872.52 | L197: 42 | M197: 65349.06576 | N197: 156909.76 | O197: 0.6205078658
A198: 1977 | B198: 33482 | C198: 3 | D198: 1 | E198: 1032.31 | F198: 3 | G198: 2.928 | H198: 11 | I198: 14901 | J198: 1 | K198: 1032.31 | L198: 26 | M198: 65750.6029 | N198: 157942.07 | O198: 0.6245901897
A199: 1977 | B199: 33549 | C199: 3 | D199: 1 | E199: 972.94 | F199: 1 | G199: 2.928 | H199: 11 | I199: 15000 | J199: 1 | K199: 972.94 | L199: 31 | M199: 66187.44 | N199: 158915.01 | O199: 0.6284377319
A200: 1977 | B200: 33635 | C200: 3 | D200: 1 | E200: 558.03 | F200: 2 | G200: 2.928 | H200: 11 | I200: 15000 | J200: 1 | K200: 558.03 | L200: 63 | M200: 66187.44 | N200: 159473.04 | O200: 0.6306444908
... 121 more rows

Sheet DCBoot
A1: ASECWTH | B1: CumWTH | C1: CumWTH/TotalW | D1: RHHINCOME | F1: Percentile | G1: Unweighted | H1: Weighted | J1: BOOTSTRAP: | L1: RNG: | M1: ASECWTH | N1: RHHINCOME | P1: Percentile | Q1: Unweighted | R1: Weighted
A2: 850.58 | B2: =A2 -> 850.58 | C2: =B2/$B$321 -> 0.003363663168 | D2: 0 | F2: 5 | G2: =_xlfn.PERCENTILE.INC($D$2:$D$321,F2/100) -> 8872.426332 | H2: =VLOOKUP(F2/100,$C$1:$D$321,2,TRUE) -> 8599.954704 | J2: Resample --> | L2: =ROUND(RAND()*320+0.5,0) -> 14 | M2: =OFFSET($A$1,L2,0) -> 877.99 | N2: =OFFSET($D$1,L2,0) -> 7412.99328 | O2: min | P2: 5 | Q2: =_xlfn.PERCENTILE.INC($N$2:$N$321,P2/100) -> 9116.216736 | R2: =PERCENTILEW($N$2:$N$321,$M$2:$M$321,P2) -> 9116.216736
A3: 676.7 | B3: =A3+B2 -> 1527.28 | C3: =B3/$B$321 -> 0.006039708768 | D3: 0 | F3: 15 | G3: =_xlfn.PERCENTILE.INC($D$2:$D$321,F3/100) -> 17649.984 | H3: =VLOOKUP(F3/100,$C$1:$D$321,2,TRUE) -> 17649.984 | J3: from the | L3: =ROUND(RAND()*320+0.5,0) -> 67 | M3: =OFFSET($A$1,L3,0) -> 578.27 | N3: =OFFSET($D$1,L3,0) -> 25151.2272 | O3: =MIN(N:N) -> 0 | P3: 15 | Q3: =_xlfn.PERCENTILE.INC($N$2:$N$321,P3/100) -> 15567.28589 | R3: =PERCENTILEW($N$2:$N$321,$M$2:$M$321,P3) -> 16079.13542
A4: 929.1 | B4: =A4+B3 -> 2456.38 | C4: 0.009713883389 | D4: 0 | F4: 25 | G4: 30500.27548 | H4: 29762.28552 | J4: <-- sample | L4: 72 | M4: 1054.61 | N4: 26033.7264 | O4: max | P4: 25 | Q4: 27070.66296 | R4: 28231.14941
A5: 524 | B5: 2980.38 | C5: 0.01178606884 | D5: 48.537456 | F5: 35 | G5: 40004.35061 | H5: 39972.80126 | L5: 193 | M5: 809.21 | N5: 64422.4416 | O5: =MAX(N:N) -> 511072.9367 | P5: 35 | Q5: 39812.84828 | R5: 39866.90136
A6: 634.21 | B6: 3614.59 | C6: 0.01429408551 | D6: 2647.4976 | F6: 45 | G6: 46663.46895 | H6: 46600.37026 | L6: 285 | M6: 819.73 | N6: 133407.4041 | P6: 45 | Q6: 46432.69541 | R6: 46600.37026
A7: 884.77 | B7: 4499.36 | C7: 0.01779295482 | D7: 2735.74752 | F7: 50 | G7: 50787.82896 | H7: 49861.2048 | J7: Hit F9 | L7: 319 | M7: 505.36 | N7: 355205.928 | P7: 50 | Q7: 50902.55386 | R7: 50831.95392
A8: 751.71 | B8: 5251.07 | C8: 0.0207656314 | D8: 3349.084464 | F8: 55 | G8: 55877.42247 | H8: 54053.076 | J8: to resample | L8: 186 | M8: 915.92 | N8: 61704.34406 | P8: 55 | Q8: 55641.57456 | R8: 53391.2016
A9: 989.68 | B9: 6240.75 | C9: 0.0246793728 | D9: 4416.908496 | F9: 65 | G9: 68613.65093 | H9: 67069.9392 | L9: 266 | M9: 846.89 | N9: 110149.1376 | P9: 65 | Q9: 68006.27085 | R9: 67069.9392
A10: 678.97 | B10: 6919.72 | C10: 0.02736439524 | D10: 5294.9952 | F10: 75 | G10: 87267.03652 | H10: 83378.52442 | L10: 10 | M10: 868.1 | N10: 5736.2448 | P10: 75 | Q10: 92229.99139 | R10: 88249.92
A11: 868.1 | B11: 7787.82 | C11: 0.03079734216 | D11: 5736.2448 | F11: 85 | G11: 117682.5921 | H11: 113935.0592 | L11: 263 | M11: 758.53 | N11: 108812.1514 | P11: 85 | Q11: 123991.1376 | R11: 123549.888
A12: 797.38 | B12: 8585.2 | C12: 0.03395062314 | D12: 6177.4944 | F12: 95 | G12: 179696.0315 | H12: 172087.344 | I12: =PERCENTILEW(D2:D321,A2:A321,F12) -> 172087.344 | L12: 193 | M12: 809.21 | N12: 64422.4416 | P12: 95 | Q12: 207056.3748 | R12: 183573.0711
A13: 873.65 | B13: 9458.85 | C13: 0.03740551783 | D13: 6923.206224 | L13: 38 | M13: 689.11 | N13: 14490.63686
A14: 513.09 | B14: 9971.94 | C14: 0.03943455912 | D14: 7205.605968 | L14: 225 | M14: 773.98 | N14: 77757.00451
A15: 877.99 | B15: 10849.93 | C15: 0.04290661657 | D15: 7412.99328 | L15: 302 | M15: 902.86 | N15: 172087.344
A16: 717.39 | B16: 11567.32 | C16: 0.0457435729 | D16: 7412.99328 | L16: 202 | M16: 891.84 | N16: 66628.6896
A17: 751.71 | B17: 12319.03 | C17: 0.04871624948 | D17: 8599.954704 | L17: 187 | M17: 857.55 | N17: 61774.944
A18: 824.29 | B18: 13143.32 | C18: 0.05197594746 | D18: 8886.766944 | L18: 318 | M18: 834.2 | N18: 318582.2112
A19: 732.92 | B19: 13876.24 | C19: 0.054874318 | D19: 8895.591936 | L19: 221 | M19: 736.48 | N19: 75894.9312
A20: 667.06 | B20: 14543.3 | C20: 0.05751224171 | D20: 9116.216736 | L20: 122 | M20: 733.3 | N20: 41918.712
A21: 780.55 | B21: 15323.85 | C21: 0.06059896758 | D21: 9164.754192 | L21: 204 | M21: 771.46 | N21: 67003.75176
A22: 870.34 | B22: 16194.19 | C22: 0.0640407727 | D22: 9288.30408 | L22: 81 | M22: 824.29 | N22: 30746.27213
A23: 630.51 | B23: 16824.7 | C23: 0.06653415753 | D23: 9729.55368 | L23: 40 | M23: 676.1 | N23: 15020.13638
A24: 658.67 | B24: 17483.37 | C24: 0.06913890255 | D24: 9959.003472 | L24: 299 | M24: 804.13 | N24: 164105.1387
A25: 578.76 | B25: 18062.13 | C25: 0.07142763928 | D25: 10064.90338 | L25: 242 | M25: 813.64 | N25: 88249.92
A26: 686.19 | B26: 18748.32 | C26: 0.07414121359 | D26: 10148.7408 | L26: 67 | M26: 578.27 | N26: 25151.2272
A27: 616.92 | B27: 19365.24 | C27: 0.07658085604 | D27: 10700.3028 | L27: 146 | M27: 929.31 | N27: 47037.20736
A28: 700.58 | B28: 20065.82 | C28: 0.07935133635 | D28: 10713.54029 | L28: 244 | M28: 817.91 | N28: 92229.99139
A29: 881.15 | B29: 20946.97 | C29: 0.08283589019 | D29: 11031.24 | L29: 260 | M29: 813.65 | N29: 103031.7816
A30: 689.11 | B30: 21636.08 | C30: 0.08556101178 | D30: 11706.35189 | L30: 62 | M30: 761.99 | N30: 23540.66616
A31: 820.37 | B31: 22456.45 | C31: 0.08880520792 | D31: 11913.7392 | L31: 178 | M31: 771.27 | N31: 57583.0728
A32: 875.84 | B32: 23332.29 | C32: 0.09226876309 | D32: 12796.2384 | L32: 203 | M32: 562.62 | N32: 66628.6896
A33: 646.28 | B33: 23978.57 | C33: 0.0948245112 | D33: 12950.67576 | L33: 257 | M33: 738.81 | N33: 98848.73539
A34: 785.52 | B34: 24764.09 | C34: 0.09793089119 | D34: 13325.73792 | L34: 142 | M34: 878.66 | N34: 46331.208
A35: 717.82 | B35: 25481.91 | C35: 0.100769548 | D35: 13608.13766 | L35: 29 | M35: 689.11 | N35: 11706.35189
A36: 402.68 | B36: 25884.59 | C36: 0.1023619671 | D36: 13766.98752 | L36: 58 | M36: 757.92 | N36: 22062.48
A37: 842.39 | B37: 26726.98 | C37: 0.1056932425 | D37: 13894.9499 | L37: 170 | M37: 801.97 | N37: 52949.952
A38: 836.97 | B38: 27563.95 | C38: 0.1090030842 | D38: 14380.32446 | L38: 171 | M38: 892.85 | N38: 52994.07696
A39: 689.11 | B39: 28253.06 | C39: 0.1117282058 | D39: 14490.63686 | L39: 267 | M39: 653.82 | N39: 110422.7124
A40: 892.85 | B40: 29145.91 | C40: 0.1152590279 | D40: 14525.93683 | L40: 102 | M40: 1006.59 | N40: 37417.96608
A41: 676.1 | B41: 29822.01 | C41: 0.1179327008 | D41: 15020.13638 | L41: 258 | M41: 809.47 | N41: 100088.6468
A42: 439.69 | B42: 30261.7 | C42: 0.1196714779 | D42: 15531.98592 | L42: 48 | M42: 1024.83 | N42: 17649.984
A43: 514.43 | B43: 30776.13 | C43: 0.1217058183 | D43: 15567.28589 | L43: 215 | M43: 616.92 | N43: 71994.28474
A44: 1015 | B44: 31791.13 | C44: 0.125719689 | D44: 15884.9856 | L44: 89 | M44: 398.08 | N44: 33398.18222
A45: 766.05 | B45: 32557.18 | C45: 0.1287490738 | D45: 16079.13542 | L45: 31 | M45: 875.84 | N45: 12796.2384
A46: 1130.24 | B46: 33687.42 | C46: 0.1332186671 | D46: 16604.22245 | L46: 190 | M46: 772.31 | N46: 61995.5688
A47: 887.5 | B47: 34574.92 | C47: 0.1367283324 | D47: 16767.4848 | L47: 320 | M47: 532.49 | N47: 511072.9367
A48: 813.64 | B48: 35388.56 | C48: 0.1399459144 | D48: 17244.03437 | L48: 201 | M48: 751.71 | N48: 66187.44
A49: 1024.83 | B49: 36413.39 | C49: 0.1439986583 | D49: 17649.984 | L49: 317 | M49: 368.7 | N49: 270486.0048
A50: 497.57 | B50: 36910.96 | C50: 0.1459663249 | D50: 17649.984 | L50: 51 | M50: 578.27 | N50: 18205.9585
A51: 1073.08 | B51: 37984.04 | C51: 0.150209876 | D51: 17950.03373 | L51: 30 | M51: 820.37 | N51: 11913.7392
A52: 578.27 | B52: 38562.31 | C52: 0.152496675 | D52: 18205.9585 | L52: 154 | M52: 1107.22 | N52: 48546.28099
A53: 1486.85 | B53: 40049.16 | C53: 0.1583765012 | D53: 18633.97061 | L53: 84 | M53: 1020.04 | N53: 30887.472
A54: 850.58 | B54: 40899.74 | C54: 0.1617401644 | D54: 19167.88262 | L54: 174 | M54: 782.77 | N54: 54053.076
A55: 514.43 | B55: 41414.17 | C55: 0.1637745048 | D55: 19856.232 | L55: 127 | M55: 919.24 | N55: 42307.01165
A56: 959.38 | B56: 42373.55 | C56: 0.1675684232 | D56: 19856.232 | L56: 44 | M56: 766.05 | N56: 16079.13542
A57: 757.92 | B57: 43131.47 | C57: 0.1705656576 | D57: 20738.7312 | L57: 170 | M57: 801.97 | N57: 52949.952
A58: 797.01 | B58: 43928.48 | C58: 0.1737174754 | D58: 21078.49339 | L58: 26 | M58: 616.92 | N58: 10700.3028
A59: 757.92 | B59: 44686.4 | C59: 0.1767147097 | D59: 22062.48 | L59: 284 | M59: 508.54 | N59: 132569.0298
A60: 920.5 | B60: 45606.9 | C60: 0.1803548752 | D60: 22062.48 | L60: 77 | M60: 802.77 | N60: 28637.09904
A61: 667.06 | B61: 46273.96 | C61: 0.1829927989 | D61: 22940.5667 | L61: 25 | M61: 686.19 | N61: 10148.7408
A62: 975.25 | B62: 47249.21 | C62: 0.1868494761 | D62: 23253.85392 | L62: 239 | M62: 653.82 | N62: 84552.24835
A63: 761.99 | B63: 48011.2 | C63: 0.1898628055 | D63: 23540.66616 | L63: 135 | M63: 746.88 | N63: 44566.2096
A64: 660.09 | B64: 48671.29 | C64: 0.192473166 | D64: 24048.1032 | L64: 42 | M64: 514.43 | N64: 15567.28589
A65: 655.62 | B65: 49326.91 | C65: 0.1950658496 | D65: 24109.87814 | L65: 286 | M65: 751.88 | N65: 133998.6785
A66: 880.45 | B66: 50207.36 | C66: 0.1985476353 | D66: 24784.99003 | L66: 108 | M66: 745.25 | N66: 39712.464
A67: 1107.22 | B67: 51314.58 | C67: =B67/$B$321 -> 0.2029261948 | D67: 24904.12742 | L67: =ROUND(RAND()*320+0.5,0) -> 258 | M67: =OFFSET($A$1,L67,0) -> 809.47 | N67: =OFFSET($D$1,L67,0) -> 100088.6468
A68: 578.27 | B68: =A68+B67 -> 51892.85 | C68: 0.2052129938 | D68: 25151.2272 | L68: 180 | M68: 898.28 | N68: 59639.29594
A69: 968.14 | B69: 52860.99 | C69: 0.2090415541 | D69: 25243.88962 | L69: 187 | M69: 857.55 | N69: 61774.944
A70: 930.11 | B70: 53791.1 | C70: 0.2127197228 | D70: 25658.66424 | L70: 156 | M70: 820.89 | N70: 49186.09291
A71: 828.51 | B71: 54619.61 | C71: 0.215996109 | D71: 25989.60144 | L71: 141 | M71: 848.19 | N71: 46331.208
A72: 800.5 | B72: 55420.11 | C72: 0.2191617282 | D72: 26033.7264 | L72: 56 | M72: 757.92 | N72: 20738.7312
A73: 1054.61 | B73: 56474.72 | C73: 0.2233322387 | D73: 26033.7264 | L73: 229 | M73: 935.8 | N73: 79791.16517
A74: 875.84 | B74: 57350.56 | C74: 0.2267957939 | D74: 26474.976 | L74: 76 | M74: 862.19 | N74: 28231.14941
A75: 892.85 | B75: 58243.41 | C75: 0.230326616 | D75: 27004.47552 | L75: 307 | M75: 748.08 | N75: 184221.708
A76: 936.01 | B76: 59179.42 | C76: 0.2340281166 | D76: 27092.72544 | L76: 36 | M76: 842.39 | N76: 13894.9499
A77: 862.19 | B77: 60041.61 | C77: 0.2374376921 | D77: 28231.14941 | L77: 267 | M77: 653.82 | N77: 110422.7124
A78: 802.77 | B78: 60844.38 | C78: 0.2406122881 | D78: 28637.09904 | L78: 135 | M78: 746.88 | N78: 44566.2096
A79: 730.24 | B79: 61574.62 | C79: 0.2435000604 | D79: 29082.76114 | L79: 280 | M79: 634.75 | N79: 124494.1621
A80: 828.51 | B80: 62403.13 | C80: 0.2467764466 | D80: 29669.6231 | L80: 171 | M80: 892.85 | N80: 52994.07696
A81: 775.45 | B81: 63178.58 | C81: 0.2498430043 | D81: 29762.28552 | L81: 298 | M81: 825.06 | N81: 161497.3536
A82: 824.29 | B82: 64002.87 | C82: 0.2531027023 | D82: 30746.27213 | L82: 130 | M82: 786.47 | N82: 43652.82293
A83: 1014.2 | B83: 65017.07 | C83: 0.2571134093 | D83: 30865.40952 | L83: 45 | M83: 1130.24 | N83: 16604.22245
A84: 800.5 | B84: 65817.57 | C84: 0.2602790285 | D84: 30887.472 | L84: 151 | M84: 935.15 | N84: 48537.456
A85: 1020.04 | B85: 66837.61 | C85: 0.2643128301 | D85: 30887.472 | L85: 26 | M85: 616.92 | N85: 10700.3028
A86: 733.68 | B86: 67571.29 | C86: 0.2672142061 | D86: 30931.59696 | L86: 201 | M86: 751.71 | N86: 66187.44
A87: 758.53 | B87: 68329.82 | C87: 0.2702138527 | D87: 31108.0968 | L87: 73 | M87: 875.84 | N87: 26474.976
A88: 719.05 | B88: 69048.87 | C88: 0.2730573736 | D88: 31769.9712 | L88: 231 | M88: 1015 | N88: 80991.36408
A89: 646.28 | B89: 69695.15 | C89: 0.2756131217 | D89: 32665.70789 | L89: 124 | M89: 1374.7 | N89: 41962.83696
A90: 398.08 | B90: 70093.23 | C90: 0.2771873499 | D90: 33398.18222 | L90: 29 | M90: 689.11 | N90: 11706.35189
A91: 724.1 | B91: 70817.33 | C91: 0.2800508413 | D91: 34086.5316 | L91: 161 | M91: 944.57 | N91: 50831.95392
A92: 1112.35 | B92: 71929.68 | C92: 0.2844496877 | D92: 34095.35659 | L92: 171 | M92: 892.85 | N92: 52994.07696
A93: 740.59 | B93: 72670.27 | C93: 0.2873783896 | D93: 34165.95653 | L93: 120 | M93: 783.62 | N93: 41720.14968
A94: 431.12 | B94: 73101.39 | C94: 0.2890832762 | D94: 34285.09392 | L94: 143 | M94: 685.91 | N94: 46432.69541
A95: 558.03 | B95: 73659.42 | C95: 0.2912900351 | D95: 34417.4688 | L95: 34 | M95: 717.82 | N95: 13608.13766
A96: 854.16 | B96: 74513.58 | C96: 0.2946678556 | D96: 34651.33109 | L96: 44 | M96: 766.05 | N96: 16079.13542
A97: 737.4 | B97: 75250.98 | C97: 0.2975839425 | D97: 34717.51853 | L97: 13 | M97: 513.09 | N97: 7205.605968
A98: 915.79 | B98: 76166.77 | C98: 0.301205482 | D98: 35238.19306 | L98: 30 | M98: 820.37 | N98: 11913.7392
A99: 660.09 | B99: 76826.86 | C99: 0.3038158425 | D99: 35410.2804 | L99: 218 | M99: 780.55 | N99: 74134.3453
A100: 678.09 | B100: 77504.95 | C100: 0.3064973849 | D100: 36103.04227 | L100: 198 | M100: 972.94 | N100: 66187.44
A101: 792.6 | B101: 78297.55 | C101: 0.3096317632 | D101: 36138.34224 | L101: 100 | M101: 792.6 | N101: 36138.34224
A102: 632.7 | B102: 78930.25 | C102: 0.3121338084 | D102: 36226.59216 | L102: 156 | M102: 820.89 | N102: 49186.09291
A103: 1006.59 | B103: 79936.84 | C103: 0.3161144213 | D103: 37417.96608 | L103: 201 | M103: 751.71 | N103: 66187.44
A104: 817.91 | B104: 80754.75 | C104: 0.3193488893 | D104: 38203.39037 | L104: 57 | M104: 797.01 | N104: 21078.49339
A105: 578.39 | B105: 81333.14 | C105: 0.3216361628 | D105: 39050.5896 | L105: 279 | M105: 754.89 | N105: 123991.1376
A106: 862.19 | B106: 82195.33 | C106: 0.3250457384 | D106: 39103.53955 | L106: 154 | M106: 1107.22 | N106: 48546.28099
A107: 1023.36 | B107: 83218.69 | C107: 0.3290926691 | D107: 39346.22683 | L107: 68 | M107: 968.14 | N107: 25243.88962
A108: 1023.36 | B108: 84242.05 | C108: 0.3331395998 | D108: 39712.464 | L108: 84 | M108: 1020.04 | N108: 30887.472
A109: 745.25 | B109: 84987.3 | C109: 0.33608673 | D109: 39712.464 | L109: 152 | M109: 757.75 | N109: 48537.456
A110: 783.62 | B110: 85770.92 | C110: 0.3391855963 | D110: 39712.464 | L110: 74 | M110: 892.85 | N110: 27004.47552
A111: 884.62 | B111: 86655.54 | C111: 0.3426838724 | D111: 39866.90136 | L111: 91 | M111: 1112.35 | N111: 34095.35659
A112: 733.68 | B112: 87389.22 | C112: 0.3455852484 | D112: 39888.96384 | L112: 1 | M112: 850.58 | N112: 0
A113: 809.21 | B113: 88198.43 | C113: 0.3487853118 | D113: 39972.80126 | L113: 162 | M113: 1015 | N113: 50973.15379
A114: 802.77 | B114: 89001.2 | C114: 0.3519599078 | D114: 40021.33872 | L114: 49 | M114: 497.57 | N114: 17649.984
A115: 887.5 | B115: 89888.7 | C115: 0.355469573 | D115: 40153.7136 | L115: 284 | M115: 508.54 | N115: 132569.0298
A116: 873.65 | B116: 90762.35 | C116: 0.3589244677 | D116: 40594.9632 | L116: 128 | M116: 815.98 | N116: 42682.07381
A117: 703.52 | B117: 91465.87 | C117: 0.3617065744 | D117: 40665.56314 | L117: 113 | M117: 802.77 | N117: 40021.33872
A118: 863.42 | B118: 92329.29 | C118: 0.365121014 | D118: 41036.2128 | L118: 19 | M118: 667.06 | N118: 9116.216736
A119: 578.27 | B119: 92907.56 | C119: 0.3674078131 | D119: 41049.45029 | L119: 47 | M119: 813.64 | N119: 17244.03437
A120: 782.77 | B120: 93690.33 | C120: 0.370503318 | D120: 41159.76269 | L120: 103 | M120: 817.91 | N120: 38203.39037
A121: 783.62 | B121: 94473.95 | C121: 0.3736021844 | D121: 41720.14968 | L121: 19 | M121: 667.06 | N121: 9116.216736
A122: 737.09 | B122: 95211.04 | C122: 0.3765170454 | D122: 41808.3996 | L122: 20 | M122: 780.55 | N122: 9164.754192
A123: 733.3 | B123: 95944.34 | C123: 0.3794169187 | D123: 41918.712 | L123: 136 | M123: 693.48 | N123: 44786.8344
A124: 771.27 | B124: 96715.61 | C124: 0.3824669463 | D124: 41962.83696 | L124: 33 | M124: 785.52 | N124: 13325.73792
A125: 1374.7 | B125: 98090.31 | C125: 0.3879032694 | D125: 41962.83696 | L125: 46 | M125: 887.5 | N125: 16767.4848
A126: 935.15 | B126: 99025.46 | C126: 0.3916013691 | D126: 42051.08688 | L126: 142 | M126: 878.66 | N126: 46331.208
A127: 730.94 | B127: 99756.4 | C127: 0.3944919096 | D127: 42055.49938 | L127: 187 | M127: 857.55 | N127: 61774.944
A128: 919.24 | B128: 100675.64 | C128: 0.3981270924 | D128: 42307.01165 | L128: 259 | M128: 930.11 | N128: 101487.408
A129: 815.98 | B129: 101491.62 | C129: 0.401353928 | D129: 42682.07381 | L129: 31 | M129: 875.84 | N129: 12796.2384
A130: 678.97 | B130: 102170.59 | C130: 0.4040389504 | D130: 43366.01069 | L130: 112 | M130: 809.21 | N130: 39972.80126
A131: 786.47 | B131: 102957.06 | C131: =B131/$B$321 -> 0.4071490873 | D131: 43652.82293 | L131: =ROUND(RAND()*320+0.5,0) -> 45 | M131: =OFFSET($A$1,L131,0) -> 1130.24 | N131: =OFFSET($D$1,L131,0) -> 16604.22245
A132: 706.96 | B132: =A132+B131 -> 103664.02 | C132: 0.4099447976 | D132: 43683.7104 | L132: 246 | M132: 818.6 | N132: 92662.416
A133: 700.58 | B133: 104364.6 | C133: 0.4127152779 | D133: 43723.42286 | L133: 277 | M133: 892.85 | N133: 123549.888
A134: 430.24 | B134: 104794.84 | C134: 0.4144166845 | D134: 44124.96 | L134: 76 | M134: 862.19 | N134: 28231.14941
A135: 1013.95 | B135: 105808.79 | C135: 0.4184264029 | D135: 44266.15987 | L135: 309 | M135: 812.77 | N135: 208269.8112
A136: 746.88 | B136: 106555.67 | C136: 0.421379979 | D136: 44566.2096 | L136: 137 | M136: 752.41 | N136: 44976.57173
A137: 693.48 | B137: 107249.15 | C137: 0.424122382 | D137: 44786.8344 | L137: 72 | M137: 1054.61 | N137: 26033.7264
A138: 752.41 | B138: 108001.56 | C138: 0.4270978268 | D138: 44976.57173 | L138: 166 | M138: 660.62 | N138: 51983.61538
A139: 768.12 | B139: 108769.68 | C139: 0.4301353975 | D139: 45232.4965 | L139: 267 | M139: 653.82 | N139: 110422.7124
A140: 743.08 | B140: 109512.76 | C140: 0.4330739463 | D140: 45514.89624 | L140: 238 | M140: 768.12 | N140: 83378.52442
A141: 826.23 | B141: 110338.99 | C141: 0.4363413162 | D141: 45889.9584 | L141: 125 | M141: 935.15 | N141: 42051.08688
A142: 848.19 | B142: 111187.18 | C142: 0.4396955279 | D142: 46331.208 | L142: 300 | M142: 809.04 | N142: 164444.9009
A143: 878.66 | B143: 112065.84 | C143: 0.4431702349 | D143: 46331.208 | L143: 42 | M143: 514.43 | N143: 15567.28589
A144: 685.91 | B144: 112751.75 | C144: 0.445882702 | D144: 46432.69541 | L144: 86 | M144: 758.53 | N144: 31108.0968
A145: 765.81 | B145: 113517.56 | C145: 0.4489111377 | D145: 46600.37026 | L145: 215 | M145: 616.92 | N145: 71994.28474
A146: 810.63 | B146: 114328.19 | C146: 0.4521168165 | D146: 46715.09515 | L146: 62 | M146: 761.99 | N146: 23540.66616
A147: 929.31 | B147: 115257.5 | C147: 0.4557918216 | D147: 47037.20736 | L147: 82 | M147: 1014.2 | N147: 30865.40952
A148: 646.28 | B148: 115903.78 | C148: 0.4583475697 | D148: 47888.81909 | L148: 241 | M148: 1073.08 | N148: 88249.92
A149: 810.63 | B149: 116714.41 | C149: 0.4615532485 | D149: 48144.74386 | L149: 310 | M149: 791.73 | N149: 209646.51
A150: 1001.19 | B150: 117715.6 | C150: 0.4655125068 | D150: 48219.75629 | L150: 147 | M150: 646.28 | N150: 47888.81909
A151: 863.42 | B151: 118579.02 | C151: 0.4689269464 | D151: 48537.456 | L151: 231 | M151: 1015 | N151: 80991.36408
A152: 935.15 | B152: 119514.17 | C152: 0.4726250461 | D152: 48537.456 | L152: 309 | M152: 812.77 | N152: 208269.8112
A153: 757.75 | B153: 120271.92 | C153: 0.4756216082 | D153: 48537.456 | L153: 18 | M153: 732.92 | N153: 8895.591936
A154: 678.97 | B154: 120950.89 | C154: 0.4783066306 | D154: 48537.456 | L154: 80 | M154: 775.45 | N154: 29762.28552
A155: 1107.22 | B155: 122058.11 | C155: 0.4826851901 | D155: 48546.28099 | L155: 78 | M155: 730.24 | N155: 29082.76114
A156: 935.8 | B156: 122993.91 | C156: 0.4863858602 | D156: 48634.53091 | L156: 305 | M156: 917.51 | N156: 183162.709
A157: 820.89 | B157: 123814.8 | C157: 0.4896321127 | D157: 49186.09291 | L157: 205 | M157: 785.36 | N157: 67069.9392
A158: 839.89 | B158: 124654.69 | C158: 0.4929535017 | D158: 49216.98038 | L158: 16 | M158: 751.71 | N158: 8599.954704
A159: 792.15 | B159: 125446.84 | C159: 0.4960861004 | D159: 49393.48022 | L159: 33 | M159: 785.52 | N159: 13325.73792
A160: 799.79 | B160: 126246.63 | C160: 0.4992489119 | D160: 49861.2048 | L160: 171 | M160: 892.85 | N160: 52994.07696
A161: 527 | B161: 126773.63 | C161: 0.501332961 | D161: 50743.704 | L161: 308 | M161: 747.71 | N161: 207056.3748
A162: 944.57 | B162: 127718.2 | C162: 0.5050683125 | D162: 50831.95392 | L162: 284 | M162: 508.54 | N162: 132569.0298
A163: 1015 | B163: 128733.2 | C163: 0.5090821832 | D163: 50973.15379 | L163: 16 | M163: 751.71 | N163: 8599.954704
A164: 1002.43 | B164: 129735.63 | C164: 0.5130463451 | D164: 51004.04126 | L164: 308 | M164: 747.71 | N164: 207056.3748
A165: 919.24 | B165: 130654.87 | C165: 0.5166815279 | D165: 51626.2032 | L165: 110 | M165: 884.62 | N165: 39866.90136
A166: 916.62 | B166: 131571.49 | C166: 0.5203063497 | D166: 51705.62813 | L166: 207 | M166: 678.09 | N166: 67987.73837
A167: 660.62 | B167: 132232.11 | C167: 0.5229188061 | D167: 51983.61538 | L167: 90 | M167: 724.1 | N167: 34086.5316
A168: 719.8 | B168: 132951.91 | C168: 0.5257652929 | D168: 52067.4528 | L168: 320 | M168: 532.49 | N168: 511072.9367
A169: 671.09 | B169: 133623 | C169: 0.5284191534 | D169: 52949.952 | L169: 317 | M169: 368.7 | N169: 270486.0048
A170: 848.19 | B170: 134471.19 | C170: 0.5317733652 | D170: 52949.952 | L170: 41 | M170: 439.69 | N170: 15531.98592
A171: 801.97 | B171: 135273.16 | C171: 0.5349447976 | D171: 52949.952 | L171: 118 | M171: 578.27 | N171: 41049.45029
A172: 892.85 | B172: 136166.01 | C172: 0.5384756197 | D172: 52994.07696 | L172: 228 | M172: 672.99 | N172: 79424.928
A173: 810.42 | B173: 136976.43 | C173: 0.5416804681 | D173: 53347.07664 | L173: 48 | M173: 1024.83 | N173: 17649.984
A174: 758.31 | B174: 137734.74 | C174: 0.5446792447 | D174: 53391.2016 | L174: 113 | M174: 802.77 | N174: 40021.33872
A175: 782.77 | B175: 138517.51 | C175: 0.5477747496 | D175: 54053.076 | L175: 24 | M175: 578.76 | N175: 10064.90338
A176: 935.8 | B176: 139453.31 | C176: 0.5514754198 | D176: 55098.83755 | L176: 239 | M176: 653.82 | N176: 84552.24835
A177: 831.47 | B177: 140284.78 | C177: 0.5547635114 | D177: 55835.72438 | L177: 32 | M177: 646.28 | N177: 12950.67576
A178: 641.56 | B178: 140926.34 | C178: 0.5573005941 | D178: 55928.3868 | L178: 279 | M178: 754.89 | N178: 123991.1376
A179: 771.27 | B179: 141697.61 | C179: 0.5603506217 | D179: 57583.0728 | L179: 77 | M179: 802.77 | N179: 28637.09904
A180: 1107.22 | B180: 142804.83 | C180: 0.5647291812 | D180: 58853.87165 | L180: 235 | M180: 797.38 | N180: 82213.62547
A181: 898.28 | B181: 143703.11 | C181: 0.5682814765 | D181: 59639.29594 | L181: 215 | M181: 616.92 | N181: 71994.28474
A182: 1013.95 | B182: 144717.06 | C182: 0.5722911949 | D182: 60407.07024 | L182: 273 | M182: 1001.19 | N182: 118140.1679
A183: 733 | B183: 145450.06 | C183: 0.5751898818 | D183: 60526.20763 | L183: 298 | M183: 825.06 | N183: 161497.3536
A184: 890.69 | B184: 146340.75 | C184: 0.5787121621 | D184: 60804.19488 | L184: 306 | M184: 686.19 | N184: 183573.0711
A185: 757.56 | B185: 147098.31 | C185: 0.5817079728 | D185: 60848.31984 | L185: 116 | M185: 703.52 | N185: 40665.56314
A186: 797.38 | B186: 147895.69 | C186: 0.5848612537 | D186: 61571.96918 | L186: 132 | M186: 700.58 | N186: 43723.42286
A187: 915.92 | B187: 148811.61 | C187: 0.5884833074 | D187: 61704.34406 | L187: 7 | M187: 751.71 | N187: 3349.084464
A188: 857.55 | B188: 149669.16 | C188: 0.5918745338 | D188: 61774.944 | L188: 237 | M188: 772.31 | N188: 82844.6124
A189: 762.84 | B189: 150432 | C189: 0.5948912245 | D189: 61774.944 | L189: 252 | M189: 935.8 | N189: 97074.912
A190: 733.68 | B190: 151165.68 | C190: 0.5977926005 | D190: 61841.13144 | L190: 54 | M190: 514.43 | N190: 19856.232
A191: 772.31 | B191: 151937.99 | C191: 0.6008467408 | D191: 61995.5688 | L191: 289 | M191: 888.18 | N191: 137731.6501
A192: 913.01 | B192: 152851 | C192: 0.6044572867 | D192: 63098.6928 | L192: 260 | M192: 813.65 | N192: 103031.7816
A193: 771.35 | B193: 153622.35 | C193: 0.6075076307 | D193: 63981.192 | L193: 310 | M193: 791.73 | N193: 209646.51
A194: 809.21 | B194: 154431.56 | C194: 0.610707694 | D194: 64422.4416 | L194: 13 | M194: 513.09 | N194: 7205.605968
A195: 802.99 | B195: 155234.55 | C195: =B195/$B$321 -> 0.6138831601 | D195: 64528.3415 | L195: =ROUND(RAND()*320+0.5,0) -> 271 | M195: =OFFSET($A$1,L195,0) -> 688.33 | N195: =OFFSET($D$1,L195,0) -> 115122.0206
A196: 802.69 | B196: =A196+B195 -> 156037.24 | C196: 0.6170574397 | D196: 64863.6912 | L196: 179 | M196: 1107.22 | N196: 58853.87165
A197: 872.52 | B197: 156909.76 | C197: 0.6205078658 | D197: 65349.06576 | L197: 202 | M197: 891.84 | N197: 66628.6896
A198: 1032.31 | B198: 157942.07 | C198: 0.6245901897 | D198: 65750.6029 | L198: 292 | M198: 1013.71 | N198: 147545.0412
A199: 972.94 | B199: 158915.01 | C199: 0.6284377319 | D199: 66187.44 | L199: 195 | M199: 802.69 | N199: 64863.6912
A200: 558.03 | B200: 159473.04 | C200: 0.6306444908 | D200: 66187.44 | L200: 219 | M200: 817.91 | N200: 74637.36984
... 121 more rows

Sheet MCSimDC
A1: Results of Monte Carlo Simulation | AK1: 0 | AL1: 11Boot'!$Q$7
A2: Sample Number | B2: 11Boot'!$Q$7 | F2: Simulation Stats | AH2: 0 | AK2: 42000 | AL2: 0
A3: 1 | B3: 49305.2303 | F3: 10000 | G3: repetitions | AH3: 0.1290322542 | AI3: 0 | AK3: 42000 | AL3: 1
A4: 2 | B4: 49186.0929 | F4: 417 | G4: seconds | I4: Summary Statistics | L4: Notes | AH4: 0.2580645084 | AI4: 3 | AK4: 42500 | AL4: 1
A5: 3 | B5: 48541.8685 | I5: Average | J5: 50723.23907 | AH5: 0.3870967627 | AI5: 4 | AK5: 42500 | AL5: 0
A6: 4 | B6: 48590.406 | I6: SD | J6: 2622.721659 | AH6: 0.5161290169 | AI6: 8 | AK6: 43000 | AL6: 0
A7: 5 | B7: 44124.96 | I7: Max | J7: 64696.0164 | AH7: 0.6451612711 | AI7: 4 | AK7: 43000 | AL7: 0
A8: 6 | B8: 50831.9539 | I8: Min | J8: 42322.4554 | AH8: 0.7741935253 | AI8: 9 | AK8: 43500 | AL8: 0
A9: 7 | B9: 51354.8347 | AH9: 0.9032257795 | AI9: 9 | AK9: 43500 | AL9: 4
A10: 8 | B10: 49393.4802 | AH10: 1.032258034 | AI10: 12 | AK10: 44000 | AL10: 4
A11: 9 | B11: 51705.6281 | AH11: 1.161290288 | AI11: 8 | AK11: 44000 | AL11: 9
A12: 10 | B12: 48537.456 | AH12: 1.290322542 | AI12: 3 | AK12: 44500 | AL12: 9
A13: 11 | B13: 52488.8462 | AH13: 1.419354796 | AI13: 6 | AK13: 44500 | AL13: 27
A14: 12 | B14: 48546.281 | AH14: 1.548387051 | AI14: 7 | AK14: 45000 | AL14: 27
A15: 13 | B15: 51493.8283 | AH15: 1.677419305 | AI15: 6 | AK15: 45000 | AL15: 27
A16: 14 | B16: 50973.1538 | AH16: 1.806451559 | AI16: 6 | AK16: 45500 | AL16: 27
A17: 15 | B17: 53170.5768 | AH17: 1.935483813 | AI17: 2 | AK17: 45500 | AL17: 55
A18: 16 | B18: 52972.0145 | AH18: 2.064516068 | AI18: 5 | AK18: 46000 | AL18: 55
A19: 17 | B19: 48861.7745 | AH19: 2.193548322 | AI19: 2 | AK19: 46000 | AL19: 145
A20: 18 | B20: 48537.456 | AH20: 2.322580576 | AI20: 3 | AK20: 46500 | AL20: 145
A21: 19 | B21: 50743.704 | AH21: 2.45161283 | AI21: 2 | AK21: 46500 | AL21: 193
A22: 20 | B22: 48910.3119 | AH22: 2.580645084 | AI22: 1 | AK22: 47000 | AL22: 193
A23: 21 | B23: 52508.7024 | AH23: 2.709677339 | AI23: 0 | AK23: 47000 | AL23: 136
A24: 22 | B24: 53391.2016 | AH24: 2.838709593 | AI24: 0 | AK24: 47500 | AL24: 136
A25: 23 | B25: 49014.0056 | AH25: 2.967741847 | AI25: 0 | AK25: 47500 | AL25: 89
A26: 24 | B26: 48541.8685 | AH26: 3.096774101 | AI26: 0 | AK26: 48000 | AL26: 89
A27: 25 | B27: 52949.952 | AH27: 3.225806355 | AI27: 0 | AK27: 48000 | AL27: 490
A28: 26 | B28: 52949.952 | AH28: 3.35483861 | AI28: 0 | AK28: 48500 | AL28: 490
A29: 27 | B29: 53170.5768 | AH29: 3.483870864 | AI29: 0 | AK29: 48500 | AL29: 1890
A30: 28 | B30: 48537.456 | AH30: 3.612903118 | AI30: 0 | AK30: 49000 | AL30: 1890
A31: 29 | B31: 50787.829 | AH31: 3.741935372 | AI31: 0 | AK31: 49000 | AL31: 846
A32: 30 | B32: 49201.5366 | AH32: 3.870967627 | AI32: 0 | AK32: 49500 | AL32: 846
A33: 31 | B33: 48378.6061 | AH33: 3.999999881 | AI33: 0 | AK33: 49500 | AL33: 482
A34: 32 | B34: 60466.6389 | AK34: 50000 | AL34: 482
A35: 33 | B35: 51004.0413 | AK35: 50000 | AL35: 398
A36: 34 | B36: 51354.8347 | AK36: 50500 | AL36: 398
A37: 35 | B37: 50917.9976 | AK37: 50500 | AL37: 1169
A38: 36 | B38: 51229.0786 | AK38: 51000 | AL38: 1169
A39: 37 | B39: 51665.9157 | AK39: 51000 | AL39: 532
A40: 38 | B40: 50973.1538 | AK40: 51500 | AL40: 532
A41: 39 | B41: 50917.9976 | AK41: 51500 | AL41: 887
A42: 40 | B42: 52067.4528 | AK42: 52000 | AL42: 887
A43: 41 | B43: 50831.9539 | AK43: 52000 | AL43: 377
A44: 42 | B44: 52508.7024 | AK44: 52500 | AL44: 377
A45: 43 | B45: 50302.4544 | AK45: 52500 | AL45: 1049
A46: 44 | B46: 50902.5539 | AK46: 53000 | AL46: 1049
A47: 45 | B47: 52949.952 | AK47: 53000 | AL47: 373
A48: 46 | B48: 47888.8191 | AK48: 53500 | AL48: 373
A49: 47 | B49: 50973.1538 | AK49: 53500 | AL49: 107
A50: 48 | B50: 52508.7024 | AK50: 54000 | AL50: 107
A51: 49 | B51: 48541.8685 | AK51: 54000 | AL51: 73
A52: 50 | B52: 49393.4802 | AK52: 54500 | AL52: 73
A53: 51 | B53: 50787.829 | AK53: 54500 | AL53: 95
A54: 52 | B54: 46523.1516 | AK54: 55000 | AL54: 95
A55: 53 | B55: 48585.9935 | AK55: 55000 | AL55: 96
A56: 54 | B56: 48144.7439 | AK56: 55500 | AL56: 96
A57: 55 | B57: 52949.952 | AK57: 55500 | AL57: 113
A58: 56 | B58: 58218.4722 | AK58: 56000 | AL58: 113
A59: 57 | B59: 48585.9935 | AK59: 56000 | AL59: 8
A60: 58 | B60: 52949.952 | AK60: 56500 | AL60: 8
A61: 59 | B61: 47429.9195 | AK61: 56500 | AL61: 49
A62: 60 | B62: 52972.0145 | AK62: 57000 | AL62: 49
A63: 61 | B63: 51299.6785 | AK63: 57000 | AL63: 17
A64: 62 | B64: 46110.5832 | AK64: 57500 | AL64: 17
A65: 63 | B65: 55835.7244 | AK65: 57500 | AL65: 27
A66: 64 | B66: 52508.7024 | AK66: 58000 | AL66: 27
A67: 65 | B67: 48537.456 | AK67: 58000 | AL67: 22
A68: 66 | B68: 53523.5765 | AK68: 58500 | AL68: 22
A69: 67 | B69: 49186.0929 | AK69: 58500 | AL69: 31
A70: 68 | B70: 50068.5921 | AK70: 59000 | AL70: 31
A71: 69 | B71: 55513.6122 | AK71: 59000 | AL71: 15
A72: 70 | B72: 48546.281 | AK72: 59500 | AL72: 15
A73: 71 | B73: 51983.6154 | AK73: 59500 | AL73: 17
A74: 72 | B74: 49186.0929 | AK74: 60000 | AL74: 17
A75: 73 | B75: 53148.5143 | AK75: 60000 | AL75: 47
A76: 74 | B76: 50988.5975 | AK76: 60500 | AL76: 47
A77: 75 | B77: 47888.8191 | AK77: 60500 | AL77: 55
A78: 76 | B78: 51004.0413 | AK78: 61000 | AL78: 55
A79: 77 | B79: 50743.704 | AK79: 61000 | AL79: 10
A80: 78 | B80: 48634.5309 | AK80: 61500 | AL80: 10
A81: 79 | B81: 48144.7439 | AK81: 61500 | AL81: 38
A82: 80 | B82: 51315.1222 | AK82: 62000 | AL82: 38
A83: 81 | B83: 48341.0999 | AK83: 62000 | AL83: 0
A84: 82 | B84: 52508.7024 | AK84: 62500 | AL84: 0
A85: 83 | B85: 52949.952 | AK85: 62500 | AL85: 0
A86: 84 | B86: 48590.406 | AK86: 63000 | AL86: 0
A87: 85 | B87: 49201.5366 | AK87: 63000 | AL87: 0
A88: 86 | B88: 48634.5309 | AK88: 63500 | AL88: 0
A89: 87 | B89: 47590.9756 | AK89: 63500 | AL89: 0
A90: 88 | B90: 52994.077 | AK90: 64000 | AL90: 0
A91: 89 | B91: 60665.2013 | AK91: 64000 | AL91: 0
A92: 90 | B92: 53192.6393 | AK92: 64500 | AL92: 0
A93: 91 | B93: 48590.406 | AK93: 64500 | AL93: 1
A94: 92 | B94: 52972.0145 | AK94: 65000 | AL94: 1
A95: 93 | B95: 48541.8685 | AK95: 65000 | AL95: 0
A96: 94 | B96: 50917.9976
A97: 95 | B97: 50858.4289
A98: 96 | B98: 48537.456
A99: 97 | B99: 50095.0671
A100: 98 | B100: 50973.1538
A101: 99 | B101: 52025.5341
A102: 100 | B102: 48590.406
A103: Only the first 100 repetitions are displayed on this worksheet.

Sheet MCRawDC
A1: [1977RHHINCOME.xlsm]11Boot'!$Q$2 | B1: [1977RHHINCOME.xlsm]11Boot'!$Q$3 | C1: [1977RHHINCOME.xlsm]11Boot'!$Q$4 | D1: [1977RHHINCOME.xlsm]11Boot'!$Q$5 | E1: [1977RHHINCOME.xlsm]11Boot'!$Q$6 | F1: [1977RHHINCOME.xlsm]11Boot'!$Q$7 | G1: [1977RHHINCOME.xlsm]11Boot'!$Q$8 | H1: [1977RHHINCOME.xlsm]11Boot'!$Q$9 | I1: [1977RHHINCOME.xlsm]11Boot'!$Q$10 | J1: [1977RHHINCOME.xlsm]11Boot'!$Q$11 | K1: [1977RHHINCOME.xlsm]11Boot'!$Q$12 | L1: [1977RHHINCOME.xlsm]11Boot'!$R$2 | M1: [1977RHHINCOME.xlsm]11Boot'!$R$3 | N1: [1977RHHINCOME.xlsm]11Boot'!$R$4 | O1: [1977RHHINCOME.xlsm]11Boot'!$R$5 | P1: [1977RHHINCOME.xlsm]11Boot'!$R$6 | Q1: [1977RHHINCOME.xlsm]11Boot'!$R$7 | R1: [1977RHHINCOME.xlsm]11Boot'!$R$8 | S1: [1977RHHINCOME.xlsm]11Boot'!$R$9 | T1: [1977RHHINCOME.xlsm]11Boot'!$R$10 | U1: [1977RHHINCOME.xlsm]11Boot'!$R$11 | V1: [1977RHHINCOME.xlsm]11Boot'!$R$12
A2: 8599.9547 | B2: 16525.4594 | C2: 31108.0968 | D2: 40665.5631 | E2: 48029.5777 | F2: 49305.2303 | G2: 58154.9323 | H2: 72664.5429 | I2: 92229.9914 | J2: 123770.5128 | K2: 183183.2271 | L2: 7412.9933 | M2: 16079.1354 | N2: 30887.472 | O2: 40153.7136 | P2: 46715.0952 | Q2: 49186.0929 | R2: 51983.6154 | S2: 69677.7243 | T2: 88249.92 | U2: 117601.8434 | V2: 164586.1008
A3: 9104.7442 | B3: 15485.2135 | C3: 29739.1199 | D3: 40440.5258 | E3: 46387.0261 | F3: 49186.0929 | G3: 51983.6154 | H3: 66341.8774 | I3: 82584.2751 | J3: 113546.7596 | K3: 172219.9395 | L3: 8886.7669 | M3: 16767.4848 | N3: 29762.2855 | O3: 40594.9632 | P3: 46432.6954 | Q3: 49186.0929 | R3: 51626.2032 | S3: 66187.44 | T3: 82213.6255 | U3: 108900.4013 | V3: 172087.344
A4: 8880.8101 | B4: 21078.4934 | C4: 32665.7079 | D4: 39712.464 | E4: 44791.9088 | F4: 48541.8685 | G4: 52969.8082 | H4: 66187.44 | I4: 80627.3332 | J4: 110149.1376 | K4: 148406.5811 | L4: 8895.5919 | M4: 21078.4934 | N4: 30887.472 | O4: 39712.464 | P4: 44976.5717 | Q4: 48546.281 | R4: 52994.077 | S4: 66187.44 | T4: 81189.9264 | U4: 110149.1376 | V4: 147580.3412
A5: 8540.6066 | B5: 20606.3563 | C5: 30852.172 | D5: 40004.3506 | E5: 46663.4689 | F5: 48590.406 | G5: 51830.7224 | H5: 66341.8774 | I5: 86939.4087 | J5: 120373.1115 | K5: 207056.3748 | L5: 8599.9547 | M5: 18633.9706 | N5: 30746.2721 | O5: 39888.9638 | P5: 46600.3703 | Q5: 48537.456 | R5: 51004.0413 | S5: 65750.6029 | T5: 82213.6255 | U5: 115122.0206 | V5: 183162.709
A6: 6885.9206 | B6: 15837.3306 | C6: 23253.8539 | D6: 34218.6859 | E6: 41049.4503 | F6: 44124.96 | G6: 48537.456 | H6: 66187.44 | I6: 76181.7434 | J6: 97340.9855 | K6: 157271.9474 | L6: 6177.4944 | M6: 16604.2224 | N6: 22940.5667 | O6: 33398.1822 | P6: 40153.7136 | Q6: 43683.7104 | R6: 48219.7563 | S6: 63981.192 | T6: 74134.3453 | U6: 97074.912 | V6: 153554.8608
A7: 9116.2167 | B7: 19087.7958 | C7: 29762.2855 | D7: 39712.464 | E7: 46542.3459 | F7: 50831.9539 | G7: 58154.9323 | H7: 71297.5516 | I7: 92338.0975 | J7: 118307.8428 | K7: 185424.1132 | L7: 9116.2167 | M7: 21078.4934 | N7: 29762.2855 | O7: 39712.464 | P7: 46715.0952 | Q7: 48546.281 | R7: 55098.8376 | S7: 66187.44 | T7: 90456.168 | U7: 115122.0206 | V7: 183162.709
A8: 9279.6997 | B8: 17649.984 | C8: 33731.3257 | D8: 42053.955 | E8: 48029.5777 | F8: 51354.8347 | G8: 61173.962 | H8: 73909.308 | I8: 88249.92 | J8: 109244.576 | K8: 164451.9609 | L8: 9288.3041 | M8: 19856.232 | N8: 34086.5316 | O8: 42051.0869 | P8: 48144.7439 | Q8: 51004.0413 | R8: 60804.1949 | S8: 71773.6599 | T8: 86939.4087 | U8: 104293.7555 | V8: 161497.3536
A9: 6923.2062 | B9: 15485.2135 | C9: 25989.6014 | D9: 39712.464 | E9: 46387.0261 | F9: 49393.4802 | G9: 53689.0451 | H9: 67069.9392 | I9: 83378.5244 | J9: 113935.0592 | K9: 183162.709 | L9: 6177.4944 | M9: 15884.9856 | N9: 26474.976 | O9: 39712.464 | P9: 46331.208 | Q9: 49216.9804 | R9: 52949.952 | S9: 66628.6896 | T9: 81631.176 | U9: 110422.7124 | V9: 164586.1008
A10: 10144.5489 | B10: 19672.8928 | C10: 34384.3751 | D10: 42053.955 | E10: 48219.7563 | F10: 51705.6281 | G10: 60460.6821 | H10: 71873.8236 | I10: 88249.92 | J10: 109143.9711 | K10: 164961.163 | L10: 10064.9034 | M10: 19856.232 | N10: 34417.4688 | O10: 41962.837 | P10: 48144.7439 | Q10: 51626.2032 | R10: 57583.0728 | S10: 71041.1856 | T10: 83378.5244 | U10: 108900.4013 | V10: 161497.3536
A11: 9288.3041 | B11: 20606.3563 | C11: 30881.9564 | D11: 39812.8483 | E11: 44976.5717 | F11: 48537.456 | G11: 52464.5774 | H11: 65903.4959 | I11: 81776.7884 | J11: 110538.5404 | K11: 179513.5748 | L11: 9288.3041 | M11: 22062.48 | N11: 30865.4095 | O11: 39866.9014 | P11: 44786.8344 | Q11: 48537.456 | R11: 52067.4528 | S11: 65750.6029 | T11: 81326.7138 | U11: 103031.7816 | V11: 164586.1008
A12: 7402.6239 | B12: 17905.0263 | C12: 30920.5657 | D12: 42053.955 | E12: 48542.3097 | F12: 52488.8462 | G12: 61149.6933 | H12: 75453.6816 | I12: 92883.0408 | J12: 119137.392 | K12: 165514.9312 | L12: 6923.2062 | M12: 17950.0337 | N12: 30746.2721 | O12: 41918.712 | P12: 48144.7439 | Q12: 51983.6154 | R12: 60407.0702 | S12: 74637.3698 | T12: 92662.416 | U12: 118140.1679 | V12: 164105.1387
A13: 6923.2062 | B13: 16742.9954 | C13: 27946.5434 | D13: 40153.7136 | E13: 46331.208 | F13: 48546.281 | G13: 53366.9329 | H13: 69727.1443 | I13: 92229.9914 | J13: 133998.6785 | K13: 210939.3713 | L13: 6923.2062 | M13: 16767.4848 | N13: 28231.1494 | O13: 40665.5631 | P13: 46331.208 | Q13: 48546.281 | R13: 52949.952 | S13: 67987.7384 | T13: 83378.5244 | U13: 132569.0298 | V13: 209646.51
A14: 7412.9933 | B14: 16525.4594 | C14: 28585.2522 | D14: 40021.3387 | E14: 48186.0007 | F14: 51493.8283 | G14: 59207.3126 | H14: 71041.1856 | I14: 95654.0883 | J14: 118140.1679 | K14: 161644.731 | L14: 7205.606 | M14: 16767.4848 | N14: 27092.7254 | O14: 40021.3387 | P14: 48144.7439 | Q14: 51004.0413 | R14: 58853.8716 | S14: 69677.7243 | T14: 93544.9152 | U14: 115122.0206 | V14: 161497.3536
A15: 9164.7542 | B15: 18122.5623 | C15: 29739.1199 | D15: 40004.3506 | E15: 47505.5938 | F15: 50973.1538 | G15: 55430.4366 | H15: 71297.5516 | I15: 93765.54 | J15: 134678.6442 | K15: 220708.6374 | L15: 9164.7542 | M15: 18205.9585 | N15: 29082.7611 | O15: 39346.2268 | P15: 46600.3703 | Q15: 49393.4802 | R15: 52994.077 | S15: 67069.9392 | T15: 86939.4087 | U15: 118307.8428 | V15: 209646.51
A16: 8540.6066 | B16: 21078.4934 | C16: 34086.5316 | D16: 41918.712 | E16: 48029.5777 | F16: 53170.5768 | G16: 61774.944 | H16: 75894.9312 | I16: 92338.0975 | J16: 119812.5039 | K16: 183605.5029 | L16: 8599.9547 | M16: 21078.4934 | N16: 34086.5316 | O16: 41720.1497 | P16: 47888.8191 | Q16: 51626.2032 | R16: 60804.1949 | S16: 75453.6816 | T16: 90456.168 | U16: 119812.5039 | V16: 183162.709
A17: 8599.9547 | B17: 16525.4594 | C17: 29411.4921 | D17: 40594.9632 | E17: 48954.8781 | F17: 52972.0145 | G17: 61841.1314 | H17: 71994.2847 | I17: 84552.2484 | J17: 117682.5921 | K17: 184418.0641 | L17: 8599.9547 | M17: 16767.4848 | N17: 29669.6231 | O17: 40594.9632 | P17: 49216.9804 | Q17: 52994.077 | R17: 61774.944 | S17: 71808.9599 | T17: 84552.2484 | U17: 113268.7723 | V17: 164586.1008
A18: 9116.2167 | B18: 16664.2324 | C18: 29082.7611 | D18: 39346.2268 | E18: 44552.5309 | F18: 48861.7745 | G18: 52949.952 | H18: 66187.44 | I18: 80577.6926 | J18: 110149.1376 | K18: 207250.5246 | L18: 9116.2167 | M18: 17244.0344 | N18: 29082.7611 | O18: 39346.2268 | P18: 44786.8344 | Q18: 48537.456 | R18: 52949.952 | S18: 66187.44 | T18: 80439.8021 | U18: 108900.4013 | V18: 174739.2541
A19: 7191.486 | B19: 17649.984 | C19: 29522.9076 | D19: 39975.0075 | E19: 46387.0261 | F19: 48537.456 | G19: 55835.7244 | H19: 69677.7243 | I19: 83378.5244 | J19: 103221.0777 | K19: 164827.0231 | L19: 7412.9933 | M19: 17950.0337 | N19: 29762.2855 | O19: 40021.3387 | P19: 46432.6954 | Q19: 48537.456 | R19: 55835.7244 | S19: 68040.6883 | T19: 82844.6124 | U19: 101487.408 | V19: 153907.8605
A20: 8599.9547 | B20: 16050.013 | C20: 29522.9076 | D20: 39967.2856 | E20: 46331.208 | F20: 50743.704 | G20: 53689.0451 | H20: 67987.7384 | I20: 87267.0365 | J20: 108910.3294 | K20: 172087.344 | L20: 8599.9547 | M20: 16604.2224 | N20: 29669.6231 | O20: 40021.3387 | P20: 46331.208 | Q20: 50743.704 | R20: 53391.2016 | S20: 66628.6896 | T20: 82844.6124 | U20: 108812.1514 | V20: 164444.9009
A21: 9288.3041 | B21: 19752.9796 | C21: 28971.3456 | D21: 39712.464 | E21: 46331.208 | F21: 48910.3119 | G21: 52464.5774 | H21: 66187.44 | I21: 82504.8502 | J21: 117832.1757 | K21: 175213.3768 | L21: 9288.3041 | M21: 21078.4934 | N21: 28637.099 | O21: 39712.464 | P21: 46331.208 | Q21: 48634.5309 | R21: 51705.6281 | S21: 66187.44 | T21: 81631.176 | U21: 113935.0592 | V21: 172087.344
A22: 6863.8582 | B22: 18569.7688 | C22: 31769.9712 | D22: 40090.3943 | E22: 48219.7563 | F22: 52508.7024 | G22: 61631.5379 | H22: 71808.9599 | I22: 85476.6663 | J22: 123691.5291 | K22: 207056.3748 | L22: 5294.9952 | M22: 17649.984 | N22: 30887.472 | O22: 39888.9638 | P22: 46600.3703 | Q22: 51004.0413 | R22: 61571.9692 | S22: 71773.6599 | T22: 83378.5244 | U22: 115122.0206 | V22: 183573.0711
A23: 6155.4319 | B23: 17905.0263 | C23: 30746.2721 | D23: 39827.1889 | E23: 49216.9804 | F23: 53391.2016 | G23: 61736.114 | H23: 75608.119 | I23: 90899.6238 | J23: 133517.2752 | K23: 207117.0466 | L23: 6177.4944 | M23: 17950.0337 | N23: 30746.2721 | O23: 39888.9638 | P23: 49216.9804 | Q23: 53391.2016 | R23: 61704.3441 | S23: 75894.9312 | T23: 90456.168 | U23: 133407.4041 | V23: 207056.3748
A24: 6863.8582 | B24: 17589.0916 | C24: 29522.9076 | D24: 39827.1889 | E24: 46479.2472 | F24: 49014.0056 | G24: 52949.952 | H24: 65327.0033 | I24: 82319.5254 | J24: 119238.6588 | K24: 179696.0315 | L24: 5736.2448 | M24: 17649.984 | N24: 29762.2855 | O24: 39888.9638 | P24: 47037.2074 | Q24: 49393.4802 | R24: 52949.952 | S24: 64863.6912 | T24: 81326.7138 | U24: 113268.7723 | V24: 164586.1008
A25: 4416.9085 | B25: 13894.9499 | C25: 25531.805 | D25: 38754.0699 | E25: 44266.1599 | F25: 48541.8685 | G25: 53128.6581 | H25: 69727.1443 | I25: 85149.0384 | J25: 113368.7154 | K25: 207117.0466 | L25: 4416.9085 | M25: 14490.6369 | N25: 25658.6642 | O25: 39050.5896 | P25: 44124.96 | Q25: 48144.7439 | R25: 52949.952 | S25: 68040.6883 | T25: 82319.5254 | U25: 108966.5887 | V25: 179513.5748
A26: 9164.7542 | B26: 23075.1478 | C26: 33215.0636 | D26: 41962.837 | E26: 48542.3097 | F26: 52949.952 | G26: 61704.3441 | H26: 69727.1443 | I26: 92883.0408 | J26: 123803.6065 | K26: 179716.5496 | L26: 8886.7669 | M26: 22062.48 | N26: 31769.9712 | O26: 41962.837 | P26: 48537.456 | Q26: 52949.952 | R26: 59639.2959 | S26: 68040.6883 | T26: 88249.92 | U26: 119137.392 | V26: 174739.2541
A27: 7412.9933 | B27: 16767.4848 | C27: 27946.5434 | D27: 39261.2863 | E27: 48546.281 | F27: 52949.952 | G27: 60824.0511 | H27: 71808.9599 | I27: 92662.416 | J27: 123616.0754 | K27: 183162.709 | L27: 7412.9933 | M27: 17244.0344 | N27: 28231.1494 | O27: 40153.7136 | P27: 48546.281 | Q27: 52949.952 | R27: 60848.3198 | S27: 73909.308 | T27: 92229.9914 | U27: 118307.8428 | V27: 174739.2541
A28: 8895.1507 | B28: 20738.7312 | C28: 34095.3566 | D28: 41880.1027 | E28: 49861.2048 | F28: 53170.5768 | G28: 60407.0702 | H28: 71041.1856 | I28: 92883.0408 | J28: 125252.0083 | K28: 183162.709 | L28: 8895.5919 | M28: 20738.7312 | N28: 34095.3566 | O28: 41720.1497 | P28: 49861.2048 | Q28: 52994.077 | R28: 58853.8716 | S28: 68040.6883 | T28: 90456.168 | U28: 119812.5039 | V28: 179513.5748
A29: 6155.4319 | B29: 15020.1364 | C29: 25151.2272 | D29: 36103.0423 | E29: 43723.4229 | F29: 48537.456 | G29: 53172.783 | H29: 66187.44 | I29: 82584.2751 | J29: 118951.6259 | K29: 183162.709 | L29: 5294.9952 | M29: 15020.1364 | N29: 25151.2272 | O29: 36103.0423 | P29: 43723.4229 | Q29: 48537.456 | R29: 52949.952 | S29: 65750.6029 | T29: 82213.6255 | U29: 118140.1679 | V29: 164586.1008
A30: 8886.7669 | B30: 17244.0344 | C30: 30881.9564 | D30: 40021.3387 | E30: 46331.208 | F30: 50787.829 | G30: 58853.8716 | H30: 67987.7384 | I30: 87267.0365 | J30: 117682.5921 | K30: 183605.5029 | L30: 8886.7669 | M30: 17244.0344 | N30: 30865.4095 | O30: 40021.3387 | P30: 46331.208 | Q30: 49861.2048 | R30: 57583.0728 | S30: 67069.9392 | T30: 82319.5254 | U30: 113935.0592 | V30: 179513.5748
A31: 9947.531 | B31: 16742.9954 | C31: 30865.4095 | D31: 40440.5258 | E31: 46432.6954 | F31: 49201.5366 | G31: 57244.855 | H31: 66341.8774 | I31: 79420.5155 | J31: 97241.7043 | K31: 147545.0412 | L31: 9959.0035 | M31: 17244.0344 | N31: 30865.4095 | O31: 40153.7136 | P31: 46432.6954 | Q31: 48537.456 | R31: 55835.7244 | S31: 65349.0658 | T31: 79420.5155 | U31: 93544.9152 | V31: 134139.8784
A32: 9925.4685 | B32: 19087.7958 | C32: 29522.9076 | D32: 38203.3904 | E32: 44786.8344 | F32: 48378.6061 | G32: 53689.0451 | H32: 66628.6896 | I32: 79424.928 | J32: 102599.357 | K32: 179696.0315 | L32: 9959.0035 | M32: 19856.232 | N32: 29082.7611 | O32: 38203.3904 | P32: 44786.8344 | Q32: 48219.7563 | R32: 53347.0766 | S32: 66187.44 | T32: 79424.928 | U32: 100088.6468 | V32: 164586.1008
A33: 9925.4685 | B33: 23497.6443 | C33: 35929.8518 | D33: 44271.2342 | E33: 51229.0786 | F33: 60466.6389 | G33: 65529.7575 | H33: 81215.2983 | I33: 100088.6468 | J33: 132783.4771 | K33: 184221.708 | L33: 9288.3041 | M33: 24904.1274 | N33: 36103.0423 | O33: 43723.4229 | P33: 51626.2032 | Q33: 58853.8716 | R33: 64863.6912 | S33: 80991.3641 | T33: 100088.6468 | U33: 124494.1621 | V33: 183573.0711
A34: 5294.9952 | B34: 14490.6369 | C34: 25554.9706 | D34: 39913.2326 | E34: 46132.6457 | F34: 51004.0413 | G34: 59984.7944 | H34: 73922.5455 | I34: 92229.9914 | J34: 114113.1034 | K34: 164451.9609 | L34: 4416.9085 | M34: 14490.6369 | N34: 25243.8896 | O34: 39712.464 | P34: 45889.9584 | Q34: 49216.9804 | R34: 57583.0728 | S34: 71994.2847 | T34: 92229.9914 | U34: 113935.0592 | V34: 164444.9009
A35: 9105.1855 | B35: 16767.4848 | C35: 30746.2721 | D35: 41962.837 | E35: 48537.456 | F35: 51354.8347 | G35: 60460.6821 | H35: 72544.0817 | I35: 92338.0975 | J35: 115122.0206 | K35: 184221.708 | L35: 8886.7669 | M35: 17244.0344 | N35: 30746.2721 | O35: 41962.837 | P35: 48537.456 | Q35: 50973.1538 | R35: 55928.3868 | S35: 69677.7243 | T35: 88249.92 | U35: 111194.8992 | V35: 164444.9009
A36: 9116.2167 | B36: 19087.7958 | C36: 29592.4044 | D36: 40665.5631 | E36: 48186.0007 | F36: 50917.9976 | G36: 55430.4366 | H36: 70246.7157 | I36: 93544.9152 | J36: 117601.8434 | K36: 153907.8605 | L36: 9116.2167 | M36: 19167.8826 | N36: 29082.7611 | O36: 41159.7627 | P36: 48219.7563 | Q36: 50831.9539 | R36: 55098.8376 | S36: 69818.9242 | T36: 93544.9152 | U36: 117601.8434 | V36: 153554.8608
A37: 9925.4685 | B37: 17172.5519 | C37: 28535.6116 | D37: 40640.8532 | E37: 46715.0952 | F37: 51229.0786 | G37: 57583.0728 | H37: 71808.9599 | I37: 92229.9914 | J37: 132694.786 | K37: 185424.1132 | L37: 9288.3041 | M37: 17649.984 | N37: 28231.1494 | O37: 40594.9632 | P37: 46600.3703 | Q37: 48634.5309 | R37: 55928.3868 | S37: 69818.9242 | T37: 92229.9914 | U37: 132374.88 | V37: 183573.0711
A38: 7205.606 | B38: 16079.1354 | C38: 30887.472 | D38: 40440.5258 | E38: 48537.456 | F38: 51665.9157 | G38: 60848.3198 | H38: 71808.9599 | I38: 83271.5214 | J38: 112236.6895 | K38: 179696.0315 | L38: 6923.2062 | M38: 16767.4848 | N38: 30887.472 | O38: 41962.837 | P38: 48537.456 | Q38: 51626.2032 | R38: 60804.1949 | S38: 71773.6599 | T38: 82844.6124 | U38: 111194.8992 | V38: 174739.2541
A39: 7191.486 | B39: 17950.0337 | C39: 27946.5434 | D39: 40377.2065 | E39: 48144.7439 | F39: 50973.1538 | G39: 53689.0451 | H39: 66187.44 | I39: 80627.3332 | J39: 108812.1514 | K39: 183183.2271 | L39: 6923.2062 | M39: 17950.0337 | N39: 25989.6014 | O39: 39866.9014 | P39: 48144.7439 | Q39: 49393.4802 | R39: 52949.952 | S39: 65750.6029 | T39: 79424.928 | U39: 104099.6056 | V39: 174739.2541
A40: 6155.4319 | B40: 17649.984 | C40: 27070.663 | D40: 40440.0846 | E40: 48394.4911 | F40: 50917.9976 | G40: 53347.0766 | H40: 66628.6896 | I40: 94427.4144 | J40: 118533.5419 | K40: 183183.2271 | L40: 5736.2448 | M40: 17649.984 | N40: 27004.4755 | O40: 39972.8013 | P40: 48219.7563 | Q40: 51004.0413 | R40: 53347.0766 | S40: 66628.6896 | T40: 92662.416 | U40: 118140.1679 | V40: 183162.709
A41: 8886.7669 | B41: 17649.984 | C41: 30589.6285 | D41: 41159.7627 | E41: 46663.4689 | F41: 52067.4528 | G41: 58853.8716 | H41: 67987.7384 | I41: 92662.416 | J41: 119238.6588 | K41: 179696.0315 | L41: 8886.7669 | M41: 17649.984 | N41: 29762.2855 | O41: 41049.4503 | P41: 46600.3703 | Q41: 51004.0413 | R41: 57583.0728 | S41: 67003.7518 | T41: 92662.416 | U41: 119137.392 | V41: 179513.5748
A42: 9162.3273 | B42: 17844.1338 | C42: 30920.5657 | D42: 40881.7754 | E42: 47360.6433 | F42: 50831.9539 | G42: 55098.8376 | H42: 70515.4367 | I42: 92883.0408 | J42: 125676.2698 | K42: 211026.9593 | L42: 9116.2167 | M42: 17950.0337 | N42: 30746.2721 | O42: 40153.7136 | P42: 46715.0952 | Q42: 50743.704 | R42: 53347.0766 | S42: 67987.7384 | T42: 90456.168 | U42: 119137.392 | V42: 208269.8112
A43: 8895.5919 | B43: 18569.7688 | C43: 31108.0968 | D43: 40594.9632 | E43: 48537.456 | F43: 52508.7024 | G43: 59639.2959 | H43: 73913.9411 | I43: 94427.4144 | J43: 117682.5921 | K43: 184221.708 | L43: 8895.5919 | M43: 18633.9706 | N43: 31108.0968 | O43: 40153.7136 | P43: 48537.456 | Q43: 51626.2032 | R43: 55835.7244 | S43: 71773.6599 | T43: 90456.168 | U43: 113935.0592 | V43: 183573.0711
A44: 9105.1855 | B44: 18167.5698 | C44: 31063.9718 | D44: 40440.5258 | E44: 46663.4689 | F44: 50302.4544 | G44: 55928.3868 | H44: 68613.6509 | I44: 92779.3471 | J44: 115122.0206 | K44: 210939.3713 | L44: 9116.2167 | M44: 18205.9585 | N44: 30931.597 | O44: 40594.9632 | P44: 47888.8191 | Q44: 50743.704 | R44: 55928.3868 | S44: 67987.7384 | T44: 92229.9914 | U44: 115122.0206 | V44: 207056.3748
A45: 10139.2539 | B45: 19856.232 | C45: 31604.5026 | D45: 41116.5202 | E45: 48537.456 | F45: 50902.5539 | G45: 53689.0451 | H45: 66187.44 | I45: 82978.0904 | J45: 118307.8428 | K45: 172219.9395 | L45: 10148.7408 | M45: 19856.232 | N45: 31108.0968 | O45: 41036.2128 | P45: 48537.456 | Q45: 49861.2048 | R45: 53391.2016 | S45: 66187.44 | T45: 82844.6124 | U45: 118140.1679 | V45: 172087.344
A46: 8872.4263 | B46: 19856.232 | C46: 30887.472 | D46: 40394.1946 | E46: 48542.3097 | F46: 52949.952 | G46: 58154.9323 | H46: 69677.7243 | I46: 79424.928 | J46: 97241.7043 | K46: 164122.1268 | L46: 8599.9547 | M46: 19856.232 | N46: 30887.472 | O46: 39866.9014 | P46: 48537.456 | Q46: 52949.952 | R46: 55835.7244 | S46: 67069.9392 | T46: 79420.5155 | U46: 95654.0883 | V46: 164105.1387
A47: 10139.2539 | B47: 19608.691 | C47: 27092.7254 | D47: 37417.9661 | E47: 43683.7104 | F47: 47888.8191 | G47: 49296.4053 | H47: 61729.054 | I47: 77757.0045 | J47: 99034.7221 | K47: 161497.3536 | L47: 10148.7408 | M47: 20738.7312 | N47: 27092.7254 | O47: 37417.9661 | P47: 43683.7104 | Q47: 48144.7439 | R47: 49393.4802 | S47: 61704.3441 | T47: 79420.5155 | U47: 100088.6468 | V47: 152142.8621
A48: 9104.7442 | B48: 19087.7958 | C48: 31604.5026 | D48: 40021.3387 | E48: 47037.2074 | F48: 50973.1538 | G48: 54896.9659 | H48: 67003.7518 | I48: 88801.482 | J48: 132396.9425 | K48: 209646.51 | L48: 9116.2167 | M48: 18633.9706 | N48: 31108.0968 | O48: 40021.3387 | P48: 47037.2074 | Q48: 50973.1538 | R48: 54053.076 | S48: 66628.6896 | T48: 88249.92 | U48: 123991.1376 | V48: 208269.8112
A49: 8599.9547 | B49: 18205.9585 | C49: 29669.6231 | D49: 40393.7534 | E49: 48937.89 | F49: 52508.7024 | G49: 61149.6933 | H49: 71297.5516 | I49: 92229.9914 | J49: 123582.9817 | K49: 183162.709 | L49: 8599.9547 | M49: 18205.9585 | N49: 28231.1494 | O49: 39888.9638 | P49: 48634.5309 | Q49: 52067.4528 | R49: 60804.1949 | S49: 71041.1856 | T49: 90456.168 | U49: 118307.8428 | V49: 164105.1387
A50: 6177.4944 | B50: 14474.09 | C50: 25658.6642 | D50: 36970.0977 | E50: 44786.8344 | F50: 48541.8685 | G50: 53366.9329 | H50: 73909.308 | I50: 92338.0975 | J50: 119812.5039 | K50: 208490.8772 | L50: 6177.4944 | M50: 14525.9368 | N50: 25151.2272 | O50: 35238.1931 | P50: 44124.96 | Q50: 48537.456 | R50: 52949.952 | S50: 67069.9392 | T50: 90456.168 | U50: 119137.392 | V50: 183573.0711
A51: 9925.4685 | B51: 17905.0263 | C51: 29082.7611 | D51: 39881.242 | E51: 46331.208 | F51: 49393.4802 | G51: 52949.952 | H51: 67409.7014 | I51: 88249.92 | J51: 117707.7433 | K51: 179513.5748 | L51: 9288.3041 | M51: 17649.984 | N51: 27092.7254 | O51: 39712.464 | P51: 46331.208 | Q51: 49216.9804 | R51: 52067.4528 | S51: 66628.6896 | T51: 83378.5244 | U51: 115122.0206 | V51: 172087.344
A52: 8872.4263 | B52: 16002.358 | C52: 29379.5015 | D52: 39866.9014 | E52: 47501.4019 | F52: 50787.829 | G52: 61631.5379 | H52: 75453.6816 | I52: 93765.54 | J52: 126342.998 | K52: 184221.708 | L52: 8599.9547 | M52: 16767.4848 | N52: 30887.472 | O52: 39972.8013 | P52: 48537.456 | Q52: 50973.1538 | R52: 61571.9692 | S52: 75894.9312 | T52: 93544.9152 | U52: 124494.1621 | V52: 183573.0711
A53: 9150.8548 | B53: 22062.48 | C53: 31560.3776 | D53: 39584.281 | E53: 43652.8229 | F53: 46523.1516 | G53: 50040.7934 | H53: 67391.1689 | I53: 88249.92 | J53: 117601.8434 | K53: 184221.708 | L53: 8599.9547 | M53: 21078.4934 | N53: 30887.472 | O53: 39712.464 | P53: 43652.8229 | Q53: 46715.0952 | R53: 50831.9539 | S53: 67069.9392 | T53: 88249.92 | U53: 117601.8434 | V53: 183162.709
A54: 7412.9933 | B54: 17649.984 | C54: 28535.6116 | D54: 39827.1889 | E54: 44367.6473 | F54: 48585.9935 | G54: 53152.9268 | H54: 68040.6883 | I54: 82844.6124 | J54: 119137.392 | K54: 164444.9009 | L54: 7412.9933 | M54: 17649.984 | N54: 26474.976 | O54: 39712.464 | P54: 43723.4229 | Q54: 48537.456 | R54: 51626.2032 | S54: 65349.0658 | T54: 82319.5254 | U54: 117601.8434 | V54: 161497.3536
A55: 7402.6239 | B55: 16604.2224 | C55: 26022.6952 | D55: 39085.0071 | E55: 45117.3304 | F55: 48144.7439 | G55: 50987.0532 | H55: 66187.44 | I55: 85476.6663 | J55: 109087.7117 | K55: 179696.0315 | L55: 7412.9933 | M55: 17649.984 | N55: 26033.7264 | O55: 39103.5396 | P55: 44976.5717 | Q55: 48144.7439 | R55: 50831.9539 | S55: 64528.3415 | T55: 81631.176 | U55: 104293.7555 | V55: 174739.2541
A56: 9162.3273 | B56: 22808.8537 | C56: 37505.1129 | D56: 41962.837 | E56: 48144.7439 | F56: 52949.952 | G56: 61874.2252 | H56: 74923.079 | I56: 90899.6238 | J56: 118307.8428 | K56: 185363.4413 | L56: 9116.2167 | M56: 22940.5667 | N56: 35410.2804 | O56: 41962.837 | P56: 47888.8191 | Q56: 52949.952 | R56: 60804.1949 | S56: 73909.308 | T56: 88249.92 | U56: 117601.8434 | V56: 183573.0711
A57: 11015.355 | B57: 23206.8608 | C57: 34384.3751 | D57: 42004.7557 | E57: 52552.8274 | F57: 58218.4722 | G57: 63098.6928 | H57: 80018.1881 | I57: 101873.5014 | J57: 132374.88 | K57: 174977.9701 | L57: 11031.24 | M57: 23253.8539 | N57: 34417.4688 | O57: 42055.4994 | P57: 52949.952 | Q57: 58853.8716 | R57: 63098.6928 | S57: 80991.3641 | T57: 101487.408 | U57: 126342.998 | V57: 172087.344
A58: 10672.7247 | B58: 17950.0337 | C58: 29522.9076 | D58: 39712.464 | E58: 44687.5532 | F58: 48585.9935 | G58: 52021.3422 | H58: 66759.9614 | I58: 81326.7138 | J58: 123770.5128 | K58: 180890.7148 | L58: 10148.7408 | M58: 17950.0337 | N58: 29082.7611 | O58: 39346.2268 | P58: 44566.2096 | Q58: 48537.456 | R58: 51626.2032 | S58: 66187.44 | T58: 80991.3641 | U58: 113935.0592 | V58: 174739.2541
A59: 7412.9933 | B59: 17649.984 | C59: 32665.7079 | D59: 41480.7718 | E59: 48537.456 | F59: 52949.952 | G59: 61173.962 | H59: 73922.5455 | I59: 88249.92 | J59: 119812.5039 | K59: 172219.9395 | L59: 7412.9933 | M59: 18205.9585 | N59: 32665.7079 | O59: 41808.3996 | P59: 48537.456 | Q59: 52949.952 | R59: 60804.1949 | S59: 71994.2847 | T59: 84552.2484 | U59: 118307.8428 | V59: 164586.1008
A60: 7205.606 | B60: 15020.1364 | C60: 24874.3431 | D60: 34566.1699 | E60: 42191.8455 | F60: 47429.9195 | G60: 51705.6281 | H60: 66473.1491 | I60: 79678.6465 | J60: 104293.7555 | K60: 183215.6589 | L60: 7205.606 | M60: 15567.2859 | N60: 24784.99 | O60: 34086.5316 | P60: 41808.3996 | Q60: 46432.6954 | R60: 50973.1538 | S60: 64528.3415 | T60: 78718.9286 | U60: 98848.7354 | V60: 164105.1387
A61: 9162.3273 | B61: 18122.5623 | C61: 30835.6252 | D61: 40594.9632 | E61: 48590.8472 | F61: 52972.0145 | G61: 60804.1949 | H61: 71873.8236 | I61: 93765.54 | J61: 124066.5913 | K61: 184747.2363 | L61: 9116.2167 | M61: 18205.9585 | N61: 29762.2855 | O61: 40021.3387 | P61: 47037.2074 | Q61: 51705.6281 | R61: 59639.2959 | S61: 71773.6599 | T61: 90456.168 | U61: 118307.8428 | V61: 179513.5748
A62: 6885.9206 | B62: 18167.5698 | C62: 34095.3566 | D62: 40153.7136 | E62: 48029.5777 | F62: 51299.6785 | G62: 55877.4225 | H62: 68006.2709 | I62: 89244.9378 | J62: 119812.5039 | K62: 183573.0711 | L62: 6177.4944 | M62: 21078.4934 | N62: 34651.3311 | O62: 40665.5631 | P62: 48144.7439 | Q62: 51626.2032 | R62: 55835.7244 | S62: 67987.7384 | T62: 88249.92 | U62: 118307.8428 | V62: 174739.2541
A63: 8895.1507 | B63: 14520.6418 | C63: 24690.1214 | D63: 39103.5396 | E63: 43926.3977 | F63: 46110.5832 | G63: 49506.8814 | H63: 63407.5675 | I63: 75563.994 | J63: 100298.461 | K63: 164586.1008 | L63: 8886.7669 | M63: 14525.9368 | N63: 24048.1032 | O63: 39103.5396 | P63: 43683.7104 | Q63: 45889.9584 | R63: 48546.281 | S63: 61774.944 | T63: 75453.6816 | U63: 98328.0609 | V63: 164444.9009
A64: 8886.7669 | B64: 19023.594 | C64: 32825.6609 | D64: 41808.3996 | E64: 49186.0929 | F64: 55835.7244 | G64: 63098.6928 | H64: 76420.0182 | I64: 95745.6476 | J64: 132783.4771 | K64: 184747.2363 | L64: 8886.7669 | M64: 18205.9585 | N64: 30887.472 | O64: 41720.1497 | P64: 48537.456 | Q64: 53391.2016 | R64: 61774.944 | S64: 75894.9312 | T64: 95654.0883 | U64: 123991.1376 | V64: 183162.709
A65: 6885.9206 | B65: 15567.2859 | C65: 31604.5026 | D65: 40986.7928 | E65: 48394.4911 | F65: 52508.7024 | G65: 62407.0341 | H65: 73909.308 | I65: 94734.0829 | J65: 123770.5128 | K65: 208269.8112 | L65: 5736.2448 | M65: 15567.2859 | N65: 30865.4095 | O65: 40594.9632 | P65: 47888.8191 | Q65: 49861.2048 | R65: 60804.1949 | S65: 71041.1856 | T65: 88249.92 | U65: 115122.0206 | V65: 207056.3748
A66: 8540.6066 | B66: 17148.0626 | C66: 29739.1199 | D66: 39712.464 | E66: 46432.6954 | F66: 48537.456 | G66: 52464.5774 | H66: 66187.44 | I66: 82240.1004 | J66: 117601.8434 | K66: 179696.0315 | L66: 8886.7669 | M66: 17649.984 | N66: 29762.2855 | O66: 39712.464 | P66: 46600.3703 | Q66: 48537.456 | R66: 52067.4528 | S66: 65750.6029 | T66: 82213.6255 | U66: 117601.8434 | V66: 174739.2541
A67: 9116.2167 | B67: 20895.1542 | C67: 31063.9718 | D67: 41808.3996 | E67: 49203.081 | F67: 53523.5765 | G67: 61841.1314 | H67: 76544.6712 | I67: 94427.4144 | J67: 119137.392 | K67: 208269.8112 | L67: 9116.2167 | M67: 19856.232 | N67: 30887.472 | O67: 41808.3996 | P67: 48634.5309 | Q67: 52949.952 | R67: 60407.0702 | S67: 75894.9312 | T67: 92662.416 | U67: 113935.0592 | V67: 207056.3748
A68: 7132.1379 | B68: 17589.0916 | C68: 34086.5316 | D68: 39712.464 | E68: 46663.4689 | F68: 49186.0929 | G68: 52994.077 | H68: 66187.44 | I68: 79791.1652 | J68: 99665.4884 | K68: 165093.7585 | L68: 5736.2448 | M68: 17649.984 | N68: 31108.0968 | O68: 39712.464 | P68: 46600.3703 | Q68: 48546.281 | R68: 52949.952 | S68: 65349.0658 | T68: 79791.1652 | U68: 98848.7354 | V68: 164444.9009
A69: 9701.3137 | B69: 19087.7958 | C69: 30746.2721 | D69: 39584.281 | E69: 46387.0261 | F69: 50068.5921 | G69: 53347.0766 | H69: 67391.1689 | I69: 82450.7971 | J69: 111605.9232 | K69: 183183.2271 | L69: 9164.7542 | M69: 18633.9706 | N69: 27004.4755 | O69: 39103.5396 | P69: 46331.208 | Q69: 49216.9804 | R69: 52949.952 | S69: 66187.44 | T69: 80991.3641 | U69: 110149.1376 | V69: 172087.344
A70: 7402.6239 | B70: 17649.984 | C70: 33914.4443 | D70: 41880.1027 | E70: 50262.3007 | F70: 55513.6122 | G70: 60804.1949 | H70: 70246.7157 | I70: 85476.6663 | J70: 113268.7723 | K70: 172219.9395 | L70: 7205.606 | M70: 17649.984 | N70: 34086.5316 | O70: 41918.712 | P70: 49393.4802 | Q70: 55098.8376 | R70: 60804.1949 | S70: 69818.9242 | T70: 84552.2484 | U70: 111194.8992 | V70: 164586.1008
A71: 6923.2062 | B71: 14525.9368 | C71: 26761.7882 | D71: 39712.464 | E71: 44431.1872 | F71: 48546.281 | G71: 52949.952 | H71: 66187.44 | I71: 81041.0047 | J71: 108910.3294 | K71: 180890.7148 | L71: 6923.2062 | M71: 14525.9368 | N71: 26033.7264 | O71: 39712.464 | P71: 44124.96 | Q71: 48537.456 | R71: 51705.6281 | S71: 64863.6912 | T71: 80439.8021 | U71: 108900.4013 | V71: 164586.1008
A72: 8599.9547 | B72: 18167.5698 | C72: 33215.0636 | D72: 40906.4854 | E72: 47187.8941 | F72: 51983.6154 | G72: 60407.0702 | H72: 71808.9599 | I72: 92338.0975 | J72: 119238.6588 | K72: 208269.8112 | L72: 7412.9933 | M72: 17950.0337 | N72: 30887.472 | O72: 40153.7136 | P72: 45889.9584 | Q72: 50831.9539 | R72: 53391.2016 | S72: 67069.9392 | T72: 81326.7138 | U72: 115122.0206 | V72: 207056.3748
A73: 7205.606 | B73: 15020.1364 | C73: 26750.757 | D73: 41524.0142 | E73: 46331.208 | F73: 49186.0929 | G73: 52969.8082 | H73: 65489.6038 | I73: 78718.9286 | J73: 99244.5363 | K73: 179513.5748 | L73: 7205.606 | M73: 15567.2859 | N73: 27092.7254 | O73: 41720.1497 | P73: 46600.3703 | Q73: 49186.0929 | R73: 52949.952 | S73: 64528.3415 | T73: 77757.0045 | U73: 98186.861 | V73: 153907.8605
A74: 9701.3137 | B74: 25114.1622 | C74: 35091.4776 | D74: 41808.3996 | E74: 50869.9014 | F74: 53148.5143 | G74: 61704.3441 | H74: 73909.308 | I74: 92338.0975 | J74: 123770.5128 | K74: 161651.791 | L74: 9729.5537 | M74: 25151.2272 | N74: 35238.1931 | O74: 41808.3996 | P74: 48634.5309 | Q74: 52949.952 | R74: 60407.0702 | S74: 71808.9599 | T74: 90456.168 | U74: 119137.392 | V74: 161497.3536
A75: 6177.4944 | B75: 14946.0065 | C75: 25220.724 | D75: 39584.281 | E75: 48394.4911 | F75: 50988.5975 | G75: 58853.8716 | H75: 70246.7157 | I75: 92229.9914 | J75: 118432.2751 | K75: 183573.0711 | L75: 5736.2448 | M75: 15884.9856 | N75: 25658.6642 | O75: 39712.464 | P75: 48537.456 | Q75: 50973.1538 | R75: 55835.7244 | S75: 67003.7518 | T75: 88249.92 | U75: 115122.0206 | V75: 179513.5748
A76: 9707.4912 | B76: 17172.5519 | C76: 27004.4755 | D76: 39712.464 | E76: 44202.6199 | F76: 47888.8191 | G76: 52021.3422 | H76: 64645.7139 | I76: 82213.6255 | J76: 117682.5921 | K76: 161497.3536 | L76: 9729.5537 | M76: 17649.984 | N76: 26474.976 | O76: 39050.5896 | P76: 44124.96 | Q76: 47037.2074 | R76: 51626.2032 | S76: 63981.192 | T76: 79791.1652 | U76: 115122.0206 | V76: 157049.5576
A77: 9116.2167 | B77: 19023.594 | C77: 29669.6231 | D77: 40915.0898 | E77: 49216.9804 | F77: 51004.0413 | G77: 55928.3868 | H77: 67026.9174 | I77: 81075.2015 | J77: 118307.8428 | K77: 174977.9701 | L77: 9116.2167 | M77: 18205.9585 | N77: 29082.7611 | O77: 41049.4503 | P77: 49216.9804 | Q77: 51004.0413 | R77: 55928.3868 | S77: 67003.7518 | T77: 80991.3641 | U77: 110149.1376 | V77: 172087.344
A78: 9006.5662 | B78: 19856.232 | C78: 29094.8955 | D78: 40915.0898 | E78: 47888.8191 | F78: 50743.704 | G78: 59984.7944 | H78: 67391.1689 | I78: 86028.2283 | J78: 115122.0206 | K78: 164105.1387 | L78: 9116.2167 | M78: 19856.232 | N78: 27092.7254 | O78: 40665.5631 | P78: 47037.2074 | Q78: 49393.4802 | R78: 57583.0728 | S78: 67069.9392 | T78: 84552.2484 | U78: 115122.0206 | V78: 164105.1387
A79: 7412.9933 | B79: 22808.8537 | C79: 32665.7079 | D79: 39975.0075 | E79: 45232.4965 | F79: 48634.5309 | G79: 53366.9329 | H79: 70503.0817 | I79: 85149.0384 | J79: 118307.8428 | K79: 179716.5496 | L79: 7205.606 | M79: 19167.8826 | N79: 30746.2721 | O79: 39712.464 | P79: 43683.7104 | Q79: 47888.8191 | R79: 51626.2032 | S79: 66187.44 | T79: 81326.7138 | U79: 113935.0592 | V79: 174739.2541
A80: 7412.9933 | B80: 19752.9796 | C80: 33215.0636 | D80: 39972.8013 | E80: 44566.2096 | F80: 48144.7439 | G80: 53128.6581 | H80: 64645.7139 | I80: 82213.6255 | J80: 110617.0828 | K80: 164586.1008 | L80: 7412.9933 | M80: 19856.232 | N80: 31769.9712 | O80: 39972.8013 | P80: 44566.2096 | Q80: 48144.7439 | R80: 52949.952 | S80: 64528.3415 | T80: 81326.7138 | U80: 108812.1514 | V80: 164444.9009
A81: 10681.1084 | B81: 24048.1032 | C81: 34384.3751 | D81: 40640.8532 | E81: 48186.0007 | F81: 51315.1222 | G81: 55472.1347 | H81: 71773.6599 | I81: 93765.54 | J81: 123691.5291 | K81: 172087.344 | L81: 10713.5403 | M81: 24048.1032 | N81: 34417.4688 | O81: 40665.5631 | P81: 48537.456 | Q81: 50973.1538 | R81: 53347.0766 | S81: 71041.1856 | T81: 92229.9914 | U81: 119812.5039 | V81: 164586.1008
A82: 7402.6239 | B82: 16525.4594 | C82: 29669.6231 | D82: 40107.3824 | E82: 45836.7878 | F82: 48341.0999 | G82: 58853.8716 | H82: 71994.2847 | I82: 97185.2244 | J82: 123582.9817 | K82: 207117.0466 | L82: 7412.9933 | M82: 16604.2224 | N82: 27092.7254 | O82: 39712.464 | P82: 44786.8344 | Q82: 47888.8191 | R82: 52994.077 | S82: 67987.7384 | T82: 93544.9152 | U82: 117601.8434 | V82: 183162.709
A83: 9162.3273 | B83: 18569.7688 | C83: 31108.0968 | D83: 40004.3506 | E83: 48537.456 | F83: 52508.7024 | G83: 61774.944 | H83: 71786.0149 | I83: 93103.6656 | J83: 123549.888 | K83: 164827.0231 | L83: 8895.5919 | M83: 18205.9585 | N83: 30887.472 | O83: 39972.8013 | P83: 48144.7439 | Q83: 51983.6154 | R83: 60804.1949 | S83: 68040.6883 | T83: 92229.9914 | U83: 119137.392 | V83: 164444.9009
A84: 11903.3698 | B84: 24775.7238 | C84: 34651.3311 | D84: 44411.7722 | E84: 50792.2415 | F84: 52949.952 | G84: 61841.1314 | H84: 78964.484 | I84: 98222.161 | J84: 127251.0896 | K84: 209646.51 | L84: 10148.7408 | M84: 23540.6662 | N84: 34086.5316 | O84: 43652.8229 | P84: 48634.5309 | Q84: 52949.952 | R84: 60804.1949 | S84: 75453.6816 | T84: 93544.9152 | U84: 124494.1621 | V84: 207056.3748
A85: 9947.531 | B85: 18633.9706 | C85: 30887.472 | D85: 40153.7136 | E85: 46387.0261 | F85: 48590.406 | G85: 52418.4669 | H85: 66187.44 | I85: 82844.6124 | J85: 114113.1034 | K85: 185363.4413 | L85: 9729.5537 | M85: 18633.9706 | N85: 30887.472 | O85: 40153.7136 | P85: 45889.9584 | Q85: 48537.456 | R85: 51626.2032 | S85: 64863.6912 | T85: 81631.176 | U85: 110149.1376 | V85: 183162.709
A86: 8540.6066 | B86: 19087.7958 | C86: 27092.7254 | D86: 39584.281 | E86: 45232.4965 | F86: 49201.5366 | G86: 58508.3732 | H86: 69818.9242 | I86: 87267.0365 | J86: 115493.9941 | K86: 174739.2541 | L86: 7412.9933 | M86: 18633.9706 | N86: 27004.4755 | O86: 39050.5896 | P86: 45232.4965 | Q86: 49216.9804 | R86: 57583.0728 | S86: 68040.6883 | T86: 86939.4087 | U86: 115122.0206 | V86: 172087.344
A87: 8872.4263 | B87: 19752.9796 | C87: 32232.1802 | D87: 39712.464 | E87: 45721.1804 | F87: 48634.5309 | G87: 59984.7944 | H87: 73909.308 | I87: 93544.9152 | J87: 123549.888 | K87: 183573.0711 | L87: 7205.606 | M87: 18633.9706 | N87: 30865.4095 | O87: 39712.464 | P87: 45889.9584 | Q87: 48634.5309 | R87: 58853.8716 | S87: 73909.308 | T87: 92662.416 | U87: 119812.5039 | V87: 174739.2541
A88: 6133.3694 | B88: 17589.0916 | C88: 30835.6252 | D88: 39712.464 | E88: 44266.1599 | F88: 47590.9756 | G88: 53172.783 | H88: 69818.9242 | I88: 95654.0883 | J88: 120406.2052 | K88: 212793.2815 | L88: 6177.4944 | M88: 17649.984 | N88: 29669.6231 | O88: 39712.464 | P88: 43723.4229 | Q88: 46715.0952 | R88: 51004.0413 | S88: 67987.7384 | T88: 94427.4144 | U88: 119137.392 | V88: 207056.3748
A89: 8895.1507 | B89: 17950.0337 | C89: 28971.3456 | D89: 40440.5258 | E89: 48894.2063 | F89: 52994.077 | G89: 59207.3126 | H89: 66628.6896 | I89: 81189.9264 | J89: 110538.5404 | K89: 165093.7585 | L89: 8886.7669 | M89: 17649.984 | N89: 28231.1494 | O89: 39972.8013 | P89: 48537.456 | Q89: 52994.077 | R89: 58853.8716 | S89: 66628.6896 | T89: 81189.9264 | U89: 110149.1376 | V89: 164105.1387
A90: 7402.6239 | B90: 17244.0344 | C90: 30746.2721 | D90: 41947.3932 | E90: 51996.8529 | F90: 60665.2013 | G90: 63098.6928 | H90: 72548.7149 | I90: 93544.9152 | J90: 117707.7433 | K90: 183183.2271 | L90: 7412.9933 | M90: 17244.0344 | N90: 30746.2721 | O90: 41808.3996 | P90: 48634.5309 | Q90: 55928.3868 | R90: 61704.3441 | S90: 71808.9599 | T90: 92229.9914 | U90: 111194.8992 | V90: 179513.5748
A91: 9162.3273 | B91: 16664.2324 | C91: 30920.5657 | D91: 41908.7839 | E91: 48546.281 | F91: 53192.6393 | G91: 60460.6821 | H91: 67069.9392 | I91: 92338.0975 | J91: 126342.998 | K91: 179716.5496 | L91: 9116.2167 | M91: 17244.0344 | N91: 30887.472 | O91: 41962.837 | P91: 48546.281 | Q91: 52949.952 | R91: 59639.2959 | S91: 66628.6896 | T91: 82213.6255 | U91: 123770.5128 | V91: 174739.2541
A92: 6885.9206 | B92: 17649.984 | C92: 29739.1199 | D92: 39866.9014 | E92: 45889.9584 | F92: 48590.406 | G92: 59984.7944 | H92: 70246.7157 | I92: 88249.92 | J92: 113268.7723 | K92: 172087.344 | L92: 5736.2448 | M92: 17649.984 | N92: 29669.6231 | O92: 39712.464 | P92: 45514.8962 | Q92: 48537.456 | R92: 55928.3868 | S92: 67987.7384 | T92: 88249.92 | U92: 108900.4013 | V92: 164105.1387
A93: 9282.1266 | B93: 17589.0916 | C93: 30887.472 | D93: 39712.464 | E93: 48537.456 | F93: 52972.0145 | G93: 61774.944 | H93: 71786.0149 | I93: 85149.0384 | J93: 113935.0592 | K93: 172087.344 | L93: 8895.5919 | M93: 17649.984 | N93: 30887.472 | O93: 39103.5396 | P93: 48537.456 | Q93: 52949.952 | R93: 61571.9692 | S93: 71041.1856 | T93: 82844.6124 | U93: 108900.4013 | V93: 164105.1387
A94: 7412.9933 | B94: 14307.5183 | C94: 26761.7882 | D94: 39499.3404 | E94: 44976.5717 | F94: 48541.8685 | G94: 52021.3422 | H94: 69727.1443 | I94: 87267.0365 | J94: 115493.9941 | K94: 174739.2541 | L94: 7412.9933 | M94: 14380.3245 | N94: 26033.7264 | O94: 38203.3904 | P94: 44566.2096 | Q94: 48537.456 | R94: 51004.0413 | S94: 67069.9392 | T94: 84552.2484 | U94: 115122.0206 | V94: 164105.1387
A95: 7402.6239 | B95: 17172.5519 | C95: 29522.9076 | D95: 40594.9632 | E95: 46892.2569 | F95: 50917.9976 | G95: 61804.7283 | H95: 71873.8236 | I95: 83271.5214 | J95: 120373.1115 | K95: 179696.0315 | L95: 7205.606 | M95: 17649.984 | N95: 29082.7611 | O95: 40153.7136 | P95: 46331.208 | Q95: 49393.4802 | R95: 55928.3868 | S95: 68040.6883 | T95: 81631.176 | U95: 115122.0206 | V95: 164586.1008
A96: 8872.4263 | B96: 17649.984 | C96: 33790.8944 | D96: 40594.9632 | E96: 45963.8677 | F96: 50858.4289 | G96: 58853.8716 | H96: 66783.127 | I96: 79791.1652 | J96: 103031.7816 | K96: 179696.0315 | L96: 8599.9547 | M96: 18205.9585 | N96: 30931.597 | O96: 40153.7136 | P96: 44976.5717 | Q96: 49861.2048 | R96: 55928.3868 | S96: 66187.44 | T96: 79791.1652 | U96: 98186.861 | V96: 164105.1387
A97: 8886.7669 | B97: 17148.0626 | C97: 26033.7264 | D97: 37928.4919 | E97: 44791.9088 | F97: 48537.456 | G97: 51626.2032 | H97: 70154.9358 | I97: 92229.9914 | J97: 124066.5913 | K97: 210939.3713 | L97: 8886.7669 | M97: 17649.984 | N97: 26033.7264 | O97: 37417.9661 | P97: 44566.2096 | Q97: 48219.7563 | R97: 51626.2032 | S97: 68040.6883 | T97: 90456.168 | U97: 123991.1376 | V97: 209646.51
A98: 8530.2373 | B98: 16604.2224 | C98: 26938.2881 | D98: 39712.464 | E98: 44202.6199 | F98: 50095.0671 | G98: 53148.5143 | H98: 76181.7434 | I98: 93544.9152 | J98: 123770.5128 | K98: 183162.709 | L98: 7205.606 | M98: 16604.2224 | N98: 26033.7264 | O98: 39346.2268 | P98: 44124.96 | Q98: 48546.281 | R98: 52949.952 | S98: 74134.3453 | T98: 92229.9914 | U98: 123549.888 | V98: 174739.2541
A99: 7132.1379 | B99: 17517.6091 | C99: 30865.4095 | D99: 41116.5202 | E99: 48394.4911 | F99: 50973.1538 | G99: 53366.9329 | H99: 67026.9174 | I99: 86939.4087 | J99: 117707.7433 | K99: 207117.0466 | L99: 5736.2448 | M99: 17649.984 | N99: 30746.2721 | O99: 40594.9632 | P99: 48144.7439 | Q99: 49216.9804 | R99: 53347.0766 | S99: 66187.44 | T99: 81326.7138 | U99: 111194.8992 | V99: 207056.3748
A100: 9279.6997 | B100: 17649.984 | C100: 29739.1199 | D100: 39712.464 | E100: 46524.9166 | F100: 52025.5341 | G100: 60460.6821 | H100: 68006.2709 | I100: 89244.9378 | J100: 117601.8434 | K100: 172661.6304 | L100: 9116.2167 | M100: 17950.0337 | N100: 29669.6231 | O100: 39712.464 | P100: 46432.6954 | Q100: 51705.6281 | R100: 60407.0702 | S100: 67987.7384 | T100: 88249.92 | U100: 117601.8434 | V100: 172087.344
A101: 8895.1507 | B101: 18167.5698 | C101: 28971.3456 | D101: 40021.3387 | E101: 46387.0261 | F101: 48590.406 | G101: 54855.2678 | H101: 66628.6896 | I101: 80439.8021 | J101: 104806.4875 | K101: 147546.8062 | L101: 7412.9933 | M101: 18205.9585 | N101: 28231.1494 | O101: 40021.3387 | P101: 46331.208 | Q101: 48537.456 | R101: 52949.952 | S101: 66187.44 | T101: 79791.1652 | U101: 103031.7816 | V101: 141138.0971
A102: 8540.6066 | B102: 19087.7958 | C102: 30887.472 | D102: 40004.3506 | E102: 47037.2074 | F102: 51315.1222 | G102: 56788.6029 | H102: 71786.0149 | I102: 98186.861 | J102: 120373.1115 | K102: 183162.709 | L102: 7412.9933 | M102: 18633.9706 | N102: 30746.2721 | O102: 39866.9014 | P102: 46331.208 | Q102: 50743.704 | R102: 52994.077 | S102: 69677.7243 | T102: 94427.4144 | U102: 118307.8428 | V102: 174739.2541
A103: 7132.1379 | B103: 16002.358 | C103: 33398.1822 | D103: 41524.0142 | E103: 48594.8184 | F103: 52972.0145 | G103: 61774.944 | H103: 74923.079 | I103: 92662.416 | J103: 120373.1115 | K103: 207056.3748 | L103: 5736.2448 | M103: 16604.2224 | N103: 34086.5316 | O103: 41808.3996 | P103: 48634.5309 | Q103: 52949.952 | R103: 61704.3441 | S103: 74637.3698 | T103: 92229.9914 | U103: 118307.8428 | V103: 183573.0711
A104: 9105.1855 | B104: 20738.7312 | C104: 34255.3096 | D104: 41808.3996 | E104: 47888.8191 | F104: 51004.0413 | G104: 60651.3019 | H104: 79420.5155 | I104: 97352.8992 | J104: 132396.9425 | K104: 210939.3713 | L104: 8886.7669 | M104: 20738.7312 | N104: 34095.3566 | O104: 41159.7627 | P104: 46600.3703 | Q104: 50831.9539 | R104: 54053.076 | S104: 75894.9312 | T104: 96020.3255 | U104: 126342.998 | V104: 209646.51
A105: 9104.7442 | B105: 19087.7958 | C105: 34255.3096 | D105: 41524.0142 | E105: 47037.2074 | F105: 51354.8347 | G105: 58154.9323 | H105: 70154.9358 | I105: 92229.9914 | J105: 110538.5404 | K105: 172458.6555 | L105: 7412.9933 | M105: 18633.9706 | N105: 30931.597 | O105: 41049.4503 | P105: 46715.0952 | Q105: 50973.1538 | R105: 55098.8376 | S105: 67003.7518 | T105: 86939.4087 | U105: 108966.5887 | V105: 172087.344
A106: 8886.7669 | B106: 24674.457 | C106: 34700.9717 | D106: 43984.422 | E106: 51983.6154 | F106: 59690.0396 | G106: 61804.7283 | H106: 74923.079 | I106: 92558.7223 | J106: 119238.6588 | K106: 164961.163 | L106: 8886.7669 | M106: 24904.1274 | N106: 34651.3311 | O106: 43683.7104 | P106: 51626.2032 | Q106: 55928.3868 | R106: 61774.944 | S106: 74134.3453 | T106: 88249.92 | U106: 113935.0592 | V106: 164444.9009
A107: 6155.4319 | B107: 15884.9856 | C107: 28585.2522 | D107: 39712.464 | E107: 44687.5532 | F107: 48537.456 | G107: 52067.4528 | H107: 66473.1491 | I107: 80091.2149 | J107: 108910.3294 | K107: 157271.9474 | L107: 5736.2448 | M107: 16079.1354 | N107: 29082.7611 | O107: 39712.464 | P107: 44786.8344 | Q107: 48537.456 | R107: 51983.6154 | S107: 66187.44 | T107: 79791.1652 | U107: 104099.6056 | V107: 157049.5576
A108: 9151.2961 | B108: 17905.0263 | C108: 30746.2721 | D108: 39943.4582 | E108: 44566.2096 | F108: 48861.7745 | G108: 55472.1347 | H108: 67987.7384 | I108: 92229.9914 | J108: 124771.4875 | K108: 185492.9481 | L108: 8886.7669 | M108: 17950.0337 | N108: 30746.2721 | O108: 39888.9638 | P108: 44566.2096 | Q108: 48537.456 | R108: 53391.2016 | S108: 67069.9392 | T108: 92229.9914 | U108: 124494.1621 | V108: 184221.708
A109: 7412.9933 | B109: 18569.7688 | C109: 30835.6252 | D109: 39712.464 | E109: 45272.6502 | F109: 48537.456 | G109: 52969.8082 | H109: 68006.2709 | I109: 82844.6124 | J109: 115574.7427 | K109: 184807.9081 | L109: 7412.9933 | M109: 18205.9585 | N109: 30746.2721 | O109: 39712.464 | P109: 44976.5717 | Q109: 48537.456 | R109: 51705.6281 | S109: 67069.9392 | T109: 82319.5254 | U109: 115122.0206 | V109: 183162.709
A110: 8886.7669 | B110: 17649.984 | C110: 28535.6116 | D110: 36138.3422 | E110: 45514.8962 | F110: 48590.406 | G110: 52969.8082 | H110: 66628.6896 | I110: 88249.92 | J110: 118165.3191 | K110: 154287.3351 | L110: 8886.7669 | M110: 17649.984 | N110: 29082.7611 | O110: 37417.9661 | P110: 45514.8962 | Q110: 48634.5309 | R110: 52949.952 | S110: 66187.44 | T110: 88249.92 | U110: 117601.8434 | V110: 153907.8605
A111: 9282.1266 | B111: 18633.9706 | C111: 30887.472 | D111: 40486.4158 | E111: 46387.0261 | F111: 50787.829 | G111: 60526.2076 | H111: 71808.9599 | I111: 81776.7884 | J111: 99476.1923 | K111: 172087.344 | L111: 9164.7542 | M111: 18633.9706 | N111: 29762.2855 | O111: 40153.7136 | P111: 46331.208 | Q111: 50743.704 | R111: 60407.0702 | S111: 71808.9599 | T111: 81631.176 | U111: 98848.7354 | V111: 164444.9009
A112: 8872.4263 | B112: 20606.3563 | C112: 29762.2855 | D112: 39050.5896 | E112: 43683.7104 | F112: 46110.5832 | G112: 51661.9444 | H112: 66187.44 | I112: 81189.9264 | J112: 101719.064 | K112: 179716.5496 | L112: 8886.7669 | M112: 20738.7312 | N112: 29762.2855 | O112: 39050.5896 | P112: 43652.8229 | Q112: 45889.9584 | R112: 49393.4802 | S112: 64863.6912 | T112: 81189.9264 | U112: 100088.6468 | V112: 172087.344
A113: 8895.1507 | B113: 18205.9585 | C113: 29669.6231 | D113: 39261.2863 | E113: 43058.2391 | F113: 46331.208 | G113: 48581.1397 | H113: 66628.6896 | I113: 82213.6255 | J113: 111194.8992 | K113: 172219.9395 | L113: 7412.9933 | M113: 18205.9585 | N113: 28637.099 | O113: 39103.5396 | P113: 42307.0116 | Q113: 45514.8962 | R113: 48537.456 | S113: 66187.44 | T113: 81631.176 | U113: 108900.4013 | V113: 164444.9009
A114: 6177.4944 | B114: 21027.5291 | C114: 34285.0939 | D114: 41044.8172 | E114: 49186.0929 | F114: 53170.5768 | G114: 60848.3198 | H114: 71041.1856 | I114: 85149.0384 | J114: 110149.1376 | K114: 164827.0231 | L114: 6177.4944 | M114: 22940.5667 | N114: 34417.4688 | O114: 41049.4503 | P114: 49216.9804 | Q114: 52949.952 | R114: 60804.1949 | S114: 71041.1856 | T114: 84552.2484 | U114: 108966.5887 | V114: 157049.5576
A115: 8886.7669 | B115: 17649.984 | C115: 31052.9406 | D115: 41880.1027 | E115: 48537.456 | F115: 51983.6154 | G115: 61995.5688 | H115: 71873.8236 | I115: 96009.2942 | J115: 123991.1376 | K115: 179513.5748 | L115: 7412.9933 | M115: 17649.984 | N115: 28637.099 | O115: 40594.9632 | P115: 48537.456 | Q115: 51626.2032 | R115: 61571.9692 | S115: 69818.9242 | T115: 94427.4144 | U115: 123549.888 | V115: 172087.344
A116: 10681.1084 | B116: 22808.8537 | C116: 35956.3268 | D116: 44555.1784 | E116: 53188.2268 | F116: 60804.1949 | G116: 64179.7543 | H116: 73922.5455 | I116: 92883.0408 | J116: 120373.1115 | K116: 185363.4413 | L116: 10713.5403 | M116: 22062.48 | N116: 35410.2804 | O116: 44124.96 | P116: 52994.077 | Q116: 60526.2076 | R116: 63981.192 | S116: 73922.5455 | T116: 92662.416 | U116: 119137.392 | V116: 164586.1008
A117: 7412.9933 | B117: 15455.2085 | C117: 26364.6636 | D117: 39050.5896 | E117: 45031.9486 | F117: 48537.456 | G117: 55877.4225 | H117: 74596.113 | I117: 93544.9152 | J117: 119238.6588 | K117: 164961.163 | L117: 7412.9933 | M117: 15884.9856 | N117: 26033.7264 | O117: 39050.5896 | P117: 44786.8344 | Q117: 48537.456 | R117: 55098.8376 | S117: 73909.308 | T117: 92662.416 | U117: 113935.0592 | V117: 164105.1387
A118: 9150.8548 | B118: 18122.5623 | C118: 30881.9564 | D118: 39712.464 | E118: 44786.8344 | F118: 48537.456 | G118: 51830.7224 | H118: 65174.1103 | I118: 82240.1004 | J118: 118432.2751 | K118: 183162.709 | L118: 8886.7669 | M118: 18633.9706 | N118: 30865.4095 | O118: 39712.464 | P118: 44566.2096 | Q118: 47888.8191 | R118: 51626.2032 | S118: 63981.192 | T118: 81631.176 | U118: 117601.8434 | V118: 183162.709
A119: 9150.8548 | B119: 17649.984 | C119: 28231.1494 | D119: 39584.281 | E119: 48070.8345 | F119: 50988.5975 | G119: 61173.962 | H119: 75608.119 | I119: 92229.9914 | J119: 118432.2751 | K119: 179716.5496 | L119: 9164.7542 | M119: 17649.984 | N119: 28231.1494 | O119: 39103.5396 | P119: 47888.8191 | Q119: 50743.704 | R119: 60526.2076 | S119: 75453.6816 | T119: 88249.92 | U119: 115122.0206 | V119: 174739.2541
A120: 11672.5963 | B120: 19856.232 | C120: 33921.063 | D120: 43984.422 | E120: 50973.1538 | F120: 55513.6122 | G120: 61841.1314 | H120: 72544.0817 | I120: 92662.416 | J120: 117682.5921 | K120: 153554.8608 | L120: 11913.7392 | M120: 20738.7312 | N120: 34717.5185 | O120: 44566.2096 | P120: 50973.1538 | Q120: 57583.0728 | R120: 61841.1314 | S120: 73909.308 | T120: 92662.416 | U120: 117601.8434 | V120: 153554.8608
A121: 9288.3041 | B121: 17649.984 | C121: 27092.7254 | D121: 39346.2268 | E121: 46132.6457 | F121: 48925.7556 | G121: 60848.3198 | H121: 71041.1856 | I121: 87267.0365 | J121: 113935.0592 | K121: 152213.462 | L121: 9116.2167 | M121: 17649.984 | N121: 27004.4755 | O121: 39103.5396 | P121: 45514.8962 | Q121: 48537.456 | R121: 54053.076 | S121: 67987.7384 | T121: 86939.4087 | U121: 111194.8992 | V121: 141138.0971
A122: 8880.8101 | B122: 17589.0916 | C122: 28637.099 | D122: 41121.1533 | E122: 48029.5777 | F122: 51493.8283 | G122: 60460.6821 | H122: 72544.0817 | I122: 83671.9554 | J122: 108910.3294 | K122: 179513.5748 | L122: 8599.9547 | M122: 18633.9706 | N122: 28637.099 | O122: 41159.7627 | P122: 48144.7439 | Q122: 51004.0413 | R122: 59639.2959 | S122: 71808.9599 | T122: 83378.5244 | U122: 108966.5887 | V122: 174739.2541
A123: 9282.1266 | B123: 22062.48 | C123: 31769.9712 | D123: 40107.3824 | E123: 46331.208 | F123: 50302.4544 | G123: 53689.0451 | H123: 71808.9599 | I123: 92338.0975 | J123: 123803.6065 | K123: 183215.6589 | L123: 8599.9547 | M123: 22940.5667 | N123: 31769.9712 | O123: 40021.3387 | P123: 46331.208 | Q123: 49186.0929 | R123: 52949.952 | S123: 68040.6883 | T123: 88249.92 | U123: 115122.0206 | V123: 183162.709
A124: 8895.1507 | B124: 16767.4848 | C124: 29592.4044 | D124: 39480.808 | E124: 44786.8344 | F124: 48590.406 | G124: 53152.9268 | H124: 68040.6883 | I124: 89244.9378 | J124: 119238.6588 | K124: 184221.708 | L124: 8886.7669 | M124: 16767.4848 | N124: 28231.1494 | O124: 39050.5896 | P124: 44786.8344 | Q124: 48546.281 | R124: 52949.952 | S124: 67987.7384 | T124: 88249.92 | U124: 119137.392 | V124: 183162.709
A125: 5294.9952 | B125: 14401.2838 | C125: 26022.6952 | D125: 35860.5756 | E125: 43366.0107 | F125: 47463.0132 | G125: 51983.6154 | H125: 66759.9614 | I125: 90456.168 | J125: 120439.2989 | K125: 179513.5748 | L125: 5294.9952 | M125: 15567.2859 | N125: 26033.7264 | O125: 36138.3422 | P125: 43366.0107 | Q125: 47888.8191 | R125: 51983.6154 | S125: 66628.6896 | T125: 84552.2484 | U125: 118140.1679 | V125: 164444.9009
A126: 7205.606 | B126: 14474.09 | C126: 25243.8896 | D126: 36138.3422 | E126: 45889.9584 | F126: 49627.3425 | G126: 52994.077 | H126: 66341.8774 | I126: 81402.8293 | J126: 104984.7523 | K126: 161627.7429 | L126: 7205.606 | M126: 17649.984 | N126: 25243.8896 | O126: 38203.3904 | P126: 45889.9584 | Q126: 49393.4802 | R126: 52994.077 | S126: 66187.44 | T126: 81189.9264 | U126: 104099.6056 | V126: 161497.3536
A127: 6885.9206 | B127: 15020.1364 | C127: 25989.6014 | D127: 39346.2268 | E127: 46600.3703 | F127: 48541.8685 | G127: 51661.9444 | H127: 65327.0033 | I127: 86939.4087 | J127: 119812.5039 | K127: 164586.1008 | L127: 6177.4944 | M127: 15567.2859 | N127: 25989.6014 | O127: 39346.2268 | P127: 46600.3703 | Q127: 48537.456 | R127: 51004.0413 | S127: 64422.4416 | T127: 82319.5254 | U127: 113935.0592 | V127: 164444.9009
A128: 6923.2062 | B128: 15567.2859 | C128: 26474.976 | D128: 39346.2268 | E128: 43691.6529 | F128: 48537.456 | G128: 52949.952 | H128: 66628.6896 | I128: 81574.9167 | J128: 108966.5887 | K128: 164105.1387 | L128: 6923.2062 | M128: 17649.984 | N128: 27004.4755 | O128: 39346.2268 | P128: 43723.4229 | Q128: 48537.456 | R128: 52949.952 | S128: 66628.6896 | T128: 81326.7138 | U128: 101487.408 | V128: 161497.3536
A129: 4416.9085 | B129: 17414.3567 | C129: 28231.1494 | D129: 39584.281 | E129: 45889.9584 | F129: 49186.0929 | G129: 52949.952 | H129: 65903.4959 | I129: 80091.2149 | J129: 108812.1514 | K129: 142246.5161 | L129: 4416.9085 | M129: 18205.9585 | N129: 28231.1494 | O129: 39103.5396 | P129: 45889.9584 | Q129: 48537.456 | R129: 52067.4528 | S129: 64422.4416 | T129: 78718.9286 | U129: 98848.7354 | V129: 141138.0971
A130: 7205.606 | B130: 17905.0263 | C130: 30881.9564 | D130: 40440.5258 | E130: 48186.0007 | F130: 51705.6281 | G130: 59207.3126 | H130: 68006.2709 | I130: 87267.0365 | J130: 127247.7803 | K130: 183605.5029 | L130: 6177.4944 | M130: 17649.984 | N130: 29762.2855 | O130: 39972.8013 | P130: 45889.9584 | Q130: 50973.1538 | R130: 55098.8376 | S130: 66628.6896 | T130: 83378.5244 | U130: 115122.0206 | V130: 179513.5748
A131: 8540.6066 | B131: 17517.6091 | C131: 31063.9718 | D131: 40665.5631 | E131: 47037.2074 | F131: 50302.4544 | G131: 54135.3691 | H131: 73996.6754 | I131: 86939.4087 | J131: 115122.0206 | K131: 174977.9701 | L131: 8599.9547 | M131: 18633.9706 | N131: 30931.597 | O131: 41036.2128 | P131: 47037.2074 | Q131: 49861.2048 | R131: 53347.0766 | S131: 73909.308 | T131: 84552.2484 | U131: 111194.8992 | V131: 172087.344
A132: 6923.2062 | B132: 17517.6091 | C132: 28971.3456 | D132: 39712.464 | E132: 45117.3304 | F132: 49201.5366 | G132: 52949.952 | H132: 67069.9392 | I132: 81776.7884 | J132: 115574.7427 | K132: 172087.344 | L132: 6923.2062 | M132: 18205.9585 | N132: 29082.7611 | O132: 39712.464 | P132: 45889.9584 | Q132: 49393.4802 | R132: 52949.952 | S132: 66628.6896 | T132: 81631.176 | U132: 115122.0206 | V132: 164586.1008
A133: 8880.8101 | B133: 15561.9909 | C133: 25243.8896 | D133: 39103.5396 | E133: 44266.1599 | F133: 48537.456 | G133: 52021.3422 | H133: 65174.1103 | I133: 81631.176 | J133: 110422.7124 | K133: 152388.1969 | L133: 8599.9547 | M133: 15567.2859 | N133: 25989.6014 | O133: 39712.464 | P133: 44266.1599 | Q133: 48537.456 | R133: 51626.2032 | S133: 64528.3415 | T133: 80439.8021 | U133: 108966.5887 | V133: 152142.8621
A134: 9947.531 | B134: 19856.232 | C134: 32665.7079 | D134: 41720.1497 | E134: 47037.2074 | F134: 50873.8726 | G134: 55472.1347 | H134: 67003.7518 | I134: 84552.2484 | J134: 109169.5635 | K134: 175160.4268 | L134: 9729.5537 | M134: 19856.232 | N134: 32665.7079 | O134: 41720.1497 | P134: 47037.2074 | Q134: 49861.2048 | R134: 55098.8376 | S134: 66628.6896 | T134: 84552.2484 | U134: 108812.1514 | V134: 172087.344
A135: 10017.469 | B135: 21628.2904 | C135: 30887.472 | D135: 40906.4854 | E135: 46331.208 | F135: 48861.7745 | G135: 55835.7244 | H135: 68613.6509 | I135: 88801.482 | J135: 110538.5404 | K135: 184221.708 | L135: 10064.9034 | M135: 23253.8539 | N135: 30887.472 | O135: 40153.7136 | P135: 45889.9584 | Q135: 48537.456 | R135: 53391.2016 | S135: 67003.7518 | T135: 84552.2484 | U135: 108812.1514 | V135: 174739.2541
A136: 8599.9547 | B136: 16742.9954 | C136: 25803.1735 | D136: 39712.464 | E136: 48537.456 | F136: 51705.6281 | G136: 58508.3732 | H136: 70503.0817 | I136: 88249.92 | J136: 118140.1679 | K136: 164961.163 | L136: 8599.9547 | M136: 17649.984 | N136: 25243.8896 | O136: 39712.464 | P136: 48537.456 | Q136: 51705.6281 | R136: 55928.3868 | S136: 69818.9242 | T136: 88249.92 | U136: 118140.1679 | V136: 164586.1008
A137: 7351.2183 | B137: 15567.2859 | C137: 30920.5657 | D137: 40986.7928 | E137: 48537.456 | F137: 53148.5143 | G137: 60651.3019 | H137: 71786.0149 | I137: 88801.482 | J137: 118165.3191 | K137: 207056.3748 | L137: 5736.2448 | M137: 16604.2224 | N137: 30746.2721 | O137: 40594.9632 | P137: 48144.7439 | Q137: 51626.2032 | R137: 58853.8716 | S137: 71041.1856 | T137: 84552.2484 | U137: 115122.0206 | V137: 184221.708
A138: 7205.606 | B138: 16079.1354 | C138: 25554.9706 | D138: 36195.7047 | E138: 45514.8962 | F138: 48634.5309 | G138: 52464.5774 | H138: 66187.44 | I138: 79516.4873 | J138: 104128.7281 | K138: 164122.1268 | L138: 6923.2062 | M138: 16604.2224 | N138: 25658.6642 | O138: 38203.3904 | P138: 45514.8962 | Q138: 48537.456 | R138: 51705.6281 | S138: 65349.0658 | T138: 79424.928 | U138: 103031.7816 | V138: 147580.3412
A139: 8599.9547 | B139: 18985.2053 | C139: 36129.5172 | D139: 42682.0738 | E139: 51511.4783 | F139: 58853.8716 | G139: 65529.7575 | H139: 76181.7434 | I139: 98240.9141 | J139: 133407.4041 | K139: 208269.8112 | L139: 8599.9547 | M139: 17950.0337 | N139: 34717.5185 | O139: 42307.0116 | P139: 49393.4802 | Q139: 55928.3868 | R139: 61774.944 | S139: 75453.6816 | T139: 97516.1616 | U139: 132569.0298 | V139: 208269.8112
A140: 7402.6239 | B140: 19672.8928 | C140: 30920.5657 | D140: 41044.8172 | E140: 48542.3097 | F140: 53148.5143 | G140: 61774.944 | H140: 73913.9411 | I140: 86939.4087 | J140: 111194.8992 | K140: 164504.249 | L140: 7412.9933 | M140: 18633.9706 | N140: 30887.472 | O140: 40021.3387 | P140: 48537.456 | Q140: 52949.952 | R140: 59639.2959 | S140: 71808.9599 | T140: 82844.6124 | U140: 110149.1376 | V140: 161497.3536
A141: 8895.1507 | B141: 17649.984 | C141: 27092.7254 | D141: 37511.511 | E141: 42051.0869 | F141: 46110.5832 | G141: 48537.456 | H141: 62238.2561 | I141: 79791.1652 | J141: 111505.9802 | K141: 175160.4268 | L141: 8886.7669 | M141: 17649.984 | N141: 27092.7254 | O141: 38203.3904 | P141: 41962.837 | Q141: 45514.8962 | R141: 48537.456 | S141: 60526.2076 | T141: 79424.928 | U141: 110422.7124 | V141: 172087.344
A142: 7412.9933 | B142: 16635.1099 | C142: 28563.1897 | D142: 39261.2863 | E142: 43683.7104 | F142: 48537.456 | G142: 51705.6281 | H142: 68040.6883 | I142: 82450.7971 | J142: 132378.1894 | K142: 209711.153 | L142: 7412.9933 | M142: 16767.4848 | N142: 27004.4755 | O142: 39103.5396 | P142: 43683.7104 | Q142: 48219.7563 | R142: 50743.704 | S142: 66628.6896 | T142: 81631.176 | U142: 118140.1679 | V142: 209646.51
A143: 9162.3273 | B143: 15884.9856 | C143: 30865.4095 | D143: 39242.7538 | E143: 43705.5523 | F143: 46657.7327 | G143: 50258.3294 | H143: 64135.6294 | I143: 79953.3244 | J143: 108825.3888 | K143: 172458.6555 | L143: 9164.7542 | M143: 16079.1354 | N143: 30746.2721 | O143: 39050.5896 | P143: 43652.8229 | Q143: 46600.3703 | R143: 49861.2048 | S143: 61995.5688 | T143: 79791.1652 | U143: 108812.1514 | V143: 164444.9009
A144: 8880.8101 | B144: 14380.3245 | C144: 26033.7264 | D144: 39712.464 | E144: 48537.456 | F144: 53170.5768 | G144: 61804.7283 | H144: 71786.0149 | I144: 93086.0156 | J144: 120373.1115 | K144: 164961.163 | L144: 8895.5919 | M144: 15020.1364 | N144: 26033.7264 | O144: 39712.464 | P144: 48219.7563 | Q144: 51705.6281 | R144: 60804.1949 | S144: 67987.7384 | T144: 86939.4087 | U144: 118307.8428 | V144: 164105.1387
A145: 9162.3273 | B145: 18633.9706 | C145: 27004.4755 | D145: 37511.511 | E145: 47888.8191 | F145: 50787.829 | G145: 55928.3868 | H145: 67069.9392 | I145: 90456.168 | J145: 111505.9802 | K145: 154064.9453 | L145: 9116.2167 | M145: 18633.9706 | N145: 26474.976 | O145: 36103.0423 | P145: 46432.6954 | Q145: 49861.2048 | R145: 55835.7244 | S145: 67069.9392 | T145: 90456.168 | U145: 111194.8992 | V145: 153907.8605
A146: 6923.2062 | B146: 15381.0786 | C146: 28231.1494 | D146: 39999.2762 | E146: 45031.9486 | F146: 47463.0132 | G146: 51284.0141 | H146: 62381.6622 | I146: 81326.7138 | J146: 101719.064 | K146: 164444.9009 | L146: 6923.2062 | M146: 15884.9856 | N146: 28231.1494 | O146: 40153.7136 | P146: 45232.4965 | Q146: 47888.8191 | R146: 51004.0413 | S146: 61841.1314 | T146: 79424.928 | U146: 100088.6468 | V146: 164105.1387
A147: 9116.2167 | B147: 19856.232 | C147: 30887.472 | D147: 39812.8483 | E147: 48537.456 | F147: 52025.5341 | G147: 60585.7763 | H147: 75608.119 | I147: 98328.0609 | J147: 126342.998 | K147: 179513.5748 | L147: 9116.2167 | M147: 21078.4934 | N147: 30887.472 | O147: 39866.9014 | P147: 48537.456 | Q147: 51983.6154 | R147: 59639.2959 | S147: 74134.3453 | T147: 98186.861 | U147: 124494.1621 | V147: 172087.344
A148: 8540.6066 | B148: 18167.5698 | C148: 28869.8582 | D148: 40906.4854 | E148: 46892.2569 | F148: 50346.5794 | G148: 52949.952 | H148: 66341.8774 | I148: 88249.92 | J148: 119137.392 | K148: 164105.1387 | L148: 7412.9933 | M148: 17649.984 | N148: 27004.4755 | O148: 40665.5631 | P148: 46600.3703 | Q148: 48634.5309 | R148: 51983.6154 | S148: 64528.3415 | T148: 81189.9264 | U148: 113935.0592 | V148: 161497.3536
A149: 6923.2062 | B149: 16050.013 | C149: 25220.724 | D149: 34417.4688 | E149: 42307.0116 | F149: 46331.208 | G149: 48537.456 | H149: 58613.17 | I149: 76994.7458 | J149: 104293.7555 | K149: 161651.791 | L149: 6923.2062 | M149: 16079.1354 | N149: 25151.2272 | O149: 34417.4688 | P149: 42307.0116 | Q149: 46331.208 | R149: 48537.456 | S149: 55098.8376 | T149: 76181.7434 | U149: 98848.7354 | V149: 161497.3536
A150: 8599.9547 | B150: 17589.0916 | C150: 30589.6285 | D150: 40090.3943 | E150: 46331.208 | F150: 48541.8685 | G150: 53152.9268 | H150: 65489.6038 | I150: 81189.9264 | J150: 110538.5404 | K150: 183183.2271 | L150: 8599.9547 | M150: 17649.984 | N150: 29762.2855 | O150: 39972.8013 | P150: 45514.8962 | Q150: 48537.456 | R150: 52949.952 | S150: 63981.192 | T150: 80991.3641 | U150: 108812.1514 | V150: 179513.5748
A151: 8530.2373 | B151: 21078.4934 | C151: 30500.2755 | D151: 39712.464 | E151: 48537.456 | F151: 52508.7024 | G151: 61774.944 | H151: 74850.9346 | I151: 92883.0408 | J151: 133407.4041 | K151: 183605.5029 | L151: 7205.606 | M151: 21078.4934 | N151: 29082.7611 | O151: 39346.2268 | P151: 46715.0952 | Q151: 50831.9539 | R151: 60804.1949 | S151: 73922.5455 | T151: 92229.9914 | U151: 132396.9425 | V151: 183162.709
A152: 7412.9933 | B152: 17905.0263 | C152: 30887.472 | D152: 41918.712 | E152: 48029.5777 | F152: 51626.2032 | G152: 60824.0511 | H152: 70246.7157 | I152: 90456.168 | J152: 119137.392 | K152: 185363.4413 | L152: 7412.9933 | M152: 18205.9585 | N152: 30746.2721 | O152: 41720.1497 | P152: 47037.2074 | Q152: 49186.0929 | R152: 53391.2016 | S152: 67069.9392 | T152: 84552.2484 | U152: 117601.8434 | V152: 179513.5748
A153: 9707.4912 | B153: 20606.3563 | C153: 32441.7737 | D153: 41524.0142 | E153: 46524.9166 | F153: 48910.3119 | G153: 53347.0766 | H153: 69727.1443 | I153: 83378.5244 | J153: 115122.0206 | K153: 164105.1387 | L153: 9288.3041 | M153: 21078.4934 | N153: 31769.9712 | O153: 41159.7627 | P153: 46331.208 | Q153: 48546.281 | R153: 52949.952 | S153: 67003.7518 | T153: 82319.5254 | U153: 113268.7723 | V153: 157049.5576
A154: 8895.5919 | B154: 19856.232 | C154: 32770.5047 | D154: 41159.7627 | E154: 46387.0261 | F154: 48910.3119 | G154: 52994.077 | H154: 66628.6896 | I154: 82450.7971 | J154: 118165.3191 | K154: 164827.0231 | L154: 8895.5919 | M154: 19856.232 | N154: 30865.4095 | O154: 41036.2128 | P154: 46331.208 | Q154: 48537.456 | R154: 52949.952 | S154: 66187.44 | T154: 81189.9264 | U154: 110149.1376 | V154: 164444.9009
A155: 6923.2062 | B155: 19608.691 | C155: 31769.9712 | D155: 41962.837 | E155: 48634.5309 | F155: 51315.1222 | G155: 55928.3868 | H155: 73996.6754 | I155: 96009.2942 | J155: 132374.88 | K155: 208338.6461 | L155: 6923.2062 | M155: 19856.232 | N155: 31108.0968 | O155: 41962.837 | P155: 48537.456 | Q155: 51004.0413 | R155: 54053.076 | S155: 69818.9242 | T155: 92662.416 | U155: 119137.392 | V155: 179513.5748
A156: 9925.4685 | B156: 22062.48 | C156: 30920.5657 | D156: 40440.5258 | E156: 46331.208 | F156: 48866.187 | G156: 52949.952 | H156: 66187.44 | I156: 82584.2751 | J156: 120373.1115 | K156: 179513.5748 | L156: 9288.3041 | M156: 22062.48 | N156: 30931.597 | O156: 40594.9632 | P156: 45514.8962 | Q156: 48546.281 | R156: 52949.952 | S156: 65349.0658 | T156: 82213.6255 | U156: 118140.1679 | V156: 179513.5748
A157: 5736.2448 | B157: 15884.9856 | C157: 26364.6636 | D157: 40727.3381 | E157: 48360.7355 | F157: 51299.6785 | G157: 54523.6687 | H157: 66783.127 | I157: 83671.9554 | J157: 103191.9552 | K157: 142246.5161 | L157: 5736.2448 | M157: 15884.9856 | N157: 25989.6014 | O157: 39712.464 | P157: 48144.7439 | Q157: 49861.2048 | R157: 53391.2016 | S157: 65750.6029 | T157: 82213.6255 | U157: 100088.6468 | V157: 137731.6501
A158: 8895.5919 | B158: 17589.0916 | C158: 29739.1199 | D158: 40004.3506 | E158: 48219.7563 | F158: 49393.4802 | G158: 52949.952 | H158: 66187.44 | I158: 79813.2276 | J158: 102586.1195 | K158: 184221.708 | L158: 7412.9933 | M158: 17244.0344 | N158: 27004.4755 | O158: 39712.464 | P158: 47888.8191 | Q158: 48634.5309 | R158: 51626.2032 | S158: 61841.1314 | T158: 78718.9286 | U158: 100088.6468 | V158: 172087.344
A159: 7412.9933 | B159: 16002.358 | C159: 24784.99 | D159: 39584.281 | E159: 44431.1872 | F159: 46516.5328 | G159: 52067.4528 | H159: 70246.7157 | I159: 92338.0975 | J159: 125676.2698 | K159: 207056.3748 | L159: 7412.9933 | M159: 17244.0344 | N159: 24109.8781 | O159: 39346.2268 | P159: 43683.7104 | Q159: 46331.208 | R159: 50973.1538 | S159: 67069.9392 | T159: 88249.92 | U159: 123549.888 | V159: 183573.0711
A160: 9282.1266 | B160: 17649.984 | C160: 29522.9076 | D160: 40423.0965 | E160: 46331.208 | F160: 49861.2048 | G160: 54053.076 | H160: 68040.6883 | I160: 82371.3722 | J160: 109143.9711 | K160: 179513.5748 | L160: 8886.7669 | M160: 17649.984 | N160: 29082.7611 | O160: 40665.5631 | P160: 46432.6954 | Q160: 49861.2048 | R160: 54053.076 | S160: 68040.6883 | T160: 82844.6124 | U160: 110149.1376 | V160: 174739.2541
A161: 6923.2062 | B161: 17649.984 | C161: 28231.1494 | D161: 40440.0846 | E161: 44891.1899 | F161: 48537.456 | G161: 52067.4528 | H161: 63098.6928 | I161: 75563.994 | J161: 101908.3601 | K161: 164122.1268 | L161: 6177.4944 | M161: 17649.984 | N161: 28231.1494 | O161: 39712.464 | P161: 44786.8344 | Q161: 48537.456 | R161: 51626.2032 | S161: 61841.1314 | T161: 74637.3698 | U161: 100088.6468 | V161: 164105.1387
A162: 9164.7542 | B162: 16742.9954 | C162: 30746.2721 | D162: 39967.2856 | E162: 48537.456 | F162: 50973.1538 | G162: 55098.8376 | H162: 68613.6509 | I162: 79866.1776 | J162: 108900.4013 | K162: 161497.3536 | L162: 9164.7542 | M162: 17244.0344 | N162: 30746.2721 | O162: 39712.464 | P162: 48537.456 | Q162: 50973.1538 | R162: 53391.2016 | S162: 66628.6896 | T162: 79424.928 | U162: 108812.1514 | V162: 153907.8605
A163: 8895.5919 | B163: 16496.3369 | C163: 29762.2855 | D163: 37928.4919 | E163: 45387.8164 | F163: 48537.456 | G163: 52021.3422 | H163: 64459.5066 | I163: 84195.9393 | J163: 115493.9941 | K163: 164961.163 | L163: 8895.5919 | M163: 15884.9856 | N163: 29762.2855 | O163: 37417.9661 | P163: 44786.8344 | Q163: 48537.456 | R163: 50831.9539 | S163: 61841.1314 | T163: 79424.928 | U163: 113268.7723 | V163: 164444.9009
A164: 8540.6066 | B164: 19752.9796 | C164: 30887.472 | D164: 39888.9638 | E164: 45478.9344 | F164: 49216.9804 | G164: 55877.4225 | H164: 70154.9358 | I164: 82844.6124 | J164: 109143.9711 | K164: 165093.7585 | L164: 7412.9933 | M164: 19856.232 | N164: 30887.472 | O164: 39972.8013 | P164: 44566.2096 | Q164: 49216.9804 | R164: 55098.8376 | S164: 67069.9392 | T164: 81631.176 | U164: 98848.7354 | V164: 161497.3536
A165: 9279.6997 | B165: 19752.9796 | C165: 35108.0244 | D165: 41049.4503 | E165: 48219.7563 | F165: 52067.4528 | G165: 57583.0728 | H165: 68613.6509 | I165: 81224.1232 | J165: 114113.1034 | K165: 183605.5029 | L165: 9116.2167 | M165: 19167.8826 | N165: 34165.9565 | O165: 41049.4503 | P165: 47037.2074 | Q165: 51983.6154 | R165: 55835.7244 | S165: 67003.7518 | T165: 81189.9264 | U165: 113268.7723 | V165: 179513.5748
A166: 9729.5537 | B166: 24100.6119 | C166: 39712.464 | D166: 44709.6157 | E166: 51669.8869 | F166: 61210.1445 | G166: 65750.6029 | H166: 79777.2658 | I166: 94825.6422 | J166: 124494.1621 | K166: 184221.708 | L166: 9729.5537 | M166: 23540.6662 | N166: 39103.5396 | O166: 44566.2096 | P166: 50973.1538 | Q166: 57583.0728 | R166: 64422.4416 | S166: 78718.9286 | T166: 92662.416 | U166: 117601.8434 | V166: 179513.5748
A167: 6923.2062 | B167: 16448.682 | C167: 25151.2272 | D167: 35883.5206 | E167: 45232.4965 | F167: 50302.4544 | G167: 55928.3868 | H167: 67391.1689 | I167: 91007.73 | J167: 118165.3191 | K167: 183183.2271 | L167: 7205.606 | M167: 16767.4848 | N167: 26033.7264 | O167: 36226.5922 | P167: 45232.4965 | Q167: 49393.4802 | R167: 55098.8376 | S167: 66628.6896 | T167: 88249.92 | U167: 117601.8434 | V167: 174739.2541
A168: 10139.2539 | B168: 24904.1274 | C168: 35367.2586 | D168: 42020.1994 | E168: 48937.89 | F168: 53347.0766 | G168: 61910.6283 | H168: 71041.1856 | I168: 85476.6663 | J168: 113268.7723 | K168: 147896.7172 | L168: 10148.7408 | M168: 24904.1274 | N168: 34717.5185 | O168: 41962.837 | P168: 48219.7563 | Q168: 52067.4528 | R168: 61774.944 | S168: 69677.7243 | T168: 83378.5244 | U168: 111194.8992 | V168: 147545.0412
A169: 7412.9933 | B169: 17950.0337 | C169: 26033.7264 | D169: 39261.2863 | E169: 44266.1599 | F169: 48541.8685 | G169: 55430.4366 | H169: 67026.9174 | I169: 92338.0975 | J169: 117682.5921 | K169: 164105.1387 | L169: 7412.9933 | M169: 18205.9585 | N169: 26033.7264 | O169: 39346.2268 | P169: 44566.2096 | Q169: 48546.281 | R169: 55835.7244 | S169: 67003.7518 | T169: 92229.9914 | U169: 113935.0592 | V169: 157049.5576
A170: 7412.9933 | B170: 16604.2224 | C170: 29762.2855 | D170: 37000.9852 | E170: 44021.9282 | F170: 48537.456 | G170: 52021.3422 | H170: 64135.6294 | I170: 76440.9776 | J170: 98208.041 | K170: 154064.9453 | L170: 7412.9933 | M170: 16604.2224 | N170: 29082.7611 | O170: 36226.5922 | P170: 43683.7104 | Q170: 48537.456 | R170: 51626.2032 | S170: 61774.944 | T170: 74134.3453 | U170: 97516.1616 | V170: 152142.8621
A171: 10663.2378 | B171: 19856.232 | C171: 32276.3051 | D171: 40890.3798 | E171: 47360.6433 | F171: 51665.9157 | G171: 55430.4366 | H171: 67003.7518 | I171: 90899.6238 | J171: 118140.1679 | K171: 179716.5496 | L171: 9959.0035 | M171: 19856.232 | N171: 30865.4095 | O171: 40153.7136 | P171: 46600.3703 | Q171: 50831.9539 | R171: 55098.8376 | S171: 66628.6896 | T171: 86939.4087 | U171: 115122.0206 | V171: 174739.2541
A172: 5294.9952 | B172: 19856.232 | C172: 30881.9564 | D172: 41485.4049 | E172: 47505.5938 | F172: 52508.7024 | G172: 61774.944 | H172: 76265.1396 | I172: 97074.912 | J172: 133517.2752 | K172: 208269.8112 | L172: 5294.9952 | M172: 19856.232 | N172: 29082.7611 | O172: 40021.3387 | P172: 47037.2074 | Q172: 51705.6281 | R172: 58853.8716 | S172: 71994.2847 | T172: 94427.4144 | U172: 124494.1621 | V172: 179513.5748
A173: 9116.2167 | B173: 16525.4594 | C173: 29522.9076 | D173: 39812.8483 | E173: 44891.1899 | F173: 48378.6061 | G173: 53689.0451 | H173: 66187.44 | I173: 79816.537 | J173: 113368.7154 | K173: 172087.344 | L173: 9116.2167 | M173: 16767.4848 | N173: 29082.7611 | O173: 39866.9014 | P173: 44976.5717 | Q173: 48537.456 | R173: 54053.076 | S173: 66187.44 | T173: 80991.3641 | U173: 113268.7723 | V173: 172087.344
A174: 6155.4319 | B174: 17649.984 | C174: 30887.472 | D174: 40090.3943 | E174: 48537.456 | F174: 52025.5341 | G174: 60848.3198 | H174: 67003.7518 | I174: 82844.6124 | J174: 109185.0073 | K174: 164961.163 | L174: 5736.2448 | M174: 18205.9585 | N174: 30887.472 | O174: 39866.9014 | P174: 48144.7439 | Q174: 51004.0413 | R174: 60407.0702 | S174: 66187.44 | T174: 82319.5254 | U174: 104293.7555 | V174: 161497.3536
A175: 7191.486 | B175: 15561.9909 | C175: 29739.1199 | D175: 39888.9638 | E175: 46432.6954 | F175: 48537.456 | G175: 52464.5774 | H175: 66187.44 | I175: 82240.1004 | J175: 117682.5921 | K175: 183605.5029 | L175: 6923.2062 | M175: 15884.9856 | N175: 29762.2855 | O175: 39972.8013 | P175: 46715.0952 | Q175: 48546.281 | R175: 52949.952 | S175: 66187.44 | T175: 82213.6255 | U175: 115122.0206 | V175: 174739.2541
A176: 7191.486 | B176: 19023.594 | C176: 30835.6252 | D176: 40665.5631 | E176: 46600.3703 | F176: 50973.1538 | G176: 53391.2016 | H176: 67069.9392 | I176: 84596.3733 | J176: 119238.6588 | K176: 209646.51 | L176: 5736.2448 | M176: 19856.232 | N176: 30865.4095 | O176: 40665.5631 | P176: 46600.3703 | Q176: 50831.9539 | R176: 53347.0766 | S176: 66187.44 | T176: 82844.6124 | U176: 118307.8428 | V176: 183573.0711
A177: 7205.606 | B177: 17148.0626 | C177: 29094.8955 | D177: 40640.8532 | E177: 46600.3703 | F177: 50302.4544 | G177: 52969.8082 | H177: 66759.9614 | I177: 88249.92 | J177: 124494.1621 | K177: 164961.163 | L177: 6177.4944 | M177: 17649.984 | N177: 27092.7254 | O177: 40594.9632 | P177: 46331.208 | Q177: 48634.5309 | R177: 52949.952 | S177: 66187.44 | T177: 81631.176 | U177: 119812.5039 | V177: 164586.1008
A178: 8872.4263 | B178: 16604.2224 | C178: 29411.4921 | D178: 39712.464 | E178: 48537.456 | F178: 50988.5975 | G178: 53391.2016 | H178: 67987.7384 | I178: 92662.416 | J178: 132396.9425 | K178: 208269.8112 | L178: 8599.9547 | M178: 16767.4848 | N178: 28231.1494 | O178: 39712.464 | P178: 48537.456 | Q178: 48634.5309 | R178: 52949.952 | S178: 66187.44 | T178: 86939.4087 | U178: 123991.1376 | V178: 183162.709
A179: 8886.7669 | B179: 21863.9177 | C179: 30920.5657 | D179: 40440.5258 | E179: 45387.8164 | F179: 51229.0786 | G179: 57583.0728 | H179: 68613.6509 | I179: 96020.3255 | J179: 118140.1679 | K179: 184221.708 | L179: 8886.7669 | M179: 22940.5667 | N179: 30887.472 | O179: 40153.7136 | P179: 44976.5717 | Q179: 49393.4802 | R179: 54053.076 | S179: 67987.7384 | T179: 94427.4144 | U179: 115122.0206 | V179: 183162.709
A180: 8895.5919 | B180: 20606.3563 | C180: 32276.3051 | D180: 41877.8964 | E180: 46715.0952 | F180: 50346.5794 | G180: 60407.0702 | H180: 71041.1856 | I180: 93544.9152 | J180: 118307.8428 | K180: 183605.5029 | L180: 8895.5919 | M180: 20738.7312 | N180: 31108.0968 | O180: 41159.7627 | P180: 46715.0952 | Q180: 49861.2048 | R180: 57583.0728 | S180: 69818.9242 | T180: 92229.9914 | U180: 117601.8434 | V180: 183573.0711
A181: 8599.9547 | B181: 18569.7688 | C181: 29739.1199 | D181: 39261.2863 | E181: 44791.9088 | F181: 48541.8685 | G181: 52285.4301 | H181: 66187.44 | I181: 89244.9378 | J181: 120373.1115 | K181: 164586.1008 | L181: 8599.9547 | M181: 18205.9585 | N181: 29082.7611 | O181: 39103.5396 | P181: 44566.2096 | Q181: 48537.456 | R181: 51004.0413 | S181: 64422.4416 | T181: 86939.4087 | U181: 113268.7723 | V181: 164105.1387
A182: 9253.8866 | B182: 20606.3563 | C182: 31769.9712 | D182: 40665.5631 | E182: 49216.9804 | F182: 52972.0145 | G182: 60651.3019 | H182: 71041.1856 | I182: 92229.9914 | J182: 119238.6588 | K182: 172087.344 | L182: 8599.9547 | M182: 19167.8826 | N182: 31108.0968 | O182: 40153.7136 | P182: 49216.9804 | Q182: 52067.4528 | R182: 58853.8716 | S182: 69677.7243 | T182: 92229.9914 | U182: 119137.392 | V182: 172087.344
A183: 8872.4263 | B183: 16079.1354 | C183: 28251.0056 | D183: 37417.9661 | E183: 45889.9584 | F183: 48537.456 | G183: 51284.0141 | H183: 66187.44 | I183: 84552.2484 | J183: 117601.8434 | K183: 174977.9701 | L183: 7412.9933 | M183: 16079.1354 | N183: 25989.6014 | O183: 36138.3422 | P183: 43652.8229 | Q183: 48144.7439 | R183: 50973.1538 | S183: 61774.944 | T183: 81326.7138 | U183: 113935.0592 | V183: 174739.2541
A184: 7402.6239 | B184: 17517.6091 | C184: 28251.0056 | D184: 41044.8172 | E184: 47505.5938 | F184: 49216.9804 | G184: 55098.8376 | H184: 71773.6599 | I184: 92883.0408 | J184: 123582.9817 | K184: 208338.6461 | L184: 7205.606 | M184: 17649.984 | N184: 27004.4755 | O184: 40594.9632 | P184: 46715.0952 | Q184: 49216.9804 | R184: 52949.952 | S184: 69677.7243 | T184: 88249.92 | U184: 119812.5039 | V184: 179513.5748
A185: 9707.4912 | B185: 21914.882 | C185: 33215.0636 | D185: 39712.464 | E185: 46387.0261 | F185: 51299.6785 | G185: 54523.6687 | H185: 66628.6896 | I185: 82450.7971 | J185: 119238.6588 | K185: 183605.5029 | L185: 9288.3041 | M185: 20738.7312 | N185: 30887.472 | O185: 39712.464 | P185: 46331.208 | Q185: 49393.4802 | R185: 52994.077 | S185: 66187.44 | T185: 80991.3641 | U185: 115122.0206 | V185: 179513.5748
A186: 8540.6066 | B186: 17649.984 | C186: 29522.9076 | D186: 35032.7914 | E186: 42307.0116 | F186: 46600.3703 | G186: 51284.0141 | H186: 66759.9614 | I186: 88249.92 | J186: 111194.8992 | K186: 157271.9474 | L186: 7412.9933 | M186: 18205.9585 | N186: 28231.1494 | O186: 34651.3311 | P186: 42307.0116 | Q186: 45889.9584 | R186: 49393.4802 | S186: 64528.3415 | T186: 88249.92 | U186: 110422.7124 | V186: 157049.5576
A187: 8872.4263 | B187: 17649.984 | C187: 29762.2855 | D187: 40021.3387 | E187: 47374.3221 | F187: 50973.1538 | G187: 54523.6687 | H187: 67069.9392 | I187: 82584.2751 | J187: 132378.1894 | K187: 209646.51 | L187: 8599.9547 | M187: 17649.984 | N187: 29762.2855 | O187: 40021.3387 | P187: 46432.6954 | Q187: 50831.9539 | R187: 53391.2016 | S187: 66628.6896 | T187: 82213.6255 | U187: 126342.998 | V187: 208269.8112
A188: 5736.2448 | B188: 16525.4594 | C188: 30500.2755 | D188: 40665.5631 | E188: 46892.2569 | F188: 52067.4528 | G188: 60848.3198 | H188: 71309.9066 | I188: 92229.9914 | J188: 118289.7515 | K188: 174977.9701 | L188: 5736.2448 | M188: 16604.2224 | N188: 29669.6231 | O188: 40665.5631 | P188: 46600.3703 | Q188: 51004.0413 | R188: 58853.8716 | S188: 69818.9242 | T188: 88249.92 | U188: 117601.8434 | V188: 172087.344
A189: 7412.9933 | B189: 15020.1364 | C189: 26474.976 | D189: 40735.9424 | E189: 46715.0952 | F189: 49627.3425 | G189: 53689.0451 | H189: 71808.9599 | I189: 83671.9554 | J189: 114565.8255 | K189: 183573.0711 | L189: 6923.2062 | M189: 15020.1364 | N189: 26474.976 | O189: 39888.9638 | P189: 46331.208 | Q189: 49216.9804 | R189: 53347.0766 | S189: 67069.9392 | T189: 82844.6124 | U189: 110149.1376 | V189: 183162.709
A190: 8895.1507 | B190: 17244.0344 | C190: 33507.3915 | D190: 42550.8021 | E190: 48537.456 | F190: 51844.6218 | G190: 60407.0702 | H190: 72548.7149 | I190: 95654.0883 | J190: 124771.4875 | K190: 172219.9395 | L190: 7412.9933 | M190: 17649.984 | N190: 34086.5316 | O190: 42682.0738 | P190: 48634.5309 | Q190: 52067.4528 | R190: 60407.0702 | S190: 73922.5455 | T190: 95654.0883 | U190: 124494.1621 | V190: 172087.344
A191: 9919.291 | B191: 21863.9177 | C191: 31560.3776 | D191: 40440.5258 | E191: 48144.7439 | F191: 50302.4544 | G191: 54523.6687 | H191: 69727.1443 | I191: 90899.6238 | J191: 113546.7596 | K191: 164827.0231 | L191: 9164.7542 | M191: 20738.7312 | N191: 29762.2855 | O191: 40021.3387 | P191: 47888.8191 | Q191: 49393.4802 | R191: 52994.077 | S191: 67069.9392 | T191: 88249.92 | U191: 110422.7124 | V191: 164105.1387
A192: 8895.1507 | B192: 16525.4594 | C192: 27946.5434 | D192: 37000.9852 | E192: 44202.6199 | F192: 47888.8191 | G192: 52464.5774 | H192: 67069.9392 | I192: 82844.6124 | J192: 104971.5148 | K192: 164444.9009 | L192: 8599.9547 | M192: 16767.4848 | N192: 27092.7254 | O192: 36138.3422 | P192: 43683.7104 | Q192: 47037.2074 | R192: 50743.704 | S192: 66187.44 | T192: 82213.6255 | U192: 104099.6056 | V192: 164105.1387
A193: 11015.355 | B193: 19856.232 | C193: 34095.3566 | D193: 41849.2152 | E193: 48394.4911 | F193: 51844.6218 | G193: 60163.5005 | H193: 73996.6754 | I193: 92338.0975 | J193: 119832.3601 | K193: 185363.4413 | L193: 11031.24 | M193: 19856.232 | N193: 34095.3566 | O193: 41720.1497 | P193: 47037.2074 | Q193: 50973.1538 | R193: 54053.076 | S193: 71994.2847 | T193: 88249.92 | U193: 118140.1679 | V193: 183573.0711
A194: 8872.4263 | B194: 19856.232 | C194: 30887.472 | D194: 39712.464 | E194: 45721.6217 | F194: 48861.7745 | G194: 53152.9268 | H194: 71773.6599 | I194: 81224.1232 | J194: 110306.0019 | K194: 157271.9474 | L194: 8599.9547 | M194: 19856.232 | N194: 29669.6231 | O194: 39103.5396 | P194: 44124.96 | Q194: 48537.456 | R194: 52949.952 | S194: 69677.7243 | T194: 81189.9264 | U194: 108812.1514 | V194: 152142.8621
A195: 7412.9933 | B195: 21027.5291 | C195: 30746.2721 | D195: 39712.464 | E195: 45514.8962 | F195: 47888.8191 | G195: 51868.4492 | H195: 61798.1096 | I195: 75563.994 | J195: 95654.0883 | K195: 164827.0231 | L195: 6923.2062 | M195: 21078.4934 | N195: 30746.2721 | O195: 39712.464 | P195: 45889.9584 | Q195: 48144.7439 | R195: 51705.6281 | S195: 61704.3441 | T195: 73922.5455 | U195: 94427.4144 | V195: 161497.3536
A196: 9919.291 | B196: 17589.0916 | C196: 30500.2755 | D196: 41326.3344 | E196: 48537.456 | F196: 53347.0766 | G196: 61736.114 | H196: 71808.9599 | I196: 94072.2085 | J196: 123991.1376 | K196: 183162.709 | L196: 9164.7542 | M196: 17649.984 | N196: 28637.099 | O196: 40594.9632 | P196: 48537.456 | Q196: 52994.077 | R196: 60848.3198 | S196: 69677.7243 | T196: 92662.416 | U196: 119812.5039 | V196: 179513.5748
A197: 9162.3273 | B197: 19752.9796 | C197: 30835.6252 | D197: 40594.9632 | E197: 45514.8962 | F197: 48541.8685 | G197: 52021.3422 | H197: 68663.0709 | I197: 85149.0384 | J197: 120439.2989 | K197: 209646.51 | L197: 9164.7542 | M197: 19856.232 | N197: 29762.2855 | O197: 40021.3387 | P197: 44786.8344 | Q197: 48219.7563 | R197: 51705.6281 | S197: 65750.6029 | T197: 82319.5254 | U197: 113268.7723 | V197: 184221.708
A198: 10685.3003 | B198: 22808.8537 | C198: 34235.4533 | D198: 43313.0607 | E198: 52949.952 | F198: 61638.1566 | G198: 66386.0023 | H198: 82213.6255 | I198: 101487.408 | J198: 125676.2698 | K198: 164961.163 | L198: 10148.7408 | M198: 22062.48 | N198: 33398.1822 | O198: 42682.0738 | P198: 52949.952 | Q198: 60526.2076 | R198: 66187.44 | S198: 81189.9264 | T198: 100088.6468 | U198: 123991.1376 | V198: 164444.9009
A199: 5251.0909 | B199: 18633.9706 | C199: 31108.0968 | D199: 42218.9824 | E199: 49314.0553 | F199: 52949.952 | G199: 59984.7944 | H199: 71808.9599 | I199: 93765.54 | J199: 118140.1679 | K199: 183162.709 | L199: 4416.9085 | M199: 18633.9706 | N199: 30887.472 | O199: 42051.0869 | P199: 48537.456 | Q199: 51626.2032 | R199: 55835.7244 | S199: 68040.6883 | T199: 88249.92 | U199: 111194.8992 | V199: 174739.2541
A200: 7388.5039 | B200: 17589.0916 | C200: 30887.472 | D200: 41581.3767 | E200: 48360.7355 | F200: 52508.7024 | G200: 60671.1581 | H200: 75995.3155 | I200: 97516.1616 | J200: 119238.6588 | K200: 184221.708 | L200: 6923.2062 | M200: 17649.984 | N200: 30887.472 | O200: 41962.837 | P200: 48546.281 | Q200: 52949.952 | R200: 60848.3198 | S200: 76420.0182 | T200: 97516.1616 | U200: 119137.392 | V200: 183162.709
... 4300 more rows

Sheet CABoot
A1: ASECWTH | B1: CumWTH | C1: CumWTH/TotalW | D1: RHHINCOME (2018$) | F1: Percentile | G1: Unweighted | H1: Weighted | J1: BOOTSTRAP: | L1: RNG: | M1: ASECWTH | N1: RHHINCOME | P1: Percentile | Q1: Unweighted | R1: Weighted
A2: 1600.62 | B2: =A2 -> 1600.62 | C2: =B2/$B$5413 -> 0.0002017399141 | D2: -31103.6843 | F2: 5 | G2: =_xlfn.PERCENTILE.INC($D$2:$D$5413,F2/100) -> 12232.32141 | H2: =VLOOKUP(F2/100,$C$1:$D$5413,2,TRUE) -> 12160.83898 | J2: Resample --> | L2: =ROUND(RAND()*5412+0.5,0) -> 326 | M2: =OFFSET($A$1,L2,0) -> 1306.18 | N2: =OFFSET($D$1,L2,0) -> 13431.63782 | O2: min | P2: 5 | Q2: =_xlfn.PERCENTILE.INC($N$2:$N$5412,P2/100) -> 12368.22629 | R2: =PERCENTILEW($N$2:$N$5413,$M$2:$M$5413,P2) -> 12116.71402
A3: 1523.7 | B3: =A3+B2 -> 3124.32 | C3: 0.0003937849385 | D3: -26783.85072 | F3: 15 | G3: =_xlfn.PERCENTILE.INC($D$2:$D$5413,F3/100) -> 20320.42658 | H3: =VLOOKUP(F3/100,$C$1:$D$5413,2,TRUE) -> 20015.08186 | J3: from the | L3: =ROUND(RAND()*5412+0.5,0) -> 769 | M3: =OFFSET($A$1,L3,0) -> 1920.14 | N3: =OFFSET($D$1,L3,0) -> 19494.40733 | O3: =MIN(N:N) -> -31103.6843 | P3: 15 | Q3: =_xlfn.PERCENTILE.INC($N$2:$N$5412,P3/100) -> 19993.01938 | R3: =PERCENTILEW($N$2:$N$5413,$M$2:$M$5413,P3) -> 19538.53229
A4: 1753.72 | B4: =A4+B3 -> 4878.04 | C4: 0.0006148213632 | D4: -15443.736 | F4: 25 | G4: 30883.0595 | H4: 30887.472 | J4: <-- sample | L4: 3223 | M4: 1618.88 | N4: 69011.43744 | O4: max | P4: 25 | Q4: 30677.87844 | R4: 30305.02253
A5: 1597.24 | B5: 6475.28 | C5: 0.0008161352668 | D5: -13237.488 | F5: 35 | G5: 40360.43904 | H5: 40330.21344 | L5: 445 | M5: 1530.02 | N5: 14755.38662 | O5: =MAX(N:N) -> 649594.4236 | P5: 35 | Q5: 40219.90104 | R5: 40038.9887
A6: 1530.18 | B6: 8005.46 | C6: 0.001008997021 | D6: -11472.4896 | F6: 45 | G6: 51514.78768 | H6: 51855.65299 | L6: 1104 | M6: 1522.18 | N6: 26298.47616 | P6: 45 | Q6: 50765.76648 | R6: 51132.00365
A7: 1686.61 | B7: 9692.07 | C7: 0.001221574995 | D7: -8820.579504 | F7: 50 | G7: 57362.448 | H7: 57450.69792 | J7: Hit F9 | L7: 2582 | M7: 857.73 | N7: 54132.50093 | P7: 50 | Q7: 56038.6992 | R7: 56832.94848
A8: 1660.57 | B8: 11352.64 | C8: 0.001430870924 | D8: -6896.731248 | F8: 55 | G8: 63622.45608 | H8: 64051.79194 | J8: to resample | L8: 3201 | M8: 1019.74 | N8: 68393.688 | P8: 55 | Q8: 61810.24397 | R8: 62158.83115
A9: 1662.19 | B9: 13014.83 | C9: 0.001640371035 | D9: -5617.107408 | F9: 65 | G9: 76383.61513 | H9: 77218.68 | L9: 4144 | M9: 1719.88 | N9: 93297.81542 | P9: 65 | Q9: 75023.46324 | R9: 75563.994
A10: 1427.12 | B10: 14441.95 | C10: 0.001820243251 | D10: -4602.233328 | F10: 75 | G10: 91007.73 | H10: 92212.34141 | L10: 200 | M10: 1498.95 | N10: 10748.84026 | P10: 75 | Q10: 89562.63756 | R10: 90456.168
A11: 1564.25 | B11: 16006.2 | C11: 0.002017399141 | D11: -4412.496 | F11: 85 | G11: 111833.8286 | H11: 114164.509 | L11: 442 | M11: 866.2 | N11: 14684.78669 | P11: 85 | Q11: 110312.4 | R11: 111667.0363
A12: 720.06 | B12: 16726.26 | C12: 0.002108154499 | D12: 0 | F12: 95 | G12: 163409.0675 | H12: 166192.2493 | I12: =PERCENTILEW($D$2:$D$5413,$A$2:$A$5413,F12) -> 166192.2493 | L12: 4361 | M12: 1715.09 | N12: 101487.408 | P12: 95 | Q12: 160722.9606 | R12: 162026.8531
A13: 718.34 | B13: 17444.6 | C13: 0.002198693072 | D13: 0 | L13: 826 | M13: 681.1 | N13: 20650.48128
A14: 841.71 | B14: 18286.31 | C14: 0.002304781027 | D14: 0 | L14: 1925 | M14: 1642.08 | N14: 41036.2128
A15: 1893.71 | B15: 20180.02 | C15: 0.002543461596 | D15: 0 | L15: 2505 | M15: 773.02 | N15: 52949.952
A16: 1454.89 | B16: 21634.91 | C16: 0.002726833904 | D16: 0 | L16: 4848 | M16: 833.18 | N16: 130217.1695
A17: 1586.3 | B17: 23221.21 | C17: 0.002926768946 | D17: 0 | L17: 4658 | M17: 1547.9 | N17: 115166.1456
A18: 1598.95 | B18: 24820.16 | C18: 0.003128298375 | D18: 0 | L18: 5259 | M18: 1617.66 | N18: 192071.5384
A19: 1773.3 | B19: 26593.46 | C19: 0.003351802636 | D19: 0 | L19: 3130 | M19: 1330.93 | N19: 66628.6896
A20: 1628.7 | B20: 28222.16 | C20: 0.003557081714 | D20: 0 | L20: 2868 | M20: 1599.12 | N20: 61346.93189
A21: 1619.43 | B21: 29841.59 | C21: 0.003761192414 | D21: 0 | L21: 2018 | M21: 1374.6 | N21: 42730.61126
A22: 1537.54 | B22: 31379.13 | C22: 0.003954981813 | D22: 0 | L22: 205 | M22: 1542.66 | N22: 10854.74016
A23: 796.42 | B23: 32175.55 | C23: 0.00405536148 | D23: 0 | L23: 4848 | M23: 833.18 | N23: 130217.1695
A24: 1667.87 | B24: 33843.42 | C24: 0.00426557749 | D24: 0 | L24: 1921 | M24: 1477.05 | N24: 40930.3129
A25: 1539.76 | B25: 35383.18 | C25: 0.004459646695 | D25: 0 | L25: 4816 | M25: 1599.25 | N25: 127962.384
A26: 768.71 | B26: 36151.89 | C26: 0.004556533832 | D26: 0 | L26: 1804 | M26: 1524.35 | N26: 38927.03971
A27: 1598.65 | B27: 37750.54 | C27: 0.00475802545 | D27: 0 | L27: 1126 | M27: 783.61 | N27: 26474.976
A28: 1616.41 | B28: 39366.95 | C28: 0.004961755513 | D28: 0 | L28: 941 | M28: 764.99 | N28: 23015.57914
A29: 1428.2 | B29: 40795.15 | C29: 0.005141763851 | D29: 0 | L29: 4340 | M29: 1663.26 | N29: 100693.1587
A30: 1716.78 | B30: 42511.93 | C30: 0.005358144409 | D30: 0 | L30: 4796 | M30: 874.15 | N30: 126440.0729
A31: 3063.58 | B31: 45575.51 | C31: 0.005744273763 | D31: 0 | L31: 4003 | M31: 797.49 | N31: 89551.60632
A32: 1546.95 | B32: 47122.46 | C32: 0.005939249185 | D32: 0 | L32: 5015 | M32: 1574.72 | N32: 145612.368
A33: 2765.42 | B33: 49887.88 | C33: 0.006287798868 | D33: 0 | L33: 1857 | M33: 986.07 | N33: 39712.464
A34: 1703.57 | B34: 51591.45 | C34: 0.006502514456 | D34: 0 | L34: 532 | M34: 1015.6 | N34: 15664.3608
A35: 846.88 | B35: 52438.33 | C35: 0.006609254031 | D35: 4.412496 | L35: 4384 | M35: 1607.81 | N35: 101946.3076
A36: 1395.24 | B36: 53833.57 | C36: 0.006785108136 | D36: 26.474976 | L36: 3906 | M36: 1341.29 | N36: 86758.49635
A37: 2055.94 | B37: 55889.51 | C37: 0.007044235949 | D37: 172.087344 | L37: 3 | M37: 1753.72 | N37: -15443.736
A38: 1798.45 | B38: 57687.96 | C38: 0.00727091008 | D38: 229.449792 | L38: 3311 | M38: 779.16 | N38: 71032.36061
A39: 1798.45 | B39: 59486.41 | C39: 0.007497584212 | D39: 330.9372 | L39: 4551 | M39: 831.6 | N39: 109248.9885
A40: 1552.55 | B40: 61038.96 | C40: 0.00769326545 | D40: 551.562 | L40: 4469 | M40: 1881.87 | N40: 105467.4794
A41: 1569.18 | B41: 62608.14 | C41: 0.00789104271 | D41: 661.8744 | L41: 489 | M41: 1567.15 | N41: 15223.1112
A42: 2015.22 | B42: 64623.36 | C42: 0.00814503823 | D42: 926.62416 | L42: 2531 | M42: 1638.59 | N42: 53227.93925
A43: 890.17 | B43: 65513.53 | C43: 0.008257234017 | D43: 992.8116 | L43: 5152 | M43: 1618.92 | N43: 165468.6
A44: 1684.69 | B44: 67198.22 | C44: 0.008469569996 | D44: 1323.7488 | L44: 5035 | M44: 1614.21 | N44: 148815.8401
A45: 1734.55 | B45: 68932.77 | C45: 0.008688190261 | D45: 1323.7488 | L45: 2031 | M45: 1422.18 | N45: 43242.4608
A46: 1693.84 | B46: 70626.61 | C46: 0.008901679494 | D46: 1345.81128 | L46: 160 | M46: 1686.5 | N46: 9707.4912
A47: 821.56 | B47: 71448.17 | C47: 0.009005227771 | D47: 1588.49856 | L47: 622 | M47: 1504.9 | N47: 16921.92216
A48: 1495.12 | B48: 72943.29 | C48: 0.009193670612 | D48: 1985.6232 | L48: 4731 | M48: 784.67 | N48: 121025.9403
A49: 954.29 | B49: 73897.58 | C49: 0.009313947994 | D49: 2029.74816 | L49: 4978 | M49: 1583.86 | N49: 141098.3846
A50: 1652.41 | B50: 75549.99 | C50: 0.009522215448 | D50: 2073.87312 | L50: 2132 | M50: 1483.01 | N50: 44848.60934
A51: 1604.07 | B51: 77154.06 | C51: 0.009724390195 | D51: 2206.248 | L51: 2279 | M51: 701.17 | N51: 48105.03139
A52: 1616.96 | B52: 78771.02 | C52: 0.00992818958 | D52: 2510.710224 | L52: 555 | M52: 2230.41 | N52: 15884.9856
A53: 1702.58 | B53: 80473.6 | C53: 0.01014278039 | D53: 2629.847616 | L53: 579 | M53: 1424.67 | N53: 16180.62283
A54: 2058.2 | B54: 82531.8 | C54: 0.01040219305 | D54: 2691.62256 | L54: 4950 | M54: 1523.97 | N54: 138684.7493
A55: 837.42 | B55: 83369.22 | C55: 0.0105077403 | D55: 2779.87248 | L55: 41 | M55: 2015.22 | N55: 926.62416
A56: 1549.47 | B56: 84918.69 | C56: 0.01070303334 | D56: 2837.234928 | L56: 5061 | M56: 1529.98 | N56: 151591.3001
A57: 1549.81 | B57: 86468.5 | C57: 0.01089836923 | D57: 2837.234928 | L57: 3548 | M57: 1669.69 | N57: 77218.68
A58: 1830.27 | B58: 88298.77 | C58: 0.01112905391 | D58: 2868.1224 | L58: 4401 | M58: 1833.26 | N58: 102656.7194
A59: 1765.98 | B59: 90064.75 | C59: 0.01135163557 | D59: 3088.7472 | L59: 2200 | M59: 875.95 | N59: 46348.85798
A60: 1598.42 | B60: 91663.17 | C60: 0.0115530982 | D60: 3088.7472 | L60: 5144 | M60: 1507.7 | N60: 163871.2764
A61: 1447.18 | B61: 93110.35 | C61: 0.01173549875 | D61: 3397.62192 | L61: 55 | M61: 1549.47 | N61: 2837.234928
A62: 1565.54 | B62: 94675.89 | C62: 0.01193281723 | D62: 3441.74688 | L62: 734 | M62: 1558.64 | N62: 18686.92056
A63: 821.4 | B63: 95497.29 | C63: 0.01203634534 | D63: 3529.9968 | L63: 371 | M63: 1426.91 | N63: 13947.89986
A64: 1042.48 | B64: 96539.77 | C64: 0.01216773807 | D64: 3582.946752 | L64: 4997 | M64: 1542.66 | N64: 142783.9581
A65: 220.94 | B65: 96760.71 | C65: 0.01219558504 | D65: 3640.3092 | L65: 4549 | M65: 1555.19 | N65: 109081.3136
A66: 1617.41 | B66: 98378.12 | C66: =B66/$B$5413 -> 0.01239944114 | D66: 3830.046528 | L66: 5124 | M66: 1760.87 | N66: 160292.7422
A67: 1569.33 | B67: 99947.45 | C67: 0.0125972373 | D67: 3834.459024 | L67: =ROUND(RAND()*5412+0.5,0) -> 2646 | M67: =OFFSET($A$1,L67,0) -> 1674.67 | N67: =OFFSET($D$1,L67,0) -> 55866.61186
A68: 1459.97 | B68: =A68+B67 -> 101407.42 | C68: 0.01278124989 | D68: 3971.2464 | L68: 4638 | M68: 1833.26 | N68: 114438.0838
A69: 1669.99 | B69: 103077.41 | C69: 0.0129917331 | D69: 3971.2464 | L69: 1207 | M69: 1274.05 | N69: 27834.02477
A70: 1228.41 | B70: 104305.82 | C70: 0.01314656018 | D70: 3971.2464 | L70: 4748 | M70: 1558.07 | N70: 122649.7388
A71: 1709.83 | B71: 106015.65 | C71: 0.01336206477 | D71: 4324.24608 | L71: 3691 | M71: 794.23 | N71: 80836.92672
A72: 1726.59 | B72: 107742.24 | C72: 0.01357968177 | D72: 4324.24608 | L72: 2840 | M72: 2170.38 | N72: 60451.1952
A73: 789.5 | B73: 108531.74 | C73: 0.01367918925 | D73: 4412.496 | L73: 3741 | M73: 852.73 | N73: 82138.61304
A74: 1626.84 | B74: 110158.58 | C74: 0.0138842339 | D74: 4412.496 | L74: 3744 | M74: 1512.07 | N74: 82195.97549
A75: 1657.25 | B75: 111815.83 | C75: 0.01409311138 | D75: 4412.496 | L75: 3694 | M75: 1624.35 | N75: 81026.66405
A76: 1468.77 | B76: 113284.6 | C76: 0.0142782331 | D76: 4483.095936 | L76: 1514 | M76: 1413.75 | N76: 33548.20709
A77: 2194.54 | B77: 115479.14 | C77: 0.01455482987 | D77: 4588.99584 | L77: 3251 | M77: 1546.26 | N77: 69717.4368
A78: 1604.63 | B78: 117083.77 | C78: 0.01475707519 | D78: 4765.49568 | L78: 3032 | M78: 1643.12 | N78: 65040.19104
A79: 1851.78 | B79: 118935.55 | C79: 0.01499047096 | D79: 4853.7456 | L79: 4719 | M79: 1863.36 | N79: 119666.8915
A80: 1628.22 | B80: 120563.77 | C80: 0.01519568954 | D80: 4928.758032 | L80: 410 | M80: 1651.21 | N80: 14318.54952
A81: 730.71 | B81: 121294.48 | C81: 0.01528778721 | D81: 5122.907856 | L81: 3305 | M81: 2076.95 | N81: 70877.92325
A82: 1485.4 | B82: 122779.88 | C82: 0.01547500496 | D82: 5136.145344 | L82: 3565 | M82: 1173.08 | N82: 77783.47949
A83: 1351.03 | B83: 124130.91 | C83: 0.0156452869 | D83: 5259.695232 | L83: 2789 | M83: 1714.62 | N83: 59145.09638
A84: 1695.32 | B84: 125826.23 | C84: 0.01585896267 | D84: 5294.9952 | L84: 196 | M84: 1864.69 | N84: 10642.94035
A85: 1536.13 | B85: 127362.36 | C85: 0.01605257435 | D85: 5294.9952 | L85: 1484 | M85: 868.74 | N85: 32886.33269
A86: 1654.75 | B86: 129017.11 | C86: 0.01626113674 | D86: 5436.195072 | L86: 1860 | M86: 1798.79 | N86: 39712.464
A87: 1506.33 | B87: 130523.44 | C87: 0.01645099247 | D87: 5559.74496 | L87: 7 | M87: 1660.57 | N87: -6896.731248
A88: 1625.76 | B88: 132149.2 | C88: 0.016655901 | D88: 5630.344896 | L88: 3051 | M88: 836.78 | N88: 65622.64051
A89: 1664.53 | B89: 133813.73 | C89: 0.01686569604 | D89: 5661.232368 | L89: 5386 | M89: 2500.17 | N89: 296506.4937
A90: 1042.25 | B90: 134855.98 | C90: 0.01699705977 | D90: 5740.657296 | L90: 527 | M90: 1542.47 | N90: 15633.47333
A91: 1422.73 | B91: 136278.71 | C91: 0.01717637868 | D91: 5740.657296 | L91: 834 | M91: 1516.19 | N91: 20910.81854
A92: 1494.43 | B92: 137773.14 | C92: 0.01736473455 | D92: 5775.957264 | L92: 3593 | M92: 760.28 | N92: 78590.96626
A93: 1522.18 | B93: 139295.32 | C93: 0.017556588 | D93: 5780.36976 | L93: 1461 | M93: 835.54 | N93: 32564.22048
A94: 1385.02 | B94: 140680.34 | C94: 0.01773115399 | D94: 5824.49472 | L94: 4693 | M94: 1773.98 | N94: 117998.968
A95: 1252.09 | B95: 141932.43 | C95: 0.01788896567 | D95: 5828.907216 | L95: 1487 | M95: 1125.08 | N95: 32952.52013
A96: 1837.93 | B96: 143770.36 | C96: 0.01812061581 | D96: 5925.982128 | L96: 10 | M96: 1564.25 | N96: -4412.496
A97: 1752.11 | B97: 145522.47 | C97: 0.01834144931 | D97: 6177.4944 | L97: 4608 | M97: 1505.98 | N97: 112518.648
A98: 1274.05 | B98: 146796.52 | C98: 0.01850202879 | D98: 6195.144384 | L98: 4384 | M98: 1607.81 | N98: 101946.3076
A99: 796.83 | B99: 147593.35 | C99: 0.01860246014 | D99: 6252.506832 | L99: 4120 | M99: 1557.21 | N99: 92662.416
A100: 1388.32 | B100: 148981.67 | C100: 0.01877744205 | D100: 6353.99424 | L100: 540 | M100: 1596.26 | N100: 15677.59829
A101: 1576.23 | B101: 150557.9 | C101: 0.01897610789 | D101: 6393.706704 | L101: 2008 | M101: 2117.63 | N101: 42540.87394
A102: 1684.1 | B102: 152242 | C102: 0.0191883695 | D102: 6521.669088 | L102: 4973 | M102: 1629.35 | N102: 140357.0853
A103: 1563.2 | B103: 153805.2 | C103: 0.01938539305 | D103: 6609.919008 | L103: 4827 | M103: 1501.97 | N103: 128606.6084
A104: 1581.64 | B104: 155386.84 | C104: 0.01958474075 | D104: 6618.744 | L104: 4635 | M104: 1476.47 | N104: 114283.6464
A105: 1491.24 | B105: 156878.08 | C105: 0.01977269457 | D105: 6618.744 | L105: 2695 | M105: 1587.76 | N105: 57185.94816
A106: 1491.66 | B106: 158369.74 | C106: 0.01996070131 | D106: 6618.744 | L106: 2067 | M106: 859.89 | N106: 44124.96
A107: 1669.69 | B107: 160039.43 | C107: 0.02017114671 | D107: 6724.643904 | L107: 2707 | M107: 832.62 | N107: 57362.448
A108: 2225.38 | B108: 162264.81 | C108: 0.02045163051 | D108: 6746.706384 | L108: 2279 | M108: 701.17 | N108: 48105.03139
A109: 838.32 | B109: 163103.13 | C109: 0.02055729119 | D109: 6751.11888 | L109: 3531 | M109: 1637.88 | N109: 76777.4304
A110: 1730.73 | B110: 164833.86 | C110: 0.02077542999 | D110: 6826.131312 | L110: 1304 | M110: 1658.89 | N110: 29740.22304
A111: 1486.02 | B111: 166319.88 | C111: 0.02096272588 | D111: 6857.018784 | L111: 3428 | M111: 1618.18 | N111: 74412.33254
A112: 1581.86 | B112: 167901.74 | C112: 0.02116210131 | D112: 6861.43128 | L112: 5281 | M112: 1504.39 | N112: 201712.8421
A113: 2166.89 | B113: 170068.63 | C113: 0.0214352131 | D113: 7059.9936 | L113: 4933 | M113: 1684.89 | N113: 136787.376
A114: 1549.87 | B114: 171618.5 | C114: 0.02163055656 | D114: 7135.006032 | L114: 1672 | M114: 1753.56 | N114: 36570.76685
A115: 745.17 | B115: 172363.67 | C115: 0.02172447675 | D115: 7170.306 | L115: 4049 | M115: 1807.35 | N115: 90809.16768
A116: 1964.16 | B116: 174327.83 | C116: 0.02197203674 | D116: 7179.130992 | L116: 4617 | M116: 1471.49 | N116: 112990.7851
A117: 1623.05 | B117: 175950.88 | C117: 0.0221766037 | D117: 7192.36848 | L117: 5036 | M117: 839.97 | N117: 149221.7897
A118: 1553.84 | B118: 177504.72 | C118: 0.02237244753 | D118: 7232.080944 | L118: 3818 | M118: 1648.28 | N118: 84283.0861
A119: 1896.18 | B119: 179400.9 | C119: 0.02261143941 | D119: 7245.318432 | L119: 2429 | M119: 1587.53 | N119: 51224.66606
A120: 835.4 | B120: 180236.3 | C120: 0.02271673206 | D120: 7307.093376 | L120: 1832 | M120: 1622.3 | N120: 39491.8392
A121: 1708.15 | B121: 181944.45 | C121: 0.02293202491 | D121: 7355.630832 | L121: 3248 | M121: 1609.96 | N121: 69655.66186
A122: 1644.93 | B122: 183589.38 | C122: 0.02313934959 | D122: 7404.168288 | L122: 3772 | M122: 826.11 | N122: 82954.9248
A123: 2582.92 | B123: 186172.3 | C123: 0.02346489723 | D123: 7501.2432 | L123: 2596 | M123: 855.98 | N123: 54423.72566
A124: 1538.06 | B124: 187710.36 | C124: 0.02365875217 | D124: 7571.843136 | L124: 3493 | M124: 1665.96 | N124: 75864.04373
A125: 1906.9 | B125: 189617.26 | C125: 0.02389909519 | D125: 7580.668128 | L125: 3986 | M125: 754.47 | N125: 88872.08194
A126: 1580.62 | B126: 191197.88 | C126: 0.02409831433 | D126: 7801.292928 | L126: 5155 | M126: 1495.12 | N126: 166192.2493
A127: 1538.06 | B127: 192735.94 | C127: 0.02429216927 | D127: 7893.955344 | L127: 4437 | M127: 1680.18 | N127: 104037.8307
A128: 1514.12 | B128: 194250.06 | C128: 0.02448300684 | D128: 7942.4928 | L128: 3268 | M128: 705.38 | N128: 70132.21142
A129: 1620.51 | B129: 195870.57 | C129: 0.02468725366 | D129: 7942.4928 | L129: 1312 | M129: 1562.96 | N129: 29863.77293
A130: 1399.66 | B130: 197270.23 | C130: =B130/$B$5413 -> 0.02486366486 | D130: 7942.4928 | L130: 1178 | M130: 778.85 | N130: 27291.28776
A131: 886.99 | B131: 198157.22 | C131: 0.02497545984 | D131: 8083.692672 | L131: =ROUND(RAND()*5412+0.5,0) -> 3039 | M131: =OFFSET($A$1,L131,0) -> 1597.46 | N131: =OFFSET($D$1,L131,0) -> 65199.0409
A132: 1735.99 | B132: =A132+B131 -> 199893.21 | C132: 0.0251942616 | D132: 8083.692672 | L132: 783 | M132: 1459.97 | N132: 19697.38214
A133: 726.91 | B133: 200620.12 | C133: 0.02528588033 | D133: 8101.342656 | L133: 3668 | M133: 1546.95 | N133: 80280.95222
A134: 1645.39 | B134: 202265.51 | C134: 0.02549326299 | D134: 8242.542528 | L134: 2764 | M134: 1705.02 | N134: 58536.17194
A135: 890.57 | B135: 203156.08 | C135: 0.02560550919 | D135: 8383.7424 | L135: 1474 | M135: 2151.07 | N135: 32678.94538
A136: 1448.61 | B136: 204604.69 | C136: 0.02578808998 | D136: 8383.7424 | L136: 2502 | M136: 811.29 | N136: 52949.952
A137: 1532.02 | B137: 206136.71 | C137: 0.02598118364 | D137: 8427.86736 | L137: 730 | M137: 741.47 | N137: 18598.67064
A138: 1707.37 | B138: 207844.08 | C138: 0.02619637818 | D138: 8471.99232 | L138: 485 | M138: 1617.69 | N138: 15187.81123
A139: 1634.15 | B139: 209478.23 | C139: 0.02640234416 | D139: 8524.942272 | L139: 3431 | M139: 1683.84 | N139: 74474.10749
A140: 1800.87 | B140: 211279.1 | C140: 0.02662932331 | D140: 8604.3672 | L140: 3017 | M140: 839.53 | N140: 64687.19136
A141: 1590.4 | B141: 212869.5 | C141: 0.02682977511 | D141: 8639.667168 | L141: 3645 | M141: 1607.79 | N141: 79786.75267
A142: 1462.26 | B142: 214331.76 | C142: 0.02701407632 | D142: 8648.49216 | L142: 1254 | M142: 1382.96 | N142: 28712.11147
A143: 1966.02 | B143: 216297.78 | C143: 0.02726187074 | D143: 8714.6796 | L143: 898 | M143: 1460.76 | N143: 22194.85488
A144: 1656.98 | B144: 217954.76 | C144: 0.02747071419 | D144: 8754.392064 | L144: 703 | M144: 1760.36 | N144: 18091.2336
A145: 1569.41 | B145: 219524.17 | C145: 0.02766852044 | D145: 8789.692032 | L145: 4060 | M145: 1485.47 | N145: 91007.73
A146: 1572.31 | B146: 221096.48 | C146: 0.0278666922 | D146: 8824.992 | L146: 1810 | M146: 1706.42 | N146: 38979.98966
A147: 846.96 | B147: 221943.44 | C147: 0.02797344186 | D147: 8842.641984 | L147: 703 | M147: 1760.36 | N147: 18091.2336
A148: 1567.15 | B148: 223510.59 | C148: 0.02817096326 | D148: 8948.541888 | L148: 1524 | M148: 1615.84 | N148: 33768.83189
A149: 1773.92 | B149: 225284.51 | C149: 0.02839454567 | D149: 8948.541888 | L149: 3773 | M149: 799.86 | N149: 82968.16229
A150: 778.85 | B150: 226063.36 | C150: 0.02849271084 | D150: 9054.441792 | L150: 3449 | M150: 1523.63 | N150: 75012.432
A151: 890.27 | B151: 226953.63 | C151: 0.02860491923 | D151: 9089.74176 | L151: 2736 | M151: 1550.71 | N151: 57834.58507
A152: 1706 | B152: 228659.63 | C152: 0.02881994109 | D152: 9177.99168 | L152: 2167 | M152: 1630.18 | N152: 45709.04606
A153: 1734.82 | B153: 230394.45 | C153: 0.02903859538 | D153: 9213.291648 | L153: 4021 | M153: 1638.8 | N153: 90014.9184
A154: 1391.68 | B154: 231786.13 | C154: 0.02921400079 | D154: 9332.42904 | L154: 3507 | M154: 1576.1 | N154: 76115.556
A155: 1719.82 | B155: 233505.95 | C155: 0.02943076451 | D155: 9380.966496 | L155: 2513 | M155: 1527.3 | N155: 52949.952
A156: 1537.33 | B156: 235043.28 | C156: 0.02962452744 | D156: 9513.341376 | L156: 3689 | M156: 1547.19 | N156: 80748.6768
A157: 1428.89 | B157: 236472.17 | C157: 0.02980462274 | D157: 9614.828784 | L157: 2721 | M157: 611.71 | N157: 57450.69792
A158: 770.72 | B158: 237242.89 | C158: 0.02990176322 | D158: 9676.603728 | L158: 1764 | M158: 1806.65 | N158: 38181.32789
A159: 873.71 | B159: 238116.6 | C159: 0.03001188441 | D159: 9681.016224 | L159: 2820 | M159: 1591.09 | N159: 59833.44576
A160: 1658.52 | B160: 239775.12 | C160: 0.03022092196 | D160: 9707.4912 | L160: 4746 | M160: 1703.57 | N160: 122402.639
A161: 1686.5 | B161: 241461.62 | C161: 0.03043348607 | D161: 9707.4912 | L161: 305 | M161: 1440.92 | N161: 12994.80072
A162: 1516.49 | B162: 242978.11 | C162: 0.03062462235 | D162: 9848.691072 | L162: 1974 | M162: 1644.76 | N162: 41971.66195
A163: 814.34 | B163: 243792.45 | C163: 0.03072726063 | D163: 9866.341056 | L163: 4120 | M163: 1557.21 | N163: 92662.416
A164: 1574.41 | B164: 245366.86 | C164: 0.03092569707 | D164: 9989.890944 | L164: 4047 | M164: 1742.51 | N164: 90734.15525
A165: 867.54 | B165: 246234.4 | C165: 0.03103504061 | D165: 9989.890944 | L165: 4093 | M165: 1597.32 | N165: 92185.86643
A166: 2917.21 | B166: 249151.61 | C166: 0.03140272169 | D166: 9994.30344 | L166: 3722 | M166: 796.83 | N166: 81776.78837
A167: 1466.52 | B167: 250618.13 | C167: 0.03158755983 | D167: 10011.95342 | L167: 4982 | M167: 846.63 | N167: 141199.872
A168: 1547.88 | B168: 252166.01 | C168: 0.03178265246 | D168: 10038.4284 | L168: 2292 | M168: 873.2 | N168: 48537.456
A169: 1172.41 | B169: 253338.42 | C169: 0.03193042139 | D169: 10135.50331 | L169: 3391 | M169: 875.74 | N169: 73547.48333
A170: 920.58 | B170: 254259 | C170: 0.03204645001 | D170: 10148.7408 | L170: 1293 | M170: 1440.92 | N170: 29546.07322
A171: 811.06 | B171: 255070.06 | C171: 0.03214867488 | D171: 10148.7408 | L171: 416 | M171: 1826.67 | N171: 14384.73696
A172: 1816.22 | B172: 256886.28 | C172: 0.03237758872 | D172: 10148.7408 | L172: 1395 | M172: 1311.79 | N172: 31289.00914
A173: 1876.84 | B173: 258763.12 | C173: 0.03261414301 | D173: 10148.7408 | L173: 256 | M173: 1687.15 | N173: 11944.62667
A174: 1150.15 | B174: 259913.27 | C174: 0.03275910632 | D174: 10148.7408 | L174: 1669 | M174: 1708.72 | N174: 36469.27944
A175: 1677.94 | B175: 261591.21 | C175: 0.03297059154 | D175: 10179.62827 | L175: 2115 | M175: 1598.57 | N175: 44451.4847
A176: 1615.22 | B176: 263206.43 | C176: 0.03317417161 | D176: 10223.75323 | L176: 3269 | M176: 765.07 | N176: 70158.6864
A177: 1537.64 | B177: 264744.07 | C177: 0.03336797362 | D177: 10228.16573 | L177: 5181 | M177: 1919.93 | N177: 170745.9452
A178: 1547.64 | B178: 266291.71 | C178: 0.033563036 | D178: 10236.99072 | L178: 358 | M178: 1560.01 | N178: 13797.87499
A179: 1437.53 | B179: 267729.24 | C179: 0.03374422028 | D179: 10259.0532 | L179: 4047 | M179: 1742.51 | N179: 90734.15525
A180: 821.2 | B180: 268550.44 | C180: 0.03384772319 | D180: 10259.0532 | L180: 4697 | M180: 1496.87 | N180: 118329.9052
A181: 1741.88 | B181: 270292.32 | C181: 0.03406726731 | D181: 10325.24064 | L181: 2427 | M181: 771.38 | N181: 51220.25357
A182: 1551.61 | B182: 271843.93 | C182: 0.03426283008 | D182: 10395.84058 | L182: 5393 | M182: 1582.2 | N182: 315493.464
A183: 1738.86 | B183: 273582.79 | C183: 0.03448199357 | D183: 10475.2655 | L183: 2105 | M183: 1729.61 | N183: 44341.1723
A184: 931.42 | B184: 274514.21 | C184: 0.03459938845 | D184: 10532.62795 | L184: 347 | M184: 1505.7 | N184: 13687.56259
A185: 771.89 | B185: 275286.1 | C185: 0.03469667638 | D185: 10589.9904 | L185: 5144 | M185: 1507.7 | N185: 163871.2764
A186: 1526.52 | B186: 276812.62 | C186: 0.03488907684 | D186: 10589.9904 | L186: 624 | M186: 1543.44 | N186: 16966.04712
A187: 1432.48 | B187: 278245.1 | C187: 0.03506962462 | D187: 10589.9904 | L187: 3604 | M187: 1562.87 | N187: 78983.6784
A188: 1590.52 | B188: 279835.62 | C188: 0.03527009155 | D188: 10589.9904 | L188: 431 | M188: 1540.47 | N188: 14600.94926
A189: 1270.43 | B189: 281106.05 | C189: 0.03543021477 | D189: 10589.9904 | L189: 1077 | M189: 1729.12 | N189: 25592.4768
A190: 1372.89 | B190: 282478.94 | C190: 0.03560325191 | D190: 10589.9904 | L190: 823 | M190: 841.65 | N190: 20628.4188
A191: 1684.69 | B191: 284163.63 | C191: 0.03581558789 | D191: 10589.9904 | L191: 4245 | M191: 1563.13 | N191: 97295.5368
A192: 848.99 | B192: 285012.62 | C192: 0.03592259341 | D192: 10589.9904 | L192: 5102 | M192: 1980.69 | N192: 155584.609
A193: 1608.73 | B193: 286621.35 | C193: 0.0361253555 | D193: 10589.9904 | L193: 1144 | M193: 765.36 | N193: 26549.98843
A194: 1627.69 | B194: 288249.04 | C194: =B194/$B$5413 -> 0.03633050728 | D194: 10589.9904 | L194: 255 | M194: 1776.21 | N194: 11913.7392
A195: 1736.9 | B195: 289985.94 | C195: 0.03654942373 | D195: 10625.29037 | L195: =ROUND(RAND()*5412+0.5,0) -> 1996 | M195: =OFFSET($A$1,L195,0) -> 1267.95 | N195: =OFFSET($D$1,L195,0) -> 42359.9616
A196: 1615.36 | B196: =A196+B195 -> 291601.3 | C196: 0.03675302145 | D196: 10642.94035 | L196: 3320 | M196: 1709.45 | N196: 71094.13555
A197: 1864.69 | B197: 293465.99 | C197: 0.03698804438 | D197: 10642.94035 | L197: 4170 | M197: 1792.61 | N197: 94555.37678
A198: 1318.53 | B198: 294784.52 | C198: 0.03715423007 | D198: 10660.59034 | L198: 512 | M198: 2088.26 | N198: 15487.86096
A199: 1485.89 | B199: 296270.41 | C199: 0.03734150957 | D199: 10695.8903 | L199: 5396 | M199: 1511.81 | N199: 329723.7636
A200: 1803.11 | B200: 298073.52 | C200: 0.03756877104 | D200: 10704.7153 | L200: 4185 | M200: 854.91 | N200: 95199.6012
... 5213 more rows

Sheet MCSimCA
A1: Results of Monte Carlo Simulation | AK1: 0 | AL1: CABoot!$Q$7
A2: Sample Number | B2: CABoot!$Q$7 | F2: Simulation Stats | AH2: 0 | AK2: 53800 | AL2: 0
A3: 1 | B3: 57406.573 | F3: 10000 | G3: repetitions | AH3: 0.1290322542 | AI3: 0 | AK3: 53800 | AL3: 1
A4: 2 | B4: 57538.9478 | F4: 8195 | G4: seconds | I4: Summary Statistics | L4: Notes | AH4: 0.2580645084 | AI4: 3 | AK4: 54000 | AL4: 1
A5: 3 | B5: 57243.3106 | I5: Average | J5: 57287.70826 | AH5: 0.3870967627 | AI5: 4 | AK5: 54000 | AL5: 5
A6: 4 | B6: 57097.6982 | I6: SD | J6: 764.5180766 | AH6: 0.5161290169 | AI6: 8 | AK6: 54200 | AL6: 5
A7: 5 | B7: 57362.448 | I7: Max | J7: 61766.119 | AH7: 0.6451612711 | AI7: 4 | AK7: 54200 | AL7: 7
A8: 6 | B8: 57053.5733 | I8: Min | J8: 53986.8886 | AH8: 0.7741935253 | AI8: 9 | AK8: 54400 | AL8: 7
A9: 7 | B9: 57362.448 | AH9: 0.9032257795 | AI9: 9 | AK9: 54400 | AL9: 6
A10: 8 | B10: 57185.9482 | AH10: 1.032258034 | AI10: 12 | AK10: 54600 | AL10: 6
A11: 9 | B11: 59127.4464 | AH11: 1.161290288 | AI11: 8 | AK11: 54600 | AL11: 18
A12: 10 | B12: 57415.398 | AH12: 1.290322542 | AI12: 3 | AK12: 54800 | AL12: 18
A13: 11 | B13: 56391.6989 | AH13: 1.419354796 | AI13: 6 | AK13: 54800 | AL13: 14
A14: 12 | B14: 58130.2223 | AH14: 1.548387051 | AI14: 7 | AK14: 55000 | AL14: 14
A15: 13 | B15: 56837.361 | AH15: 1.677419305 | AI15: 6 | AK15: 55000 | AL15: 82
A16: 14 | B16: 56590.2612 | AH16: 1.806451559 | AI16: 6 | AK16: 55200 | AL16: 82
A17: 15 | B17: 56837.361 | AH17: 1.935483813 | AI17: 2 | AK17: 55200 | AL17: 72
A18: 16 | B18: 58628.8344 | AH18: 2.064516068 | AI18: 5 | AK18: 55400 | AL18: 72
A19: 17 | B19: 57406.573 | AH19: 2.193548322 | AI19: 2 | AK19: 55400 | AL19: 93
A20: 18 | B20: 56382.8739 | AH20: 2.322580576 | AI20: 3 | AK20: 55600 | AL20: 93
A21: 19 | B21: 56453.4738 | AH21: 2.45161283 | AI21: 2 | AK21: 55600 | AL21: 163
A22: 20 | B22: 58686.1968 | AH22: 2.580645084 | AI22: 1 | AK22: 55800 | AL22: 163
A23: 21 | B23: 57768.3976 | AH23: 2.709677339 | AI23: 0 | AK23: 55800 | AL23: 170
A24: 22 | B24: 56497.5988 | AH24: 2.838709593 | AI24: 0 | AK24: 56000 | AL24: 170
A25: 23 | B25: 57146.2357 | AH25: 2.967741847 | AI25: 0 | AK25: 56000 | AL25: 66
A26: 24 | B26: 57680.1477 | AH26: 3.096774101 | AI26: 0 | AK26: 56200 | AL26: 66
A27: 25 | B27: 57132.9982 | AH27: 3.225806355 | AI27: 0 | AK27: 56200 | AL27: 327
A28: 26 | B28: 57490.4104 | AH28: 3.35483861 | AI28: 0 | AK28: 56400 | AL28: 327
A29: 27 | B29: 57891.9475 | AH29: 3.483870864 | AI29: 0 | AK29: 56400 | AL29: 556
A30: 28 | B30: 57944.8975 | AH30: 3.612903118 | AI30: 0 | AK30: 56600 | AL30: 556
A31: 29 | B31: 56872.6609 | AH31: 3.741935372 | AI31: 0 | AK31: 56600 | AL31: 605
A32: 30 | B32: 56303.449 | AH32: 3.870967627 | AI32: 0 | AK32: 56800 | AL32: 605
A33: 31 | B33: 57583.0728 | AH33: 3.999999881 | AI33: 0 | AK33: 56800 | AL33: 687
A34: 32 | B34: 57415.398 | AK34: 57000 | AL34: 687
A35: 33 | B35: 57313.9105 | AK35: 57000 | AL35: 978
A36: 34 | B36: 57971.3724 | AK36: 57200 | AL36: 978
A37: 35 | B37: 55919.5618 | AK37: 57200 | AL37: 2411
A38: 36 | B38: 55968.0993 | AK38: 57400 | AL38: 2411
A39: 37 | B39: 57243.3106 | AK39: 57400 | AL39: 1155
A40: 38 | B40: 57177.1232 | AK40: 57600 | AL40: 1155
A41: 39 | B41: 57362.448 | AK41: 57600 | AL41: 322
A42: 40 | B42: 57680.1477 | AK42: 57800 | AL42: 322
A43: 41 | B43: 56696.1611 | AK43: 57800 | AL43: 917
A44: 42 | B44: 57362.448 | AK44: 58000 | AL44: 917
A45: 43 | B45: 57583.0728 | AK45: 58000 | AL45: 390
A46: 44 | B46: 57944.8975 | AK46: 58200 | AL46: 390
A47: 45 | B47: 57962.5475 | AK47: 58200 | AL47: 269
A48: 46 | B48: 57406.573 | AK48: 58400 | AL48: 269
A49: 47 | B49: 58655.3093 | AK49: 58400 | AL49: 144
A50: 48 | B50: 56038.6992 | AK50: 58600 | AL50: 144
A51: 49 | B51: 56749.1111 | AK51: 58600 | AL51: 330
A52: 50 | B52: 57274.1981 | AK52: 58800 | AL52: 330
A53: 51 | B53: 55919.5618 | AK53: 58800 | AL53: 26
A54: 52 | B54: 57185.9482 | AK54: 59000 | AL54: 26
A55: 53 | B55: 57768.3976 | AK55: 59000 | AL55: 94
A56: 54 | B56: 56281.3865 | AK56: 59200 | AL56: 94
A57: 55 | B57: 55456.2497 | AK57: 59200 | AL57: 52
A58: 56 | B58: 57406.573 | AK58: 59400 | AL58: 52
A59: 57 | B59: 57891.9475 | AK59: 59400 | AL59: 30
A60: 58 | B60: 56731.4611 | AK60: 59600 | AL60: 30
A61: 59 | B61: 58628.8344 | AK61: 59600 | AL61: 3
A62: 60 | B62: 56038.6992 | AK62: 59800 | AL62: 3
A63: 61 | B63: 57177.1232 | AK63: 59800 | AL63: 5
A64: 62 | B64: 57891.9475 | AK64: 60000 | AL64: 5
A65: 63 | B65: 56696.1611 | AK65: 60000 | AL65: 0
A66: 64 | B66: 57146.2357 | AK66: 60200 | AL66: 0
A67: 65 | B67: 57463.9354 | AK67: 60200 | AL67: 1
A68: 66 | B68: 57406.573 | AK68: 60400 | AL68: 1
A69: 67 | B69: 57313.9105 | AK69: 60400 | AL69: 0
A70: 68 | B70: 57318.323 | AK70: 60600 | AL70: 0
A71: 69 | B71: 57680.1477 | AK71: 60600 | AL71: 0
A72: 70 | B72: 56934.4359 | AK72: 60800 | AL72: 0
A73: 71 | B73: 57406.573 | AK73: 60800 | AL73: 0
A74: 72 | B74: 57177.1232 | AK74: 61000 | AL74: 0
A75: 73 | B75: 56585.8487 | AK75: 61000 | AL75: 0
A76: 74 | B76: 56837.361 | AK76: 61200 | AL76: 0
A77: 75 | B77: 57185.9482 | AK77: 61200 | AL77: 0
A78: 76 | B78: 57243.3106 | AK78: 61400 | AL78: 0
A79: 77 | B79: 57891.9475 | AK79: 61400 | AL79: 0
A80: 78 | B80: 57415.398 | AK80: 61600 | AL80: 0
A81: 79 | B81: 57980.1974 | AK81: 61600 | AL81: 1
A82: 80 | B82: 56590.2612 | AK82: 61800 | AL82: 1
A83: 81 | B83: 58933.2966 | AK83: 61800 | AL83: 0
A84: 82 | B84: 57463.9354
A85: 83 | B85: 57362.448
A86: 84 | B86: 56855.011
A87: 85 | B87: 57362.448
A88: 86 | B88: 57463.9354
A89: 87 | B89: 57485.9979
A90: 88 | B90: 57362.448
A91: 89 | B91: 56837.361
A92: 90 | B92: 57362.448
A93: 91 | B93: 57132.9982
A94: 92 | B94: 58399.3846
A95: 93 | B95: 58796.5092
A96: 94 | B96: 57896.36
A97: 95 | B97: 57362.448
A98: 96 | B98: 57583.0728
A99: 97 | B99: 59259.8213
A100: 98 | B100: 55412.1248
A101: 99 | B101: 57415.398
A102: 100 | B102: 57415.398
A103: Only the first 100 repetitions are displayed on this worksheet.

Sheet MCRawCA
A1: [1976RHHINCOME.xlsm]CABoot!$Q$2 | B1: [1976RHHINCOME.xlsm]CABoot!$Q$3 | C1: [1976RHHINCOME.xlsm]CABoot!$Q$4 | D1: [1976RHHINCOME.xlsm]CABoot!$Q$5 | E1: [1976RHHINCOME.xlsm]CABoot!$Q$6 | F1: [1976RHHINCOME.xlsm]CABoot!$Q$7 | G1: [1976RHHINCOME.xlsm]CABoot!$Q$8 | H1: [1976RHHINCOME.xlsm]CABoot!$Q$9 | I1: [1976RHHINCOME.xlsm]CABoot!$Q$10 | J1: [1976RHHINCOME.xlsm]CABoot!$Q$11 | K1: [1976RHHINCOME.xlsm]CABoot!$Q$12 | L1: [1976RHHINCOME.xlsm]CABoot!$R$2 | M1: [1976RHHINCOME.xlsm]CABoot!$R$3 | N1: [1976RHHINCOME.xlsm]CABoot!$R$4 | O1: [1976RHHINCOME.xlsm]CABoot!$R$5 | P1: [1976RHHINCOME.xlsm]CABoot!$R$6 | Q1: [1976RHHINCOME.xlsm]CABoot!$R$7 | R1: [1976RHHINCOME.xlsm]CABoot!$R$8 | S1: [1976RHHINCOME.xlsm]CABoot!$R$9 | T1: [1976RHHINCOME.xlsm]CABoot!$R$10 | U1: [1976RHHINCOME.xlsm]CABoot!$R$11 | V1: [1976RHHINCOME.xlsm]CABoot!$R$12
A2: 12421.1762 | B2: 20068.0318 | C2: 30858.7908 | D2: 40219.901 | E2: 51617.3782 | F2: 57406.573 | G2: 64003.2545 | H2: 75978.7686 | I2: 90456.168 | J2: 112317.8794 | K2: 161197.3039 | L2: 12328.5138 | M2: 19631.1947 | N2: 30666.8472 | O2: 40153.7136 | P2: 51639.4407 | Q2: 57362.448 | R2: 64051.7919 | S2: 76512.6806 | T2: 90897.4176 | U2: 113930.6467 | V2: 162922.5898
A3: 12818.3009 | B3: 20072.4443 | C3: 30887.472 | D3: 41009.7378 | E3: 52001.2654 | F3: 57538.9478 | G3: 64058.4107 | H3: 76808.3179 | I3: 92082.1728 | J3: 114720.4835 | K3: 167542.4731 | L3: 12822.7134 | M3: 19873.882 | N3: 30988.9594 | O3: 41442.1624 | P3: 52707.2647 | Q3: 58421.447 | R3: 64660.7164 | S3: 77659.9296 | T3: 92821.2659 | U3: 116401.6445 | V3: 170101.7208
A4: 12024.0516 | B4: 21215.2808 | C4: 30988.9594 | D4: 40608.2007 | E4: 51220.2536 | F4: 57243.3106 | G4: 63486.9924 | H4: 76998.0552 | I4: 91515.167 | J4: 110956.6244 | K4: 161497.3536 | L4: 11953.4517 | M4: 20862.2811 | N4: 30975.7219 | O4: 40621.4382 | P4: 51220.2536 | Q4: 57243.3106 | R4: 63888.5296 | S4: 77757.0045 | T4: 92437.3787 | U4: 112783.3978 | V4: 162657.84
A5: 12231.4389 | B5: 19498.8198 | C5: 29563.7232 | D5: 39712.464 | E5: 51087.8787 | F5: 57097.6982 | G5: 62494.1808 | H5: 76073.6373 | I5: 89871.5123 | J5: 111049.2868 | K5: 166792.3488 | L5: 12222.6139 | M5: 19167.8826 | N5: 29563.7232 | O5: 39580.0891 | P5: 51220.2536 | Q5: 57362.448 | R5: 63857.6421 | S5: 77037.7677 | T5: 91038.6175 | U5: 112959.8976 | V5: 167939.5978
A6: 12533.6949 | B6: 21085.1121 | C6: 30825.6971 | D6: 40087.5262 | E6: 51632.8219 | F6: 57362.448 | G6: 64051.7919 | H6: 77946.7418 | I6: 92132.9165 | J6: 113663.6907 | K6: 158029.1317 | L6: 12319.6888 | M6: 20650.4813 | N6: 30781.5721 | O6: 39725.7015 | P6: 51913.0154 | Q6: 57803.6976 | R6: 64687.1914 | S6: 78983.6784 | T6: 92980.1157 | U6: 115166.1456 | V6: 161197.3039
A7: 11960.0704 | B7: 20041.5568 | C7: 29936.5791 | D7: 39712.464 | E7: 50699.579 | F7: 57053.5733 | G7: 63118.549 | H7: 76084.6685 | I7: 90707.6803 | J7: 109985.8753 | K7: 160085.3549 | L7: 11847.5518 | M7: 19697.3821 | N7: 29784.348 | O7: 39712.464 | P7: 50540.7292 | Q7: 57000.6233 | R7: 63411.98 | S7: 76269.9934 | T7: 91228.3548 | U7: 111194.8992 | V7: 161197.3039
A8: 11973.3079 | B8: 19626.7822 | C8: 30514.6161 | D8: 40950.1691 | E8: 51899.778 | F8: 57362.448 | G8: 63434.0425 | H8: 76225.8684 | I8: 90813.5802 | J8: 109502.707 | K8: 156676.7017 | L8: 11706.3519 | M8: 18841.3579 | N8: 30410.9224 | O8: 40594.9632 | P8: 51855.653 | Q8: 57362.448 | R8: 63553.1799 | S8: 76839.2053 | T8: 91422.5046 | U8: 112915.7726 | V8: 158849.856
A9: 12341.7513 | B9: 20103.3318 | C9: 29921.1354 | D9: 39756.589 | E9: 50933.4413 | F9: 57185.9482 | G9: 63526.7049 | H9: 75969.9436 | I9: 90778.2802 | J9: 109811.5817 | K9: 160162.5736 | L9: 12222.6139 | M9: 19993.0194 | N9: 30252.0726 | O9: 40038.9887 | P9: 51908.6029 | Q9: 57450.6979 | R9: 64435.6791 | S9: 77218.68 | T9: 92000.5416 | U9: 111592.0238 | V9: 162075.3906
A10: 12752.1134 | B10: 20059.2068 | C10: 30887.472 | D10: 41325.2313 | E10: 52949.952 | F10: 59127.4464 | G10: 64885.7537 | H10: 77225.2987 | I10: 91056.2675 | J10: 112121.5234 | K10: 165600.9749 | L10: 12191.7264 | M10: 19679.7322 | N10: 30887.472 | O10: 40877.3629 | P10: 52949.952 | Q10: 59423.0836 | R10: 65181.3909 | S10: 78158.5416 | T10: 92441.7912 | U10: 114438.0838 | V10: 167992.5477
A11: 12231.4389 | B11: 20970.3872 | C11: 30953.6594 | D11: 40903.8379 | E11: 52067.4528 | F11: 57415.398 | G11: 63985.6045 | H11: 76472.9682 | I11: 91548.2608 | J11: 113361.4347 | K11: 166613.6427 | L11: 12178.489 | M11: 20518.1064 | N11: 30975.7219 | O11: 40661.1506 | P11: 52089.5153 | Q11: 57891.9475 | R11: 64793.0913 | S11: 77593.7422 | T11: 93094.8406 | U11: 115761.8326 | V11: 167992.5477
A12: 12496.1887 | B12: 20493.8377 | C12: 30446.2224 | D12: 39712.464 | E12: 50549.5542 | F12: 56391.6989 | G12: 62657.4432 | H12: 76528.1244 | I12: 91409.2671 | J12: 110863.962 | K12: 163571.2267 | L12: 12354.9888 | M12: 19882.707 | N12: 30653.6097 | O12: 39880.1388 | P12: 50743.704 | Q12: 56837.361 | R12: 63098.6928 | S12: 77589.3297 | T12: 92468.2662 | U12: 113026.085 | V12: 166368.7492
A13: 11966.6892 | B13: 20390.144 | C13: 30887.472 | D13: 40312.5635 | E13: 52360.8838 | F13: 58130.2223 | G13: 64159.8981 | H13: 76777.4304 | I13: 91426.9171 | J13: 112097.2546 | K13: 162922.5898 | L13: 11825.4893 | M13: 19993.0194 | N13: 30887.472 | O13: 40224.3135 | P13: 52764.6272 | Q13: 58774.4467 | R13: 65026.9536 | S13: 77783.4795 | T13: 92662.416 | U13: 114133.6215 | V13: 165909.8496
A14: 11913.7392 | B14: 19726.0634 | C14: 30357.9725 | D14: 40559.6632 | E14: 50981.9788 | F14: 56837.361 | G14: 62758.9306 | H14: 75118.3319 | I14: 90014.9184 | J14: 111541.2801 | K14: 161345.1225 | L14: 11640.1644 | M14: 19538.5323 | N14: 30163.8227 | O14: 40189.0136 | P14: 51184.9536 | Q14: 56930.0234 | R14: 63553.1799 | S14: 75965.5311 | T14: 90747.3927 | U14: 113860.0468 | V14: 162247.4779
A15: 12716.8135 | B15: 21047.6059 | C15: 30887.472 | D15: 40153.7136 | E15: 50558.3792 | F15: 56590.2612 | G15: 62889.0992 | H15: 76325.1496 | I15: 90456.168 | J15: 110672.0184 | K15: 165148.694 | L15: 12602.0886 | M15: 20699.0187 | N15: 30887.472 | O15: 40065.4637 | P15: 50523.0792 | Q15: 56872.6609 | R15: 63098.6928 | S15: 76777.4304 | T15: 91131.2799 | U15: 112915.7726 | V15: 167895.4728
A16: 12077.0016 | B16: 19904.7695 | C16: 30011.5915 | D16: 40074.2887 | E16: 50523.0792 | F16: 56837.361 | G16: 63550.9736 | H16: 76517.0931 | I16: 91367.3484 | J16: 114186.5715 | K16: 162379.8528 | L16: 11847.5518 | M16: 19631.1947 | N16: 29952.0228 | O16: 40356.6884 | P16: 50787.829 | Q16: 57318.323 | R16: 64356.2542 | S16: 77783.4795 | T16: 92662.416 | U16: 116295.7446 | V16: 163924.2264
A17: 12456.4762 | B17: 20491.6314 | C17: 30305.0225 | D17: 40206.6636 | E17: 52949.952 | F17: 58628.8344 | G17: 65031.366 | H17: 77342.2299 | I17: 91007.73 | J17: 111486.1239 | K17: 162629.1588 | L17: 12165.2515 | M17: 20076.8568 | N17: 30516.8223 | O17: 40383.1634 | P17: 52949.952 | Q17: 58752.3842 | R17: 65402.0157 | S17: 78224.7291 | T17: 92353.5413 | U17: 113396.7347 | V17: 163871.2764
A18: 11944.6267 | B18: 19993.0194 | C18: 30214.5664 | D18: 39756.589 | E18: 51207.0161 | F18: 57406.573 | G18: 64073.8544 | H18: 77591.5359 | I18: 90901.8301 | J18: 112289.1982 | K18: 165148.694 | L18: 11913.7392 | M18: 19847.407 | N18: 30305.0225 | O18: 40025.7512 | P18: 51224.6661 | Q18: 57459.5229 | R18: 64885.7537 | S18: 78326.2165 | T18: 92185.8664 | U18: 113930.6467 | V18: 168292.5974
A19: 12116.714 | B19: 20650.4813 | C19: 30512.4098 | D19: 40025.7512 | E19: 50743.704 | F19: 56382.8739 | G19: 62597.8745 | H19: 76073.6373 | I19: 91038.6175 | J19: 112518.648 | K19: 162600.4776 | L19: 12209.3764 | M19: 20429.8565 | N19: 30715.3847 | O19: 40153.7136 | P19: 50942.2663 | Q19: 56696.1611 | R19: 62661.8557 | S19: 76958.3427 | T19: 92397.6662 | U19: 113674.722 | V19: 166192.2493
A20: 12716.8135 | B20: 20681.3688 | C20: 30446.2224 | D20: 40153.7136 | E20: 50302.4544 | F20: 56453.4738 | G20: 62661.8557 | H20: 76534.7431 | I20: 90740.774 | J20: 113809.3031 | K20: 165468.6 | L20: 12487.3637 | M20: 20496.0439 | N20: 30777.1596 | O20: 40153.7136 | P20: 50523.0792 | Q20: 56837.361 | R20: 63434.0425 | S20: 77218.68 | T20: 92185.8664 | U20: 115505.9078 | V20: 167145.3485
A21: 12602.0886 | B21: 20650.4813 | C21: 30887.472 | D21: 41239.1876 | E21: 52949.952 | F21: 58686.1968 | G21: 64828.3912 | H21: 77637.8671 | I21: 92371.1913 | J21: 110780.1246 | K21: 163423.4081 | L21: 12738.876 | M21: 20103.3318 | N21: 30887.472 | O21: 41265.6626 | P21: 53197.0518 | Q21: 59092.1464 | R21: 65199.0409 | S21: 78224.7291 | T21: 92883.0408 | U21: 112456.8731 | V21: 166827.6488
A22: 12224.8202 | B22: 19856.232 | C22: 30274.1351 | D22: 39712.464 | E22: 51829.178 | F22: 57768.3976 | G22: 64422.4416 | H22: 77064.2426 | I22: 91576.942 | J22: 111969.2922 | K22: 162313.6654 | L22: 12178.489 | M22: 19503.2323 | N22: 29921.1354 | O22: 39712.464 | P22: 52067.4528 | Q22: 57931.66 | R22: 65026.9536 | S22: 77783.4795 | T22: 92477.0912 | U22: 114345.4213 | V22: 163968.3514
A23: 11933.5954 | B23: 19498.8198 | C23: 30664.641 | D23: 39712.464 | E23: 50531.9042 | F23: 56497.5988 | G23: 62750.1056 | H23: 75939.0562 | I23: 90862.1176 | J23: 110312.4 | K23: 162313.6654 | L23: 11913.7392 | M23: 18964.9078 | N23: 30583.0098 | O23: 39712.464 | P23: 50646.6291 | Q23: 56700.5736 | R23: 63557.5924 | S23: 76512.6806 | T23: 92318.2413 | U23: 112576.0104 | V23: 164828.7881
A24: 12425.5887 | B24: 19856.232 | C24: 30130.7289 | D24: 39712.464 | E24: 50651.0416 | F24: 57146.2357 | G24: 63495.8174 | H24: 75894.9312 | I24: 90835.6427 | J24: 111625.1176 | K24: 164398.5697 | L24: 12407.9388 | M24: 19697.3821 | N24: 30446.2224 | O24: 39712.464 | P24: 50743.704 | Q24: 57362.448 | R24: 63941.4795 | S24: 76336.1808 | T24: 91943.1792 | U24: 113370.2597 | V24: 166915.8987
A25: 12231.4389 | B25: 20421.0315 | C25: 30887.472 | D25: 40903.8379 | E25: 52398.39 | F25: 57680.1477 | G25: 64422.4416 | H25: 76084.6685 | I25: 91380.5859 | J25: 111122.093 | K25: 162790.2149 | L25: 11913.7392 | M25: 20068.0318 | N25: 30918.3595 | O25: 40903.8379 | P25: 52596.9523 | Q25: 57896.36 | R25: 65124.0285 | S25: 76931.8678 | T25: 92185.8664 | U25: 112990.7851 | V25: 164828.7881
A26: 12174.0765 | B26: 20231.2942 | C26: 29563.7232 | D26: 39535.9642 | E26: 50531.9042 | F26: 57132.9982 | G26: 62785.4056 | H26: 76089.081 | I26: 90456.168 | J26: 110956.6244 | K26: 164005.8576 | L26: 12169.664 | M26: 19926.8319 | N26: 29784.348 | O26: 39712.464 | P26: 51087.8787 | Q26: 57362.448 | R26: 63981.192 | S26: 76777.4304 | T26: 91422.5046 | U26: 112178.8858 | V26: 167410.0982
A27: 12571.2011 | B27: 21144.6808 | C27: 31218.4092 | D27: 40570.6945 | E27: 52707.2647 | F27: 57490.4104 | G27: 63972.367 | H27: 77218.68 | I27: 92357.9538 | J27: 110043.2377 | K27: 166154.7431 | L27: 12399.1138 | M27: 20496.0439 | N27: 31240.4717 | O27: 40590.5507 | P27: 52949.952 | Q27: 58130.2223 | R27: 64687.1914 | S27: 78440.9414 | T27: 92980.1157 | U27: 112792.2228 | V27: 168557.3472
A28: 12354.9888 | B28: 20178.3442 | C28: 30664.641 | D28: 39712.464 | E28: 52087.309 | F28: 57891.9475 | G28: 64422.4416 | H28: 77218.68 | I28: 92380.0163 | J28: 114164.509 | K28: 162075.3906 | L28: 12024.0516 | M28: 19494.4073 | N28: 30446.2224 | O28: 39712.464 | P28: 52261.6026 | Q28: 58068.4474 | R28: 65013.7161 | S28: 78101.1792 | T28: 92922.7533 | U28: 115805.9575 | V28: 163169.6896
A29: 12215.9952 | B29: 19993.0194 | C29: 30887.472 | D29: 40764.8443 | E29: 52707.2647 | F29: 57944.8975 | G29: 65680.003 | H29: 77772.4482 | I29: 92662.416 | J29: 114724.896 | K29: 166280.4993 | L29: 12222.6139 | M29: 19662.0822 | N29: 30887.472 | O29: 40661.1506 | P29: 52707.2647 | Q29: 58319.9596 | R29: 66081.5401 | S29: 78454.1789 | T29: 93297.8154 | U29: 115254.3955 | V29: 167674.848
A30: 12421.1762 | B30: 21127.0308 | C30: 30887.472 | D30: 40032.37 | E30: 50302.4544 | F30: 56872.6609 | G30: 63681.1423 | H30: 75784.6188 | I30: 90809.1677 | J30: 110444.7749 | K30: 161197.3039 | L30: 12354.9888 | M30: 20518.1064 | N30: 30887.472 | O30: 39712.464 | P30: 50302.4544 | Q30: 57053.5733 | R30: 63888.5296 | S30: 76212.6309 | T30: 91890.2292 | U30: 112964.3101 | V30: 162922.5898
A31: 12037.2891 | B31: 20015.0819 | C31: 30525.6473 | D31: 39986.0388 | E31: 50655.4541 | F31: 56303.449 | G31: 62809.6743 | H31: 76742.1304 | I31: 91338.6672 | J31: 111856.7736 | K31: 160259.6485 | L31: 11896.0892 | M31: 19370.8574 | N31: 30494.7599 | O31: 39712.464 | P31: 50854.0164 | Q31: 56832.9485 | R31: 63539.9424 | S31: 77218.68 | T31: 92393.2537 | U31: 113418.7972 | V31: 161197.3039
A32: 12416.7637 | B32: 20341.6066 | C32: 30887.472 | D32: 41036.2128 | E32: 51855.653 | F32: 57583.0728 | G32: 64356.2542 | H32: 76920.8365 | I32: 91614.4482 | J32: 113026.085 | K32: 164639.0508 | L32: 12209.3764 | M32: 20076.8568 | N32: 30887.472 | O32: 41036.2128 | P32: 52544.0024 | Q32: 58244.9472 | R32: 65075.491 | S32: 78498.3038 | T32: 92662.416 | U32: 114971.9958 | V32: 167939.5978
A33: 11999.7829 | B33: 20350.4316 | C33: 30845.5533 | D33: 40634.6757 | E33: 51657.0907 | F33: 57415.398 | G33: 64422.4416 | H33: 77686.4046 | I33: 92212.3414 | J33: 112975.3413 | K33: 163946.2889 | L33: 12160.839 | M33: 20103.3318 | N33: 30887.472 | O33: 40903.8379 | P33: 51913.0154 | Q33: 57415.398 | R33: 64863.6912 | S33: 78463.0039 | T33: 92684.4785 | U33: 114945.5208 | V33: 166399.6367
A34: 12399.1138 | B34: 20904.1998 | C34: 31311.0716 | D34: 41477.4624 | E34: 52014.5028 | F34: 57313.9105 | G34: 63456.105 | H34: 75916.9937 | I34: 90888.5926 | J34: 112079.6046 | K34: 161784.1658 | L34: 12191.7264 | M34: 20650.4813 | N34: 31452.2715 | O34: 41609.8373 | P34: 52288.0776 | Q34: 57688.9727 | R34: 64356.2542 | S34: 77218.68 | T34: 92380.0163 | U34: 113930.6467 | V34: 163280.002
A35: 12399.1138 | B35: 21071.8746 | C35: 30825.6971 | D35: 40206.6636 | E35: 52199.8277 | F35: 57971.3724 | G35: 63901.7671 | H35: 76495.0307 | I35: 90745.1865 | J35: 112849.5852 | K35: 163571.2267 | L35: 12209.3764 | M35: 20297.4816 | N35: 30887.472 | O35: 40219.901 | P35: 52689.6147 | Q35: 58244.9472 | R35: 64435.6791 | S35: 77783.4795 | T35: 92225.5789 | U35: 115497.0828 | V35: 166792.3488
A36: 11858.583 | B36: 20004.0506 | C36: 30583.0098 | D36: 40153.7136 | E36: 50549.5542 | F36: 55919.5618 | G36: 61774.944 | H36: 75012.432 | I36: 88298.4575 | J36: 108132.627 | K36: 160394.2296 | L36: 11648.9894 | M36: 19745.9196 | N36: 30583.0098 | O36: 40065.4637 | P36: 50726.054 | Q36: 56215.199 | R36: 61810.244 | S36: 75083.0319 | T36: 88925.0319 | U36: 110312.4 | V36: 161497.3536
A37: 12138.7765 | B37: 19697.3821 | C37: 29429.1421 | D37: 39507.2829 | E37: 49881.061 | F37: 55968.0993 | G37: 62143.3874 | H37: 75012.432 | I37: 90158.3245 | J37: 110945.5932 | K37: 158746.1623 | L37: 11944.6267 | M37: 19273.7825 | N37: 28804.7739 | O37: 38865.2648 | P37: 49640.58 | Q37: 55968.0993 | R37: 62158.8312 | S37: 75453.6816 | T37: 90910.6551 | U37: 113114.335 | V37: 159732.3552
A38: 12160.839 | B38: 19882.707 | C38: 29910.1041 | D38: 39712.464 | E38: 51109.9412 | F38: 57243.3106 | G38: 63544.3549 | H38: 75974.3561 | I38: 91137.8986 | J38: 112081.8109 | K38: 163046.1397 | L38: 11896.0892 | M38: 19538.5323 | N38: 29916.7229 | O38: 39535.9642 | P38: 51220.2536 | Q38: 57362.448 | R38: 63725.2672 | S38: 76512.6806 | T38: 92221.1664 | U38: 114371.8963 | V38: 165909.8496
A39: 12354.9888 | B39: 19871.6757 | C39: 30702.1472 | D39: 40153.7136 | E39: 51220.2536 | F39: 57177.1232 | G39: 63539.9424 | H39: 76570.0431 | I39: 91131.2799 | J39: 112818.6977 | K39: 163224.8458 | L39: 12240.2639 | M39: 19300.2575 | N39: 30512.4098 | O39: 40065.4637 | P39: 51405.5784 | Q39: 57362.448 | R39: 63941.4795 | S39: 77218.68 | T39: 92441.7912 | U39: 114835.2084 | V39: 166192.2493
A40: 12185.1077 | B40: 20725.4937 | C40: 30900.7095 | D40: 40345.6572 | E40: 51890.953 | F40: 57362.448 | G40: 63568.6236 | H40: 75983.1811 | I40: 91281.3048 | J40: 110619.0685 | K40: 162629.1588 | L40: 12178.489 | M40: 20518.1064 | N40: 30887.472 | O40: 40074.2887 | P40: 51908.6029 | Q40: 57459.5229 | R40: 63981.192 | S40: 76900.9803 | T40: 92662.416 | U40: 112456.8731 | V40: 166368.7492
A41: 12354.9888 | B41: 20626.2126 | C41: 30918.3595 | D41: 40820.0005 | E41: 51749.7531 | F41: 57680.1477 | G41: 65037.9848 | H41: 76931.8678 | I41: 90862.1176 | J41: 109308.5572 | K41: 160795.7667 | L41: 12169.664 | M41: 20076.8568 | N41: 30918.3595 | O41: 40877.3629 | P41: 52089.5153 | Q41: 58244.9472 | R41: 65516.7406 | S41: 77876.1419 | T41: 91572.5295 | U41: 110863.962 | V41: 162657.84
A42: 11953.4517 | B42: 20740.9374 | C42: 30523.4411 | D42: 40074.2887 | E42: 51504.8596 | F42: 56696.1611 | G42: 62785.4056 | H42: 76512.6806 | I42: 91629.8919 | J42: 113809.3031 | K42: 166854.1237 | L42: 11648.9894 | M42: 20350.4316 | N42: 30494.7599 | O42: 39880.1388 | P42: 51639.4407 | Q42: 56837.361 | R42: 63478.1675 | S42: 77037.7677 | T42: 92485.9162 | U42: 115660.3452 | V42: 169086.8467
A43: 11979.9266 | B43: 19414.9824 | C43: 30115.2852 | D43: 40621.4382 | E43: 52014.5028 | F43: 57362.448 | G43: 64334.1917 | H43: 75965.5311 | I43: 90456.168 | J43: 111216.9617 | K43: 164950.1317 | L43: 11979.9266 | M43: 19035.5077 | N43: 30163.8227 | O43: 40877.3629 | P43: 52689.6147 | Q43: 57688.9727 | R43: 65124.0285 | S43: 76953.9302 | T43: 91779.9168 | U43: 112964.3101 | V43: 166792.3488
A44: 11648.9894 | B44: 19494.4073 | C44: 30516.8223 | D44: 40608.2007 | E44: 51910.8092 | F44: 57583.0728 | G44: 64298.8917 | H44: 76808.3179 | I44: 90928.3051 | J44: 111636.1488 | K44: 162600.4776 | L44: 11640.1644 | M44: 19009.0328 | N44: 30534.4723 | O44: 40590.5507 | P44: 52107.1653 | Q44: 57944.8975 | R44: 64868.1037 | S44: 77668.7546 | T44: 92468.2662 | U44: 113361.4347 | V44: 164043.3638
A45: 12288.8014 | B45: 19856.232 | C45: 30018.2103 | D45: 41651.756 | E45: 52949.952 | F45: 57944.8975 | G45: 63857.6421 | H45: 76905.3928 | I45: 91056.2675 | J45: 112962.1038 | K45: 165600.9749 | L45: 12354.9888 | M45: 19697.3821 | N45: 30869.822 | O45: 41830.4621 | P45: 52949.952 | Q45: 58421.447 | R45: 64488.629 | S45: 77681.9921 | T45: 92432.9662 | U45: 114971.9958 | V45: 167145.3485
A46: 12719.0197 | B46: 20390.144 | C46: 31304.4529 | D46: 41144.319 | E46: 52852.8771 | F46: 57962.5475 | G46: 64245.9418 | H46: 77242.9487 | I46: 91228.3548 | J46: 111636.1488 | K46: 158408.6064 | L46: 12487.3637 | M46: 20235.7067 | N46: 31328.7216 | O46: 41155.3502 | P46: 52949.952 | Q46: 58677.3718 | R46: 65040.191 | S46: 78498.3038 | T46: 92477.0912 | U46: 114667.5336 | V46: 162247.4779
A47: 12319.6888 | B47: 20068.0318 | C47: 30289.5788 | D47: 40652.3256 | E47: 51665.9157 | F47: 57406.573 | G47: 65397.6032 | H47: 78542.4288 | I47: 92662.416 | J47: 115583.1265 | K47: 169086.8467 | L47: 12169.664 | M47: 20068.0318 | N47: 30781.5721 | O47: 41089.1628 | P47: 52067.4528 | Q47: 58399.3846 | R47: 66187.44 | S47: 79910.3026 | T47: 93924.3899 | U47: 119560.9916 | V47: 170745.9452
A48: 12354.9888 | B48: 21144.6808 | C48: 31205.1717 | D48: 41276.6938 | E48: 52281.4589 | F48: 58655.3093 | G48: 65079.9035 | H48: 76084.6685 | I48: 91131.2799 | J48: 114032.1341 | K48: 165909.8496 | L48: 12178.489 | M48: 20875.5186 | N48: 31156.6343 | O48: 41477.4624 | P48: 52949.952 | Q48: 59215.6963 | R48: 66024.1776 | S48: 77218.68 | T48: 92221.1664 | U48: 114989.6458 | V48: 167895.4728
A49: 12730.051 | B49: 19503.2323 | C49: 30269.7226 | D49: 40539.807 | E49: 50302.4544 | F49: 56038.6992 | G49: 63052.3616 | H49: 76274.4059 | I49: 91210.7048 | J49: 113407.7659 | K49: 163721.2516 | L49: 12496.1887 | M49: 19339.97 | N49: 30446.2224 | O49: 40661.1506 | P49: 50646.6291 | Q49: 56762.3485 | R49: 63888.5296 | S49: 78043.8168 | T49: 92441.7912 | U49: 115166.1456 | V49: 166827.6488
A50: 12077.0016 | B50: 19856.232 | C50: 30516.8223 | D50: 39712.464 | E50: 50152.4295 | F50: 56749.1111 | G50: 63725.2672 | H50: 76543.5681 | I50: 90734.1552 | J50: 112077.3984 | K50: 163101.2959 | L50: 11953.4517 | M50: 19397.3324 | N50: 30305.0225 | O50: 39712.464 | P50: 50002.4047 | Q50: 57097.6982 | R50: 64042.9669 | S50: 77218.68 | T50: 91629.8919 | U50: 114724.896 | V50: 167101.2235
A51: 12538.1074 | B51: 20081.2693 | C51: 30737.4471 | D51: 40312.5635 | E51: 51405.5784 | F51: 57274.1981 | G51: 63354.6176 | H51: 75894.9312 | I51: 89132.4192 | J51: 109396.8071 | K51: 163919.8139 | L51: 12354.9888 | M51: 19706.2071 | N51: 30512.4098 | O51: 40153.7136 | P51: 51515.8908 | Q51: 57362.448 | R51: 63888.5296 | S51: 76565.6306 | T51: 90509.118 | U51: 111239.0242 | V51: 167145.3485
A52: 12077.0016 | B52: 20085.6818 | C52: 30463.8724 | D52: 39712.464 | E52: 50302.4544 | F52: 55919.5618 | G52: 62518.4496 | H52: 75784.6188 | I52: 89895.781 | J52: 110226.3563 | K52: 159611.0116 | L52: 11953.4517 | M52: 20068.0318 | N52: 30463.8724 | O52: 39712.464 | P52: 50743.704 | Q52: 56559.3737 | R52: 63173.7052 | S52: 76336.1808 | T52: 90897.4176 | U52: 111706.7487 | V52: 160385.4046
A53: 12019.6391 | B53: 20438.6815 | C53: 30909.5345 | D53: 40903.8379 | E53: 51628.4094 | F53: 57185.9482 | G53: 64305.5105 | H53: 75864.0437 | I53: 90052.4246 | J53: 110665.3997 | K53: 161060.5165 | L53: 11913.7392 | M53: 20015.0819 | N53: 30887.472 | O53: 40903.8379 | P53: 51908.6029 | Q53: 57362.448 | R53: 64916.6412 | S53: 77218.68 | T53: 90928.3051 | U53: 112964.3101 | V53: 163871.2764
A54: 12140.9827 | B54: 20297.4816 | C54: 31041.9094 | D54: 41481.8749 | E54: 52098.3403 | F54: 57768.3976 | G54: 64356.2542 | H54: 77218.68 | I54: 91916.7042 | J54: 112964.3101 | K54: 163721.2516 | L54: 11913.7392 | M54: 20068.0318 | N54: 31081.6218 | O54: 41486.2874 | P54: 52707.2647 | Q54: 58377.3221 | R54: 65035.7785 | S54: 78348.279 | T54: 93094.8406 | U54: 114844.0334 | V54: 167410.0982
A55: 12030.6703 | B55: 20085.6818 | C55: 30115.2852 | D55: 39650.6891 | E55: 50205.3795 | F55: 56281.3865 | G55: 63067.8053 | H55: 75563.994 | I55: 90968.0175 | J55: 112077.3984 | K55: 159611.0116 | L55: 11847.5518 | M55: 19745.9196 | N55: 30115.2852 | O55: 39535.9642 | P55: 50461.3043 | Q55: 56762.3485 | R55: 63990.017 | S55: 76777.4304 | T55: 92397.6662 | U55: 114438.0838 | V55: 161938.6032
A56: 12324.1013 | B56: 20350.4316 | C56: 30154.9977 | D56: 39712.464 | E56: 49475.1114 | F56: 55456.2497 | G56: 61554.3192 | H56: 75012.432 | I56: 91007.73 | J56: 111481.7114 | K56: 164206.6261 | L56: 12037.2891 | M56: 20103.3318 | N56: 30446.2224 | O56: 39712.464 | P56: 49803.8424 | Q56: 55619.5121 | R56: 61774.944 | S56: 75864.0437 | T56: 92225.5789 | U56: 113184.9349 | V56: 167145.3485
A57: 12279.9764 | B57: 19878.2945 | C57: 29682.8606 | D57: 39712.464 | E57: 51449.7034 | F57: 57406.573 | G57: 64488.629 | H57: 76322.9433 | I57: 91007.73 | J57: 111243.4367 | K57: 165534.7874 | L57: 12160.839 | M57: 19075.2202 | N57: 29563.7232 | O57: 39633.0391 | P57: 51908.6029 | Q57: 57891.9475 | R57: 64868.1037 | S57: 76958.3427 | T57: 92185.8664 | U57: 113418.7972 | V57: 167992.5477
A58: 11825.4893 | B58: 19628.9885 | C58: 29883.6292 | D58: 39712.464 | E58: 51193.7786 | F58: 57891.9475 | G58: 63599.5111 | H58: 76084.6685 | I58: 90378.9493 | J58: 113407.7659 | K58: 166946.7862 | L58: 11662.2269 | M58: 19397.3324 | N58: 30146.1727 | O58: 39725.7015 | P58: 52089.5153 | Q58: 58752.3842 | R58: 64916.6412 | S58: 77055.4176 | T58: 91581.3545 | U58: 114945.5208 | V58: 169881.096
A59: 11904.9142 | B59: 19309.0825 | C59: 29429.1421 | D59: 39359.4643 | E59: 49660.4362 | F59: 56731.4611 | G59: 62394.8997 | H59: 75581.644 | I59: 89370.694 | J59: 108154.6895 | K59: 157203.995 | L59: 11604.8645 | M59: 18845.7704 | N59: 29329.8609 | O59: 39090.3021 | P59: 49640.58 | Q59: 56731.4611 | R59: 62657.4432 | S59: 76225.8684 | T59: 90257.6057 | U59: 110043.2377 | V59: 159291.1056
A60: 12644.0073 | B60: 21074.0809 | C60: 31414.7653 | D60: 42000.3432 | E60: 52972.0145 | F60: 58628.8344 | G60: 64876.9287 | H60: 76567.8368 | I60: 91978.4791 | J60: 111839.1236 | K60: 162247.4779 | L60: 12712.401 | M60: 20725.4937 | N60: 31311.0716 | O60: 41689.2622 | P60: 53227.9392 | Q60: 58739.1468 | R60: 65124.0285 | S60: 77589.3297 | T60: 92393.2537 | U60: 113114.335 | V60: 164206.6261
A61: 12021.8454 | B61: 19726.0634 | C61: 29715.9543 | D61: 39507.2829 | E61: 50386.2918 | F61: 56038.6992 | G61: 63350.2051 | H61: 76274.4059 | I61: 91367.3484 | J61: 111122.093 | K61: 161197.3039 | L61: 11944.6267 | M61: 19538.5323 | N61: 30004.9728 | O61: 39500.6642 | P61: 50743.704 | Q61: 56700.5736 | R61: 63981.192 | S61: 77015.7052 | T61: 92353.5413 | U61: 112959.8976 | V61: 161938.6032
A62: 12588.8511 | B62: 20626.2126 | C62: 30887.472 | D62: 40594.9632 | E62: 51626.2032 | F62: 57177.1232 | G62: 63495.8174 | H62: 76777.4304 | I62: 90928.3051 | J62: 112818.6977 | K62: 163280.002 | L62: 12505.0137 | M62: 20125.3943 | N62: 30887.472 | O62: 40594.9632 | P62: 51762.9906 | Q62: 57362.448 | R62: 63981.192 | S62: 78277.679 | T62: 92662.416 | U62: 115867.7325 | V62: 166368.7492
A63: 12021.8454 | B63: 20829.1874 | C63: 30896.297 | D63: 40383.1634 | E63: 52897.002 | F63: 57891.9475 | G63: 64429.0603 | H63: 77037.7677 | I63: 92007.1603 | J63: 113522.4908 | K63: 162600.4776 | L63: 11847.5518 | M63: 20085.6818 | N63: 30887.472 | O63: 40356.6884 | P63: 52949.952 | Q63: 58077.2724 | R63: 64943.1161 | S63: 78043.8168 | T63: 93213.978 | U63: 116295.7446 | V63: 166192.2493
A64: 12185.1077 | B64: 20085.6818 | C64: 30887.472 | D64: 40369.9259 | E64: 50655.4541 | F64: 56696.1611 | G64: 63952.5108 | H64: 76358.2433 | I64: 90467.1992 | J64: 110367.5562 | K64: 165148.694 | L64: 11966.6892 | M64: 19697.3821 | N64: 30887.472 | O64: 40444.9383 | P64: 51184.9536 | Q64: 56832.9485 | R64: 63990.017 | S64: 76909.8053 | T64: 91193.0548 | U64: 112915.7726 | V64: 167410.0982
A65: 12209.3764 | B65: 20650.4813 | C65: 30887.472 | D65: 40824.413 | E65: 51714.4531 | F65: 57146.2357 | G65: 63025.8866 | H65: 75193.3443 | I65: 90412.043 | J65: 111856.7736 | K65: 163566.8142 | L65: 12240.2639 | M65: 20796.0936 | N65: 31063.9718 | O65: 41283.3126 | P65: 52707.2647 | Q65: 57583.0728 | R65: 63981.192 | S65: 76212.6309 | T65: 91422.5046 | U65: 114208.634 | V65: 166915.8987
A66: 12207.1702 | B66: 19959.9257 | C66: 30446.2224 | D66: 40912.6629 | E66: 51707.8344 | F66: 57463.9354 | G66: 63972.367 | H66: 76170.7122 | I66: 91563.7045 | J66: 114032.1341 | K66: 162247.4779 | L66: 12024.0516 | M66: 19706.2071 | N66: 30446.2224 | O66: 40705.2756 | P66: 52040.9778 | Q66: 57896.36 | R66: 64422.4416 | S66: 77037.7677 | T66: 92494.7412 | U66: 114989.6458 | V66: 163924.2264
A67: 12500.6012 | B67: 20932.881 | C67: 31116.9218 | D67: 40822.2067 | E67: 52184.3839 | F67: 57406.573 | G67: 63599.5111 | H67: 77218.68 | I67: 92062.3165 | J67: 111636.1488 | K67: 165071.4754 | L67: 12496.1887 | M67: 20496.0439 | N67: 31156.6343 | O67: 40921.4879 | P67: 52504.2899 | Q67: 57891.9475 | R67: 64245.9418 | S67: 78348.279 | T67: 92662.416 | U67: 113860.0468 | V67: 167992.5477
A68: 12200.5514 | B68: 20650.4813 | C68: 30887.472 | D68: 40197.8386 | E68: 51529.1283 | F68: 57313.9105 | G68: 63539.9424 | H68: 76543.5681 | I68: 90862.1176 | J68: 112121.5234 | K68: 166792.3488 | L68: 12165.2515 | M68: 20076.8568 | N68: 30971.3094 | O68: 40219.901 | P68: 51913.0154 | Q68: 57406.573 | R68: 64051.7919 | S68: 77832.0169 | T68: 92212.3414 | U68: 114438.0838 | V68: 168292.5974
A69: 12341.7513 | B69: 20123.188 | C69: 30761.7159 | D69: 40822.2067 | E69: 51657.0907 | F69: 57318.323 | G69: 63747.3297 | H69: 77015.7052 | I69: 91281.3048 | J69: 114277.0277 | K69: 164124.995 | L69: 12222.6139 | M69: 19993.0194 | N69: 30737.4471 | O69: 40621.4382 | P69: 51996.8529 | Q69: 57362.448 | R69: 63981.192 | S69: 77757.0045 | T69: 92662.416 | U69: 116489.8944 | V69: 167410.0982
A70: 11973.3079 | B70: 20950.531 | C70: 30779.3658 | D70: 40548.632 | E70: 51756.3718 | F70: 57680.1477 | G70: 64422.4416 | H70: 76706.8305 | I70: 91576.942 | J70: 114724.896 | K70: 163566.8142 | L70: 11825.4893 | M70: 20068.0318 | N70: 30715.3847 | O70: 40356.6884 | P70: 51639.4407 | Q70: 57803.6976 | R70: 64868.1037 | S70: 77218.68 | T70: 92477.0912 | U70: 115254.3955 | V70: 164043.3638
A71: 11944.6267 | B71: 20120.9818 | C71: 30342.5287 | D71: 39712.464 | E71: 50798.8602 | F71: 56934.4359 | G71: 64009.8732 | H71: 77218.68 | I71: 90809.1677 | J71: 112289.1982 | K71: 160091.9736 | L71: 11896.0892 | M71: 19993.0194 | N71: 30410.9224 | O71: 39712.464 | P71: 51405.5784 | Q71: 57362.448 | R71: 64660.7164 | S71: 77659.9296 | T71: 91890.2292 | U71: 114164.509 | V71: 161197.3039
A72: 12354.9888 | B72: 20913.0248 | C72: 30836.7283 | D72: 40669.9756 | E72: 52034.3591 | F72: 57406.573 | G72: 63557.5924 | H72: 76808.3179 | I72: 91632.0982 | J72: 112317.8794 | K72: 163919.8139 | L72: 12191.7264 | M72: 20350.4316 | N72: 30666.8472 | O72: 40361.1009 | P72: 52107.1653 | Q72: 57459.5229 | R72: 63963.542 | S72: 77231.9175 | T72: 92318.2413 | U72: 114133.6215 | V72: 166915.8987
A73: 12174.0765 | B73: 20491.6314 | C73: 30887.472 | D73: 40539.807 | E73: 50937.8538 | F73: 57177.1232 | G73: 63116.3428 | H73: 76071.431 | I73: 90904.0363 | J73: 110332.2562 | K73: 163968.3514 | L73: 12169.664 | M73: 20103.3318 | N73: 30803.6346 | O73: 40189.0136 | P73: 50933.4413 | Q73: 57362.448 | R73: 63857.6421 | S73: 77090.7176 | T73: 91978.4791 | U73: 113396.7347 | V73: 167101.2235
A74: 12573.4074 | B74: 20390.144 | C74: 30741.8596 | D74: 40504.507 | E74: 50523.0792 | F74: 56585.8487 | G74: 62063.9625 | H74: 75418.3816 | I74: 91519.5795 | J74: 111764.1112 | K74: 160155.9548 | L74: 12496.1887 | M74: 20068.0318 | N74: 30746.2721 | O74: 40594.9632 | P74: 50854.0164 | Q74: 56872.6609 | R74: 62498.5933 | S74: 76089.081 | T74: 92441.7912 | U74: 114164.509 | V74: 162247.4779
A75: 12209.3764 | B75: 20063.6193 | C75: 30688.9097 | D75: 40189.0136 | E75: 50734.879 | F75: 56837.361 | G75: 62809.6743 | H75: 75321.3067 | I75: 90456.168 | J75: 110312.4 | K75: 163719.0453 | L75: 12319.6888 | M75: 19926.8319 | N75: 30746.2721 | O75: 40444.9383 | P75: 51312.916 | Q75: 57362.448 | R75: 63857.6421 | S75: 76777.4304 | T75: 91515.167 | U75: 112576.0104 | V75: 166827.6488
A76: 11913.7392 | B76: 19677.5259 | C76: 30547.7098 | D76: 40621.4382 | E76: 51643.8532 | F76: 57185.9482 | G76: 63901.7671 | H76: 77015.7052 | I76: 92051.2853 | J76: 112081.8109 | K76: 159180.7932 | L76: 11847.5518 | M76: 19494.4073 | N76: 30583.0098 | O76: 40877.3629 | P76: 52274.8401 | Q76: 57688.9727 | R76: 64510.6915 | S76: 78043.8168 | T76: 93103.6656 | U76: 114570.4586 | V76: 160226.5548
A77: 12602.0886 | B77: 20637.2438 | C77: 30887.472 | D77: 40330.2134 | E77: 50973.1538 | F77: 57243.3106 | G77: 62710.3932 | H77: 75846.3937 | I77: 90482.643 | J77: 110312.4 | K77: 165468.6 | L77: 12443.2387 | M77: 20015.0819 | N77: 30887.472 | O77: 40153.7136 | P77: 50973.1538 | Q77: 57318.323 | R77: 62895.718 | S77: 76512.6806 | T77: 91338.6672 | U77: 111821.4736 | V77: 167101.2235
A78: 12324.1013 | B78: 20712.2562 | C78: 31465.509 | D78: 41133.2877 | E78: 51946.1092 | F78: 57891.9475 | G78: 64369.4916 | H78: 76673.7367 | I78: 91309.986 | J78: 112884.8852 | K78: 166580.549 | L78: 12037.2891 | M78: 20015.0819 | N78: 31394.909 | O78: 41036.2128 | P78: 51913.0154 | Q78: 58130.2223 | R78: 64665.1289 | S78: 77898.2044 | T78: 92362.3663 | U78: 114835.2084 | V78: 169620.7587
A79: 12575.6136 | B79: 21162.3308 | C79: 30997.7844 | D79: 40623.6444 | E79: 52001.2654 | F79: 57415.398 | G79: 64009.8732 | H79: 76170.7122 | I79: 90904.0363 | J79: 110852.9308 | K79: 166792.3488 | L79: 12487.3637 | M79: 20915.231 | N79: 31306.6591 | O79: 40824.413 | P79: 52927.8895 | Q79: 58178.7598 | R79: 65124.0285 | S79: 77757.0045 | T79: 92494.7412 | U79: 113299.6598 | V79: 167895.4728
A80: 12341.7513 | B80: 20297.4816 | C80: 30887.472 | D80: 40917.0754 | E80: 52175.559 | F80: 57980.1974 | G80: 65165.9472 | H80: 76931.8678 | I80: 92371.1913 | J80: 112792.2228 | K80: 164005.8576 | L80: 12178.489 | M80: 19993.0194 | N80: 30887.472 | O80: 40590.5507 | P80: 52544.0024 | Q80: 58686.1968 | R80: 65481.4406 | S80: 77783.4795 | T80: 93147.7906 | U80: 114724.896 | V80: 166792.3488
A81: 12858.0133 | B81: 20350.4316 | C81: 30847.7595 | D81: 39712.464 | E81: 50695.1665 | F81: 56590.2612 | G81: 62657.4432 | H81: 75599.294 | I81: 90456.168 | J81: 110312.4 | K81: 163721.2516 | L81: 12752.1134 | M81: 20125.3943 | N81: 30781.5721 | O81: 39712.464 | P81: 51184.9536 | Q81: 56855.011 | R81: 63248.7177 | S81: 76380.3058 | T81: 91616.6544 | U81: 112792.2228 | V81: 166792.3488
A82: 11966.6892 | B82: 20266.5941 | C82: 30887.472 | D82: 41770.8934 | E82: 52949.952 | F82: 58933.2966 | G82: 65399.8095 | H82: 78394.6102 | I82: 92477.0912 | J82: 114283.6464 | K82: 166399.6367 | L82: 11913.7392 | M82: 19847.407 | N82: 30887.472 | O82: 41499.5249 | P82: 52949.952 | Q82: 59127.4464 | R82: 65755.0154 | S82: 79424.928 | T82: 93297.8154 | U82: 115497.0828 | V82: 167145.3485
A83: 12215.9952 | B83: 20085.6818 | C83: 31004.4031 | D83: 41492.9061 | E83: 52259.3964 | F83: 57463.9354 | G83: 63888.5296 | H83: 77218.68 | I83: 92883.0408 | J83: 112456.8731 | K83: 165468.6 | L83: 12178.489 | M83: 19697.3821 | N83: 30896.297 | O83: 41270.0751 | P83: 52274.8401 | Q83: 57931.66 | R83: 64245.9418 | S83: 78154.1292 | T83: 94136.1897 | U83: 113758.5594 | V83: 167939.5978
A84: 11913.7392 | B84: 20063.6193 | C84: 29826.2667 | D84: 40122.8261 | E84: 52021.1216 | F84: 57362.448 | G84: 64369.4916 | H84: 76517.0931 | I84: 90747.3927 | J84: 110581.5623 | K84: 161497.3536 | L84: 11913.7392 | M84: 19856.232 | N84: 29824.0605 | O84: 40091.9387 | P84: 52274.8401 | Q84: 57406.573 | R84: 64793.0913 | S84: 77218.68 | T84: 91616.6544 | U84: 112964.3101 | V84: 163566.8142
A85: 12019.6391 | B85: 19745.9196 | C85: 30252.0726 | D85: 40061.0512 | E85: 50787.829 | F85: 56855.011 | G85: 62785.4056 | H85: 76777.4304 | I85: 91623.2732 | J85: 112816.4915 | K85: 165918.6746 | L85: 11913.7392 | M85: 19560.5948 | N85: 30163.8227 | O85: 40038.9887 | P85: 51132.0036 | Q85: 57362.448 | R85: 63619.3673 | S85: 77898.2044 | T85: 92684.4785 | U85: 114724.896 | V85: 167145.3485
A86: 12807.2696 | B86: 20950.531 | C86: 31361.8153 | D86: 41477.4624 | E86: 52682.996 | F86: 57362.448 | G86: 63546.5611 | H86: 76777.4304 | I86: 90014.9184 | J86: 110352.1125 | K86: 163919.8139 | L86: 12602.0886 | M86: 20297.4816 | N86: 31240.4717 | O86: 41212.7126 | P86: 52596.9523 | Q86: 57362.448 | R86: 64025.317 | S86: 77218.68 | T86: 90301.7306 | U86: 112178.8858 | V86: 165600.9749
A87: 12377.0513 | B87: 21179.9808 | C87: 31480.9527 | D87: 41128.8752 | E87: 52749.1834 | F87: 57463.9354 | G87: 64334.1917 | H87: 76689.1805 | I87: 91093.7737 | J87: 111636.1488 | K87: 157475.3635 | L87: 12037.2891 | M87: 21069.6684 | N87: 31461.0965 | O87: 41036.2128 | P87: 52720.5022 | Q87: 57768.3976 | R87: 64868.1037 | S87: 77377.5299 | T87: 92185.8664 | U87: 113930.6467 | V87: 160385.4046
A88: 12341.7513 | B88: 21347.6556 | C88: 31240.4717 | D88: 41036.2128 | E88: 52619.0148 | F88: 57485.9979 | G88: 64369.4916 | H88: 76945.1052 | I88: 91237.1798 | J88: 112962.1038 | K88: 166384.1929 | L88: 12178.489 | M88: 21144.6808 | N88: 31311.0716 | O88: 41036.2128 | P88: 52720.5022 | Q88: 57971.3724 | R88: 64916.6412 | S88: 77757.0045 | T88: 92437.3787 | U88: 114208.634 | V88: 167895.4728
A89: 12165.2515 | B89: 20266.5941 | C89: 30887.472 | D89: 40515.5383 | E89: 51910.8092 | F89: 57362.448 | G89: 63981.192 | H89: 76089.081 | I89: 90136.262 | J89: 110312.4 | K89: 162600.4776 | L89: 11913.7392 | M89: 19869.4695 | N89: 30887.472 | O89: 40312.5635 | P89: 52067.4528 | Q89: 57583.0728 | R89: 64245.9418 | S89: 77218.68 | T89: 91007.73 | U89: 112518.648 | V89: 166368.7492
A90: 11604.8645 | B90: 19732.6821 | C90: 30018.2103 | D90: 39933.0888 | E90: 50957.7101 | F90: 56837.361 | G90: 62447.8496 | H90: 76309.7058 | I90: 90888.5926 | J90: 110312.4 | K90: 166399.6367 | L90: 11516.6146 | M90: 19679.7322 | N90: 30446.2224 | O90: 40153.7136 | P90: 51312.916 | Q90: 57146.2357 | R90: 63067.8053 | S90: 77218.68 | T90: 92132.9165 | U90: 112792.2228 | V90: 169276.584
A91: 11648.9894 | B91: 19745.9196 | C91: 30057.9228 | D91: 40559.6632 | E91: 51359.2472 | F91: 57362.448 | G91: 63118.549 | H91: 75879.4875 | I91: 90456.168 | J91: 110312.4 | K91: 157164.2825 | L91: 11640.1644 | M91: 19631.1947 | N91: 30446.2224 | O91: 40594.9632 | P91: 51855.653 | Q91: 57803.6976 | R91: 63681.1423 | S91: 76314.1183 | T91: 91396.0296 | U91: 112121.5234 | V91: 158408.6064
A92: 12403.5263 | B92: 19403.9512 | C92: 30269.7226 | D92: 40189.0136 | E92: 51478.3846 | F92: 57132.9982 | G92: 62758.9306 | H92: 76336.1808 | I92: 91023.1737 | J92: 112915.7726 | K92: 167677.0542 | L92: 12160.839 | M92: 19044.3327 | N92: 30463.8724 | O92: 40316.976 | P92: 52067.4528 | Q92: 57362.448 | R92: 63981.192 | S92: 77090.7176 | T92: 92477.0912 | U92: 114667.5336 | V92: 169620.7587
A93: 12853.6008 | B93: 22062.48 | C93: 32568.633 | D93: 42227.5867 | E93: 52949.952 | F93: 58399.3846 | G93: 65181.3909 | H93: 78520.3663 | I93: 92172.6289 | J93: 112081.8109 | K93: 165468.6 | L93: 12853.6008 | M93: 22062.48 | N93: 32793.6703 | O93: 42359.9616 | P93: 52949.952 | Q93: 58686.1968 | R93: 65724.1279 | S93: 79424.928 | T93: 92883.0408 | U93: 114164.509 | V93: 167895.4728
A94: 12412.3512 | B94: 21396.1931 | C94: 31416.9715 | D94: 41609.8373 | E94: 52927.8895 | F94: 58796.5092 | G94: 65013.7161 | H94: 77602.5672 | I94: 92386.635 | J94: 114720.4835 | K94: 173320.6366 | L94: 12354.9888 | M94: 21338.8307 | N94: 31853.8086 | O94: 41786.3371 | P94: 52949.952 | Q94: 59303.9462 | R94: 65397.6032 | S94: 78326.2165 | T94: 93103.6656 | U94: 115766.2451 | V94: 176504.2525
A95: 11993.1641 | B95: 20571.0564 | C95: 30887.472 | D95: 41036.2128 | E95: 52676.3772 | F95: 57896.36 | G95: 65752.8091 | H95: 78043.8168 | I95: 91581.3545 | J95: 113674.722 | K95: 165468.6 | L95: 11966.6892 | M95: 20350.4316 | N95: 31063.9718 | O95: 41384.8 | P95: 52949.952 | Q95: 59092.1464 | R95: 66187.44 | S95: 79424.928 | T95: 92662.416 | U95: 115126.4331 | V95: 169086.8467
A96: 12469.7137 | B96: 20959.356 | C96: 30887.472 | D96: 40921.4879 | E96: 51908.6029 | F96: 57362.448 | G96: 63873.0858 | H96: 75804.475 | I96: 90478.2305 | J96: 111949.436 | K96: 166792.3488 | L96: 12319.6888 | M96: 20350.4316 | N96: 30887.472 | O96: 40594.9632 | P96: 51762.9906 | Q96: 57406.573 | R96: 64140.0419 | S96: 76777.4304 | T96: 91396.0296 | U96: 113674.722 | V96: 169285.409
A97: 11664.4332 | B97: 19851.8195 | C97: 30988.9594 | D97: 41058.2753 | E97: 51621.7907 | F97: 57583.0728 | G97: 64245.9418 | H97: 75969.9436 | I97: 90412.043 | J97: 112964.3101 | K97: 166827.6488 | L97: 11648.9894 | M97: 19573.8323 | N97: 30975.7219 | O97: 40692.0381 | P97: 51440.8784 | Q97: 57891.9475 | R97: 64422.4416 | S97: 77055.4176 | T97: 91073.9174 | U97: 114438.0838 | V97: 169276.584
A98: 12354.9888 | B98: 20915.231 | C98: 31041.9094 | D98: 41009.7378 | E98: 52949.952 | F98: 59259.8213 | G98: 65278.4658 | H98: 79424.928 | I98: 93011.0032 | J98: 114780.0522 | K98: 164950.1317 | L98: 12319.6888 | M98: 20699.0187 | N98: 30988.9594 | O98: 41036.2128 | P98: 52963.1895 | Q98: 59568.696 | R98: 65569.6906 | S98: 79424.928 | T98: 93906.7399 | U98: 115766.2451 | V98: 166827.6488
A99: 12507.2199 | B99: 20068.0318 | C99: 30525.6473 | D99: 39712.464 | E99: 49934.011 | F99: 55412.1248 | G99: 61521.2255 | H99: 74813.8697 | I99: 90456.168 | J99: 111486.1239 | K99: 162968.921 | L99: 12354.9888 | M99: 19745.9196 | N99: 30666.8472 | O99: 39610.9766 | P99: 50152.4295 | Q99: 55866.6119 | R99: 61774.944 | S99: 75056.557 | T99: 90888.5926 | U99: 113361.4347 | V99: 165468.6
A100: 12500.6012 | B100: 20941.706 | C100: 30790.3971 | D100: 40546.4257 | E100: 51405.5784 | F100: 57415.398 | G100: 63568.6236 | H100: 76311.9121 | I100: 91623.2732 | J100: 112787.8103 | K100: 163571.2267 | L100: 12425.5887 | M100: 20491.6314 | N100: 30887.472 | O100: 40643.5007 | P100: 51996.8529 | Q100: 57891.9475 | R100: 64073.8544 | S100: 77037.7677 | T100: 92468.2662 | U100: 114724.896 | V100: 165909.8496
A101: 11913.7392 | B101: 19494.4073 | C101: 30887.472 | D101: 40976.6441 | E101: 51890.953 | F101: 57415.398 | G101: 64042.9669 | H101: 76424.4307 | I101: 91186.4361 | J101: 111614.0863 | K101: 162313.6654 | L101: 11825.4893 | M101: 19339.97 | N101: 30847.7595 | O101: 40877.3629 | P101: 52027.7403 | Q101: 57803.6976 | R101: 64356.2542 | S101: 77681.9921 | T101: 92380.0163 | U101: 114283.6464 | V101: 163924.2264
A102: 11704.1456 | B102: 20160.6942 | C102: 30887.472 | D102: 40356.6884 | E102: 50898.1414 | F102: 57274.1981 | G102: 63895.1483 | H102: 76920.8365 | I102: 91576.942 | J102: 112915.7726 | K102: 161938.6032 | L102: 11472.4896 | M102: 19516.4698 | N102: 30847.7595 | O102: 40224.3135 | P102: 50898.1414 | Q102: 57362.448 | R102: 64245.9418 | S102: 77593.7422 | T102: 92380.0163 | U102: 114570.4586 | V102: 162600.4776
A103: 11999.7829 | B103: 19706.2071 | C103: 30146.1727 | D103: 39712.464 | E103: 50545.1417 | F103: 56691.7486 | G103: 62734.6619 | H103: 75855.2187 | I103: 90169.3558 | J103: 112079.6046 | K103: 166399.6367 | L103: 11913.7392 | M103: 19516.4698 | N103: 30163.8227 | O103: 39712.464 | P103: 50743.704 | Q103: 57177.1232 | R103: 63857.6421 | S103: 76931.8678 | T103: 91073.9174 | U103: 114208.634 | V103: 169086.8467
A104: 12407.9388 | B104: 20072.4443 | C104: 30490.3474 | D104: 40268.4385 | E104: 51467.3533 | F104: 57362.448 | G104: 63539.9424 | H104: 76457.5244 | I104: 91186.4361 | J104: 110581.5623 | K104: 162829.9274 | L104: 12354.9888 | M104: 19560.5948 | N104: 30018.2103 | O104: 39818.3639 | P104: 50743.704 | Q104: 57362.448 | R104: 63553.1799 | S104: 76900.9803 | T104: 92380.0163 | U104: 112456.8731 | V104: 163571.2267
A105: 11701.9394 | B105: 21091.7309 | C105: 31063.9718 | D105: 40950.1691 | E105: 52508.7024 | F105: 57971.3724 | G105: 64539.3727 | H105: 76839.2053 | I105: 91367.3484 | J105: 110312.4 | K105: 163721.2516 | L105: 11640.1644 | M105: 20429.8565 | N105: 31147.8093 | O105: 40930.3129 | P105: 52685.2022 | Q105: 58399.3846 | R105: 64916.6412 | S105: 78079.1167 | T105: 92441.7912 | U105: 112915.7726 | V105: 166792.3488
A106: 11944.6267 | B106: 19320.1137 | C106: 29910.1041 | D106: 39712.464 | E106: 51405.5784 | F106: 57362.448 | G106: 64422.4416 | H106: 77306.9299 | I106: 92216.7539 | J106: 114208.634 | K106: 165896.6121 | L106: 11648.9894 | M106: 18911.9579 | N106: 29903.4854 | O106: 40047.8137 | P106: 51890.953 | Q106: 57680.1477 | R106: 64916.6412 | S106: 78590.9663 | T106: 92662.416 | U106: 117006.1564 | V106: 169285.409
A107: 12324.1013 | B107: 20323.9566 | C107: 30470.4911 | D107: 40698.6569 | E107: 50567.2042 | F107: 57362.448 | G107: 63151.6428 | H107: 76512.6806 | I107: 90826.8177 | J107: 112145.7921 | K107: 163046.1397 | L107: 12160.839 | M107: 20297.4816 | N107: 30887.472 | O107: 41036.2128 | P107: 51855.653 | Q107: 57803.6976 | R107: 63888.5296 | S107: 77218.68 | T107: 92185.8664 | U107: 114371.8963 | V107: 167674.848
A108: 12377.0513 | B108: 19516.4698 | C108: 30479.3161 | D108: 40153.7136 | E108: 51222.4598 | F108: 57318.323 | G108: 63553.1799 | H108: 76325.1496 | I108: 91281.3048 | J108: 113535.7283 | K108: 164043.3638 | L108: 12160.839 | M108: 19022.2703 | N108: 30146.1727 | O108: 39712.464 | P108: 50898.1414 | Q108: 57318.323 | R108: 63981.192 | S108: 76909.8053 | T108: 92225.5789 | U108: 114724.896 | V108: 165468.6
A109: 12496.1887 | B109: 20760.7937 | C109: 30887.472 | D109: 40475.8258 | E109: 51515.8908 | F109: 57415.398 | G109: 64047.3794 | H109: 76391.337 | I109: 90904.0363 | J109: 112853.9977 | K109: 162657.84 | L109: 12407.9388 | M109: 20650.4813 | N109: 31063.9718 | O109: 40594.9632 | P109: 52107.1653 | Q109: 57896.36 | R109: 64943.1161 | S109: 77757.0045 | T109: 92397.6662 | U109: 115563.2702 | V109: 164828.7881
A110: 12240.2639 | B110: 20178.3442 | C110: 30887.472 | D110: 41089.1628 | E110: 52199.8277 | F110: 58077.2724 | G110: 65026.9536 | H110: 77242.9487 | I110: 91113.6299 | J110: 111839.1236 | K110: 162790.2149 | L110: 12222.6139 | M110: 19759.1571 | N110: 30887.472 | O110: 41283.3126 | P110: 52685.2022 | Q110: 58655.3093 | R110: 66187.44 | S110: 78180.6041 | T110: 92441.7912 | U110: 113652.6595 | V110: 165468.6
A111: 11966.6892 | B111: 20683.575 | C111: 31187.5217 | D111: 41265.6626 | E111: 52830.8146 | F111: 58055.2099 | G111: 64885.7537 | H111: 77719.4983 | I111: 92684.4785 | J111: 113273.1848 | K111: 164043.3638 | L111: 11869.6142 | M111: 20085.6818 | N111: 31116.9218 | O111: 41080.3378 | P111: 52786.6896 | Q111: 58319.9596 | R111: 65278.4658 | S111: 78321.804 | T111: 93297.8154 | U111: 114874.9209 | V111: 166792.3488
A112: 11913.7392 | B112: 19706.2071 | C112: 29563.7232 | D112: 40153.7136 | E112: 50915.7913 | F112: 57318.323 | G112: 63116.3428 | H112: 75846.3937 | I112: 90456.168 | J112: 110672.0184 | K112: 163280.002 | L112: 11913.7392 | M112: 19370.8574 | N112: 29479.8858 | O112: 40038.9887 | P112: 50854.0164 | Q112: 57362.448 | R112: 63411.98 | S112: 76225.8684 | T112: 91281.3048 | U112: 112518.648 | V112: 165468.6
A113: 12191.7264 | B113: 20868.8998 | C113: 31319.8966 | D113: 41084.7503 | E113: 52835.2271 | F113: 58584.7094 | G113: 64793.0913 | H113: 77225.2987 | I113: 91548.2608 | J113: 109785.1067 | K113: 159915.4738 | L113: 11869.6142 | M113: 20120.9818 | N113: 31116.9218 | O113: 40921.4879 | P113: 52786.6896 | Q113: 58628.8344 | R113: 65035.7785 | S113: 78043.8168 | T113: 92662.416 | U113: 111821.4736 | V113: 162657.84
A114: 12500.6012 | B114: 19869.4695 | C114: 30792.6033 | D114: 40197.8386 | E114: 51515.8908 | F114: 57000.6233 | G114: 63681.1423 | H114: 75497.8066 | I114: 90747.3927 | J114: 110705.1121 | K114: 163046.1397 | L114: 12416.7637 | M114: 19697.3821 | N114: 30737.4471 | O114: 40153.7136 | P114: 51855.653 | Q114: 57362.448 | R114: 64245.9418 | S114: 76225.8684 | T114: 92013.7791 | U114: 112121.5234 | V114: 166368.7492
A115: 12140.9827 | B115: 20665.925 | C115: 31063.9718 | D115: 41459.8124 | E115: 52396.1838 | F115: 57891.9475 | G115: 64660.7164 | H115: 76839.2053 | I115: 91038.6175 | J115: 114171.1278 | K115: 164043.3638 | L115: 12116.714 | M115: 20447.5065 | N115: 31205.1717 | O115: 41089.1628 | P115: 52508.7024 | Q115: 58244.9472 | R115: 64916.6412 | S115: 77218.68 | T115: 92000.5416 | U115: 115602.9827 | V115: 166368.7492
A116: 12725.6385 | B116: 20624.0063 | C116: 30558.741 | D116: 40065.4637 | E116: 51021.6912 | F116: 57318.323 | G116: 63817.9296 | H116: 76380.3058 | I116: 90866.5301 | J116: 111194.8992 | K116: 162026.8531 | L116: 12505.0137 | M116: 20085.6818 | N116: 30666.8472 | O116: 40189.0136 | P116: 51440.8784 | Q116: 57362.448 | R116: 64140.0419 | S116: 77055.4176 | T116: 91612.242 | U116: 112849.5852 | V116: 163968.3514
A117: 12496.1887 | B117: 20650.4813 | C117: 31004.4031 | D117: 40912.6629 | E117: 52508.7024 | F117: 57891.9475 | G117: 64245.9418 | H117: 78145.3042 | I117: 92485.9162 | J117: 116379.582 | K117: 166051.0495 | L117: 12178.489 | M117: 20120.9818 | N117: 30918.3595 | O117: 40678.8006 | P117: 52508.7024 | Q117: 58130.2223 | R117: 64885.7537 | S117: 78943.9659 | T117: 93906.7399 | U117: 120342.0034 | V117: 168292.5974
A118: 11913.7392 | B118: 19048.7452 | C118: 29241.611 | D118: 39028.5271 | E118: 49905.3298 | F118: 55906.3243 | G118: 62127.9437 | H118: 75879.4875 | I118: 89955.3497 | J118: 112079.6046 | K118: 163224.8458 | L118: 11966.6892 | M118: 18956.0828 | N118: 29241.611 | O118: 38979.9897 | P118: 49909.7423 | Q118: 56391.6989 | R118: 62498.5933 | S118: 76777.4304 | T118: 91038.6175 | U118: 114164.509 | V118: 166399.6367
A119: 12403.5263 | B119: 21071.8746 | C119: 31081.6218 | D119: 41106.8127 | E119: 51946.1092 | F119: 57485.9979 | G119: 63972.367 | H119: 76322.9433 | I119: 90897.4176 | J119: 110387.4124 | K119: 162026.8531 | L119: 12240.2639 | M119: 20681.3688 | N119: 31138.9843 | O119: 41036.2128 | P119: 52689.6147 | Q119: 58319.9596 | R119: 64643.0664 | S119: 77761.417 | T119: 92468.2662 | U119: 112792.2228 | V119: 166368.7492
A120: 12140.9827 | B120: 20895.3748 | C120: 30887.472 | D120: 40661.1506 | E120: 51687.9781 | F120: 57362.448 | G120: 63703.2048 | H120: 77218.68 | I120: 91612.242 | J120: 110140.3127 | K120: 162161.4342 | L120: 11966.6892 | M120: 20685.7812 | N120: 30997.7844 | O120: 40594.9632 | P120: 51890.953 | Q120: 57362.448 | R120: 63981.192 | S120: 78101.1792 | T120: 92662.416 | U120: 111481.7114 | V120: 167101.2235
A121: 12222.6139 | B121: 20491.6314 | C121: 30891.8845 | D121: 40608.2007 | E121: 50997.4225 | F121: 57185.9482 | G121: 63394.33 | H121: 77253.98 | I121: 90509.118 | J121: 110312.4 | K121: 160727.373 | L121: 12019.6391 | M121: 20297.4816 | N121: 31063.9718 | O121: 40590.5507 | P121: 51220.2536 | Q121: 57300.6731 | R121: 63857.6421 | S121: 78180.6041 | T121: 91890.2292 | U121: 111636.1488 | V121: 162600.4776
A122: 12496.1887 | B122: 20105.538 | C122: 30446.2224 | D122: 40197.8386 | E122: 52155.7027 | F122: 57931.66 | G122: 64422.4416 | H122: 77717.292 | I122: 91916.7042 | J122: 112317.8794 | K122: 165755.4122 | L122: 12399.1138 | M122: 19759.1571 | N122: 30410.9224 | O122: 40091.9387 | P122: 52155.7027 | Q122: 58077.2724 | R122: 65022.5411 | S122: 78440.9414 | T122: 92485.9162 | U122: 113674.722 | V122: 167101.2235
A123: 12712.401 | B123: 19320.1137 | C123: 30163.8227 | D123: 39712.464 | E123: 50651.0416 | F123: 56590.2612 | G123: 62681.7119 | H123: 75034.4945 | I123: 90003.8872 | J123: 111360.3678 | K123: 160339.0734 | L123: 12505.0137 | M123: 19114.9327 | N123: 30110.8727 | O123: 39712.464 | P123: 50726.054 | Q123: 56837.361 | R123: 62789.8181 | S123: 75864.0437 | T123: 90897.4176 | U123: 113418.7972 | V123: 163924.2264
A124: 12215.9952 | B124: 20178.3442 | C124: 30887.472 | D124: 40676.5944 | E124: 50734.879 | F124: 57362.448 | G124: 63553.1799 | H124: 76777.4304 | I124: 92159.3915 | J124: 111686.8925 | K124: 166915.8987 | L124: 12116.714 | M124: 19759.1571 | N124: 30653.6097 | O124: 40330.2134 | P124: 50540.7292 | Q124: 57318.323 | R124: 63478.1675 | S124: 76777.4304 | T124: 92441.7912 | U124: 112853.9977 | V124: 170984.22
A125: 11763.7143 | B125: 19959.9257 | C125: 29660.7981 | D125: 39712.464 | E125: 51032.7225 | F125: 56731.4611 | G125: 62518.4496 | H125: 75837.5688 | I125: 90467.1992 | J125: 111122.093 | K125: 161197.3039 | L125: 11662.2269 | M125: 19631.1947 | N125: 29691.6856 | O125: 39712.464 | P125: 50726.054 | Q125: 56731.4611 | R125: 62710.3932 | S125: 76269.9934 | T125: 91144.5174 | U125: 112518.648 | V125: 163924.2264
A126: 11896.0892 | B126: 19628.9885 | C126: 30962.4844 | D126: 40983.2628 | E126: 52268.2214 | F126: 58077.2724 | G126: 64753.3788 | H126: 77783.4795 | I126: 92000.5416 | J126: 114314.5339 | K126: 171204.8448 | L126: 11763.7143 | M126: 19370.8574 | N126: 30896.297 | O126: 40921.4879 | P126: 52596.9523 | Q126: 58178.7598 | R126: 64863.6912 | S126: 78463.0039 | T126: 92715.366 | U126: 115766.2451 | V126: 175012.8288
A127: 12224.8202 | B127: 21325.5932 | C127: 30887.472 | D127: 40528.7758 | E127: 51566.6345 | F127: 56934.4359 | G127: 62856.0055 | H127: 75846.3937 | I127: 90456.168 | J127: 111194.8992 | K127: 157203.995 | L127: 12169.664 | M127: 21179.9808 | N127: 30913.947 | O127: 40705.2756 | P127: 52067.4528 | Q127: 57362.448 | R127: 64042.9669 | S127: 76336.1808 | T127: 91396.0296 | U127: 112990.7851 | V127: 158408.6064
A128: 12465.3012 | B128: 20178.3442 | C128: 31156.6343 | D128: 40579.5195 | E128: 50328.9294 | F128: 56691.7486 | G128: 62478.7371 | H128: 75012.432 | I128: 89758.9936 | J128: 110753.6496 | K128: 165984.862 | L128: 12328.5138 | M128: 19873.882 | N128: 30988.9594 | O128: 40153.7136 | P128: 49909.7423 | Q128: 56391.6989 | R128: 62498.5933 | S128: 75418.3816 | T128: 90456.168 | U128: 112853.9977 | V128: 167992.5477
A129: 11973.3079 | B129: 19465.7261 | C129: 30115.2852 | D129: 39712.464 | E129: 51910.8092 | F129: 57891.9475 | G129: 64422.4416 | H129: 76777.4304 | I129: 90235.5432 | J129: 112456.8731 | K129: 163721.2516 | L129: 11825.4893 | M129: 19044.3327 | N129: 30115.2852 | O129: 39712.464 | P129: 51996.8529 | Q129: 57891.9475 | R129: 64665.1289 | S129: 77673.1671 | T129: 91038.6175 | U129: 113674.722 | V129: 167145.3485
A130: 12165.2515 | B130: 19926.8319 | C130: 31030.8781 | D130: 40903.8379 | E130: 52034.3591 | F130: 57768.3976 | G130: 64272.4167 | H130: 77218.68 | I130: 91751.2356 | J130: 113215.8224 | K130: 167145.3485 | L130: 11979.9266 | M130: 19397.3324 | N130: 30953.6594 | O130: 40930.3129 | P130: 52508.7024 | Q130: 58055.2099 | R130: 64753.3788 | S130: 78101.1792 | T130: 92662.416 | U130: 115060.2457 | V130: 169616.3462
A131: 12174.0765 | B131: 20941.706 | C131: 30446.2224 | D131: 39319.7519 | E131: 50302.4544 | F131: 55707.762 | G131: 63067.8053 | H131: 75069.7944 | I131: 89041.963 | J131: 108326.7768 | K131: 155322.0654 | L131: 11966.6892 | M131: 20681.3688 | N131: 30446.2224 | O131: 39235.9144 | P131: 50302.4544 | Q131: 56281.3865 | R131: 63478.1675 | S131: 75233.0568 | T131: 89794.2936 | U131: 110043.2377 | V131: 159291.1056
A132: 11869.6142 | B132: 19701.7946 | C132: 30258.6913 | D132: 40222.1073 | E132: 50957.7101 | F132: 56837.361 | G132: 63118.549 | H132: 75894.9312 | I132: 91581.3545 | J132: 114912.4271 | K132: 170975.395 | L132: 11666.6394 | M132: 19035.5077 | N132: 30305.0225 | O132: 40312.5635 | P132: 51617.3782 | Q132: 57362.448 | R132: 63963.542 | S132: 76777.4304 | T132: 92380.0163 | U132: 116666.3942 | V132: 173137.518
A133: 11735.0331 | B133: 19878.2945 | C133: 29599.0232 | D133: 39933.0888 | E133: 51632.8219 | F133: 57688.9727 | G133: 63681.1423 | H133: 76358.2433 | I133: 90734.1552 | J133: 112992.9913 | K133: 165468.6 | L133: 11701.9394 | M133: 19631.1947 | N133: 29779.9355 | O133: 40074.2887 | P133: 51890.953 | Q133: 58134.6348 | R133: 63994.4295 | S133: 77218.68 | T133: 92132.9165 | U133: 115166.1456 | V133: 166827.6488
A134: 12648.4198 | B134: 19573.8323 | C134: 29667.4169 | D134: 39524.9329 | E134: 50421.5918 | F134: 57097.6982 | G134: 62705.9807 | H134: 75775.7938 | I134: 90456.168 | J134: 110312.4 | K134: 161011.979 | L134: 12354.9888 | M134: 19397.3324 | N134: 29563.7232 | O134: 39249.1519 | P134: 50302.4544 | Q134: 57053.5733 | R134: 62780.9931 | S134: 76269.9934 | T134: 91629.8919 | U134: 111490.5364 | V134: 164828.7881
A135: 12090.239 | B135: 20068.0318 | C135: 30583.0098 | D135: 40078.7012 | E135: 51284.2348 | F135: 56934.4359 | G135: 62679.5057 | H135: 75369.8442 | I135: 91007.73 | J135: 112081.8109 | K135: 165468.6 | L135: 11944.6267 | M135: 19993.0194 | N135: 30887.472 | O135: 40153.7136 | P135: 51617.3782 | Q135: 57274.1981 | R135: 63116.3428 | S135: 75965.5311 | T135: 91978.4791 | U135: 114208.634 | V135: 167939.5978
A136: 12752.1134 | B136: 20760.7937 | C136: 31147.8093 | D136: 40661.1506 | E136: 51762.9906 | F136: 57362.448 | G136: 63932.6545 | H136: 76808.3179 | I136: 91193.0548 | J136: 112456.8731 | K136: 163569.0205 | L136: 12416.7637 | M136: 20076.8568 | N136: 30971.3094 | O136: 40312.5635 | P136: 51087.8787 | Q136: 56837.361 | R136: 63116.3428 | S136: 76909.8053 | T136: 91943.1792 | U136: 113184.9349 | V136: 165909.8496
A137: 12077.0016 | B137: 20072.4443 | C137: 30446.2224 | D137: 39712.464 | E137: 50492.1917 | F137: 56497.5988 | G137: 63067.8053 | H137: 76084.6685 | I137: 90745.1865 | J137: 112178.8858 | K137: 163871.2764 | L137: 12037.2891 | M137: 19873.882 | N137: 30653.6097 | O137: 39712.464 | P137: 50726.054 | Q137: 56855.011 | R137: 63553.1799 | S137: 76958.3427 | T137: 92225.5789 | U137: 114438.0838 | V137: 167679.2605
A138: 11472.4896 | B138: 20030.5256 | C138: 31063.9718 | D138: 41334.0563 | E138: 51132.0036 | F138: 57300.6731 | G138: 62983.9679 | H138: 75983.1811 | I138: 90456.168 | J138: 111049.2868 | K138: 161563.541 | L138: 11295.9898 | M138: 19706.2071 | N138: 30988.9594 | O138: 41036.2128 | P138: 50973.1538 | Q138: 57362.448 | R138: 63557.5924 | S138: 76570.0431 | T138: 91281.3048 | U138: 112849.5852 | V138: 164828.7881
A139: 12207.1702 | B139: 20639.45 | C139: 30887.472 | D139: 39829.3951 | E139: 50410.5606 | F139: 56479.9488 | G139: 62260.3186 | H139: 75572.819 | I139: 90566.4804 | J139: 112077.3984 | K139: 169285.409 | L139: 12160.839 | M139: 20059.2068 | N139: 30887.472 | O139: 39712.464 | P139: 50002.4047 | Q139: 56347.5739 | R139: 62657.4432 | S139: 76402.3682 | T139: 91943.1792 | U139: 114570.4586 | V139: 173764.0925
A140: 12354.9888 | B140: 20650.4813 | C140: 31284.5966 | D140: 40590.5507 | E140: 51220.2536 | F140: 57362.448 | G140: 63747.3297 | H140: 76402.3682 | I140: 90509.118 | J140: 111221.3742 | K140: 166580.549 | L140: 12191.7264 | M140: 19882.707 | N140: 31116.9218 | O140: 40568.4882 | P140: 51220.2536 | Q140: 57485.9979 | R140: 64073.8544 | S140: 77681.9921 | T140: 91779.9168 | U140: 112964.3101 | V140: 168292.5974
A141: 11735.0331 | B141: 19370.8574 | C141: 30113.079 | D141: 40061.0512 | E141: 50368.6418 | F141: 56731.4611 | G141: 62597.8745 | H141: 75012.432 | I141: 90740.774 | J141: 110312.4 | K141: 163046.1397 | L141: 11706.3519 | M141: 18956.0828 | N141: 30115.2852 | O141: 40038.9887 | P141: 50368.6418 | Q141: 56749.1111 | R141: 62829.5305 | S141: 75096.2694 | T141: 91523.992 | U141: 112576.0104 | V141: 165600.9749
A142: 12434.4137 | B142: 20085.6818 | C142: 30825.6971 | D142: 40189.0136 | E142: 51222.4598 | F142: 57450.6979 | G142: 64025.317 | H142: 76311.9121 | I142: 91629.8919 | J142: 112964.3101 | K142: 163957.3201 | L142: 12165.2515 | M142: 19856.232 | N142: 30803.6346 | O142: 40065.4637 | P142: 51626.2032 | Q142: 57583.0728 | R142: 64422.4416 | S142: 76958.3427 | T142: 92380.0163 | U142: 114724.896 | V142: 167145.3485
A143: 12862.4258 | B143: 21162.3308 | C143: 30737.4471 | D143: 40358.8947 | E143: 52596.9523 | F143: 57891.9475 | G143: 64574.6727 | H143: 76689.1805 | I143: 90862.1176 | J143: 112651.0229 | K143: 163169.6896 | L143: 12496.1887 | M143: 20624.0063 | N143: 30688.9097 | O143: 40568.4882 | P143: 52852.8771 | Q143: 58584.7094 | R143: 65269.6408 | S143: 77593.7422 | T143: 92000.5416 | U143: 114724.896 | V143: 165071.4754
A144: 12500.6012 | B144: 20893.1686 | C144: 30913.947 | D144: 40749.4006 | E144: 51222.4598 | F144: 57053.5733 | G144: 63098.6928 | H144: 75864.0437 | I144: 90524.5617 | J144: 111761.9049 | K144: 161717.9784 | L144: 12407.9388 | M144: 20076.8568 | N144: 30887.472 | O144: 40356.6884 | P144: 51405.5784 | Q144: 57097.6982 | R144: 63434.0425 | S144: 76314.1183 | T144: 91131.2799 | U144: 114345.4213 | V144: 164828.7881
A145: 12377.0513 | B145: 20068.0318 | C145: 30446.2224 | D145: 40652.3256 | E145: 51643.8532 | F145: 57362.448 | G145: 62856.0055 | H145: 75453.6816 | I145: 89814.1498 | J145: 109096.7574 | K145: 160385.4046 | L145: 12399.1138 | M145: 19706.2071 | N145: 30583.0098 | O145: 40705.2756 | P145: 51890.953 | Q145: 57688.9727 | R145: 63411.98 | S145: 76084.6685 | T145: 90456.168 | U145: 111049.2868 | V145: 162247.4779
A146: 12377.0513 | B146: 19856.232 | C146: 30887.472 | D146: 40594.9632 | E146: 51109.9412 | F146: 56921.1984 | G146: 62496.3871 | H146: 75310.2755 | I146: 91367.3484 | J146: 110557.2935 | K146: 160339.0734 | L146: 12222.6139 | M146: 19414.9824 | N146: 30887.472 | O146: 40625.8507 | P146: 51762.9906 | Q146: 57362.448 | R146: 63036.9179 | S146: 76570.0431 | T146: 92362.3663 | U146: 112959.8976 | V146: 162247.4779
A147: 11858.583 | B147: 19745.9196 | C147: 30130.7289 | D147: 40444.9383 | E147: 51467.3533 | F147: 57243.3106 | G147: 63107.5178 | H147: 76325.1496 | I147: 90540.0054 | J147: 112990.7851 | K147: 163946.2889 | L147: 11847.5518 | M147: 19631.1947 | N147: 30463.8724 | O147: 40625.8507 | P147: 51908.6029 | Q147: 57362.448 | R147: 63539.9424 | S147: 77218.68 | T147: 92221.1664 | U147: 114844.0334 | V147: 167679.2605
A148: 12403.5263 | B148: 20504.8689 | C148: 31769.9712 | D148: 41327.4375 | E148: 52764.6272 | F148: 58068.4474 | G148: 64312.1292 | H148: 77218.68 | I148: 90915.0676 | J148: 110718.3496 | K148: 160162.5736 | L148: 12024.0516 | M148: 19993.0194 | N148: 31518.4589 | O148: 40594.9632 | P148: 52596.9523 | Q148: 57962.5475 | R148: 64356.2542 | S148: 77231.9175 | T148: 91616.6544 | U148: 111667.0363 | V148: 160394.2296
A149: 12200.5514 | B149: 20004.0506 | C149: 29682.8606 | D149: 39712.464 | E149: 50734.879 | F149: 57300.6731 | G149: 63992.2232 | H149: 77218.68 | I149: 91396.0296 | J149: 111243.4367 | K149: 163368.2519 | L149: 11896.0892 | M149: 19856.232 | N149: 29682.8606 | O149: 39712.464 | P149: 50898.1414 | Q149: 57362.448 | R149: 64665.1289 | S149: 77761.417 | T149: 92485.9162 | U149: 113246.7098 | V149: 166915.8987
A150: 12200.5514 | B150: 20297.4816 | C150: 30887.472 | D150: 39712.464 | E150: 50386.2918 | F150: 56391.6989 | G150: 62578.0183 | H150: 75193.3443 | I150: 90897.4176 | J150: 111686.8925 | K150: 158525.5375 | L150: 12160.839 | M150: 19759.1571 | N150: 30803.6346 | O150: 39712.464 | P150: 50421.5918 | Q150: 56585.8487 | R150: 62789.8181 | S150: 76084.6685 | T150: 92185.8664 | U150: 113396.7347 | V150: 159732.3552
A151: 12001.9891 | B151: 19873.882 | C151: 30214.5664 | D151: 39741.1452 | E151: 50450.273 | F151: 57185.9482 | G151: 63544.3549 | H151: 75855.2187 | I151: 90919.4801 | J151: 113215.8224 | K151: 166792.3488 | L151: 11662.2269 | M151: 19370.8574 | N151: 29682.8606 | O151: 39699.2265 | P151: 50381.8793 | Q151: 57185.9482 | R151: 63963.542 | S151: 76115.556 | T151: 91779.9168 | U151: 115166.1456 | V151: 167679.2605
A152: 12297.6264 | B152: 21085.1121 | C152: 31143.3968 | D152: 40594.9632 | E152: 51749.7531 | F152: 57583.0728 | G152: 64643.0664 | H152: 76905.3928 | I152: 91581.3545 | J152: 112915.7726 | K152: 165270.0377 | L152: 11979.9266 | M152: 20491.6314 | N152: 31138.9843 | O152: 40219.901 | P152: 51749.7531 | Q152: 57583.0728 | R152: 64916.6412 | S152: 77761.417 | T152: 92662.416 | U152: 114835.2084 | V152: 170101.7208
A153: 11706.3519 | B153: 20868.8998 | C153: 30913.947 | D153: 41442.1624 | E153: 52131.434 | F153: 58068.4474 | G153: 63981.192 | H153: 76296.4683 | I153: 90906.2426 | J153: 110625.6872 | K153: 168557.3472 | L153: 11666.6394 | M153: 20650.4813 | N153: 31205.1717 | O153: 41521.5874 | P153: 52808.7521 | Q153: 58752.3842 | R153: 64885.7537 | S153: 77306.9299 | T153: 92485.9162 | U153: 113026.085 | V153: 170984.22
A154: 11825.4893 | B154: 19384.0949 | C154: 30514.6161 | D154: 40189.0136 | E154: 51913.0154 | F154: 57459.5229 | G154: 63116.3428 | H154: 76909.8053 | I154: 91623.2732 | J154: 111839.1236 | K154: 166280.4993 | L154: 11666.6394 | M154: 19114.9327 | N154: 30410.9224 | O154: 39871.3139 | P154: 51749.7531 | Q154: 57485.9979 | R154: 63434.0425 | S154: 77593.7422 | T154: 92437.3787 | U154: 113246.7098 | V154: 168729.4345
A155: 12019.6391 | B155: 20683.575 | C155: 31465.509 | D155: 40568.4882 | E155: 51566.6345 | F155: 57362.448 | G155: 63120.7553 | H155: 76089.081 | I155: 91076.1237 | J155: 111194.8992 | K155: 162761.5337 | L155: 11706.3519 | M155: 20332.7816 | N155: 31412.559 | O155: 40219.901 | P155: 51255.5535 | Q155: 57406.573 | R155: 63354.6176 | S155: 76742.1304 | T155: 92062.3165 | U155: 112783.3978 | V155: 163280.002
A156: 12699.1635 | B156: 20076.8568 | C156: 30139.5539 | D156: 39818.3639 | E156: 52504.2899 | F156: 57680.1477 | G156: 64369.4916 | H156: 76274.4059 | I156: 90312.7619 | J156: 111603.0551 | K156: 164043.3638 | L156: 12496.1887 | M156: 19662.0822 | N156: 30163.8227 | O156: 39712.464 | P156: 52596.9523 | Q156: 57931.66 | R156: 64665.1289 | S156: 76953.9302 | T156: 91193.0548 | U156: 114345.4213 | V156: 165909.8496
A157: 12377.0513 | B157: 20571.0564 | C157: 30558.741 | D157: 39719.0827 | E157: 49900.9173 | F157: 55619.5121 | G157: 62143.3874 | H157: 75069.7944 | I157: 89692.8062 | J157: 109871.1504 | K157: 162629.1588 | L157: 12407.9388 | M157: 20447.5065 | N157: 30781.5721 | O157: 40153.7136 | P157: 50302.4544 | Q157: 55906.3243 | R157: 62357.3935 | S157: 76521.5056 | T157: 90509.118 | U157: 111706.7487 | V157: 163968.3514
A158: 12147.6015 | B158: 21643.2929 | C158: 31769.9712 | D158: 40974.4379 | E158: 52707.2647 | F158: 57834.5851 | G158: 63963.542 | H158: 77090.7176 | I158: 90811.3739 | J158: 110118.2502 | K158: 162137.1655 | L158: 12209.3764 | M158: 21797.7302 | N158: 32325.9457 | O158: 41574.5373 | P158: 52949.952 | Q158: 58536.1719 | R158: 64510.6915 | S158: 78498.3038 | T158: 92000.5416 | U158: 111592.0238 | V158: 164206.6261
A159: 12207.1702 | B159: 19752.5383 | C159: 30479.3161 | D159: 39906.6138 | E159: 51087.8787 | F159: 56832.9485 | G159: 62745.6931 | H159: 75259.5318 | I159: 88878.7007 | J159: 109396.8071 | K159: 162026.8531 | L159: 12024.0516 | M159: 19485.5823 | N159: 30163.8227 | O159: 39712.464 | P159: 51220.2536 | Q159: 57243.3106 | R159: 63350.2051 | S159: 75714.0189 | T159: 90089.9308 | U159: 111239.0242 | V159: 165909.8496
A160: 12354.9888 | B160: 20123.188 | C160: 30018.2103 | D160: 40268.4385 | E160: 51632.8219 | F160: 57313.9105 | G160: 63526.7049 | H160: 75875.075 | I160: 90456.168 | J160: 110841.8995 | K160: 162313.6654 | L160: 12191.7264 | M160: 19706.2071 | N160: 29660.7981 | O160: 40153.7136 | P160: 51639.4407 | Q160: 57362.448 | R160: 63981.192 | S160: 76512.6806 | T160: 91396.0296 | U160: 112792.2228 | V160: 163280.002
A161: 12575.6136 | B161: 20725.4937 | C161: 30887.472 | D161: 40978.8504 | E161: 51665.9157 | F161: 57538.9478 | G161: 63173.7052 | H161: 75102.8882 | I161: 90897.4176 | J161: 111603.0551 | K161: 162026.8531 | L161: 12240.2639 | M161: 20297.4816 | N161: 30737.4471 | O161: 40528.7758 | P161: 51405.5784 | Q161: 57415.398 | R161: 63478.1675 | S161: 75837.5688 | T161: 91629.8919 | U161: 112783.3978 | V161: 163924.2264
A162: 11913.7392 | B162: 19993.0194 | C162: 30463.8724 | D162: 41155.3502 | E162: 52040.9778 | F162: 57485.9979 | G162: 64051.7919 | H162: 76777.4304 | I162: 91281.3048 | J162: 112121.5234 | K162: 166192.2493 | L162: 11701.9394 | M162: 19706.2071 | N162: 30777.1596 | O162: 41283.3126 | P162: 52089.5153 | Q162: 57891.9475 | R162: 64863.6912 | S162: 77218.68 | T162: 92662.416 | U162: 114835.2084 | V162: 167679.2605
A163: 11891.6767 | B163: 19701.7946 | C163: 30691.1159 | D163: 40504.507 | E163: 51707.8344 | F163: 57406.573 | G163: 63981.192 | H163: 75875.075 | I163: 90169.3558 | J163: 109116.6136 | K163: 160727.373 | L163: 11763.7143 | M163: 19437.0449 | N163: 30715.3847 | O163: 40330.2134 | P163: 51996.8529 | Q163: 57803.6976 | R163: 64422.4416 | S163: 76909.8053 | T163: 90897.4176 | U163: 111614.0863 | V163: 162922.5898
A164: 12538.1074 | B164: 20112.1568 | C164: 30988.9594 | D164: 40661.1506 | E164: 51899.778 | F164: 58130.2223 | G164: 64510.6915 | H164: 76987.024 | I164: 91228.3548 | J164: 110797.7746 | K164: 161629.7285 | L164: 12505.0137 | M164: 20068.0318 | N164: 31138.9843 | O164: 40692.0381 | P164: 52067.4528 | Q164: 58536.1719 | R164: 65181.3909 | S164: 78101.1792 | T164: 92221.1664 | U164: 112081.8109 | V164: 162922.5898
A165: 11648.9894 | B165: 18964.9078 | C165: 29656.3856 | D165: 39712.464 | E165: 50368.6418 | F165: 56479.9488 | G165: 62657.4432 | H165: 76071.431 | I165: 90826.8177 | J165: 110579.356 | K165: 164124.995 | L165: 11648.9894 | M165: 18660.4456 | N165: 29660.7981 | O165: 39712.464 | P165: 50787.829 | Q165: 56837.361 | R165: 63411.98 | S165: 77218.68 | T165: 91943.1792 | U165: 112518.648 | V165: 167145.3485
A166: 12500.6012 | B166: 21127.0308 | C166: 30971.3094 | D166: 40206.6636 | E166: 51440.8784 | F166: 57362.448 | G166: 63548.7674 | H166: 75894.9312 | I166: 90740.774 | J166: 108955.5575 | K166: 165270.0377 | L166: 12354.9888 | M166: 20447.5065 | N166: 30971.3094 | O166: 40312.5635 | P166: 51648.2657 | Q166: 57362.448 | R166: 64073.8544 | S166: 76777.4304 | T166: 91396.0296 | U166: 111636.1488 | V166: 166792.3488
A167: 12699.1635 | B167: 20915.231 | C167: 31569.2026 | D167: 41036.2128 | E167: 52949.952 | F167: 58055.2099 | G167: 65664.5592 | H167: 78079.1167 | I167: 92380.0163 | J167: 114391.7526 | K167: 165600.9749 | L167: 12685.926 | M167: 20681.3688 | N167: 32175.9208 | O167: 41270.0751 | P167: 52949.952 | Q167: 58677.3718 | R167: 66099.1901 | S167: 78348.279 | T167: 92706.541 | U167: 115060.2457 | V167: 166792.3488
A168: 11913.7392 | B168: 19904.7695 | C168: 30887.472 | D168: 40822.2067 | E168: 52749.1834 | F168: 58584.7094 | G168: 65291.7033 | H168: 78447.5601 | I168: 92216.7539 | J168: 112145.7921 | K168: 163423.4081 | L168: 11896.0892 | M168: 19538.5323 | N168: 30887.472 | O168: 41036.2128 | P168: 52949.952 | Q168: 58796.5092 | R168: 65905.0403 | S168: 79424.928 | T168: 92662.416 | U168: 113860.0468 | V168: 165600.9749
A169: 11858.583 | B169: 19039.9202 | C169: 29475.4733 | D169: 39699.2265 | E169: 50002.4047 | F169: 56453.4738 | G169: 63259.7489 | H169: 76358.2433 | I169: 92662.416 | J169: 116068.501 | K169: 169450.8776 | L169: 11604.8645 | M169: 18497.1832 | N169: 29329.8609 | O169: 39491.8392 | P169: 50205.3795 | Q169: 56731.4611 | R169: 63888.5296 | S169: 77668.7546 | T169: 94136.1897 | U169: 118696.1424 | V169: 172307.9688
A170: 11960.0704 | B170: 20390.144 | C170: 30887.472 | D170: 41420.1 | E170: 52685.2022 | F170: 58536.1719 | G170: 64462.1541 | H170: 77218.68 | I170: 91835.073 | J170: 111636.1488 | K170: 160292.7422 | L170: 11604.8645 | M170: 19993.0194 | N170: 30887.472 | O170: 41270.0751 | P170: 52504.2899 | Q170: 58130.2223 | R170: 64356.2542 | S170: 77218.68 | T170: 92062.3165 | U170: 112576.0104 | V170: 161197.3039
A171: 12200.5514 | B171: 20650.4813 | C171: 30516.8223 | D171: 40069.8762 | E171: 51193.7786 | F171: 57362.448 | G171: 63981.192 | H171: 76706.8305 | I171: 90813.5802 | J171: 109381.3633 | K171: 160085.3549 | L171: 11953.4517 | M171: 20125.3943 | N171: 30666.8472 | O171: 39933.0888 | P171: 51224.6661 | Q171: 57485.9979 | R171: 64356.2542 | S171: 77090.7176 | T171: 91523.992 | U171: 110422.7124 | V171: 162247.4779
A172: 12838.1571 | B172: 21069.6684 | C172: 31432.4153 | D172: 41106.8127 | E172: 52506.4962 | F172: 58033.1474 | G172: 65013.7161 | H172: 77664.3421 | I172: 92117.4727 | J172: 113070.21 | K172: 169003.0093 | L172: 12752.1134 | M172: 20875.5186 | N172: 31769.9712 | O172: 41133.2877 | P172: 52707.2647 | Q172: 58244.9472 | R172: 65313.7658 | S172: 78326.2165 | T172: 92905.1033 | U172: 114724.896 | V172: 171972.6191
A173: 11666.6394 | B173: 20094.5068 | C173: 31167.6655 | D173: 41477.4624 | E173: 52261.6026 | F173: 57891.9475 | G173: 64488.629 | H173: 77046.5927 | I173: 91468.8358 | J173: 113674.722 | K173: 166399.6367 | L173: 11604.8645 | M173: 19869.4695 | N173: 31138.9843 | O173: 40930.3129 | P173: 51996.8529 | Q173: 57834.5851 | R173: 64863.6912 | S173: 77898.2044 | T173: 92662.416 | U173: 115766.2451 | V173: 167992.5477
A174: 12231.4389 | B174: 20650.4813 | C174: 30964.6907 | D174: 41184.0314 | E174: 52215.2714 | F174: 57362.448 | G174: 63539.9424 | H174: 75683.1314 | I174: 90456.168 | J174: 112792.2228 | K174: 163946.2889 | L174: 12165.2515 | M174: 20235.7067 | N174: 30997.7844 | O174: 41212.7126 | P174: 52508.7024 | Q174: 57538.9478 | R174: 63981.192 | S174: 76269.9934 | T174: 91281.3048 | U174: 114164.509 | V174: 166368.7492
A175: 11973.3079 | B175: 20231.2942 | C175: 30289.5788 | D175: 39712.464 | E175: 50651.0416 | F175: 57053.5733 | G175: 63981.192 | H175: 77218.68 | I175: 91396.0296 | J175: 111194.8992 | K175: 162600.4776 | L175: 11701.9394 | M175: 19873.882 | N175: 30446.2224 | O175: 39712.464 | P175: 50973.1538 | Q175: 57362.448 | R175: 64369.4916 | S175: 78326.2165 | T175: 92477.0912 | U175: 113930.6467 | V175: 164206.6261
A176: 12169.664 | B176: 19993.0194 | C176: 29784.348 | D176: 40091.9387 | E176: 50470.1292 | F176: 57053.5733 | G176: 64034.142 | H176: 76369.2745 | I176: 91548.2608 | J176: 113844.603 | K176: 163924.2264 | L176: 12116.714 | M176: 19697.3821 | N176: 29784.348 | O176: 40153.7136 | P176: 50933.4413 | Q176: 57362.448 | R176: 64435.6791 | S176: 77218.68 | T176: 92662.416 | U176: 115126.4331 | V176: 167145.3485
A177: 12752.1134 | B177: 20085.6818 | C177: 30583.0098 | D177: 39699.2265 | E177: 50375.2606 | F177: 56479.9488 | G177: 62127.9437 | H177: 75257.3255 | I177: 90434.1055 | J177: 110477.8686 | K177: 160339.0734 | L177: 12721.226 | M177: 20076.8568 | N177: 30662.4347 | O177: 39633.0391 | P177: 50726.054 | Q177: 57097.6982 | R177: 62983.9679 | S177: 76278.8184 | T177: 91629.8919 | U177: 112849.5852 | V177: 162247.4779
A178: 12752.1134 | B178: 20954.9435 | C178: 30741.8596 | D178: 40403.0196 | E178: 50690.754 | F178: 56700.5736 | G178: 63052.3616 | H178: 75961.1186 | I178: 90809.1677 | J178: 110312.4 | K178: 161717.9784 | L178: 12738.876 | M178: 20681.3688 | N178: 30803.6346 | O178: 40356.6884 | P178: 51021.6912 | Q178: 57185.9482 | R178: 63981.192 | S178: 76777.4304 | T178: 91912.2917 | U178: 112576.0104 | V178: 163566.8142
A179: 12838.1571 | B179: 20699.0187 | C179: 30911.7407 | D179: 40358.8947 | E179: 50567.2042 | F179: 56497.5988 | G179: 62657.4432 | H179: 75436.0316 | I179: 90734.1552 | J179: 112095.0484 | K179: 162600.4776 | L179: 12738.876 | M179: 20496.0439 | N179: 30913.947 | O179: 40153.7136 | P179: 50646.6291 | Q179: 56731.4611 | R179: 63067.8053 | S179: 76269.9934 | T179: 91396.0296 | U179: 114345.4213 | V179: 164828.7881
A180: 12019.6391 | B180: 20180.5505 | C180: 30973.5157 | D180: 41486.2874 | E180: 52949.952 | F180: 57931.66 | G180: 64885.7537 | H180: 77920.2669 | I180: 92468.2662 | J180: 113407.7659 | K180: 165071.4754 | L180: 11847.5518 | M180: 19993.0194 | N180: 31240.4717 | O180: 41512.7624 | P180: 52949.952 | Q180: 58650.8968 | R180: 65304.9408 | S180: 79107.2283 | T180: 93924.3899 | U180: 115563.2702 | V180: 167101.2235
A181: 12116.714 | B181: 19582.6572 | C181: 30463.8724 | D181: 40372.1322 | E181: 52475.6087 | F181: 57834.5851 | G181: 64885.7537 | H181: 78337.2477 | I181: 92662.416 | J181: 112150.2046 | K181: 162600.4776 | L181: 12116.714 | M181: 19317.9075 | N181: 30715.3847 | O181: 40643.5007 | P181: 52619.0148 | Q181: 58244.9472 | R181: 65675.5905 | S181: 79645.5528 | T181: 94149.4272 | U181: 114667.5336 | V181: 165909.8496
A182: 12465.3012 | B182: 21069.6684 | C182: 30658.0222 | D182: 40506.7133 | E182: 52175.559 | F182: 57362.448 | G182: 63456.105 | H182: 75023.4632 | I182: 90107.5808 | J182: 112518.648 | K182: 160722.9606 | L182: 12319.6888 | M182: 20875.5186 | N182: 30803.6346 | O182: 40506.7133 | P182: 52508.7024 | Q182: 57362.448 | R182: 63857.6421 | S182: 75837.5688 | T182: 91193.0548 | U182: 114720.4835 | V182: 162922.5898
A183: 12644.0073 | B183: 21127.0308 | C183: 30975.7219 | D183: 40539.807 | E183: 51809.3218 | F183: 57463.9354 | G183: 63990.017 | H183: 77681.9921 | I183: 92124.0915 | J183: 112851.7914 | K183: 168643.3909 | L183: 12602.0886 | M183: 20725.4937 | N183: 30971.3094 | O183: 40356.6884 | P183: 51996.8529 | Q183: 57891.9475 | R183: 64885.7537 | S183: 78463.0039 | T183: 93094.8406 | U183: 114835.2084 | V183: 171204.8448
A184: 11973.3079 | B184: 20496.0439 | C184: 30115.2852 | D184: 40579.5195 | E184: 51222.4598 | F184: 57891.9475 | G184: 63714.236 | H184: 75939.0562 | I184: 90968.0175 | J184: 113365.8472 | K184: 163244.702 | L184: 11953.4517 | M184: 20650.4813 | N184: 30887.472 | O184: 41212.7126 | P184: 52685.2022 | Q184: 58650.8968 | R184: 65026.9536 | S184: 77681.9921 | T184: 92477.0912 | U184: 115497.0828 | V184: 165468.6
A185: 12416.7637 | B185: 21069.6684 | C185: 30622.7222 | D185: 40153.7136 | E185: 50646.6291 | F185: 56749.1111 | G185: 62496.3871 | H185: 75879.4875 | I185: 90014.9184 | J185: 110367.5562 | K185: 160945.7916 | L185: 12169.664 | M185: 20725.4937 | N185: 30887.472 | O185: 40219.901 | P185: 50655.4541 | Q185: 56837.361 | R185: 62829.5305 | S185: 76570.0431 | T185: 90835.6427 | U185: 111490.5364 | V185: 163169.6896
A186: 12416.7637 | B186: 20085.6818 | C186: 30973.5157 | D186: 40676.5944 | E186: 52446.9275 | F186: 57896.36 | G186: 64025.317 | H186: 76336.1808 | I186: 91468.8358 | J186: 110753.6496 | K186: 166295.943 | L186: 12354.9888 | M186: 19847.407 | N186: 30988.9594 | O186: 40625.8507 | P186: 52852.8771 | Q186: 58399.3846 | R186: 64916.6412 | S186: 77377.5299 | T186: 92468.2662 | U186: 112518.648 | V186: 167410.0982
A187: 12019.6391 | B187: 20297.4816 | C187: 30878.647 | D187: 41574.5373 | E187: 52720.5022 | F187: 58584.7094 | G187: 64828.3912 | H187: 77664.3421 | I187: 92574.1661 | J187: 114724.896 | K187: 164005.8576 | L187: 11913.7392 | M187: 19706.2071 | N187: 30662.4347 | O187: 41239.1876 | P187: 52808.7521 | Q187: 58796.5092 | R187: 65388.7782 | S187: 78718.9286 | T187: 93875.8524 | U187: 116295.7446 | V187: 166192.2493
A188: 11913.7392 | B188: 19993.0194 | C188: 29828.473 | D188: 39787.4764 | E188: 51493.8283 | F188: 57362.448 | G188: 63681.1423 | H188: 76808.3179 | I188: 91473.2483 | J188: 112792.2228 | K188: 167145.3485 | L188: 11648.9894 | M188: 19485.5823 | N188: 29824.0605 | O188: 39712.464 | P188: 52001.2654 | Q188: 57803.6976 | R188: 64660.7164 | S188: 78101.1792 | T188: 92662.416 | U188: 114874.9209 | V188: 169620.7587
A189: 12952.882 | B189: 20491.6314 | C189: 31319.8966 | D189: 41334.0563 | E189: 52680.7897 | F189: 57962.5475 | G189: 64773.235 | H189: 76336.1808 | I189: 90705.474 | J189: 110032.2065 | K189: 167895.4728 | L189: 12756.5259 | M189: 19993.0194 | N189: 31328.7216 | O189: 41283.3126 | P189: 52685.2022 | Q189: 58244.9472 | R189: 65194.6284 | S189: 77218.68 | T189: 91581.3545 | U189: 111821.4736 | V189: 170984.22
A190: 12030.6703 | B190: 19653.2572 | C190: 30891.8845 | D190: 41128.8752 | E190: 52596.9523 | F190: 57891.9475 | G190: 64885.7537 | H190: 78273.2665 | I190: 92340.3038 | J190: 114989.6458 | K190: 169450.8776 | L190: 11913.7392 | M190: 19538.5323 | N190: 30988.9594 | O190: 41036.2128 | P190: 52707.2647 | Q190: 58068.4474 | R190: 65304.9408 | S190: 79416.103 | T190: 93103.6656 | U190: 117822.4682 | V190: 171972.6191
A191: 12240.2639 | B191: 19873.882 | C191: 30825.6971 | D191: 40634.6757 | E191: 52089.5153 | F191: 57362.448 | G191: 64095.9169 | H191: 77681.9921 | I191: 91901.2604 | J191: 113330.5473 | K191: 163566.8142 | L191: 12160.839 | M191: 19626.7822 | N191: 30746.2721 | O191: 40877.3629 | P191: 52508.7024 | Q191: 57971.3724 | R191: 65313.7658 | S191: 78718.9286 | T191: 93103.6656 | U191: 115563.2702 | V191: 166792.3488
A192: 12215.9952 | B192: 20970.3872 | C192: 30428.5724 | D192: 39712.464 | E192: 50095.0671 | F192: 55800.4244 | G192: 62657.4432 | H192: 75083.0319 | I192: 90509.118 | J192: 109478.4383 | K192: 161563.541 | L192: 12160.839 | M192: 20429.8565 | N192: 30115.2852 | O192: 39500.6642 | P192: 49755.3049 | Q192: 55712.1745 | R192: 62829.5305 | S192: 75365.4317 | T192: 90928.3051 | U192: 111194.8992 | V192: 162922.5898
A193: 12174.0765 | B193: 19873.882 | C193: 30779.3658 | D193: 40400.8134 | E193: 51220.2536 | F193: 57146.2357 | G193: 63599.5111 | H193: 76920.8365 | I193: 92441.7912 | J193: 114980.8208 | K193: 171588.732 | L193: 11913.7392 | M193: 19560.5948 | N193: 30887.472 | O193: 40625.8507 | P193: 51855.653 | Q193: 57485.9979 | R193: 64665.1289 | S193: 77876.1419 | T193: 93094.8406 | U193: 117182.6563 | V193: 175012.8288
A194: 11929.1829 | B194: 20041.5568 | C194: 30479.3161 | D194: 40356.6884 | E194: 51648.2657 | F194: 57362.448 | G194: 64042.9669 | H194: 77664.3421 | I194: 91978.4791 | J194: 112823.1102 | K194: 164517.7071 | L194: 11666.6394 | M194: 19631.1947 | N194: 30512.4098 | O194: 40550.8382 | P194: 51913.0154 | Q194: 57768.3976 | R194: 64510.6915 | S194: 78992.5034 | T194: 92883.0408 | U194: 115060.2457 | V194: 167410.0982
A195: 12787.4134 | B195: 21594.7554 | C195: 31769.9712 | D195: 41334.0563 | E195: 52949.952 | F195: 58761.2092 | G195: 64422.4416 | H195: 77315.7549 | I195: 92673.4472 | J195: 112792.2228 | K195: 161828.2908 | L195: 12712.401 | M195: 21179.9808 | N195: 31690.5463 | O195: 41270.0751 | P195: 52949.952 | Q195: 59127.4464 | R195: 64422.4416 | S195: 78154.1292 | T195: 93333.1154 | U195: 113418.7972 | V195: 163566.8142
A196: 11913.7392 | B196: 20650.4813 | C196: 30688.9097 | D196: 40189.0136 | E196: 51405.5784 | F196: 57463.9354 | G196: 64095.9169 | H196: 77876.1419 | I196: 91102.5987 | J196: 112792.2228 | K196: 159732.3552 | L196: 11896.0892 | M196: 20103.3318 | N196: 30803.6346 | O196: 40189.0136 | P196: 51648.2657 | Q196: 57896.36 | R196: 64660.7164 | S196: 78326.2165 | T196: 92221.1664 | U196: 114971.9958 | V196: 161629.7285
A197: 11847.5518 | B197: 19871.6757 | C197: 30446.2224 | D197: 40118.4136 | E197: 51184.9536 | F197: 56391.6989 | G197: 62352.981 | H197: 75012.432 | I197: 89278.0316 | J197: 110780.1246 | K197: 164517.7071 | L197: 11847.5518 | M197: 19503.2323 | N197: 30653.6097 | O197: 40074.2887 | P197: 51184.9536 | Q197: 56832.9485 | R197: 62829.5305 | S197: 75559.5815 | T197: 90734.1552 | U197: 113674.722 | V197: 166399.6367
A198: 11869.6142 | B198: 19701.7946 | C198: 29771.1105 | D198: 38860.8523 | E198: 50328.9294 | F198: 56497.5988 | G198: 63052.3616 | H198: 75656.6564 | I198: 90813.5802 | J198: 111636.1488 | K198: 163566.8142 | L198: 11604.8645 | M198: 19035.5077 | N198: 29475.4733 | O198: 38578.4525 | P198: 50205.3795 | Q198: 56691.7486 | R198: 63539.9424 | S198: 76089.081 | T198: 91612.242 | U198: 112990.7851 | V198: 166192.2493
A199: 12407.9388 | B199: 20725.4937 | C199: 30018.2103 | D199: 40594.9632 | E199: 50997.4225 | F199: 56453.4738 | G199: 62083.8187 | H199: 74571.1824 | I199: 89551.6063 | J199: 109502.707 | K199: 167895.4728 | L199: 12169.664 | M199: 20231.2942 | N199: 30494.7599 | O199: 41036.2128 | P199: 51908.6029 | Q199: 56872.6609 | R199: 62701.5682 | S199: 75563.994 | T199: 91113.6299 | U199: 111636.1488 | V199: 169867.8585
A200: 12588.8511 | B200: 21074.0809 | C200: 30428.5724 | D200: 40171.3636 | E200: 50478.9542 | F200: 55685.6995 | G200: 62079.4062 | H200: 75091.8569 | I200: 90456.168 | J200: 109747.6005 | K200: 161567.9535 | L200: 12319.6888 | M200: 20447.5065 | N200: 30146.1727 | O200: 39712.464 | P200: 50478.9542 | Q200: 55800.4244 | R200: 62176.4811 | S200: 75864.0437 | T200: 91038.6175 | U200: 111821.4736 | V200: 165468.6
... 4300 more rows
